Workbook

Sheet 400 et 70 t
B1: jour | C1: date_ | I1: chance | J1: nbr fin | L1: fin iden | Q1: N-1 | V1: ok | W1: T | X1: Imp | Y1: 1 | Z1: 2 | AA1: 3 | AB1: 4 | AC1: 5 | AD1: 6 | AE1: 7 | AF1: 8 | AG1: 9 | AH1: 0 | AI1: 11 | AJ1: 12 | AK1: 13 | AL1: 14 | AM1: 15 | AN1: 16 | AO1: 17 | AP1: 18 | AQ1: 19 | AR1: 20 | AS1: 21 | AT1: 22 | AU1: 23 | AV1: 24 | AW1: 25 | AX1: 26 | AY1: 27 | AZ1: 28 | BA1: 29 | BB1: 30 | BC1: 31 | BD1: 32 | BE1: 33 | BF1: 34 | BG1: 35 | BH1: 36 | BI1: 37 | BJ1: 38 | BK1: 39 | BL1: 40 | BM1: 41 | BN1: 42 | BO1: 43 | BP1: 44 | BQ1: 45 | BR1: 46 | BS1: 47 | BT1: 48 | BU1: 49 | BV1: 0-9 | BW1: 10:19:00 | BX1: 20:29:00 | BY1: 30:39 | BZ1: 40:39 | CG1: 1 1 1 1 1 | CH1: 1111 | CI1: 10111 | CJ1: 11011 | CK1: 11101 | CL1: 11110 | CM1: 10110 | CN1: 111 | CO1: 11001 | CP1: 10011 | CQ1: 11100 | CR1: 1011 | CS1: 110 | CT1: 11010 | CU1: 1001 | CV1: 10101 | CW1: 1110 | CX1: 1101 | CY1: 10100 | CZ1: 1100 | DA1: 1000 | DB1: 11 | DC1: 1010 | DD1: 101 | DE1: 11000 | DF1: 1 | DG1: 10001 | DK1: 10010 | DL1: 1 | DM1: 2 | DN1: 3 | DO1: 4 | DP1: 5 | DQ1: 6 | DR1: 7 | DS1: 8 | DT1: 9 | DU1: 10 | DW1: N-1 | EI1: N-1 | ES1: cpl | ET1: imp | EU1: suite N° | EV1: fin id | EW1: amplitude | FE1: fin cpl | FF1: comparatif fin Cpl/N) | FK1: suite 1/2 | FL1: suite 2/3 | FM1: suite 3/4 | FN1: suite 4/5 | HD1: 1 | HE1: 2 | HF1: 3 | HG1: 4 | HH1: 5 | HI1: 6 | HJ1: 7 | HK1: 8 | HL1: 9 | HM1: 10 | HN1: 11 | HO1: 12 | HP1: 13 | HQ1: 14 | HR1: 15 | HS1: 16 | HT1: 17 | HU1: 18 | HV1: 19 | HW1: 20 | HX1: 21 | HY1: 22 | HZ1: 23 | IA1: 24 | IB1: 25 | IC1: 26 | ID1: 27 | IE1: 28 | IF1: 29 | IG1: 30 | IH1: 31 | II1: 32 | IJ1: 33 | IK1: 34 | IL1: 35 | IM1: 36 | IN1: 37 | IO1: 38 | IP1: 39 | IQ1: 40 | IR1: 41 | IS1: 42 | IT1: 43 | IU1: 44 | IV1: 45 | IW1: 46 | IX1: 47 | IY1: 48 | IZ1: 49 | JA1: 1 | JB1: 2 | JC1: 3 | JD1: 4 | JE1: 5 | JF1: 6 | JG1: 7 | JH1: 8 | JI1: 9 | JJ1: 10 | JK1: 11 | JL1: 12 | JM1: 13 | JN1: 14 | JO1: 15 | JP1: 16 | JQ1: 17 | JR1: 18 | JS1: 19 | JT1: 20 | JU1: 21 | JV1: 22 | JW1: 23 | JX1: 24 | JY1: 25 | JZ1: 26 | KA1: 27 | KB1: 28 | KC1: 29 | KD1: 30 | KE1: 31 | KF1: 32 | KG1: 33 | KH1: 34 | KI1: 35 | KJ1: 36 | KK1: 37 | KL1: 38 | KM1: 39 | KN1: 40 | KO1: 41 | KP1: 42 | KQ1: 43 | KR1: 44 | KS1: 45 | KT1: 46 | KU1: 47 | KV1: 48 | KW1: 49
FC3: fin= cpl
V4: ><1 2 3 4 | Y4: fin des nombre | CC4: =SUM(CC5:CC315) -> 214 | CD4: =SUM(CD5:CD315) -> 223 | CE4: =SUM(CE5:CE315) -> 227 | CF4: =SUM(CF5:CF315) -> 210 | CG4: 1 1 1 1 1 | CH4: 1111 | CI4: 10111 | CJ4: 11011 | CK4: 11101 | CL4: 11110 | CM4: 10110 | CN4: 111 | CO4: 11001 | CP4: 10011 | CQ4: 11100 | CR4: 1011 | CS4: 110 | CT4: 11010 | CU4: 1001 | CV4: 10101 | CW4: 1110 | CX4: 1101 | CY4: 10100 | CZ4: 1100 | DA4: 1000 | DB4: 11 | DC4: 1010 | DD4: 101 | DE4: 11000 | DF4: 1 | DG4: 10001 | DH4: 10 | DJ4: 100 | DK4: 10010 | DL4: Nombre de fois etoile 1,2,3,,,10 | EI4: traduit en 1 | ES4: n-1 | ET4: cpl | EW4: tous | EX4: fin des nombres | FC4: fin cpl/fin tous | FW4: a | FX4: b | FY4: c | FZ4: d | GA4: e | GE4: ab | GF4: bc | GG4: cd | GH4: de | GL4: ac | GM4: bd | GN4: ce | GR4: ad | GS4: be | GW4: ae | JA4: nombre de fois 1 2 3 4,,,
A5: Colonne1 | B5: Colonne2 | C5: Colonne3 | D5: Colonne4 | E5: Colonne5 | F5: Colonne6 | G5: Colonne7 | H5: Colonne8 | I5: Colonne9 | J5: Colonne10 | K5: Colonne11 | L5: Colonne12 | M5: =_xlfn.LET(_xlpm.comp,RIGHT(D6:H6,1),_xlfn._xlws.FILTER(D6:H6,_xlfn.XMATCH(_xlpm.comp,_xlpm.comp)<>_xlfn.XMATCH(_xlpm.comp,_xlpm.comp,,-1))) -> 1 | N5: 12 | O5: 31 | P5: 32 | Q5: =COUNTIF(#REF!,D6:H6) ->  | V5: =IF(AND(W5>69,W5<164,OR(X5={1;2;3;4})),1,0) -> 1 | W5: =D6+E6+F6+G6+H6 -> 104 | X5: =SUMPRODUCT(( MOD(D6:H6,2)>0)*1) -> 2 | Y5: =COUNTIF(EX5:FB5,$Y$1) -> 2 | Z5: =COUNTIF(EX5:FB5,Z$1) -> 2 | AA5: =COUNTIF(EX5:FB5,$AA$1) -> 0 | AB5: =COUNTIF(EX5:FB5,$AB$1) -> 0 | AC5: =COUNTIF(EX5:FB5,AC$1) -> 0 | AD5: =COUNTIF(EX5:FB5,AD$1) -> 0 | AE5: =COUNTIF(EX5:FB5,AE$1) -> 0 | AF5: =COUNTIF(EX5:FB5,AF$1) -> 1 | AG5: =COUNTIF(EX5:FB5,AG$1) -> 0 | AH5: =COUNTIF(EX5:FB5,AH$1) -> 0 | AI5: =COUNTIF(($D6:$H6),AI$1) -> 0 | AJ5: =COUNTIF(($D6:$H6),AJ$1) -> 1 | AK5: =COUNTIF(($D6:$H6),AK$1) -> 0 | AL5: =COUNTIF(($D6:$H6),AL$1) -> 0 | AM5: =COUNTIF(($D6:$H6),AM$1) -> 0 | AN5: =COUNTIF(($D6:$H6),AN$1) -> 0 | AO5: =COUNTIF(($D6:$H6),AO$1) -> 0 | AP5: =COUNTIF(($D6:$H6),AP$1) -> 0 | AQ5: =COUNTIF(($D6:$H6),AQ$1) -> 0 | AR5: =COUNTIF(($D6:$H6),AR$1) -> 0 | AS5: =COUNTIF(($D6:$H6),AS$1) -> 0 | AT5: =COUNTIF(($D6:$H6),AT$1) -> 0 | AU5: =COUNTIF(($D6:$H6),AU$1) -> 0 | AV5: =COUNTIF(($D6:$H6),AV$1) -> 0 | AW5: =COUNTIF(($D6:$H6),AW$1) -> 0 | AX5: =COUNTIF(($D6:$H6),AX$1) -> 0 | AY5: =COUNTIF(($D6:$H6),AY$1) -> 0 | AZ5: =COUNTIF(($D6:$H6),AZ$1) -> 1 | BA5: =COUNTIF(($D6:$H6),BA$1) -> 0 | BB5: =COUNTIF(($D6:$H6),BB$1) -> 0 | BC5: =COUNTIF(($D6:$H6),BC$1) -> 1 | BD5: =COUNTIF(($D6:$H6),BD$1) -> 1 | BE5: =COUNTIF(($D6:$H6),BE$1) -> 0 | BF5: =COUNTIF(($D6:$H6),BF$1) -> 0 | BG5: =COUNTIF(($D6:$H6),BG$1) -> 0 | BH5: =COUNTIF(($D6:$H6),BH$1) -> 0 | BI5: =COUNTIF((D6:H6),BI$1) -> 0 | BJ5: =COUNTIF((D6:H6),BJ$1) -> 0 | BK5: =COUNTIF((D6:H6),BK$1) -> 0 | BL5: =COUNTIF((D6:H6),BL$1) -> 0 | BM5: =COUNTIF((D6:H6),BM$1) -> 0 | BN5: =COUNTIF((D6:H6),BN$1) -> 0 | BO5: =COUNTIF((D6:H6),BO$1) -> 0 | BP5: =COUNTIF((D6:H6),BP$1) -> 0 | BQ5: =COUNTIF((D6:H6),BQ$1) -> 0 | BR5: =COUNTIF((D6:H6),BR$1) -> 0 | BS5: =COUNTIF((D6:H6),BS$1) -> 0 | BT5: =COUNTIF((D6:H6),BT$1) -> 0 | BU5: =COUNTIF((D6:H6),BU$1) -> 0 | BV5: =COUNTIF(D6:H6,"<10") -> 1 | BW5: =(COUNTIF(D6:H6,"<20")-BV5) -> 1 | BX5: =((COUNTIF(D6:H6,"<30")))-(BV5+BW5) -> 1 | BY5: =((COUNTIF(D6:H6,"<40")))-(BW5+BX5+BV5) -> 2 | BZ5: =((COUNTIF(D6:H6,"<50")))-(BX5+BY5+BW5+BV5) -> 0 | CA5: =IF((CB5+CC5+CD5+CE5+CF5)=5,"1","") ->  | CB5: =COUNTIF(BV5,">0") -> 1 | CC5: =COUNTIF(BW5,">0") -> 1 | CD5: =COUNTIF(BX5,">0") -> 1 | CE5: =COUNTIF(BY5,">0") -> 1 | CF5: =COUNTIF(BZ5,">0") -> 0 | CG5: =COUNTIF(CB5,">0")*+(COUNTIF(CC5,">0")*+(COUNTIF(CD5,">0")*+(COUNTIF(CE5,">0")*+(COUNTIF(CF5,">0"))))) -> 0 | CH5: =COUNTIF(CB5,"=0")*+(COUNTIF(CC5,">0")*+(COUNTIF(CD5,">0")*+(COUNTIF(CE5,">0")*+(COUNTIF(CF5,">0"))))) -> 0 | CI5: =COUNTIF(CB5,">0")*+(COUNTIF(CC5,"=0")*+(COUNTIF(CD5,">0")*+(COUNTIF(CE5,">0")*+(COUNTIF(CF5,">0"))))) -> 0 | CJ5: =COUNTIF(CB5,">0")*+(COUNTIF(CC5,">0")*+(COUNTIF(CD5,"=0")*+(COUNTIF(CE5,">0")*+(COUNTIF(CF5,">0"))))) -> 0 | CK5: =COUNTIF(CB5,">0")*+(COUNTIF(CC5,">0")*+(COUNTIF(CD5,">0")*+(COUNTIF(CE5,"=0")*+(COUNTIF(CF5,">0"))))) -> 0 | CL5: =COUNTIF(CB5,">0")*+(COUNTIF(CC5,">0")*+(COUNTIF(CD5,">0")*+(COUNTIF(CE5,">0")*+(COUNTIF(CF5,"=0"))))) -> 1 | CM5: =COUNTIF(CB5,">0")*+(COUNTIF(CC5,"=0")*+(COUNTIF(CD5,">0")*+(COUNTIF(CE5,">0")*+(COUNTIF(CF5,"=0"))))) -> 0 | CN5: =COUNTIF(CB5,"=0")*+(COUNTIF(CC5,"=0")*+(COUNTIF(CD5,">0")*+(COUNTIF(CE5,">0")*+(COUNTIF(CF5,">0"))))) -> 0 | CO5: =COUNTIF(CB5,">0")*+(COUNTIF(CC5,">0")*+(COUNTIF(CD5,"=0")*+(COUNTIF(CE5,"=0")*+(COUNTIF(CF5,">0"))))) -> 0 | CP5: =COUNTIF(CB5,">0")*+(COUNTIF(CC5,"=0")*+(COUNTIF(CD5,"=0")*+(COUNTIF(CE5,">0")*+(COUNTIF(CF5,">0"))))) -> 0 | CQ5: =COUNTIF(CB5,">0")*+(COUNTIF(CC5,">0")*+(COUNTIF(CD5,">0")*+(COUNTIF(CE5,"=0")*+(COUNTIF(CF5,"=0"))))) -> 0 | CR5: =COUNTIF(CB5,"=0")*+(COUNTIF(CC5,">0")*+(COUNTIF(CD5,"=0")*+(COUNTIF(CE5,">0")*+(COUNTIF(CF5,">0"))))) -> 0 | CS5: =COUNTIF(CB5,"=0")*+(COUNTIF(CC5,"=0")*+(COUNTIF(CD5,">0")*+(COUNTIF(CE5,">0")*+(COUNTIF(CF5,"=0"))))) -> 0 | CT5: =COUNTIF(CB5,">0")*+(COUNTIF(CC5,">0")*+(COUNTIF(CD5,"=0")*+(COUNTIF(CE5,">0")*+(COUNTIF(CF5,"=0"))))) -> 0 | CU5: =COUNTIF(CB5,"=0")*+(COUNTIF(CC5,">0")*+(COUNTIF(CD5,"=0")*+(COUNTIF(CE5,"=0")*+(COUNTIF(CF5,">0"))))) -> 0 | CV5: =COUNTIF(CB5,">0")*+(COUNTIF(CC5,"=0")*+(COUNTIF(CD5,">0")*+(COUNTIF(CE5,"=0")*+(COUNTIF(CF5,">0"))))) -> 0 | CW5: =COUNTIF(CB5,"=0")*+(COUNTIF(CC5,">0")*+(COUNTIF(CD5,">0")*+(COUNTIF(CE5,">0")*+(COUNTIF(CF5,"=0"))))) -> 0 | CX5: =COUNTIF(CB5,"=0")*+(COUNTIF(CC5,">0")*+(COUNTIF(CD5,">0")*+(COUNTIF(CE5,"=0")*+(COUNTIF(CF5,">0"))))) -> 0 | CY5: =COUNTIF(CB5,">0")*+(COUNTIF(CC5,"=0")*+(COUNTIF(CD5,">0")*+(COUNTIF(CE5,"=0")*+(COUNTIF(CF5,"=0"))))) -> 0 | CZ5: =COUNTIF(CB5,"=0")*+(COUNTIF(CC5,">0")*+(COUNTIF(CD5,">0")*+(COUNTIF(CE5,"=0")*+(COUNTIF(CF5,"=0"))))) -> 0 | DA5: =COUNTIF(CB5,"=0")*+(COUNTIF(CC5,">0")*+(COUNTIF(CD5,"=0")*+(COUNTIF(CE5,"=0")*+(COUNTIF(CF5,"=0"))))) -> 0 | DB5: =COUNTIF(CB5,"=0")*+(COUNTIF(CC5,"=0")*+(COUNTIF(CD5,"=0")*+(COUNTIF(CE5,">0")*+(COUNTIF(CF5,">0"))))) -> 0 | DC5: =COUNTIF(CB5,"=0")*+(COUNTIF(CC5,">0")*+(COUNTIF(CD5,"=0")*+(COUNTIF(CE5,">0")*+(COUNTIF(CF5,"=0"))))) -> 0 | DD5: =COUNTIF(CB5,"=0")*+(COUNTIF(CC5,"=0")*+(COUNTIF(CD5,">0")*+(COUNTIF(CE5,"=0")*+(COUNTIF(CF5,">0"))))) -> 0 | DE5: =COUNTIF(CB5,">0")*+(COUNTIF(CC5,">0")*+(COUNTIF(CD5,"=0")*+(COUNTIF(CE5,"=0")*+(COUNTIF(CF5,"=0"))))) -> 0 | DF5: =COUNTIF(CB5,"=0")*+(COUNTIF(CC5,"=0")*+(COUNTIF(CD5,"=0")*+(COUNTIF(CE5,"=0")*+(COUNTIF(CF5,">0"))))) -> 0 | DG5: =COUNTIF(CB5,">0")*+(COUNTIF(CC5,"=0")*+(COUNTIF(CD5,"=0")*+(COUNTIF(CE5,"=0")*+(COUNTIF(CF5,">0"))))) -> 0 | DH5: =COUNTIF(CB5,"=0")*+(COUNTIF(CC5,"=0")*+(COUNTIF(CD5,"=0")*+(COUNTIF(CE5,">0")*+(COUNTIF(CF5,"=0"))))) -> 0 | DJ5: =COUNTIF(CB5,"=0")*+(COUNTIF(CC5,"=0")*+(COUNTIF(CD5,">0")*+(COUNTIF(CE5,"=0")*+(COUNTIF(CF5,"=0"))))) -> 0 | DK5: =COUNTIF(CB5,">0")*+(COUNTIF(CC5,"=0")*+(COUNTIF(CD5,"=0")*+(COUNTIF(CE5,">0")*+(COUNTIF(CF5,"=0"))))) -> 0 | DL5: =COUNTIF((I6),$DL$1) -> 0 | DM5: =COUNTIF((I6),$DM$1) -> 0 | DN5: =COUNTIF((I6),$DN$1) -> 0 | DO5: =COUNTIF((I6),$DO$1) -> 0 | DP5: =COUNTIF((I6),$DP$1) -> 0 | DQ5: =COUNTIF((I6),$DQ$1) -> 0 | DR5: =COUNTIF((I6),$DR$1) -> 0 | DS5: =COUNTIF((I6),$DS$1) -> 0 | DT5: =COUNTIF((I6),$DT$1) -> 1 | DU5: =COUNTIF((I6),$DU$1) -> 0 | DW5: =COUNTIF(#REF!,DL5) ->  | DX5: =COUNTIF(#REF!,DM5) ->  | DY5: =COUNTIF(#REF!,DN5) ->  | DZ5: =COUNTIF(#REF!,DO5) ->  | EA5: =COUNTIF(#REF!,DP5) ->  | EB5: =COUNTIF(#REF!,DQ5) ->  | EC5: =COUNTIF(#REF!,DR5) ->  | ED5: =COUNTIF(#REF!,DS5) ->  | EE5: =COUNTIF(#REF!,DT5) ->  | EF5: =COUNTIF(#REF!,DU5) ->  | EI5: =COUNTIF(DW5,"=1") -> 0 | EJ5: =COUNTIF(DX5,"=1") -> 0 | EK5: =COUNTIF(DY5,"=1") -> 0 | EL5: =COUNTIF(DZ5,"=1") -> 0 | EM5: =COUNTIF(EA5,"=1") -> 0 | EN5: =COUNTIF(EB5,"=1") -> 0 | EO5: =COUNTIF(EC5,"=1") -> 0 | EP5: =COUNTIF(ED5,"=1") -> 0 | EQ5: =COUNTIF(EE5,"=1") -> 0 | ER5: =COUNTIF(EF5,"=1") -> 0 | ES5: =COUNTIF(#REF!,I6) ->  | ET5: =SUMPRODUCT(( MOD(I6,2)>0)*1) -> 1 | EU5: =IF((E6=D6+1)+(F6=E6+1)+(G6=F6+1)+(H6=G6+1),("1")*1,("")) -> 1 | EV5: =IF((M5+N5+O5+P5)>0,("1"),("")) -> 1 | EW5: =H6-D6 -> 31 | EX5: =(MID(D6,1,2)*1) -> 1 | EY5: =(MID(E6,2,1)*1) -> 2 | EZ5: =(MID(F6,2,1)*1) -> 8 | FA5: =(MID(G6,2,1)*1) -> 1 | FB5: =(MID(H6,2,1)*1) -> 2 | FC5: =COUNTIF(EX5:FB5,FE5) -> 0 | FD5: =IF(FE5<10,("1"),("0")) -> 1 | FE5: =I6 -> 9 | FF5: =COUNTIF(EX5,FE5) -> 0 | FG5: =COUNTIF(EY5,FE5) -> 0 | FH5: =COUNTIF(EZ5,FE5) -> 0 | FI5: =COUNTIF(FA5,FE5) -> 0 | FJ5: =COUNTIF(FB5,FE5) -> 0 | FK5: =IF(E6=D6+1,("1")*1,("")) ->  | FL5: =IF(F6=E6+1,("1")*1,("")) ->  | FM5: =IF(G6=F6+1,("1")*1,("")) ->  | FN5: =IF(H6=G6+1,("1")*1,("")) -> 1 | FW5: =SUMPRODUCT(( MOD(D6,2)>0)*1) -> 1 | FX5: =SUMPRODUCT(( MOD(E6,2)>0)*1) -> 0 | FY5: =SUMPRODUCT(( MOD(F6,2)>0)*1) -> 0 | FZ5: =SUMPRODUCT(( MOD(G6,2)>0)*1) -> 1 | GA5: =SUMPRODUCT(( MOD(H6,2)>0)*1) -> 0 | GE5: =COUNTIF(FW5,">0")*AND(COUNTIF(FX5,">0")) -> 0 | GF5: =COUNTIF(FX5,">0")*AND(COUNTIF(FY5,">0")) -> 0 | GG5: =COUNTIF(FY5,">0")*AND(COUNTIF(FZ5,">0")) -> 0 | GH5: =COUNTIF(FZ5,">0")*AND(COUNTIF(GA5,">0")) -> 0 | GL5: =COUNTIF(FW5,">0")*AND(COUNTIF(FY5,">0")) -> 0 | GM5: =COUNTIF(FX4,">0")*AND(COUNTIF(FZ4,">0")) -> 0 | GN5: =COUNTIF(FY5,">0")*AND(COUNTIF(GA5,">0")) -> 0 | GR5: =COUNTIF(FW5,">0")*AND(COUNTIF(FZ5,">0")) -> 1 | GS5: =COUNTIF(FX5,">0")*AND(COUNTIF(GA5,">0")) -> 0 | GW5: =COUNTIF(FW5,">0")*AND(COUNTIF(GA5,">0")) -> 0 | HA5: =COUNTIF(FW5,GA5)*COUNTIF(FX5,FZ5) -> 0 | HC5: en 4 | HM5: =COUNTIF($G$322:$G$391,HM1) -> 1 | HO5: =COUNTIF($G$322:$G$391,HO1) -> 2 | HS5: =COUNTIF($G$322:$G$391,HS1) -> 1 | HU5: =COUNTIF($G$322:$G$391,HU1) -> 1 | HV5: =COUNTIF($G$322:$G$391,HV1) -> 1 | HW5: =COUNTIF($G$322:$G$391,HW1) -> 3 | HX5: =COUNTIF($G$322:$G$391,HX1) -> 1 | HY5: =COUNTIF($G$322:$G$391,HY1) -> 1 | HZ5: =COUNTIF($G$322:$G$391,HZ1) -> 1 | IA5: =COUNTIF($G$322:$G$391,IA1) -> 3 | IC5: =COUNTIF($G$322:$G$391,IC1) -> 2 | ID5: =COUNTIF($G$322:$G$391,ID1) -> 1 | IE5: =COUNTIF($G$322:$G$391,IE1) -> 3 | IF5: =COUNTIF($G$322:$G$391,IF1) -> 2 | IG5: =COUNTIF($G$322:$G$391,IG1) -> 7 | IH5: =COUNTIF($G$322:$G$391,IH1) -> 4 | II5: =COUNTIF($G$322:$G$391,II1) -> 3 | IJ5: =COUNTIF($G$322:$G$391,IJ1) -> 1 | IK5: =COUNTIF($G$322:$G$391,IK1) -> 2 | IL5: =COUNTIF($G$322:$G$391,IL1) -> 4 | IM5: =COUNTIF($G$322:$G$391,IM1) -> 2 | IN5: =COUNTIF($G$322:$G$391,IN1) -> 3 | IO5: =COUNTIF($G$322:$G$391,IO1) -> 2 | IQ5: =COUNTIF($G$322:$G$391,IQ1) -> 4 | IR5: =COUNTIF($G$322:$G$391,IR1) -> 2 | IS5: =COUNTIF($G$322:$G$391,IS1) -> 3 | IT5: =COUNTIF($G$322:$G$391,IT1) -> 2 | IU5: =COUNTIF($G$322:$G$391,IU1) -> 1 | IV5: =COUNTIF($G$322:$G$391,IV1) -> 3 | IW5: =COUNTIF($G$322:$G$391,IW1) -> 2 | IX5: =COUNTIF($G$322:$G$391,IX1) -> 1 | IY5: =COUNTIF($G$322:$G$391,IY1) -> 1 | JA5: =COUNTIF(D6,$JA$1)+(COUNTIF(E6,$JA$1)+(COUNTIF(F6,$JA$1)+(COUNTIF(G6,$JA$1)+(COUNTIF(H6,$JA$1))))) -> 1 | JB5: =COUNTIF(D6,$JB$1)+(COUNTIF(E6,$JB$1)+(COUNTIF(F6,$JB$1)+(COUNTIF(G6,$JB$1)+(COUNTIF(H6,$JB$1))))) -> 0 | JC5: =COUNTIF(D6,$JC$1)+(COUNTIF(E6,$JC$1)+(COUNTIF(F6,$JC$1)+(COUNTIF(G6,$JC$1)+(COUNTIF(H6,$JC$1))))) -> 0 | JD5: =COUNTIF(D6,$JD$1)+(COUNTIF(E6,$JD$1)+(COUNTIF(F6,$JD$1)+(COUNTIF(G6,$JD$1)+(COUNTIF(H6,$JD$1))))) -> 0 | JE5: =COUNTIF(D6,$JE$1)+(COUNTIF(E6,$JE$1)+(COUNTIF(F6,$JE$1)+(COUNTIF(G6,$JE$1)+(COUNTIF(H6,$JE$1))))) -> 0 | JF5: =COUNTIF(D6,$JF$1)+(COUNTIF(E6,$JF$1)+(COUNTIF(F6,$JF$1)+(COUNTIF(G6,$JF$1)+(COUNTIF(H6,$JF$1))))) -> 0 | JG5: =COUNTIF(D6,$JG$1)+(COUNTIF(E6,$JG$1)+(COUNTIF(F6,$JG$1)+(COUNTIF(G6,$JG$1)+(COUNTIF(H6,$JG$1))))) -> 0 | JH5: =COUNTIF(D6,$JH$1)+(COUNTIF(E6,$JH$1)+(COUNTIF(F6,$JH$1)+(COUNTIF(G6,$JH$1)+(COUNTIF(H6,$JH$1))))) -> 0 | JI5: =COUNTIF(D6,$JI$1)+(COUNTIF(E6,$JI$1)+(COUNTIF(F6,$JI$1)+(COUNTIF(G6,$JI$1)+(COUNTIF(H6,$JI$1))))) -> 0 | JJ5: =COUNTIF(D6,$JJ$1)+(COUNTIF(E6,$JJ$1)+(COUNTIF(F6,$JJ$1)+(COUNTIF(G6,$JJ$1)+(COUNTIF(H6,$JJ$1))))) -> 0 | JK5: =COUNTIF(D6,$JK$1)+(COUNTIF(E6,$JK$1)+(COUNTIF(F6,$JK$1)+(COUNTIF(G6,$JK$1)+(COUNTIF(H6,$JK$1))))) -> 0 | JL5: =COUNTIF(D6,$JL$1)+(COUNTIF(E6,$JL$1)+(COUNTIF(F6,$JL$1)+(COUNTIF(G6,$JL$1)+(COUNTIF(H6,$JL$1))))) -> 1 | JM5: =COUNTIF(D6,$JM$1)+(COUNTIF(E6,$JM$1)+(COUNTIF(F6,$JM$1)+(COUNTIF(G6,$JM$1)+(COUNTIF(H6,$JM$1))))) -> 0 | JN5: =COUNTIF(D6,$JN$1)+(COUNTIF(E6,$JN$1)+(COUNTIF(F6,$JN$1)+(COUNTIF(G6,$JN$1)+(COUNTIF(H6,$JN$1))))) -> 0 | JO5: =COUNTIF(D6,$JO$1)+(COUNTIF(E6,$JO$1)+(COUNTIF(F6,$JO$1)+(COUNTIF(G6,$JO$1)+(COUNTIF(H6,$JO$1))))) -> 0 | JP5: =COUNTIF(D6,$JP$1)+(COUNTIF(E6,$JP$1)+(COUNTIF(F6,$JP$1)+(COUNTIF(G6,$JP$1)+(COUNTIF(H6,$JP$1))))) -> 0 | JQ5: =COUNTIF(D6,$JQ$1)+(COUNTIF(E6,$JQ$1)+(COUNTIF(F6,$JQ$1)+(COUNTIF(G6,$JQ$1)+(COUNTIF(H6,$JQ$1))))) -> 0 | JR5: =COUNTIF(D6,$JR$1)+(COUNTIF(E6,$JR$1)+(COUNTIF(F6,$JR$1)+(COUNTIF(G6,$JR$1)+(COUNTIF(H6,$JR$1))))) -> 0 | JS5: =COUNTIF(D6,$JS$1)+(COUNTIF(E6,$JS$1)+(COUNTIF(F6,$JS$1)+(COUNTIF(G6,$JS$1)+(COUNTIF(H6,$JS$1))))) -> 0 | JT5: =COUNTIF(D6,$JT$1)+(COUNTIF(E6,$JT$1)+(COUNTIF(F6,$JT$1)+(COUNTIF(G6,$JT$1)+(COUNTIF(H6,$JT$1))))) -> 0 | JU5: =COUNTIF(D6,$JU$1)+(COUNTIF(E6,$JU$1)+(COUNTIF(F6,$JU$1)+(COUNTIF(G6,$JU$1)+(COUNTIF(H6,$JU$1))))) -> 0 | JV5: =COUNTIF(D6,$JV$1)+(COUNTIF(E6,$JV$1)+(COUNTIF(F6,$JV$1)+(COUNTIF(G6,$JV$1)+(COUNTIF(H6,$JV$1))))) -> 0 | JW5: =COUNTIF(D6,$JW$1)+(COUNTIF(E6,$JW$1)+(COUNTIF(F6,$JW$1)+(COUNTIF(G6,$JW$1)+(COUNTIF(H6,$JW$1))))) -> 0 | JX5: =COUNTIF(D6,$JX$1)+(COUNTIF(E6,$JX$1)+(COUNTIF(F6,$JX$1)+(COUNTIF(G6,$JX$1)+(COUNTIF(H6,$JX$1))))) -> 0 | JY5: =COUNTIF(D6,$JY$1)+(COUNTIF(E6,$JY$1)+(COUNTIF(F6,$JY$1)+(COUNTIF(G6,$JY$1)+(COUNTIF(H6,$JY$1))))) -> 0 | JZ5: =COUNTIF(D6,$JZ$1)+(COUNTIF(E6,$JZ$1)+(COUNTIF(F6,$JZ$1)+(COUNTIF(G6,$JZ$1)+(COUNTIF(H6,$JZ$1))))) -> 0 | KA5: =COUNTIF(D6,$KA$1)+(COUNTIF(E6,$KA$1)+(COUNTIF(F6,$KA$1)+(COUNTIF(G6,$KA$1)+(COUNTIF(H6,$KA$1))))) -> 0 | KB5: =COUNTIF(D6,$KB$1)+(COUNTIF(E6,$KB$1)+(COUNTIF(F6,$KB$1)+(COUNTIF(G6,$KB$1)+(COUNTIF(H6,$KB$1))))) -> 1 | KC5: =COUNTIF(D6,$KC$1)+(COUNTIF(E6,$KC$1)+(COUNTIF(F6,$KC$1)+(COUNTIF(G6,$KC$1)+(COUNTIF(H6,$KC$1))))) -> 0 | KD5: =COUNTIF(D6,$KD$1)+(COUNTIF(E6,$KD$1)+(COUNTIF(F6,$KD$1)+(COUNTIF(G6,$KD$1)+(COUNTIF(H6,$KD$1))))) -> 0 | KE5: =COUNTIF(D6,$KE$1)+(COUNTIF(E6,$KE$1)+(COUNTIF(F6,$KE$1)+(COUNTIF(G6,$KE$1)+(COUNTIF(H6,$KE$1))))) -> 1 | KF5: =COUNTIF(D6,$KF$1)+(COUNTIF(E6,$KF$1)+(COUNTIF(F6,$KF$1)+(COUNTIF(G6,$KF$1)+(COUNTIF(H6,$KF$1))))) -> 1 | KG5: =COUNTIF(D6,$KG$1)+(COUNTIF(E6,$KG$1)+(COUNTIF(F6,$KG$1)+(COUNTIF(G6,$KG$1)+(COUNTIF(H6,$KG$1))))) -> 0 | KH5: =COUNTIF(D6,$KH$1)+(COUNTIF(E6,$KH$1)+(COUNTIF(F6,$KH$1)+(COUNTIF(G6,$KH$1)+(COUNTIF(H6,$KH$1))))) -> 0 | KI5: =COUNTIF(D6,$KI$1)+(COUNTIF(E6,$KI$1)+(COUNTIF(F6,$KI$1)+(COUNTIF(G6,$KI$1)+(COUNTIF(H6,$KI$1))))) -> 0 | KJ5: =COUNTIF(D6,$KJ$1)+(COUNTIF(E6,$KJ$1)+(COUNTIF(F6,$KJ$1)+(COUNTIF(G6,$KJ$1)+(COUNTIF(H6,$KJ$1))))) -> 0 | KK5: =COUNTIF(D6,$KK$1)+(COUNTIF(E6,$KK$1)+(COUNTIF(F6,$KK$1)+(COUNTIF(G6,$KK$1)+(COUNTIF(H6,$KK$1))))) -> 0 | KL5: =COUNTIF(D6,$KL$1)+(COUNTIF(E6,$KL$1)+(COUNTIF(F6,$KL$1)+(COUNTIF(G6,$KL$1)+(COUNTIF(H6,$KL$1))))) -> 0 | KM5: =COUNTIF(D6,$KM$1)+(COUNTIF(E6,$KM$1)+(COUNTIF(F6,$KM$1)+(COUNTIF(G6,$KM$1)+(COUNTIF(H6,$KM$1))))) -> 0 | KN5: =COUNTIF(D6,$KN$1)+(COUNTIF(E6,$KN$1)+(COUNTIF(F6,$KN$1)+(COUNTIF(G6,$KN$1)+(COUNTIF(H6,$KN$1))))) -> 0 | KO5: =COUNTIF(D6,$KO$1)+(COUNTIF(E6,$KO$1)+(COUNTIF(F6,$KO$1)+(COUNTIF(G6,$KO$1)+(COUNTIF(H6,$KO$1))))) -> 0 | KP5: =COUNTIF(D6,$KP$1)+(COUNTIF(E6,$KP$1)+(COUNTIF(F6,$KP$1)+(COUNTIF(G6,$KP$1)+(COUNTIF(H6,$KP$1))))) -> 0 | KQ5: =COUNTIF(D6,$KQ$1)+(COUNTIF(E6,$KQ$1)+(COUNTIF(F6,$KQ$1)+(COUNTIF(G6,$KQ$1)+(COUNTIF(H6,$KQ$1))))) -> 0 | KR5: =COUNTIF(D6,$KR$1)+(COUNTIF(E6,$KR$1)+(COUNTIF(F6,$KR$1)+(COUNTIF(G6,$KR$1)+(COUNTIF(H6,$KR$1))))) -> 0 | KS5: =COUNTIF(D6,$KS$1)+(COUNTIF(E6,$KS$1)+(COUNTIF(F6,$KS$1)+(COUNTIF(G6,$KS$1)+(COUNTIF(H6,$KS$1))))) -> 0 | KT5: =COUNTIF(D6,$KT$1)+(COUNTIF(E6,$KT$1)+(COUNTIF(F6,$KT$1)+(COUNTIF(G6,$KT$1)+(COUNTIF(H6,$KT$1))))) -> 0 | KU5: =COUNTIF(D6,$KU$1)+(COUNTIF(E6,$KU$1)+(COUNTIF(F6,$KU$1)+(COUNTIF(G6,$KU$1)+(COUNTIF(H6,$KU$1))))) -> 0 | KV5: =COUNTIF(D6,$KV$1)+(COUNTIF(E6,$KV$1)+(COUNTIF(F6,$KV$1)+(COUNTIF(G6,$KV$1)+(COUNTIF(H6,$KV$1))))) -> 0 | KW5: =COUNTIF(D6,$KW$1)+(COUNTIF(E6,$KW$1)+(COUNTIF(F6,$KW$1)+(COUNTIF(G6,$KW$1)+(COUNTIF(H6,$KW$1))))) -> 0
A6: =A7+1 -> 406 | B6: SAMEDI | C6: 2022-06-18 | D6: 1 | E6: 12 | F6: 28 | G6: 31 | H6: 32 | I6: 9 | J6: =(MID(H6,2,1)*1) -> 2 | K6: =IF(J6=0,"a",IF(J6=1,"b",IF(J6=2,"c",IF(J6=3,"d",IF(J6=4,"e",IF(J6=5,"f",IF(J6=6,"g",IF(J6=7,"h",IF(J6=8,"i",IF(J6=9,"j",)))))))))) -> c | L6: =COUNTIF(M5:P5,">0") -> 4 | M6: =_xlfn.LET(_xlpm.comp,RIGHT(D7:H7,1),_xlfn._xlws.FILTER(D7:H7,_xlfn.XMATCH(_xlpm.comp,_xlpm.comp)<>_xlfn.XMATCH(_xlpm.comp,_xlpm.comp,,-1))) -> 10 | N6: 17 | O6: 27 | P6: 40 | Q6: =COUNTIF(#REF!,D7:H7) ->  | V6: =IF(AND(W6>69,W6<164,OR(X6={1;2;3;4})),1,0) -> 1 | W6: =D7+E7+F7+G7+H7 -> 117 | X6: =SUMPRODUCT(( MOD(D7:H7,2)>0)*1) -> 3 | Y6: 0 | Z6: 0 | AA6: 1 | AB6: 0 | AC6: 0 | AD6: 0 | AE6: 2 | AF6: 0 | AG6: 0 | AH6: 2 | AI6: =COUNTIF(($D7:$H7),AI$1) -> 0 | AJ6: =COUNTIF(($D7:$H7),AJ$1) -> 0 | AK6: =COUNTIF(($D7:$H7),AK$1) -> 0 | AL6: =COUNTIF(($D7:$H7),AL$1) -> 0 | AM6: =COUNTIF(($D7:$H7),AM$1) -> 0 | AN6: =COUNTIF(($D7:$H7),AN$1) -> 0 | AO6: =COUNTIF(($D7:$H7),AO$1) -> 1 | AP6: =COUNTIF(($D7:$H7),AP$1) -> 0 | AQ6: =COUNTIF(($D7:$H7),AQ$1) -> 0 | AR6: =COUNTIF(($D7:$H7),AR$1) -> 0 | AS6: =COUNTIF(($D7:$H7),AS$1) -> 0 | AT6: =COUNTIF(($D7:$H7),AT$1) -> 0 | AU6: =COUNTIF(($D7:$H7),AU$1) -> 1 | AV6: =COUNTIF(($D7:$H7),AV$1) -> 0 | AW6: =COUNTIF(($D7:$H7),AW$1) -> 0 | AX6: =COUNTIF(($D7:$H7),AX$1) -> 0 | AY6: =COUNTIF(($D7:$H7),AY$1) -> 1 | AZ6: =COUNTIF(($D7:$H7),AZ$1) -> 0 | BA6: =COUNTIF(($D7:$H7),BA$1) -> 0 | BB6: =COUNTIF(($D7:$H7),BB$1) -> 0 | BC6: =COUNTIF(($D7:$H7),BC$1) -> 0 | BD6: =COUNTIF(($D7:$H7),BD$1) -> 0 | BE6: =COUNTIF(($D7:$H7),BE$1) -> 0 | BF6: =COUNTIF(($D7:$H7),BF$1) -> 0 | BG6: =COUNTIF(($D7:$H7),BG$1) -> 0 | BH6: =COUNTIF(($D7:$H7),BH$1) -> 0 | BI6: =COUNTIF((D7:H7),BI$1) -> 0 | BJ6: =COUNTIF((D7:H7),BJ$1) -> 0 | BK6: =COUNTIF((D7:H7),BK$1) -> 0 | BL6: =COUNTIF((D7:H7),BL$1) -> 1 | BM6: =COUNTIF((D7:H7),BM$1) -> 0 | BN6: =COUNTIF((D7:H7),BN$1) -> 0 | BO6: =COUNTIF((D7:H7),BO$1) -> 0 | BP6: =COUNTIF((D7:H7),BP$1) -> 0 | BQ6: =COUNTIF((D7:H7),BQ$1) -> 0 | BR6: =COUNTIF((D7:H7),BR$1) -> 0 | BS6: =COUNTIF((D7:H7),BS$1) -> 0 | BT6: =COUNTIF((D7:H7),BT$1) -> 0 | BU6: =COUNTIF((D7:H7),BU$1) -> 0 | BV6: =COUNTIF(D7:H7,"<10") -> 0 | BW6: =(COUNTIF(D7:H7,"<20")-BV6) -> 2 | BX6: =((COUNTIF(D7:H7,"<30")))-(BV6+BW6) -> 2 | BY6: =((COUNTIF(D7:H7,"<40")))-(BW6+BX6+BV6) -> 0 | BZ6: =((COUNTIF(D7:H7,"<50")))-(BX6+BY6+BW6+BV6) -> 1 | CB6: 0 | CC6: 1 | CD6: 1 | CE6: 0 | CF6: 1 | CG6: 0 | CH6: 0 | CI6: 0 | CJ6: 0 | CK6: 0 | CL6: 0 | CM6: 0 | CN6: 0 | CO6: 0 | CP6: 0 | CQ6: 0 | CR6: 0 | CS6: 0 | CT6: 0 | CU6: 0 | CV6: 0 | CW6: 0 | CX6: 1 | CY6: 0 | CZ6: 0 | DA6: 0 | DB6: 0 | DC6: 0 | DD6: 0 | DE6: 0 | DF6: 0 | DG6: 0 | DH6: 0 | DJ6: 0 | DK6: 0 | DL6: =COUNTIF((I7),$DL$1) -> 0 | DM6: =COUNTIF((I7),$DM$1) -> 1 | DN6: =COUNTIF((I7),$DN$1) -> 0 | DO6: =COUNTIF((I7),$DO$1) -> 0 | DP6: =COUNTIF((I7),$DP$1) -> 0 | DQ6: =COUNTIF((I7),$DQ$1) -> 0 | DR6: =COUNTIF((I7),$DR$1) -> 0 | DS6: =COUNTIF((I7),$DS$1) -> 0 | DT6: =COUNTIF((I7),$DT$1) -> 0 | DU6: =COUNTIF((I7),$DU$1) -> 0 | DW6: =COUNTIF(#REF!,DL6) ->  | DX6: =COUNTIF(#REF!,DM6) ->  | DY6: =COUNTIF(#REF!,DN6) ->  | DZ6: =COUNTIF(#REF!,DO6) ->  | EA6: =COUNTIF(#REF!,DP6) ->  | EB6: =COUNTIF(#REF!,DQ6) ->  | EC6: =COUNTIF(#REF!,DR6) ->  | ED6: =COUNTIF(#REF!,DS6) ->  | EE6: =COUNTIF(#REF!,DT6) ->  | EF6: =COUNTIF(#REF!,DU6) ->  | EI6: 0 | EJ6: 0 | EK6: 0 | EL6: 0 | EM6: 0 | EN6: 0 | EO6: 0 | EP6: 0 | EQ6: 0 | ER6: 0 | ES6: =COUNTIF(#REF!,I7) ->  | ET6: =SUMPRODUCT(( MOD(I7,2)>0)*1) -> 0 | EU6: =IF((E7=D7+1)+(F7=E7+1)+(G7=F7+1)+(H7=G7+1),("1")*1,("")) ->  | EV6: 1 | EW6: =H7-D7 -> 30 | EX6: =(MID(D7,2,2)*1) -> 0 | EY6: =(MID(E7,2,1)*1) -> 7 | EZ6: =(MID(F7,2,1)*1) -> 3 | FA6: =(MID(G7,2,1)*1) -> 7 | FB6: =(MID(H7,2,1)*1) -> 0 | FC6: 0 | FD6: 1 | FE6: =I7 -> 2 | FF6: =COUNTIF(EX6,FE6) -> 0 | FG6: =COUNTIF(EY6,FE6) -> 0 | FH6: =COUNTIF(EZ6,FE6) -> 0 | FI6: =COUNTIF(FA6,FE6) -> 0 | FJ6: 0 | FK6: =IF(E7=D7+1,("1")*1,("")) ->  | FL6: =IF(F7=E7+1,("1")*1,("")) ->  | FM6: =IF(G7=F7+1,("1")*1,("")) ->  | FN6: =IF(H7=G7+1,("1")*1,("")) ->  | FW6: =SUMPRODUCT(( MOD(D7,2)>0)*1) -> 0 | FX6: =SUMPRODUCT(( MOD(E7,2)>0)*1) -> 1 | FY6: =SUMPRODUCT(( MOD(F7,2)>0)*1) -> 1 | FZ6: =SUMPRODUCT(( MOD(G7,2)>0)*1) -> 1 | GA6: =SUMPRODUCT(( MOD(H7,2)>0)*1) -> 0 | GE6: =COUNTIF(FW6,">0")*AND(COUNTIF(FX6,">0")) -> 0 | GF6: =COUNTIF(FX6,">0")*AND(COUNTIF(FY6,">0")) -> 1 | GG6: =COUNTIF(FY6,">0")*AND(COUNTIF(FZ6,">0")) -> 1 | GH6: =COUNTIF(FZ6,">0")*AND(COUNTIF(GA6,">0")) -> 0 | GL6: =COUNTIF(FW6,">0")*AND(COUNTIF(FY6,">0")) -> 0 | GM6: =COUNTIF(FX5,">0")*AND(COUNTIF(FZ5,">0")) -> 0 | GN6: =COUNTIF(FY6,">0")*AND(COUNTIF(GA6,">0")) -> 0 | GR6: =COUNTIF(FW6,">0")*AND(COUNTIF(FZ6,">0")) -> 0 | GS6: =COUNTIF(FX6,">0")*AND(COUNTIF(GA6,">0")) -> 0 | GW6: =COUNTIF(FW6,">0")*AND(COUNTIF(GA6,">0")) -> 0 | HA6: 1 | JA6: =COUNTIF(D7,$JA$1)+(COUNTIF(E7,$JA$1)+(COUNTIF(F7,$JA$1)+(COUNTIF(G7,$JA$1)+(COUNTIF(H7,$JA$1))))) -> 0 | JB6: =COUNTIF(D7,$JB$1)+(COUNTIF(E7,$JB$1)+(COUNTIF(F7,$JB$1)+(COUNTIF(G7,$JB$1)+(COUNTIF(H7,$JB$1))))) -> 0 | JC6: =COUNTIF(D7,$JC$1)+(COUNTIF(E7,$JC$1)+(COUNTIF(F7,$JC$1)+(COUNTIF(G7,$JC$1)+(COUNTIF(H7,$JC$1))))) -> 0 | JD6: =COUNTIF(D7,$JD$1)+(COUNTIF(E7,$JD$1)+(COUNTIF(F7,$JD$1)+(COUNTIF(G7,$JD$1)+(COUNTIF(H7,$JD$1))))) -> 0 | JE6: =COUNTIF(D7,$JE$1)+(COUNTIF(E7,$JE$1)+(COUNTIF(F7,$JE$1)+(COUNTIF(G7,$JE$1)+(COUNTIF(H7,$JE$1))))) -> 0 | JF6: =COUNTIF(D7,$JF$1)+(COUNTIF(E7,$JF$1)+(COUNTIF(F7,$JF$1)+(COUNTIF(G7,$JF$1)+(COUNTIF(H7,$JF$1))))) -> 0 | JG6: =COUNTIF(D7,$JG$1)+(COUNTIF(E7,$JG$1)+(COUNTIF(F7,$JG$1)+(COUNTIF(G7,$JG$1)+(COUNTIF(H7,$JG$1))))) -> 0 | JH6: =COUNTIF(D7,$JH$1)+(COUNTIF(E7,$JH$1)+(COUNTIF(F7,$JH$1)+(COUNTIF(G7,$JH$1)+(COUNTIF(H7,$JH$1))))) -> 0 | JI6: =COUNTIF(D7,$JI$1)+(COUNTIF(E7,$JI$1)+(COUNTIF(F7,$JI$1)+(COUNTIF(G7,$JI$1)+(COUNTIF(H7,$JI$1))))) -> 0 | JJ6: =COUNTIF(D7,$JJ$1)+(COUNTIF(E7,$JJ$1)+(COUNTIF(F7,$JJ$1)+(COUNTIF(G7,$JJ$1)+(COUNTIF(H7,$JJ$1))))) -> 1 | JK6: =COUNTIF(D7,$JK$1)+(COUNTIF(E7,$JK$1)+(COUNTIF(F7,$JK$1)+(COUNTIF(G7,$JK$1)+(COUNTIF(H7,$JK$1))))) -> 0 | JL6: =COUNTIF(D7,$JL$1)+(COUNTIF(E7,$JL$1)+(COUNTIF(F7,$JL$1)+(COUNTIF(G7,$JL$1)+(COUNTIF(H7,$JL$1))))) -> 0 | JM6: =COUNTIF(D7,$JM$1)+(COUNTIF(E7,$JM$1)+(COUNTIF(F7,$JM$1)+(COUNTIF(G7,$JM$1)+(COUNTIF(H7,$JM$1))))) -> 0 | JN6: =COUNTIF(D7,$JN$1)+(COUNTIF(E7,$JN$1)+(COUNTIF(F7,$JN$1)+(COUNTIF(G7,$JN$1)+(COUNTIF(H7,$JN$1))))) -> 0 | JO6: =COUNTIF(D7,$JO$1)+(COUNTIF(E7,$JO$1)+(COUNTIF(F7,$JO$1)+(COUNTIF(G7,$JO$1)+(COUNTIF(H7,$JO$1))))) -> 0 | JP6: =COUNTIF(D7,$JP$1)+(COUNTIF(E7,$JP$1)+(COUNTIF(F7,$JP$1)+(COUNTIF(G7,$JP$1)+(COUNTIF(H7,$JP$1))))) -> 0 | JQ6: =COUNTIF(D7,$JQ$1)+(COUNTIF(E7,$JQ$1)+(COUNTIF(F7,$JQ$1)+(COUNTIF(G7,$JQ$1)+(COUNTIF(H7,$JQ$1))))) -> 1 | JR6: =COUNTIF(D7,$JR$1)+(COUNTIF(E7,$JR$1)+(COUNTIF(F7,$JR$1)+(COUNTIF(G7,$JR$1)+(COUNTIF(H7,$JR$1))))) -> 0 | JS6: =COUNTIF(D7,$JS$1)+(COUNTIF(E7,$JS$1)+(COUNTIF(F7,$JS$1)+(COUNTIF(G7,$JS$1)+(COUNTIF(H7,$JS$1))))) -> 0 | JT6: =COUNTIF(D7,$JT$1)+(COUNTIF(E7,$JT$1)+(COUNTIF(F7,$JT$1)+(COUNTIF(G7,$JT$1)+(COUNTIF(H7,$JT$1))))) -> 0 | JU6: =COUNTIF(D7,$JU$1)+(COUNTIF(E7,$JU$1)+(COUNTIF(F7,$JU$1)+(COUNTIF(G7,$JU$1)+(COUNTIF(H7,$JU$1))))) -> 0 | JV6: =COUNTIF(D7,$JV$1)+(COUNTIF(E7,$JV$1)+(COUNTIF(F7,$JV$1)+(COUNTIF(G7,$JV$1)+(COUNTIF(H7,$JV$1))))) -> 0 | JW6: =COUNTIF(D7,$JW$1)+(COUNTIF(E7,$JW$1)+(COUNTIF(F7,$JW$1)+(COUNTIF(G7,$JW$1)+(COUNTIF(H7,$JW$1))))) -> 1 | JX6: =COUNTIF(D7,$JX$1)+(COUNTIF(E7,$JX$1)+(COUNTIF(F7,$JX$1)+(COUNTIF(G7,$JX$1)+(COUNTIF(H7,$JX$1))))) -> 0 | JY6: =COUNTIF(D7,$JY$1)+(COUNTIF(E7,$JY$1)+(COUNTIF(F7,$JY$1)+(COUNTIF(G7,$JY$1)+(COUNTIF(H7,$JY$1))))) -> 0 | JZ6: =COUNTIF(D7,$JZ$1)+(COUNTIF(E7,$JZ$1)+(COUNTIF(F7,$JZ$1)+(COUNTIF(G7,$JZ$1)+(COUNTIF(H7,$JZ$1))))) -> 0 | KA6: =COUNTIF(D7,$KA$1)+(COUNTIF(E7,$KA$1)+(COUNTIF(F7,$KA$1)+(COUNTIF(G7,$KA$1)+(COUNTIF(H7,$KA$1))))) -> 1 | KB6: =COUNTIF(D7,$KB$1)+(COUNTIF(E7,$KB$1)+(COUNTIF(F7,$KB$1)+(COUNTIF(G7,$KB$1)+(COUNTIF(H7,$KB$1))))) -> 0 | KC6: =COUNTIF(D7,$KC$1)+(COUNTIF(E7,$KC$1)+(COUNTIF(F7,$KC$1)+(COUNTIF(G7,$KC$1)+(COUNTIF(H7,$KC$1))))) -> 0 | KD6: =COUNTIF(D7,$KD$1)+(COUNTIF(E7,$KD$1)+(COUNTIF(F7,$KD$1)+(COUNTIF(G7,$KD$1)+(COUNTIF(H7,$KD$1))))) -> 0 | KE6: =COUNTIF(D7,$KE$1)+(COUNTIF(E7,$KE$1)+(COUNTIF(F7,$KE$1)+(COUNTIF(G7,$KE$1)+(COUNTIF(H7,$KE$1))))) -> 0 | KF6: =COUNTIF(D7,$KF$1)+(COUNTIF(E7,$KF$1)+(COUNTIF(F7,$KF$1)+(COUNTIF(G7,$KF$1)+(COUNTIF(H7,$KF$1))))) -> 0 | KG6: =COUNTIF(D7,$KG$1)+(COUNTIF(E7,$KG$1)+(COUNTIF(F7,$KG$1)+(COUNTIF(G7,$KG$1)+(COUNTIF(H7,$KG$1))))) -> 0 | KH6: =COUNTIF(D7,$KH$1)+(COUNTIF(E7,$KH$1)+(COUNTIF(F7,$KH$1)+(COUNTIF(G7,$KH$1)+(COUNTIF(H7,$KH$1))))) -> 0 | KI6: =COUNTIF(D7,$KI$1)+(COUNTIF(E7,$KI$1)+(COUNTIF(F7,$KI$1)+(COUNTIF(G7,$KI$1)+(COUNTIF(H7,$KI$1))))) -> 0 | KJ6: =COUNTIF(D7,$KJ$1)+(COUNTIF(E7,$KJ$1)+(COUNTIF(F7,$KJ$1)+(COUNTIF(G7,$KJ$1)+(COUNTIF(H7,$KJ$1))))) -> 0 | KK6: =COUNTIF(D7,$KK$1)+(COUNTIF(E7,$KK$1)+(COUNTIF(F7,$KK$1)+(COUNTIF(G7,$KK$1)+(COUNTIF(H7,$KK$1))))) -> 0 | KL6: =COUNTIF(D7,$KL$1)+(COUNTIF(E7,$KL$1)+(COUNTIF(F7,$KL$1)+(COUNTIF(G7,$KL$1)+(COUNTIF(H7,$KL$1))))) -> 0 | KM6: =COUNTIF(D7,$KM$1)+(COUNTIF(E7,$KM$1)+(COUNTIF(F7,$KM$1)+(COUNTIF(G7,$KM$1)+(COUNTIF(H7,$KM$1))))) -> 0 | KN6: =COUNTIF(D7,$KN$1)+(COUNTIF(E7,$KN$1)+(COUNTIF(F7,$KN$1)+(COUNTIF(G7,$KN$1)+(COUNTIF(H7,$KN$1))))) -> 1 | KO6: =COUNTIF(D7,$KO$1)+(COUNTIF(E7,$KO$1)+(COUNTIF(F7,$KO$1)+(COUNTIF(G7,$KO$1)+(COUNTIF(H7,$KO$1))))) -> 0 | KP6: =COUNTIF(D7,$KP$1)+(COUNTIF(E7,$KP$1)+(COUNTIF(F7,$KP$1)+(COUNTIF(G7,$KP$1)+(COUNTIF(H7,$KP$1))))) -> 0 | KQ6: =COUNTIF(D7,$KQ$1)+(COUNTIF(E7,$KQ$1)+(COUNTIF(F7,$KQ$1)+(COUNTIF(G7,$KQ$1)+(COUNTIF(H7,$KQ$1))))) -> 0 | KR6: =COUNTIF(D7,$KR$1)+(COUNTIF(E7,$KR$1)+(COUNTIF(F7,$KR$1)+(COUNTIF(G7,$KR$1)+(COUNTIF(H7,$KR$1))))) -> 0 | KS6: =COUNTIF(D7,$KS$1)+(COUNTIF(E7,$KS$1)+(COUNTIF(F7,$KS$1)+(COUNTIF(G7,$KS$1)+(COUNTIF(H7,$KS$1))))) -> 0 | KT6: =COUNTIF(D7,$KT$1)+(COUNTIF(E7,$KT$1)+(COUNTIF(F7,$KT$1)+(COUNTIF(G7,$KT$1)+(COUNTIF(H7,$KT$1))))) -> 0 | KU6: =COUNTIF(D7,$KU$1)+(COUNTIF(E7,$KU$1)+(COUNTIF(F7,$KU$1)+(COUNTIF(G7,$KU$1)+(COUNTIF(H7,$KU$1))))) -> 0 | KV6: =COUNTIF(D7,$KV$1)+(COUNTIF(E7,$KV$1)+(COUNTIF(F7,$KV$1)+(COUNTIF(G7,$KV$1)+(COUNTIF(H7,$KV$1))))) -> 0 | KW6: =COUNTIF(D7,$KW$1)+(COUNTIF(E7,$KW$1)+(COUNTIF(F7,$KW$1)+(COUNTIF(G7,$KW$1)+(COUNTIF(H7,$KW$1))))) -> 0
A7: 405 | B7: MERCREDI | C7: 2022-06-22 | D7: 10 | E7: 17 | F7: 23 | G7: 27 | H7: 40 | I7: 2 | J7: 0 | K7: a | L7: =COUNTIF(M6:P6,">0") -> 4 | M7: =_xlfn.LET(_xlpm.comp,RIGHT(D8:H8,1),_xlfn._xlws.FILTER(D8:H8,_xlfn.XMATCH(_xlpm.comp,_xlpm.comp)<>_xlfn.XMATCH(_xlpm.comp,_xlpm.comp,,-1))) ->  | Q7: =COUNTIF(D7:H7,D8:H8) -> 0 | R7: 0 | S7: 1 | T7: 0 | U7: 0 | V7: =IF(AND(W7>69,W7<164,OR(X7={1;2;3;4})),1,0) -> 0 | W7: =D8+E8+F8+G8+H8 -> 169 | X7: =SUMPRODUCT(( MOD(D8:H8,2)>0)*1) -> 3 | Y7: 1 | Z7: 1 | AA7: 0 | AB7: 0 | AC7: 0 | AD7: 0 | AE7: 1 | AF7: 0 | AG7: 1 | AH7: 1 | AI7: =COUNTIF(($D8:$H8),AI$1) -> 0 | AJ7: =COUNTIF(($D8:$H8),AJ$1) -> 0 | AK7: =COUNTIF(($D8:$H8),AK$1) -> 0 | AL7: =COUNTIF(($D8:$H8),AL$1) -> 0 | AM7: =COUNTIF(($D8:$H8),AM$1) -> 0 | AN7: =COUNTIF(($D8:$H8),AN$1) -> 0 | AO7: =COUNTIF(($D8:$H8),AO$1) -> 0 | AP7: =COUNTIF(($D8:$H8),AP$1) -> 0 | AQ7: =COUNTIF(($D8:$H8),AQ$1) -> 0 | AR7: =COUNTIF(($D8:$H8),AR$1) -> 0 | AS7: =COUNTIF(($D8:$H8),AS$1) -> 0 | AT7: =COUNTIF(($D8:$H8),AT$1) -> 0 | AU7: =COUNTIF(($D8:$H8),AU$1) -> 0 | AV7: =COUNTIF(($D8:$H8),AV$1) -> 0 | AW7: =COUNTIF(($D8:$H8),AW$1) -> 0 | AX7: =COUNTIF(($D8:$H8),AX$1) -> 0 | AY7: =COUNTIF(($D8:$H8),AY$1) -> 0 | AZ7: =COUNTIF(($D8:$H8),AZ$1) -> 0 | BA7: =COUNTIF(($D8:$H8),BA$1) -> 0 | BB7: =COUNTIF(($D8:$H8),BB$1) -> 0 | BC7: =COUNTIF(($D8:$H8),BC$1) -> 1 | BD7: =COUNTIF(($D8:$H8),BD$1) -> 0 | BE7: =COUNTIF(($D8:$H8),BE$1) -> 0 | BF7: =COUNTIF(($D8:$H8),BF$1) -> 0 | BG7: =COUNTIF(($D8:$H8),BG$1) -> 0 | BH7: =COUNTIF(($D8:$H8),BH$1) -> 0 | BI7: =COUNTIF((D8:H8),BI$1) -> 0 | BJ7: =COUNTIF((D8:H8),BJ$1) -> 0 | BK7: =COUNTIF((D8:H8),BK$1) -> 0 | BL7: =COUNTIF((D8:H8),BL$1) -> 1 | BM7: =COUNTIF((D8:H8),BM$1) -> 0 | BN7: =COUNTIF((D8:H8),BN$1) -> 0 | BO7: =COUNTIF((D8:H8),BO$1) -> 0 | BP7: =COUNTIF((D8:H8),BP$1) -> 0 | BQ7: =COUNTIF((D8:H8),BQ$1) -> 0 | BR7: =COUNTIF((D8:H8),BR$1) -> 0 | BS7: =COUNTIF((D8:H8),BS$1) -> 1 | BT7: =COUNTIF((D8:H8),BT$1) -> 0 | BU7: =COUNTIF((D8:H8),BU$1) -> 1 | BV7: =COUNTIF(D8:H8,"<10") -> 1 | BW7: =(COUNTIF(D8:H8,"<20")-BV7) -> 0 | BX7: =((COUNTIF(D8:H8,"<30")))-(BV7+BW7) -> 0 | BY7: =((COUNTIF(D8:H8,"<40")))-(BW7+BX7+BV7) -> 1 | BZ7: =((COUNTIF(D8:H8,"<50")))-(BX7+BY7+BW7+BV7) -> 3 | CB7: 1 | CC7: 0 | CD7: 0 | CE7: 1 | CF7: 1 | CG7: 0 | CH7: 0 | CI7: 0 | CJ7: 0 | CK7: 0 | CL7: 0 | CM7: 0 | CN7: 0 | CO7: 0 | CP7: 1 | CQ7: 0 | CR7: 0 | CS7: 0 | CT7: 0 | CU7: 0 | CV7: 0 | CW7: 0 | CX7: 0 | CY7: 0 | CZ7: 0 | DA7: 0 | DB7: 0 | DC7: 0 | DD7: 0 | DE7: 0 | DF7: 0 | DG7: 0 | DH7: 0 | DJ7: 0 | DK7: 0 | DL7: =COUNTIF((I8),$DL$1) -> 0 | DM7: =COUNTIF((I8),$DM$1) -> 0 | DN7: =COUNTIF((I8),$DN$1) -> 0 | DO7: =COUNTIF((I8),$DO$1) -> 0 | DP7: =COUNTIF((I8),$DP$1) -> 0 | DQ7: =COUNTIF((I8),$DQ$1) -> 0 | DR7: =COUNTIF((I8),$DR$1) -> 0 | DS7: =COUNTIF((I8),$DS$1) -> 0 | DT7: =COUNTIF((I8),$DT$1) -> 1 | DU7: =COUNTIF((I8),$DU$1) -> 0 | DW7: =COUNTIF(DL6,DL7) -> 1 | DX7: =COUNTIF(DM6,DM7) -> 0 | DY7: =COUNTIF(DN6,DN7) -> 1 | DZ7: =COUNTIF(DO6,DO7) -> 1 | EA7: =COUNTIF(DP6,DP7) -> 1 | EB7: =COUNTIF(DQ6,DQ7) -> 1 | EC7: =COUNTIF(DR6,DR7) -> 1 | ED7: =COUNTIF(DS6,DS7) -> 1 | EE7: =COUNTIF(DT6,DT7) -> 0 | EF7: =COUNTIF(DU6,DU7) -> 1 | EI7: 1 | EJ7: 0 | EK7: 1 | EL7: 1 | EM7: 1 | EN7: 1 | EO7: 1 | EP7: 1 | EQ7: 0 | ER7: 1 | ES7: =COUNTIF(I7,I8) -> 0 | ET7: =SUMPRODUCT(( MOD(I8,2)>0)*1) -> 1 | EU7: =IF((E8=D8+1)+(F8=E8+1)+(G8=F8+1)+(H8=G8+1),("1")*1,("")) ->  | EW7: =H8-D8 -> 47 | EX7: =(MID(D8,1,2)*1) -> 2 | EY7: =(MID(E8,2,1)*1) -> 1 | EZ7: =(MID(F8,2,1)*1) -> 0 | FA7: =(MID(G8,2,1)*1) -> 7 | FB7: =(MID(H8,2,1)*1) -> 9 | FC7: 1 | FD7: 1 | FE7: =I8 -> 9 | FF7: 0 | FG7: 0 | FH7: 0 | FI7: 0 | FJ7: 1 | FK7: =IF(E8=D8+1,("1")*1,("")) ->  | FL7: =IF(F8=E8+1,("1")*1,("")) ->  | FM7: =IF(G8=F8+1,("1")*1,("")) ->  | FN7: =IF(H8=G8+1,("1")*1,("")) ->  | FW7: =SUMPRODUCT(( MOD(D8,2)>0)*1) -> 0 | FX7: =SUMPRODUCT(( MOD(E8,2)>0)*1) -> 1 | FY7: =SUMPRODUCT(( MOD(F8,2)>0)*1) -> 0 | FZ7: =SUMPRODUCT(( MOD(G8,2)>0)*1) -> 1 | GA7: =SUMPRODUCT(( MOD(H8,2)>0)*1) -> 1 | GE7: 0 | GF7: 0 | GG7: 0 | GH7: 1 | GL7: 0 | GM7: 1 | GN7: 0 | GR7: 0 | GS7: 1 | GW7: 0 | HA7: 0 | HD7: 1 | HE7: 2 | HF7: 3 | HG7: 4 | HH7: 5 | HI7: 6 | HJ7: 7 | HK7: 8 | HL7: 9 | HM7: 10 | HN7: 11 | HO7: 12 | HP7: 13 | HQ7: 14 | HR7: 15 | HS7: 16 | HT7: 17 | HU7: 18 | HV7: 19 | HW7: 20 | HX7: 21 | HY7: 22 | HZ7: 23 | IA7: 24 | IB7: 25 | IC7: 26 | ID7: 27 | IE7: 28 | IF7: 29 | IG7: 30 | IH7: 31 | II7: 32 | IJ7: 33 | IK7: 34 | IL7: 35 | IM7: 36 | IN7: 37 | IO7: 38 | IP7: 39 | IQ7: 40 | IR7: 41 | IS7: 42 | IT7: 43 | IU7: 44 | IV7: 45 | IW7: 46 | IX7: 47 | IY7: 48 | IZ7: 49 | JA7: =COUNTIF(D8,$JA$1)+(COUNTIF(E8,$JA$1)+(COUNTIF(F8,$JA$1)+(COUNTIF(G8,$JA$1)+(COUNTIF(H8,$JA$1))))) -> 0 | JB7: =COUNTIF(D8,$JB$1)+(COUNTIF(E8,$JB$1)+(COUNTIF(F8,$JB$1)+(COUNTIF(G8,$JB$1)+(COUNTIF(H8,$JB$1))))) -> 1 | JC7: =COUNTIF(D8,$JC$1)+(COUNTIF(E8,$JC$1)+(COUNTIF(F8,$JC$1)+(COUNTIF(G8,$JC$1)+(COUNTIF(H8,$JC$1))))) -> 0 | JD7: =COUNTIF(D8,$JD$1)+(COUNTIF(E8,$JD$1)+(COUNTIF(F8,$JD$1)+(COUNTIF(G8,$JD$1)+(COUNTIF(H8,$JD$1))))) -> 0 | JE7: =COUNTIF(D8,$JE$1)+(COUNTIF(E8,$JE$1)+(COUNTIF(F8,$JE$1)+(COUNTIF(G8,$JE$1)+(COUNTIF(H8,$JE$1))))) -> 0 | JF7: =COUNTIF(D8,$JF$1)+(COUNTIF(E8,$JF$1)+(COUNTIF(F8,$JF$1)+(COUNTIF(G8,$JF$1)+(COUNTIF(H8,$JF$1))))) -> 0 | JG7: =COUNTIF(D8,$JG$1)+(COUNTIF(E8,$JG$1)+(COUNTIF(F8,$JG$1)+(COUNTIF(G8,$JG$1)+(COUNTIF(H8,$JG$1))))) -> 0 | JH7: =COUNTIF(D8,$JH$1)+(COUNTIF(E8,$JH$1)+(COUNTIF(F8,$JH$1)+(COUNTIF(G8,$JH$1)+(COUNTIF(H8,$JH$1))))) -> 0 | JI7: =COUNTIF(D8,$JI$1)+(COUNTIF(E8,$JI$1)+(COUNTIF(F8,$JI$1)+(COUNTIF(G8,$JI$1)+(COUNTIF(H8,$JI$1))))) -> 0 | JJ7: =COUNTIF(D8,$JJ$1)+(COUNTIF(E8,$JJ$1)+(COUNTIF(F8,$JJ$1)+(COUNTIF(G8,$JJ$1)+(COUNTIF(H8,$JJ$1))))) -> 0 | JK7: =COUNTIF(D8,$JK$1)+(COUNTIF(E8,$JK$1)+(COUNTIF(F8,$JK$1)+(COUNTIF(G8,$JK$1)+(COUNTIF(H8,$JK$1))))) -> 0 | JL7: =COUNTIF(D8,$JL$1)+(COUNTIF(E8,$JL$1)+(COUNTIF(F8,$JL$1)+(COUNTIF(G8,$JL$1)+(COUNTIF(H8,$JL$1))))) -> 0 | JM7: =COUNTIF(D8,$JM$1)+(COUNTIF(E8,$JM$1)+(COUNTIF(F8,$JM$1)+(COUNTIF(G8,$JM$1)+(COUNTIF(H8,$JM$1))))) -> 0 | JN7: =COUNTIF(D8,$JN$1)+(COUNTIF(E8,$JN$1)+(COUNTIF(F8,$JN$1)+(COUNTIF(G8,$JN$1)+(COUNTIF(H8,$JN$1))))) -> 0 | JO7: =COUNTIF(D8,$JO$1)+(COUNTIF(E8,$JO$1)+(COUNTIF(F8,$JO$1)+(COUNTIF(G8,$JO$1)+(COUNTIF(H8,$JO$1))))) -> 0 | JP7: =COUNTIF(D8,$JP$1)+(COUNTIF(E8,$JP$1)+(COUNTIF(F8,$JP$1)+(COUNTIF(G8,$JP$1)+(COUNTIF(H8,$JP$1))))) -> 0 | JQ7: =COUNTIF(D8,$JQ$1)+(COUNTIF(E8,$JQ$1)+(COUNTIF(F8,$JQ$1)+(COUNTIF(G8,$JQ$1)+(COUNTIF(H8,$JQ$1))))) -> 0 | JR7: =COUNTIF(D8,$JR$1)+(COUNTIF(E8,$JR$1)+(COUNTIF(F8,$JR$1)+(COUNTIF(G8,$JR$1)+(COUNTIF(H8,$JR$1))))) -> 0 | JS7: =COUNTIF(D8,$JS$1)+(COUNTIF(E8,$JS$1)+(COUNTIF(F8,$JS$1)+(COUNTIF(G8,$JS$1)+(COUNTIF(H8,$JS$1))))) -> 0 | JT7: =COUNTIF(D8,$JT$1)+(COUNTIF(E8,$JT$1)+(COUNTIF(F8,$JT$1)+(COUNTIF(G8,$JT$1)+(COUNTIF(H8,$JT$1))))) -> 0 | JU7: =COUNTIF(D8,$JU$1)+(COUNTIF(E8,$JU$1)+(COUNTIF(F8,$JU$1)+(COUNTIF(G8,$JU$1)+(COUNTIF(H8,$JU$1))))) -> 0 | JV7: =COUNTIF(D8,$JV$1)+(COUNTIF(E8,$JV$1)+(COUNTIF(F8,$JV$1)+(COUNTIF(G8,$JV$1)+(COUNTIF(H8,$JV$1))))) -> 0 | JW7: =COUNTIF(D8,$JW$1)+(COUNTIF(E8,$JW$1)+(COUNTIF(F8,$JW$1)+(COUNTIF(G8,$JW$1)+(COUNTIF(H8,$JW$1))))) -> 0 | JX7: =COUNTIF(D8,$JX$1)+(COUNTIF(E8,$JX$1)+(COUNTIF(F8,$JX$1)+(COUNTIF(G8,$JX$1)+(COUNTIF(H8,$JX$1))))) -> 0 | JY7: =COUNTIF(D8,$JY$1)+(COUNTIF(E8,$JY$1)+(COUNTIF(F8,$JY$1)+(COUNTIF(G8,$JY$1)+(COUNTIF(H8,$JY$1))))) -> 0 | JZ7: =COUNTIF(D8,$JZ$1)+(COUNTIF(E8,$JZ$1)+(COUNTIF(F8,$JZ$1)+(COUNTIF(G8,$JZ$1)+(COUNTIF(H8,$JZ$1))))) -> 0 | KA7: =COUNTIF(D8,$KA$1)+(COUNTIF(E8,$KA$1)+(COUNTIF(F8,$KA$1)+(COUNTIF(G8,$KA$1)+(COUNTIF(H8,$KA$1))))) -> 0 | KB7: =COUNTIF(D8,$KB$1)+(COUNTIF(E8,$KB$1)+(COUNTIF(F8,$KB$1)+(COUNTIF(G8,$KB$1)+(COUNTIF(H8,$KB$1))))) -> 0 | KC7: =COUNTIF(D8,$KC$1)+(COUNTIF(E8,$KC$1)+(COUNTIF(F8,$KC$1)+(COUNTIF(G8,$KC$1)+(COUNTIF(H8,$KC$1))))) -> 0 | KD7: =COUNTIF(D8,$KD$1)+(COUNTIF(E8,$KD$1)+(COUNTIF(F8,$KD$1)+(COUNTIF(G8,$KD$1)+(COUNTIF(H8,$KD$1))))) -> 0 | KE7: =COUNTIF(D8,$KE$1)+(COUNTIF(E8,$KE$1)+(COUNTIF(F8,$KE$1)+(COUNTIF(G8,$KE$1)+(COUNTIF(H8,$KE$1))))) -> 1 | KF7: =COUNTIF(D8,$KF$1)+(COUNTIF(E8,$KF$1)+(COUNTIF(F8,$KF$1)+(COUNTIF(G8,$KF$1)+(COUNTIF(H8,$KF$1))))) -> 0 | KG7: =COUNTIF(D8,$KG$1)+(COUNTIF(E8,$KG$1)+(COUNTIF(F8,$KG$1)+(COUNTIF(G8,$KG$1)+(COUNTIF(H8,$KG$1))))) -> 0 | KH7: =COUNTIF(D8,$KH$1)+(COUNTIF(E8,$KH$1)+(COUNTIF(F8,$KH$1)+(COUNTIF(G8,$KH$1)+(COUNTIF(H8,$KH$1))))) -> 0 | KI7: =COUNTIF(D8,$KI$1)+(COUNTIF(E8,$KI$1)+(COUNTIF(F8,$KI$1)+(COUNTIF(G8,$KI$1)+(COUNTIF(H8,$KI$1))))) -> 0 | KJ7: =COUNTIF(D8,$KJ$1)+(COUNTIF(E8,$KJ$1)+(COUNTIF(F8,$KJ$1)+(COUNTIF(G8,$KJ$1)+(COUNTIF(H8,$KJ$1))))) -> 0 | KK7: =COUNTIF(D8,$KK$1)+(COUNTIF(E8,$KK$1)+(COUNTIF(F8,$KK$1)+(COUNTIF(G8,$KK$1)+(COUNTIF(H8,$KK$1))))) -> 0 | KL7: =COUNTIF(D8,$KL$1)+(COUNTIF(E8,$KL$1)+(COUNTIF(F8,$KL$1)+(COUNTIF(G8,$KL$1)+(COUNTIF(H8,$KL$1))))) -> 0 | KM7: =COUNTIF(D8,$KM$1)+(COUNTIF(E8,$KM$1)+(COUNTIF(F8,$KM$1)+(COUNTIF(G8,$KM$1)+(COUNTIF(H8,$KM$1))))) -> 0 | KN7: =COUNTIF(D8,$KN$1)+(COUNTIF(E8,$KN$1)+(COUNTIF(F8,$KN$1)+(COUNTIF(G8,$KN$1)+(COUNTIF(H8,$KN$1))))) -> 1 | KO7: =COUNTIF(D8,$KO$1)+(COUNTIF(E8,$KO$1)+(COUNTIF(F8,$KO$1)+(COUNTIF(G8,$KO$1)+(COUNTIF(H8,$KO$1))))) -> 0 | KP7: =COUNTIF(D8,$KP$1)+(COUNTIF(E8,$KP$1)+(COUNTIF(F8,$KP$1)+(COUNTIF(G8,$KP$1)+(COUNTIF(H8,$KP$1))))) -> 0 | KQ7: =COUNTIF(D8,$KQ$1)+(COUNTIF(E8,$KQ$1)+(COUNTIF(F8,$KQ$1)+(COUNTIF(G8,$KQ$1)+(COUNTIF(H8,$KQ$1))))) -> 0 | KR7: =COUNTIF(D8,$KR$1)+(COUNTIF(E8,$KR$1)+(COUNTIF(F8,$KR$1)+(COUNTIF(G8,$KR$1)+(COUNTIF(H8,$KR$1))))) -> 0 | KS7: =COUNTIF(D8,$KS$1)+(COUNTIF(E8,$KS$1)+(COUNTIF(F8,$KS$1)+(COUNTIF(G8,$KS$1)+(COUNTIF(H8,$KS$1))))) -> 0 | KT7: =COUNTIF(D8,$KT$1)+(COUNTIF(E8,$KT$1)+(COUNTIF(F8,$KT$1)+(COUNTIF(G8,$KT$1)+(COUNTIF(H8,$KT$1))))) -> 0 | KU7: =COUNTIF(D8,$KU$1)+(COUNTIF(E8,$KU$1)+(COUNTIF(F8,$KU$1)+(COUNTIF(G8,$KU$1)+(COUNTIF(H8,$KU$1))))) -> 1 | KV7: =COUNTIF(D8,$KV$1)+(COUNTIF(E8,$KV$1)+(COUNTIF(F8,$KV$1)+(COUNTIF(G8,$KV$1)+(COUNTIF(H8,$KV$1))))) -> 0 | KW7: =COUNTIF(D8,$KW$1)+(COUNTIF(E8,$KW$1)+(COUNTIF(F8,$KW$1)+(COUNTIF(G8,$KW$1)+(COUNTIF(H8,$KW$1))))) -> 1
A8: 404 | B8: SAMEDI | C8: 2022-06-25 | D8: 2 | E8: 31 | F8: 40 | G8: 47 | H8: 49 | I8: 9 | J8: 9 | K8: j | L8: =COUNTIF(M7:P7,">0") -> 0 | M8: =_xlfn.LET(_xlpm.comp,RIGHT(D9:H9,1),_xlfn._xlws.FILTER(D9:H9,_xlfn.XMATCH(_xlpm.comp,_xlpm.comp)<>_xlfn.XMATCH(_xlpm.comp,_xlpm.comp,,-1))) -> 24 | N8: 34 | Q8: =COUNTIF(D8:H8,D9:H9) -> 0 | R8: 1 | S8: 0 | T8: 0 | U8: 0 | V8: =IF(AND(W8>69,W8<164,OR(X8={1;2;3;4})),1,0) -> 1 | W8: =D9+E9+F9+G9+H9 -> 162 | X8: =SUMPRODUCT(( MOD(D9:H9,2)>0)*1) -> 2 | Y8: 1 | Z8: 0 | AA8: 0 | AB8: 2 | AC8: 0 | AD8: 1 | AE8: 1 | AF8: 0 | AG8: 0 | AH8: 0 | AI8: =COUNTIF(($D9:$H9),AI$1) -> 0 | AJ8: =COUNTIF(($D9:$H9),AJ$1) -> 0 | AK8: =COUNTIF(($D9:$H9),AK$1) -> 0 | AL8: =COUNTIF(($D9:$H9),AL$1) -> 0 | AM8: =COUNTIF(($D9:$H9),AM$1) -> 0 | AN8: =COUNTIF(($D9:$H9),AN$1) -> 0 | AO8: =COUNTIF(($D9:$H9),AO$1) -> 0 | AP8: =COUNTIF(($D9:$H9),AP$1) -> 0 | AQ8: =COUNTIF(($D9:$H9),AQ$1) -> 0 | AR8: =COUNTIF(($D9:$H9),AR$1) -> 0 | AS8: =COUNTIF(($D9:$H9),AS$1) -> 0 | AT8: =COUNTIF(($D9:$H9),AT$1) -> 0 | AU8: =COUNTIF(($D9:$H9),AU$1) -> 0 | AV8: =COUNTIF(($D9:$H9),AV$1) -> 1 | AW8: =COUNTIF(($D9:$H9),AW$1) -> 0 | AX8: =COUNTIF(($D9:$H9),AX$1) -> 0 | AY8: =COUNTIF(($D9:$H9),AY$1) -> 0 | AZ8: =COUNTIF(($D9:$H9),AZ$1) -> 0 | BA8: =COUNTIF(($D9:$H9),BA$1) -> 0 | BB8: =COUNTIF(($D9:$H9),BB$1) -> 0 | BC8: =COUNTIF(($D9:$H9),BC$1) -> 1 | BD8: =COUNTIF(($D9:$H9),BD$1) -> 0 | BE8: =COUNTIF(($D9:$H9),BE$1) -> 0 | BF8: =COUNTIF(($D9:$H9),BF$1) -> 1 | BG8: =COUNTIF(($D9:$H9),BG$1) -> 0 | BH8: =COUNTIF(($D9:$H9),BH$1) -> 1 | BI8: =COUNTIF((D9:H9),BI$1) -> 1 | BJ8: =COUNTIF((D9:H9),BJ$1) -> 0 | BK8: =COUNTIF((D9:H9),BK$1) -> 0 | BL8: =COUNTIF((D9:H9),BL$1) -> 0 | BM8: =COUNTIF((D9:H9),BM$1) -> 0 | BN8: =COUNTIF((D9:H9),BN$1) -> 0 | BO8: =COUNTIF((D9:H9),BO$1) -> 0 | BP8: =COUNTIF((D9:H9),BP$1) -> 0 | BQ8: =COUNTIF((D9:H9),BQ$1) -> 0 | BR8: =COUNTIF((D9:H9),BR$1) -> 0 | BS8: =COUNTIF((D9:H9),BS$1) -> 0 | BT8: =COUNTIF((D9:H9),BT$1) -> 0 | BU8: =COUNTIF((D9:H9),BU$1) -> 0 | BV8: =COUNTIF(D9:H9,"<10") -> 0 | BW8: =(COUNTIF(D9:H9,"<20")-BV8) -> 0 | BX8: =((COUNTIF(D9:H9,"<30")))-(BV8+BW8) -> 1 | BY8: =((COUNTIF(D9:H9,"<40")))-(BW8+BX8+BV8) -> 4 | BZ8: =((COUNTIF(D9:H9,"<50")))-(BX8+BY8+BW8+BV8) -> 0 | CB8: 0 | CC8: 0 | CD8: 1 | CE8: 1 | CF8: 0 | CG8: 0 | CH8: 0 | CI8: 0 | CJ8: 0 | CK8: 0 | CL8: 0 | CM8: 0 | CN8: 0 | CO8: 0 | CP8: 0 | CQ8: 0 | CR8: 0 | CS8: 1 | CT8: 0 | CU8: 0 | CV8: 0 | CW8: 0 | CX8: 0 | CY8: 0 | CZ8: 0 | DA8: 0 | DB8: 0 | DC8: 0 | DD8: 0 | DE8: 0 | DF8: 0 | DG8: 0 | DH8: 0 | DJ8: 0 | DK8: 0 | DL8: =COUNTIF((I9),$DL$1) -> 1 | DM8: =COUNTIF((I9),$DM$1) -> 0 | DN8: =COUNTIF((I9),$DN$1) -> 0 | DO8: =COUNTIF((I9),$DO$1) -> 0 | DP8: =COUNTIF((I9),$DP$1) -> 0 | DQ8: =COUNTIF((I9),$DQ$1) -> 0 | DR8: =COUNTIF((I9),$DR$1) -> 0 | DS8: =COUNTIF((I9),$DS$1) -> 0 | DT8: =COUNTIF((I9),$DT$1) -> 0 | DU8: =COUNTIF((I9),$DU$1) -> 0 | DW8: 0 | DX8: 1 | DY8: 1 | DZ8: 1 | EA8: 1 | EB8: 1 | EC8: 1 | ED8: 1 | EE8: 0 | EF8: 1 | EI8: 0 | EJ8: 1 | EK8: 1 | EL8: 1 | EM8: 1 | EN8: 1 | EO8: 1 | EP8: 1 | EQ8: 0 | ER8: 1 | ES8: =COUNTIF(I8,I9) -> 0 | ET8: =SUMPRODUCT(( MOD(I9,2)>0)*1) -> 1 | EU8: =IF((E9=D9+1)+(F9=E9+1)+(G9=F9+1)+(H9=G9+1),("1")*1,("")) -> 1 | EV8: 1 | EW8: =H9-D9 -> 13 | EX8: =(MID(D9,2,2)*1) -> 4 | EY8: =(MID(E9,2,1)*1) -> 1 | EZ8: =(MID(F9,2,1)*1) -> 4 | FA8: =(MID(G9,2,1)*1) -> 6 | FB8: =(MID(H9,2,1)*1) -> 7 | FC8: 1 | FD8: 1 | FE8: =I9 -> 1 | FF8: 0 | FG8: 1 | FH8: 0 | FI8: 0 | FJ8: 0 | FK8: =IF(E9=D9+1,("1")*1,("")) ->  | FL8: =IF(F9=E9+1,("1")*1,("")) ->  | FM8: =IF(G9=F9+1,("1")*1,("")) ->  | FN8: =IF(H9=G9+1,("1")*1,("")) -> 1 | FW8: =SUMPRODUCT(( MOD(D9,2)>0)*1) -> 0 | FX8: =SUMPRODUCT(( MOD(E9,2)>0)*1) -> 1 | FY8: =SUMPRODUCT(( MOD(F9,2)>0)*1) -> 0 | FZ8: =SUMPRODUCT(( MOD(G9,2)>0)*1) -> 0 | GA8: =SUMPRODUCT(( MOD(H9,2)>0)*1) -> 1 | GE8: 0 | GF8: 0 | GG8: 0 | GH8: 0 | GL8: 0 | GM8: 1 | GN8: 0 | GR8: 0 | GS8: 1 | GW8: 0 | HA8: 0 | HC8: en 1 | HY8: x | HZ8: x | IC8: x | ID8: x | IE8: x | IF8: x | IG8: x | IH8: x | II8: x | IJ8: x | IK8: x | IL8: x | IM8: x | IN8: x | IO8: x | IP8: x | IQ8: x | IR8: x | IS8: x | JA8: =COUNTIF(D9,$JA$1)+(COUNTIF(E9,$JA$1)+(COUNTIF(F9,$JA$1)+(COUNTIF(G9,$JA$1)+(COUNTIF(H9,$JA$1))))) -> 0 | JB8: =COUNTIF(D9,$JB$1)+(COUNTIF(E9,$JB$1)+(COUNTIF(F9,$JB$1)+(COUNTIF(G9,$JB$1)+(COUNTIF(H9,$JB$1))))) -> 0 | JC8: =COUNTIF(D9,$JC$1)+(COUNTIF(E9,$JC$1)+(COUNTIF(F9,$JC$1)+(COUNTIF(G9,$JC$1)+(COUNTIF(H9,$JC$1))))) -> 0 | JD8: =COUNTIF(D9,$JD$1)+(COUNTIF(E9,$JD$1)+(COUNTIF(F9,$JD$1)+(COUNTIF(G9,$JD$1)+(COUNTIF(H9,$JD$1))))) -> 0 | JE8: =COUNTIF(D9,$JE$1)+(COUNTIF(E9,$JE$1)+(COUNTIF(F9,$JE$1)+(COUNTIF(G9,$JE$1)+(COUNTIF(H9,$JE$1))))) -> 0 | JF8: =COUNTIF(D9,$JF$1)+(COUNTIF(E9,$JF$1)+(COUNTIF(F9,$JF$1)+(COUNTIF(G9,$JF$1)+(COUNTIF(H9,$JF$1))))) -> 0 | JG8: =COUNTIF(D9,$JG$1)+(COUNTIF(E9,$JG$1)+(COUNTIF(F9,$JG$1)+(COUNTIF(G9,$JG$1)+(COUNTIF(H9,$JG$1))))) -> 0 | JH8: =COUNTIF(D9,$JH$1)+(COUNTIF(E9,$JH$1)+(COUNTIF(F9,$JH$1)+(COUNTIF(G9,$JH$1)+(COUNTIF(H9,$JH$1))))) -> 0 | JI8: =COUNTIF(D9,$JI$1)+(COUNTIF(E9,$JI$1)+(COUNTIF(F9,$JI$1)+(COUNTIF(G9,$JI$1)+(COUNTIF(H9,$JI$1))))) -> 0 | JJ8: =COUNTIF(D9,$JJ$1)+(COUNTIF(E9,$JJ$1)+(COUNTIF(F9,$JJ$1)+(COUNTIF(G9,$JJ$1)+(COUNTIF(H9,$JJ$1))))) -> 0 | JK8: =COUNTIF(D9,$JK$1)+(COUNTIF(E9,$JK$1)+(COUNTIF(F9,$JK$1)+(COUNTIF(G9,$JK$1)+(COUNTIF(H9,$JK$1))))) -> 0 | JL8: =COUNTIF(D9,$JL$1)+(COUNTIF(E9,$JL$1)+(COUNTIF(F9,$JL$1)+(COUNTIF(G9,$JL$1)+(COUNTIF(H9,$JL$1))))) -> 0 | JM8: =COUNTIF(D9,$JM$1)+(COUNTIF(E9,$JM$1)+(COUNTIF(F9,$JM$1)+(COUNTIF(G9,$JM$1)+(COUNTIF(H9,$JM$1))))) -> 0 | JN8: =COUNTIF(D9,$JN$1)+(COUNTIF(E9,$JN$1)+(COUNTIF(F9,$JN$1)+(COUNTIF(G9,$JN$1)+(COUNTIF(H9,$JN$1))))) -> 0 | JO8: =COUNTIF(D9,$JO$1)+(COUNTIF(E9,$JO$1)+(COUNTIF(F9,$JO$1)+(COUNTIF(G9,$JO$1)+(COUNTIF(H9,$JO$1))))) -> 0 | JP8: =COUNTIF(D9,$JP$1)+(COUNTIF(E9,$JP$1)+(COUNTIF(F9,$JP$1)+(COUNTIF(G9,$JP$1)+(COUNTIF(H9,$JP$1))))) -> 0 | JQ8: =COUNTIF(D9,$JQ$1)+(COUNTIF(E9,$JQ$1)+(COUNTIF(F9,$JQ$1)+(COUNTIF(G9,$JQ$1)+(COUNTIF(H9,$JQ$1))))) -> 0 | JR8: =COUNTIF(D9,$JR$1)+(COUNTIF(E9,$JR$1)+(COUNTIF(F9,$JR$1)+(COUNTIF(G9,$JR$1)+(COUNTIF(H9,$JR$1))))) -> 0 | JS8: =COUNTIF(D9,$JS$1)+(COUNTIF(E9,$JS$1)+(COUNTIF(F9,$JS$1)+(COUNTIF(G9,$JS$1)+(COUNTIF(H9,$JS$1))))) -> 0 | JT8: =COUNTIF(D9,$JT$1)+(COUNTIF(E9,$JT$1)+(COUNTIF(F9,$JT$1)+(COUNTIF(G9,$JT$1)+(COUNTIF(H9,$JT$1))))) -> 0 | JU8: =COUNTIF(D9,$JU$1)+(COUNTIF(E9,$JU$1)+(COUNTIF(F9,$JU$1)+(COUNTIF(G9,$JU$1)+(COUNTIF(H9,$JU$1))))) -> 0 | JV8: =COUNTIF(D9,$JV$1)+(COUNTIF(E9,$JV$1)+(COUNTIF(F9,$JV$1)+(COUNTIF(G9,$JV$1)+(COUNTIF(H9,$JV$1))))) -> 0 | JW8: =COUNTIF(D9,$JW$1)+(COUNTIF(E9,$JW$1)+(COUNTIF(F9,$JW$1)+(COUNTIF(G9,$JW$1)+(COUNTIF(H9,$JW$1))))) -> 0 | JX8: =COUNTIF(D9,$JX$1)+(COUNTIF(E9,$JX$1)+(COUNTIF(F9,$JX$1)+(COUNTIF(G9,$JX$1)+(COUNTIF(H9,$JX$1))))) -> 1 | JY8: =COUNTIF(D9,$JY$1)+(COUNTIF(E9,$JY$1)+(COUNTIF(F9,$JY$1)+(COUNTIF(G9,$JY$1)+(COUNTIF(H9,$JY$1))))) -> 0 | JZ8: =COUNTIF(D9,$JZ$1)+(COUNTIF(E9,$JZ$1)+(COUNTIF(F9,$JZ$1)+(COUNTIF(G9,$JZ$1)+(COUNTIF(H9,$JZ$1))))) -> 0 | KA8: =COUNTIF(D9,$KA$1)+(COUNTIF(E9,$KA$1)+(COUNTIF(F9,$KA$1)+(COUNTIF(G9,$KA$1)+(COUNTIF(H9,$KA$1))))) -> 0 | KB8: =COUNTIF(D9,$KB$1)+(COUNTIF(E9,$KB$1)+(COUNTIF(F9,$KB$1)+(COUNTIF(G9,$KB$1)+(COUNTIF(H9,$KB$1))))) -> 0 | KC8: =COUNTIF(D9,$KC$1)+(COUNTIF(E9,$KC$1)+(COUNTIF(F9,$KC$1)+(COUNTIF(G9,$KC$1)+(COUNTIF(H9,$KC$1))))) -> 0 | KD8: =COUNTIF(D9,$KD$1)+(COUNTIF(E9,$KD$1)+(COUNTIF(F9,$KD$1)+(COUNTIF(G9,$KD$1)+(COUNTIF(H9,$KD$1))))) -> 0 | KE8: =COUNTIF(D9,$KE$1)+(COUNTIF(E9,$KE$1)+(COUNTIF(F9,$KE$1)+(COUNTIF(G9,$KE$1)+(COUNTIF(H9,$KE$1))))) -> 1 | KF8: =COUNTIF(D9,$KF$1)+(COUNTIF(E9,$KF$1)+(COUNTIF(F9,$KF$1)+(COUNTIF(G9,$KF$1)+(COUNTIF(H9,$KF$1))))) -> 0 | KG8: =COUNTIF(D9,$KG$1)+(COUNTIF(E9,$KG$1)+(COUNTIF(F9,$KG$1)+(COUNTIF(G9,$KG$1)+(COUNTIF(H9,$KG$1))))) -> 0 | KH8: =COUNTIF(D9,$KH$1)+(COUNTIF(E9,$KH$1)+(COUNTIF(F9,$KH$1)+(COUNTIF(G9,$KH$1)+(COUNTIF(H9,$KH$1))))) -> 1 | KI8: =COUNTIF(D9,$KI$1)+(COUNTIF(E9,$KI$1)+(COUNTIF(F9,$KI$1)+(COUNTIF(G9,$KI$1)+(COUNTIF(H9,$KI$1))))) -> 0 | KJ8: =COUNTIF(D9,$KJ$1)+(COUNTIF(E9,$KJ$1)+(COUNTIF(F9,$KJ$1)+(COUNTIF(G9,$KJ$1)+(COUNTIF(H9,$KJ$1))))) -> 1 | KK8: =COUNTIF(D9,$KK$1)+(COUNTIF(E9,$KK$1)+(COUNTIF(F9,$KK$1)+(COUNTIF(G9,$KK$1)+(COUNTIF(H9,$KK$1))))) -> 1 | KL8: =COUNTIF(D9,$KL$1)+(COUNTIF(E9,$KL$1)+(COUNTIF(F9,$KL$1)+(COUNTIF(G9,$KL$1)+(COUNTIF(H9,$KL$1))))) -> 0 | KM8: =COUNTIF(D9,$KM$1)+(COUNTIF(E9,$KM$1)+(COUNTIF(F9,$KM$1)+(COUNTIF(G9,$KM$1)+(COUNTIF(H9,$KM$1))))) -> 0 | KN8: =COUNTIF(D9,$KN$1)+(COUNTIF(E9,$KN$1)+(COUNTIF(F9,$KN$1)+(COUNTIF(G9,$KN$1)+(COUNTIF(H9,$KN$1))))) -> 0 | KO8: =COUNTIF(D9,$KO$1)+(COUNTIF(E9,$KO$1)+(COUNTIF(F9,$KO$1)+(COUNTIF(G9,$KO$1)+(COUNTIF(H9,$KO$1))))) -> 0 | KP8: =COUNTIF(D9,$KP$1)+(COUNTIF(E9,$KP$1)+(COUNTIF(F9,$KP$1)+(COUNTIF(G9,$KP$1)+(COUNTIF(H9,$KP$1))))) -> 0 | KQ8: =COUNTIF(D9,$KQ$1)+(COUNTIF(E9,$KQ$1)+(COUNTIF(F9,$KQ$1)+(COUNTIF(G9,$KQ$1)+(COUNTIF(H9,$KQ$1))))) -> 0 | KR8: =COUNTIF(D9,$KR$1)+(COUNTIF(E9,$KR$1)+(COUNTIF(F9,$KR$1)+(COUNTIF(G9,$KR$1)+(COUNTIF(H9,$KR$1))))) -> 0 | KS8: =COUNTIF(D9,$KS$1)+(COUNTIF(E9,$KS$1)+(COUNTIF(F9,$KS$1)+(COUNTIF(G9,$KS$1)+(COUNTIF(H9,$KS$1))))) -> 0 | KT8: =COUNTIF(D9,$KT$1)+(COUNTIF(E9,$KT$1)+(COUNTIF(F9,$KT$1)+(COUNTIF(G9,$KT$1)+(COUNTIF(H9,$KT$1))))) -> 0 | KU8: =COUNTIF(D9,$KU$1)+(COUNTIF(E9,$KU$1)+(COUNTIF(F9,$KU$1)+(COUNTIF(G9,$KU$1)+(COUNTIF(H9,$KU$1))))) -> 0 | KV8: =COUNTIF(D9,$KV$1)+(COUNTIF(E9,$KV$1)+(COUNTIF(F9,$KV$1)+(COUNTIF(G9,$KV$1)+(COUNTIF(H9,$KV$1))))) -> 0 | KW8: =COUNTIF(D9,$KW$1)+(COUNTIF(E9,$KW$1)+(COUNTIF(F9,$KW$1)+(COUNTIF(G9,$KW$1)+(COUNTIF(H9,$KW$1))))) -> 0
A9: 403 | B9: LUNDI | C9: 2022-06-27 | D9: 24 | E9: 31 | F9: 34 | G9: 36 | H9: 37 | I9: 1 | J9: 7 | K9: h | L9: =COUNTIF(M8:P8,">0") -> 2 | M9: =_xlfn.LET(_xlpm.comp,RIGHT(D10:H10,1),_xlfn._xlws.FILTER(D10:H10,_xlfn.XMATCH(_xlpm.comp,_xlpm.comp)<>_xlfn.XMATCH(_xlpm.comp,_xlpm.comp,,-1))) -> 16 | N9: 26 | Q9: =COUNTIF(D9:H9,D10:H10) -> 0 | R9: 1 | S9: 0 | T9: 0 | U9: 0 | V9: =IF(AND(W9>69,W9<164,OR(X9={1;2;3;4})),1,0) -> 1 | W9: =D10+E10+F10+G10+H10 -> 156 | X9: =SUMPRODUCT(( MOD(D10:H10,2)>0)*1) -> 2 | Y9: 0 | Z9: 0 | AA9: 1 | AB9: 1 | AC9: 0 | AD9: 2 | AE9: 1 | AF9: 0 | AG9: 0 | AH9: 0 | AI9: =COUNTIF(($D10:$H10),AI$1) -> 0 | AJ9: =COUNTIF(($D10:$H10),AJ$1) -> 0 | AK9: =COUNTIF(($D10:$H10),AK$1) -> 0 | AL9: =COUNTIF(($D10:$H10),AL$1) -> 0 | AM9: =COUNTIF(($D10:$H10),AM$1) -> 0 | AN9: =COUNTIF(($D10:$H10),AN$1) -> 1 | AO9: =COUNTIF(($D10:$H10),AO$1) -> 0 | AP9: =COUNTIF(($D10:$H10),AP$1) -> 0 | AQ9: =COUNTIF(($D10:$H10),AQ$1) -> 0 | AR9: =COUNTIF(($D10:$H10),AR$1) -> 0 | AS9: =COUNTIF(($D10:$H10),AS$1) -> 0 | AT9: =COUNTIF(($D10:$H10),AT$1) -> 0 | AU9: =COUNTIF(($D10:$H10),AU$1) -> 0 | AV9: =COUNTIF(($D10:$H10),AV$1) -> 1 | AW9: =COUNTIF(($D10:$H10),AW$1) -> 0 | AX9: =COUNTIF(($D10:$H10),AX$1) -> 1 | AY9: =COUNTIF(($D10:$H10),AY$1) -> 0 | AZ9: =COUNTIF(($D10:$H10),AZ$1) -> 0 | BA9: =COUNTIF(($D10:$H10),BA$1) -> 0 | BB9: =COUNTIF(($D10:$H10),BB$1) -> 0 | BC9: =COUNTIF(($D10:$H10),BC$1) -> 0 | BD9: =COUNTIF(($D10:$H10),BD$1) -> 0 | BE9: =COUNTIF(($D10:$H10),BE$1) -> 0 | BF9: =COUNTIF(($D10:$H10),BF$1) -> 0 | BG9: =COUNTIF(($D10:$H10),BG$1) -> 0 | BH9: =COUNTIF(($D10:$H10),BH$1) -> 0 | BI9: =COUNTIF((D10:H10),BI$1) -> 0 | BJ9: =COUNTIF((D10:H10),BJ$1) -> 0 | BK9: =COUNTIF((D10:H10),BK$1) -> 0 | BL9: =COUNTIF((D10:H10),BL$1) -> 0 | BM9: =COUNTIF((D10:H10),BM$1) -> 0 | BN9: =COUNTIF((D10:H10),BN$1) -> 0 | BO9: =COUNTIF((D10:H10),BO$1) -> 1 | BP9: =COUNTIF((D10:H10),BP$1) -> 0 | BQ9: =COUNTIF((D10:H10),BQ$1) -> 0 | BR9: =COUNTIF((D10:H10),BR$1) -> 0 | BS9: =COUNTIF((D10:H10),BS$1) -> 1 | BT9: =COUNTIF((D10:H10),BT$1) -> 0 | BU9: =COUNTIF((D10:H10),BU$1) -> 0 | BV9: =COUNTIF(D10:H10,"<10") -> 0 | BW9: =(COUNTIF(D10:H10,"<20")-BV9) -> 1 | BX9: =((COUNTIF(D10:H10,"<30")))-(BV9+BW9) -> 2 | BY9: =((COUNTIF(D10:H10,"<40")))-(BW9+BX9+BV9) -> 0 | BZ9: =((COUNTIF(D10:H10,"<50")))-(BX9+BY9+BW9+BV9) -> 2 | CB9: 0 | CC9: 1 | CD9: 1 | CE9: 0 | CF9: 1 | CG9: 0 | CH9: 0 | CI9: 0 | CJ9: 0 | CK9: 0 | CL9: 0 | CM9: 0 | CN9: 0 | CO9: 0 | CP9: 0 | CQ9: 0 | CR9: 0 | CS9: 0 | CT9: 0 | CU9: 0 | CV9: 0 | CW9: 0 | CX9: 1 | CY9: 0 | CZ9: 0 | DA9: 0 | DB9: 0 | DC9: 0 | DD9: 0 | DE9: 0 | DF9: 0 | DG9: 0 | DH9: 0 | DJ9: 0 | DK9: 0 | DL9: =COUNTIF((I10),$DL$1) -> 0 | DM9: =COUNTIF((I10),$DM$1) -> 0 | DN9: =COUNTIF((I10),$DN$1) -> 0 | DO9: =COUNTIF((I10),$DO$1) -> 0 | DP9: =COUNTIF((I10),$DP$1) -> 0 | DQ9: =COUNTIF((I10),$DQ$1) -> 0 | DR9: =COUNTIF((I10),$DR$1) -> 0 | DS9: =COUNTIF((I10),$DS$1) -> 0 | DT9: =COUNTIF((I10),$DT$1) -> 1 | DU9: =COUNTIF((I10),$DU$1) -> 0 | DW9: 0 | DX9: 1 | DY9: 1 | DZ9: 1 | EA9: 1 | EB9: 1 | EC9: 1 | ED9: 1 | EE9: 0 | EF9: 1 | EI9: 0 | EJ9: 1 | EK9: 1 | EL9: 1 | EM9: 1 | EN9: 1 | EO9: 1 | EP9: 1 | EQ9: 0 | ER9: 1 | ES9: =COUNTIF(I9,I10) -> 0 | ET9: =SUMPRODUCT(( MOD(I10,2)>0)*1) -> 1 | EU9: =IF((E10=D10+1)+(F10=E10+1)+(G10=F10+1)+(H10=G10+1),("1")*1,("")) ->  | EV9: 1 | EW9: =H10-D10 -> 31 | EX9: =(MID(D10,2,2)*1) -> 6 | EY9: =(MID(E10,2,1)*1) -> 4 | EZ9: =(MID(F10,2,1)*1) -> 6 | FA9: =(MID(G10,2,1)*1) -> 3 | FB9: =(MID(H10,2,1)*1) -> 7 | FC9: 0 | FD9: 1 | FE9: =I10 -> 9 | FF9: 0 | FG9: 0 | FH9: 0 | FI9: 0 | FJ9: 0 | FK9: =IF(E10=D10+1,("1")*1,("")) ->  | FL9: =IF(F10=E10+1,("1")*1,("")) ->  | FM9: =IF(G10=F10+1,("1")*1,("")) ->  | FN9: =IF(H10=G10+1,("1")*1,("")) ->  | FW9: =SUMPRODUCT(( MOD(D10,2)>0)*1) -> 0 | FX9: =SUMPRODUCT(( MOD(E10,2)>0)*1) -> 0 | FY9: =SUMPRODUCT(( MOD(F10,2)>0)*1) -> 0 | FZ9: =SUMPRODUCT(( MOD(G10,2)>0)*1) -> 1 | GA9: =SUMPRODUCT(( MOD(H10,2)>0)*1) -> 1 | GE9: 0 | GF9: 0 | GG9: 0 | GH9: 1 | GL9: 0 | GM9: 0 | GN9: 0 | GR9: 0 | GS9: 0 | GW9: 0 | HA9: 0 | HC9: en 2 | IF9: x | II9: x | IJ9: x | IK9: x | IL9: x | IM9: x | IN9: x | IO9: x | IP9: x | IQ9: x | IR9: x | IS9: x | JA9: =COUNTIF(D10,$JA$1)+(COUNTIF(E10,$JA$1)+(COUNTIF(F10,$JA$1)+(COUNTIF(G10,$JA$1)+(COUNTIF(H10,$JA$1))))) -> 0 | JB9: =COUNTIF(D10,$JB$1)+(COUNTIF(E10,$JB$1)+(COUNTIF(F10,$JB$1)+(COUNTIF(G10,$JB$1)+(COUNTIF(H10,$JB$1))))) -> 0 | JC9: =COUNTIF(D10,$JC$1)+(COUNTIF(E10,$JC$1)+(COUNTIF(F10,$JC$1)+(COUNTIF(G10,$JC$1)+(COUNTIF(H10,$JC$1))))) -> 0 | JD9: =COUNTIF(D10,$JD$1)+(COUNTIF(E10,$JD$1)+(COUNTIF(F10,$JD$1)+(COUNTIF(G10,$JD$1)+(COUNTIF(H10,$JD$1))))) -> 0 | JE9: =COUNTIF(D10,$JE$1)+(COUNTIF(E10,$JE$1)+(COUNTIF(F10,$JE$1)+(COUNTIF(G10,$JE$1)+(COUNTIF(H10,$JE$1))))) -> 0 | JF9: =COUNTIF(D10,$JF$1)+(COUNTIF(E10,$JF$1)+(COUNTIF(F10,$JF$1)+(COUNTIF(G10,$JF$1)+(COUNTIF(H10,$JF$1))))) -> 0 | JG9: =COUNTIF(D10,$JG$1)+(COUNTIF(E10,$JG$1)+(COUNTIF(F10,$JG$1)+(COUNTIF(G10,$JG$1)+(COUNTIF(H10,$JG$1))))) -> 0 | JH9: =COUNTIF(D10,$JH$1)+(COUNTIF(E10,$JH$1)+(COUNTIF(F10,$JH$1)+(COUNTIF(G10,$JH$1)+(COUNTIF(H10,$JH$1))))) -> 0 | JI9: =COUNTIF(D10,$JI$1)+(COUNTIF(E10,$JI$1)+(COUNTIF(F10,$JI$1)+(COUNTIF(G10,$JI$1)+(COUNTIF(H10,$JI$1))))) -> 0 | JJ9: =COUNTIF(D10,$JJ$1)+(COUNTIF(E10,$JJ$1)+(COUNTIF(F10,$JJ$1)+(COUNTIF(G10,$JJ$1)+(COUNTIF(H10,$JJ$1))))) -> 0 | JK9: =COUNTIF(D10,$JK$1)+(COUNTIF(E10,$JK$1)+(COUNTIF(F10,$JK$1)+(COUNTIF(G10,$JK$1)+(COUNTIF(H10,$JK$1))))) -> 0 | JL9: =COUNTIF(D10,$JL$1)+(COUNTIF(E10,$JL$1)+(COUNTIF(F10,$JL$1)+(COUNTIF(G10,$JL$1)+(COUNTIF(H10,$JL$1))))) -> 0 | JM9: =COUNTIF(D10,$JM$1)+(COUNTIF(E10,$JM$1)+(COUNTIF(F10,$JM$1)+(COUNTIF(G10,$JM$1)+(COUNTIF(H10,$JM$1))))) -> 0 | JN9: =COUNTIF(D10,$JN$1)+(COUNTIF(E10,$JN$1)+(COUNTIF(F10,$JN$1)+(COUNTIF(G10,$JN$1)+(COUNTIF(H10,$JN$1))))) -> 0 | JO9: =COUNTIF(D10,$JO$1)+(COUNTIF(E10,$JO$1)+(COUNTIF(F10,$JO$1)+(COUNTIF(G10,$JO$1)+(COUNTIF(H10,$JO$1))))) -> 0 | JP9: =COUNTIF(D10,$JP$1)+(COUNTIF(E10,$JP$1)+(COUNTIF(F10,$JP$1)+(COUNTIF(G10,$JP$1)+(COUNTIF(H10,$JP$1))))) -> 1 | JQ9: =COUNTIF(D10,$JQ$1)+(COUNTIF(E10,$JQ$1)+(COUNTIF(F10,$JQ$1)+(COUNTIF(G10,$JQ$1)+(COUNTIF(H10,$JQ$1))))) -> 0 | JR9: =COUNTIF(D10,$JR$1)+(COUNTIF(E10,$JR$1)+(COUNTIF(F10,$JR$1)+(COUNTIF(G10,$JR$1)+(COUNTIF(H10,$JR$1))))) -> 0 | JS9: =COUNTIF(D10,$JS$1)+(COUNTIF(E10,$JS$1)+(COUNTIF(F10,$JS$1)+(COUNTIF(G10,$JS$1)+(COUNTIF(H10,$JS$1))))) -> 0 | JT9: =COUNTIF(D10,$JT$1)+(COUNTIF(E10,$JT$1)+(COUNTIF(F10,$JT$1)+(COUNTIF(G10,$JT$1)+(COUNTIF(H10,$JT$1))))) -> 0 | JU9: =COUNTIF(D10,$JU$1)+(COUNTIF(E10,$JU$1)+(COUNTIF(F10,$JU$1)+(COUNTIF(G10,$JU$1)+(COUNTIF(H10,$JU$1))))) -> 0 | JV9: =COUNTIF(D10,$JV$1)+(COUNTIF(E10,$JV$1)+(COUNTIF(F10,$JV$1)+(COUNTIF(G10,$JV$1)+(COUNTIF(H10,$JV$1))))) -> 0 | JW9: =COUNTIF(D10,$JW$1)+(COUNTIF(E10,$JW$1)+(COUNTIF(F10,$JW$1)+(COUNTIF(G10,$JW$1)+(COUNTIF(H10,$JW$1))))) -> 0 | JX9: =COUNTIF(D10,$JX$1)+(COUNTIF(E10,$JX$1)+(COUNTIF(F10,$JX$1)+(COUNTIF(G10,$JX$1)+(COUNTIF(H10,$JX$1))))) -> 1 | JY9: =COUNTIF(D10,$JY$1)+(COUNTIF(E10,$JY$1)+(COUNTIF(F10,$JY$1)+(COUNTIF(G10,$JY$1)+(COUNTIF(H10,$JY$1))))) -> 0 | JZ9: =COUNTIF(D10,$JZ$1)+(COUNTIF(E10,$JZ$1)+(COUNTIF(F10,$JZ$1)+(COUNTIF(G10,$JZ$1)+(COUNTIF(H10,$JZ$1))))) -> 1 | KA9: =COUNTIF(D10,$KA$1)+(COUNTIF(E10,$KA$1)+(COUNTIF(F10,$KA$1)+(COUNTIF(G10,$KA$1)+(COUNTIF(H10,$KA$1))))) -> 0 | KB9: =COUNTIF(D10,$KB$1)+(COUNTIF(E10,$KB$1)+(COUNTIF(F10,$KB$1)+(COUNTIF(G10,$KB$1)+(COUNTIF(H10,$KB$1))))) -> 0 | KC9: =COUNTIF(D10,$KC$1)+(COUNTIF(E10,$KC$1)+(COUNTIF(F10,$KC$1)+(COUNTIF(G10,$KC$1)+(COUNTIF(H10,$KC$1))))) -> 0 | KD9: =COUNTIF(D10,$KD$1)+(COUNTIF(E10,$KD$1)+(COUNTIF(F10,$KD$1)+(COUNTIF(G10,$KD$1)+(COUNTIF(H10,$KD$1))))) -> 0 | KE9: =COUNTIF(D10,$KE$1)+(COUNTIF(E10,$KE$1)+(COUNTIF(F10,$KE$1)+(COUNTIF(G10,$KE$1)+(COUNTIF(H10,$KE$1))))) -> 0 | KF9: =COUNTIF(D10,$KF$1)+(COUNTIF(E10,$KF$1)+(COUNTIF(F10,$KF$1)+(COUNTIF(G10,$KF$1)+(COUNTIF(H10,$KF$1))))) -> 0 | KG9: =COUNTIF(D10,$KG$1)+(COUNTIF(E10,$KG$1)+(COUNTIF(F10,$KG$1)+(COUNTIF(G10,$KG$1)+(COUNTIF(H10,$KG$1))))) -> 0 | KH9: =COUNTIF(D10,$KH$1)+(COUNTIF(E10,$KH$1)+(COUNTIF(F10,$KH$1)+(COUNTIF(G10,$KH$1)+(COUNTIF(H10,$KH$1))))) -> 0 | KI9: =COUNTIF(D10,$KI$1)+(COUNTIF(E10,$KI$1)+(COUNTIF(F10,$KI$1)+(COUNTIF(G10,$KI$1)+(COUNTIF(H10,$KI$1))))) -> 0 | KJ9: =COUNTIF(D10,$KJ$1)+(COUNTIF(E10,$KJ$1)+(COUNTIF(F10,$KJ$1)+(COUNTIF(G10,$KJ$1)+(COUNTIF(H10,$KJ$1))))) -> 0 | KK9: =COUNTIF(D10,$KK$1)+(COUNTIF(E10,$KK$1)+(COUNTIF(F10,$KK$1)+(COUNTIF(G10,$KK$1)+(COUNTIF(H10,$KK$1))))) -> 0 | KL9: =COUNTIF(D10,$KL$1)+(COUNTIF(E10,$KL$1)+(COUNTIF(F10,$KL$1)+(COUNTIF(G10,$KL$1)+(COUNTIF(H10,$KL$1))))) -> 0 | KM9: =COUNTIF(D10,$KM$1)+(COUNTIF(E10,$KM$1)+(COUNTIF(F10,$KM$1)+(COUNTIF(G10,$KM$1)+(COUNTIF(H10,$KM$1))))) -> 0 | KN9: =COUNTIF(D10,$KN$1)+(COUNTIF(E10,$KN$1)+(COUNTIF(F10,$KN$1)+(COUNTIF(G10,$KN$1)+(COUNTIF(H10,$KN$1))))) -> 0 | KO9: =COUNTIF(D10,$KO$1)+(COUNTIF(E10,$KO$1)+(COUNTIF(F10,$KO$1)+(COUNTIF(G10,$KO$1)+(COUNTIF(H10,$KO$1))))) -> 0 | KP9: =COUNTIF(D10,$KP$1)+(COUNTIF(E10,$KP$1)+(COUNTIF(F10,$KP$1)+(COUNTIF(G10,$KP$1)+(COUNTIF(H10,$KP$1))))) -> 0 | KQ9: =COUNTIF(D10,$KQ$1)+(COUNTIF(E10,$KQ$1)+(COUNTIF(F10,$KQ$1)+(COUNTIF(G10,$KQ$1)+(COUNTIF(H10,$KQ$1))))) -> 1 | KR9: =COUNTIF(D10,$KR$1)+(COUNTIF(E10,$KR$1)+(COUNTIF(F10,$KR$1)+(COUNTIF(G10,$KR$1)+(COUNTIF(H10,$KR$1))))) -> 0 | KS9: =COUNTIF(D10,$KS$1)+(COUNTIF(E10,$KS$1)+(COUNTIF(F10,$KS$1)+(COUNTIF(G10,$KS$1)+(COUNTIF(H10,$KS$1))))) -> 0 | KT9: =COUNTIF(D10,$KT$1)+(COUNTIF(E10,$KT$1)+(COUNTIF(F10,$KT$1)+(COUNTIF(G10,$KT$1)+(COUNTIF(H10,$KT$1))))) -> 0 | KU9: =COUNTIF(D10,$KU$1)+(COUNTIF(E10,$KU$1)+(COUNTIF(F10,$KU$1)+(COUNTIF(G10,$KU$1)+(COUNTIF(H10,$KU$1))))) -> 1 | KV9: =COUNTIF(D10,$KV$1)+(COUNTIF(E10,$KV$1)+(COUNTIF(F10,$KV$1)+(COUNTIF(G10,$KV$1)+(COUNTIF(H10,$KV$1))))) -> 0 | KW9: =COUNTIF(D10,$KW$1)+(COUNTIF(E10,$KW$1)+(COUNTIF(F10,$KW$1)+(COUNTIF(G10,$KW$1)+(COUNTIF(H10,$KW$1))))) -> 0
A10: 402 | B10: MERCREDI | C10: 2022-06-29 | D10: 16 | E10: 24 | F10: 26 | G10: 43 | H10: 47 | I10: 9 | J10: 7 | K10: h | L10: =COUNTIF(M9:P9,">0") -> 2 | M10: =_xlfn.LET(_xlpm.comp,RIGHT(D11:H11,1),_xlfn._xlws.FILTER(D11:H11,_xlfn.XMATCH(_xlpm.comp,_xlpm.comp)<>_xlfn.XMATCH(_xlpm.comp,_xlpm.comp,,-1))) -> 22 | N10: 32 | Q10: =COUNTIF(D10:H10,D11:H11) -> 0 | R10: 0 | S10: 0 | T10: 0 | U10: 0 | V10: =IF(AND(W10>69,W10<164,OR(X10={1;2;3;4})),1,0) -> 0 | W10: =D11+E11+F11+G11+H11 -> 154 | X10: =SUMPRODUCT(( MOD(D11:H11,2)>0)*1) -> 0 | Y10: 0 | Z10: 2 | AA10: 0 | AB10: 1 | AC10: 0 | AD10: 1 | AE10: 0 | AF10: 0 | AG10: 0 | AH10: 1 | AI10: =COUNTIF(($D11:$H11),AI$1) -> 0 | AJ10: =COUNTIF(($D11:$H11),AJ$1) -> 0 | AK10: =COUNTIF(($D11:$H11),AK$1) -> 0 | AL10: =COUNTIF(($D11:$H11),AL$1) -> 0 | AM10: =COUNTIF(($D11:$H11),AM$1) -> 0 | AN10: =COUNTIF(($D11:$H11),AN$1) -> 0 | AO10: =COUNTIF(($D11:$H11),AO$1) -> 0 | AP10: =COUNTIF(($D11:$H11),AP$1) -> 0 | AQ10: =COUNTIF(($D11:$H11),AQ$1) -> 0 | AR10: =COUNTIF(($D11:$H11),AR$1) -> 1 | AS10: =COUNTIF(($D11:$H11),AS$1) -> 0 | AT10: =COUNTIF(($D11:$H11),AT$1) -> 1 | AU10: =COUNTIF(($D11:$H11),AU$1) -> 0 | AV10: =COUNTIF(($D11:$H11),AV$1) -> 0 | AW10: =COUNTIF(($D11:$H11),AW$1) -> 0 | AX10: =COUNTIF(($D11:$H11),AX$1) -> 0 | AY10: =COUNTIF(($D11:$H11),AY$1) -> 0 | AZ10: =COUNTIF(($D11:$H11),AZ$1) -> 0 | BA10: =COUNTIF(($D11:$H11),BA$1) -> 0 | BB10: =COUNTIF(($D11:$H11),BB$1) -> 0 | BC10: =COUNTIF(($D11:$H11),BC$1) -> 0 | BD10: =COUNTIF(($D11:$H11),BD$1) -> 1 | BE10: =COUNTIF(($D11:$H11),BE$1) -> 0 | BF10: =COUNTIF(($D11:$H11),BF$1) -> 1 | BG10: =COUNTIF(($D11:$H11),BG$1) -> 0 | BH10: =COUNTIF(($D11:$H11),BH$1) -> 0 | BI10: =COUNTIF((D11:H11),BI$1) -> 0 | BJ10: =COUNTIF((D11:H11),BJ$1) -> 0 | BK10: =COUNTIF((D11:H11),BK$1) -> 0 | BL10: =COUNTIF((D11:H11),BL$1) -> 0 | BM10: =COUNTIF((D11:H11),BM$1) -> 0 | BN10: =COUNTIF((D11:H11),BN$1) -> 0 | BO10: =COUNTIF((D11:H11),BO$1) -> 0 | BP10: =COUNTIF((D11:H11),BP$1) -> 0 | BQ10: =COUNTIF((D11:H11),BQ$1) -> 0 | BR10: =COUNTIF((D11:H11),BR$1) -> 1 | BS10: =COUNTIF((D11:H11),BS$1) -> 0 | BT10: =COUNTIF((D11:H11),BT$1) -> 0 | BU10: =COUNTIF((D11:H11),BU$1) -> 0 | BV10: =COUNTIF(D11:H11,"<10") -> 0 | BW10: =(COUNTIF(D11:H11,"<20")-BV10) -> 0 | BX10: =((COUNTIF(D11:H11,"<30")))-(BV10+BW10) -> 2 | BY10: =((COUNTIF(D11:H11,"<40")))-(BW10+BX10+BV10) -> 2 | BZ10: =((COUNTIF(D11:H11,"<50")))-(BX10+BY10+BW10+BV10) -> 1 | CB10: 0 | CC10: 0 | CD10: 1 | CE10: 1 | CF10: 1 | CG10: 0 | CH10: 0 | CI10: 0 | CJ10: 0 | CK10: 0 | CL10: 0 | CM10: 0 | CN10: 1 | CO10: 0 | CP10: 0 | CQ10: 0 | CR10: 0 | CS10: 0 | CT10: 0 | CU10: 0 | CV10: 0 | CW10: 0 | CX10: 0 | CY10: 0 | CZ10: 0 | DA10: 0 | DB10: 0 | DC10: 0 | DD10: 0 | DE10: 0 | DF10: 0 | DG10: 0 | DH10: 0 | DJ10: 0 | DK10: 0 | DL10: =COUNTIF((I11),$DL$1) -> 0 | DM10: =COUNTIF((I11),$DM$1) -> 0 | DN10: =COUNTIF((I11),$DN$1) -> 0 | DO10: =COUNTIF((I11),$DO$1) -> 0 | DP10: =COUNTIF((I11),$DP$1) -> 0 | DQ10: =COUNTIF((I11),$DQ$1) -> 0 | DR10: =COUNTIF((I11),$DR$1) -> 0 | DS10: =COUNTIF((I11),$DS$1) -> 0 | DT10: =COUNTIF((I11),$DT$1) -> 1 | DU10: =COUNTIF((I11),$DU$1) -> 0 | DW10: 1 | DX10: 1 | DY10: 1 | DZ10: 1 | EA10: 1 | EB10: 1 | EC10: 1 | ED10: 1 | EE10: 1 | EF10: 1 | EI10: 1 | EJ10: 1 | EK10: 1 | EL10: 1 | EM10: 1 | EN10: 1 | EO10: 1 | EP10: 1 | EQ10: 1 | ER10: 1 | ES10: =COUNTIF(I10,I11) -> 1 | ET10: =SUMPRODUCT(( MOD(I11,2)>0)*1) -> 1 | EU10: =IF((E11=D11+1)+(F11=E11+1)+(G11=F11+1)+(H11=G11+1),("1")*1,("")) ->  | EV10: 1 | EW10: =H11-D11 -> 26 | EX10: =(MID(D11,2,2)*1) -> 0 | EY10: =(MID(E11,2,1)*1) -> 2 | EZ10: =(MID(F11,2,1)*1) -> 2 | FA10: =(MID(G11,2,1)*1) -> 4 | FB10: =(MID(H11,2,1)*1) -> 6 | FC10: 0 | FD10: 1 | FE10: =I11 -> 9 | FF10: 0 | FG10: 0 | FH10: 0 | FI10: 0 | FJ10: 0 | FK10: =IF(E11=D11+1,("1")*1,("")) ->  | FL10: =IF(F11=E11+1,("1")*1,("")) ->  | FM10: =IF(G11=F11+1,("1")*1,("")) ->  | FN10: =IF(H11=G11+1,("1")*1,("")) ->  | FW10: =SUMPRODUCT(( MOD(D11,2)>0)*1) -> 0 | FX10: =SUMPRODUCT(( MOD(E11,2)>0)*1) -> 0 | FY10: =SUMPRODUCT(( MOD(F11,2)>0)*1) -> 0 | FZ10: =SUMPRODUCT(( MOD(G11,2)>0)*1) -> 0 | GA10: =SUMPRODUCT(( MOD(H11,2)>0)*1) -> 0 | GE10: 0 | GF10: 0 | GG10: 0 | GH10: 0 | GL10: 0 | GM10: 0 | GN10: 0 | GR10: 0 | GS10: 0 | GW10: 0 | HA10: 1 | HC10: en 3 | HF10: x | HG10: x | HH10: x | HI10: x | HJ10: x | HK10: x | HL10: x | JA10: =COUNTIF(D11,$JA$1)+(COUNTIF(E11,$JA$1)+(COUNTIF(F11,$JA$1)+(COUNTIF(G11,$JA$1)+(COUNTIF(H11,$JA$1))))) -> 0 | JB10: =COUNTIF(D11,$JB$1)+(COUNTIF(E11,$JB$1)+(COUNTIF(F11,$JB$1)+(COUNTIF(G11,$JB$1)+(COUNTIF(H11,$JB$1))))) -> 0 | JC10: =COUNTIF(D11,$JC$1)+(COUNTIF(E11,$JC$1)+(COUNTIF(F11,$JC$1)+(COUNTIF(G11,$JC$1)+(COUNTIF(H11,$JC$1))))) -> 0 | JD10: =COUNTIF(D11,$JD$1)+(COUNTIF(E11,$JD$1)+(COUNTIF(F11,$JD$1)+(COUNTIF(G11,$JD$1)+(COUNTIF(H11,$JD$1))))) -> 0 | JE10: =COUNTIF(D11,$JE$1)+(COUNTIF(E11,$JE$1)+(COUNTIF(F11,$JE$1)+(COUNTIF(G11,$JE$1)+(COUNTIF(H11,$JE$1))))) -> 0 | JF10: =COUNTIF(D11,$JF$1)+(COUNTIF(E11,$JF$1)+(COUNTIF(F11,$JF$1)+(COUNTIF(G11,$JF$1)+(COUNTIF(H11,$JF$1))))) -> 0 | JG10: =COUNTIF(D11,$JG$1)+(COUNTIF(E11,$JG$1)+(COUNTIF(F11,$JG$1)+(COUNTIF(G11,$JG$1)+(COUNTIF(H11,$JG$1))))) -> 0 | JH10: =COUNTIF(D11,$JH$1)+(COUNTIF(E11,$JH$1)+(COUNTIF(F11,$JH$1)+(COUNTIF(G11,$JH$1)+(COUNTIF(H11,$JH$1))))) -> 0 | JI10: =COUNTIF(D11,$JI$1)+(COUNTIF(E11,$JI$1)+(COUNTIF(F11,$JI$1)+(COUNTIF(G11,$JI$1)+(COUNTIF(H11,$JI$1))))) -> 0 | JJ10: =COUNTIF(D11,$JJ$1)+(COUNTIF(E11,$JJ$1)+(COUNTIF(F11,$JJ$1)+(COUNTIF(G11,$JJ$1)+(COUNTIF(H11,$JJ$1))))) -> 0 | JK10: =COUNTIF(D11,$JK$1)+(COUNTIF(E11,$JK$1)+(COUNTIF(F11,$JK$1)+(COUNTIF(G11,$JK$1)+(COUNTIF(H11,$JK$1))))) -> 0 | JL10: =COUNTIF(D11,$JL$1)+(COUNTIF(E11,$JL$1)+(COUNTIF(F11,$JL$1)+(COUNTIF(G11,$JL$1)+(COUNTIF(H11,$JL$1))))) -> 0 | JM10: =COUNTIF(D11,$JM$1)+(COUNTIF(E11,$JM$1)+(COUNTIF(F11,$JM$1)+(COUNTIF(G11,$JM$1)+(COUNTIF(H11,$JM$1))))) -> 0 | JN10: =COUNTIF(D11,$JN$1)+(COUNTIF(E11,$JN$1)+(COUNTIF(F11,$JN$1)+(COUNTIF(G11,$JN$1)+(COUNTIF(H11,$JN$1))))) -> 0 | JO10: =COUNTIF(D11,$JO$1)+(COUNTIF(E11,$JO$1)+(COUNTIF(F11,$JO$1)+(COUNTIF(G11,$JO$1)+(COUNTIF(H11,$JO$1))))) -> 0 | JP10: =COUNTIF(D11,$JP$1)+(COUNTIF(E11,$JP$1)+(COUNTIF(F11,$JP$1)+(COUNTIF(G11,$JP$1)+(COUNTIF(H11,$JP$1))))) -> 0 | JQ10: =COUNTIF(D11,$JQ$1)+(COUNTIF(E11,$JQ$1)+(COUNTIF(F11,$JQ$1)+(COUNTIF(G11,$JQ$1)+(COUNTIF(H11,$JQ$1))))) -> 0 | JR10: =COUNTIF(D11,$JR$1)+(COUNTIF(E11,$JR$1)+(COUNTIF(F11,$JR$1)+(COUNTIF(G11,$JR$1)+(COUNTIF(H11,$JR$1))))) -> 0 | JS10: =COUNTIF(D11,$JS$1)+(COUNTIF(E11,$JS$1)+(COUNTIF(F11,$JS$1)+(COUNTIF(G11,$JS$1)+(COUNTIF(H11,$JS$1))))) -> 0 | JT10: =COUNTIF(D11,$JT$1)+(COUNTIF(E11,$JT$1)+(COUNTIF(F11,$JT$1)+(COUNTIF(G11,$JT$1)+(COUNTIF(H11,$JT$1))))) -> 1 | JU10: =COUNTIF(D11,$JU$1)+(COUNTIF(E11,$JU$1)+(COUNTIF(F11,$JU$1)+(COUNTIF(G11,$JU$1)+(COUNTIF(H11,$JU$1))))) -> 0 | JV10: =COUNTIF(D11,$JV$1)+(COUNTIF(E11,$JV$1)+(COUNTIF(F11,$JV$1)+(COUNTIF(G11,$JV$1)+(COUNTIF(H11,$JV$1))))) -> 1 | JW10: =COUNTIF(D11,$JW$1)+(COUNTIF(E11,$JW$1)+(COUNTIF(F11,$JW$1)+(COUNTIF(G11,$JW$1)+(COUNTIF(H11,$JW$1))))) -> 0 | JX10: =COUNTIF(D11,$JX$1)+(COUNTIF(E11,$JX$1)+(COUNTIF(F11,$JX$1)+(COUNTIF(G11,$JX$1)+(COUNTIF(H11,$JX$1))))) -> 0 | JY10: =COUNTIF(D11,$JY$1)+(COUNTIF(E11,$JY$1)+(COUNTIF(F11,$JY$1)+(COUNTIF(G11,$JY$1)+(COUNTIF(H11,$JY$1))))) -> 0 | JZ10: =COUNTIF(D11,$JZ$1)+(COUNTIF(E11,$JZ$1)+(COUNTIF(F11,$JZ$1)+(COUNTIF(G11,$JZ$1)+(COUNTIF(H11,$JZ$1))))) -> 0 | KA10: =COUNTIF(D11,$KA$1)+(COUNTIF(E11,$KA$1)+(COUNTIF(F11,$KA$1)+(COUNTIF(G11,$KA$1)+(COUNTIF(H11,$KA$1))))) -> 0 | KB10: =COUNTIF(D11,$KB$1)+(COUNTIF(E11,$KB$1)+(COUNTIF(F11,$KB$1)+(COUNTIF(G11,$KB$1)+(COUNTIF(H11,$KB$1))))) -> 0 | KC10: =COUNTIF(D11,$KC$1)+(COUNTIF(E11,$KC$1)+(COUNTIF(F11,$KC$1)+(COUNTIF(G11,$KC$1)+(COUNTIF(H11,$KC$1))))) -> 0 | KD10: =COUNTIF(D11,$KD$1)+(COUNTIF(E11,$KD$1)+(COUNTIF(F11,$KD$1)+(COUNTIF(G11,$KD$1)+(COUNTIF(H11,$KD$1))))) -> 0 | KE10: =COUNTIF(D11,$KE$1)+(COUNTIF(E11,$KE$1)+(COUNTIF(F11,$KE$1)+(COUNTIF(G11,$KE$1)+(COUNTIF(H11,$KE$1))))) -> 0 | KF10: =COUNTIF(D11,$KF$1)+(COUNTIF(E11,$KF$1)+(COUNTIF(F11,$KF$1)+(COUNTIF(G11,$KF$1)+(COUNTIF(H11,$KF$1))))) -> 1 | KG10: =COUNTIF(D11,$KG$1)+(COUNTIF(E11,$KG$1)+(COUNTIF(F11,$KG$1)+(COUNTIF(G11,$KG$1)+(COUNTIF(H11,$KG$1))))) -> 0 | KH10: =COUNTIF(D11,$KH$1)+(COUNTIF(E11,$KH$1)+(COUNTIF(F11,$KH$1)+(COUNTIF(G11,$KH$1)+(COUNTIF(H11,$KH$1))))) -> 1 | KI10: =COUNTIF(D11,$KI$1)+(COUNTIF(E11,$KI$1)+(COUNTIF(F11,$KI$1)+(COUNTIF(G11,$KI$1)+(COUNTIF(H11,$KI$1))))) -> 0 | KJ10: =COUNTIF(D11,$KJ$1)+(COUNTIF(E11,$KJ$1)+(COUNTIF(F11,$KJ$1)+(COUNTIF(G11,$KJ$1)+(COUNTIF(H11,$KJ$1))))) -> 0 | KK10: =COUNTIF(D11,$KK$1)+(COUNTIF(E11,$KK$1)+(COUNTIF(F11,$KK$1)+(COUNTIF(G11,$KK$1)+(COUNTIF(H11,$KK$1))))) -> 0 | KL10: =COUNTIF(D11,$KL$1)+(COUNTIF(E11,$KL$1)+(COUNTIF(F11,$KL$1)+(COUNTIF(G11,$KL$1)+(COUNTIF(H11,$KL$1))))) -> 0 | KM10: =COUNTIF(D11,$KM$1)+(COUNTIF(E11,$KM$1)+(COUNTIF(F11,$KM$1)+(COUNTIF(G11,$KM$1)+(COUNTIF(H11,$KM$1))))) -> 0 | KN10: =COUNTIF(D11,$KN$1)+(COUNTIF(E11,$KN$1)+(COUNTIF(F11,$KN$1)+(COUNTIF(G11,$KN$1)+(COUNTIF(H11,$KN$1))))) -> 0 | KO10: =COUNTIF(D11,$KO$1)+(COUNTIF(E11,$KO$1)+(COUNTIF(F11,$KO$1)+(COUNTIF(G11,$KO$1)+(COUNTIF(H11,$KO$1))))) -> 0 | KP10: =COUNTIF(D11,$KP$1)+(COUNTIF(E11,$KP$1)+(COUNTIF(F11,$KP$1)+(COUNTIF(G11,$KP$1)+(COUNTIF(H11,$KP$1))))) -> 0 | KQ10: =COUNTIF(D11,$KQ$1)+(COUNTIF(E11,$KQ$1)+(COUNTIF(F11,$KQ$1)+(COUNTIF(G11,$KQ$1)+(COUNTIF(H11,$KQ$1))))) -> 0 | KR10: =COUNTIF(D11,$KR$1)+(COUNTIF(E11,$KR$1)+(COUNTIF(F11,$KR$1)+(COUNTIF(G11,$KR$1)+(COUNTIF(H11,$KR$1))))) -> 0 | KS10: =COUNTIF(D11,$KS$1)+(COUNTIF(E11,$KS$1)+(COUNTIF(F11,$KS$1)+(COUNTIF(G11,$KS$1)+(COUNTIF(H11,$KS$1))))) -> 0 | KT10: =COUNTIF(D11,$KT$1)+(COUNTIF(E11,$KT$1)+(COUNTIF(F11,$KT$1)+(COUNTIF(G11,$KT$1)+(COUNTIF(H11,$KT$1))))) -> 1 | KU10: =COUNTIF(D11,$KU$1)+(COUNTIF(E11,$KU$1)+(COUNTIF(F11,$KU$1)+(COUNTIF(G11,$KU$1)+(COUNTIF(H11,$KU$1))))) -> 0 | KV10: =COUNTIF(D11,$KV$1)+(COUNTIF(E11,$KV$1)+(COUNTIF(F11,$KV$1)+(COUNTIF(G11,$KV$1)+(COUNTIF(H11,$KV$1))))) -> 0 | KW10: =COUNTIF(D11,$KW$1)+(COUNTIF(E11,$KW$1)+(COUNTIF(F11,$KW$1)+(COUNTIF(G11,$KW$1)+(COUNTIF(H11,$KW$1))))) -> 0
A11: 401 | B11: SAMEDI | C11: 2022-07-02 | D11: 20 | E11: 22 | F11: 32 | G11: 34 | H11: 46 | I11: 9 | J11: 6 | K11: g | L11: =COUNTIF(M10:P10,">0") -> 2 | M11: =_xlfn.LET(_xlpm.comp,RIGHT(D12:H12,1),_xlfn._xlws.FILTER(D12:H12,_xlfn.XMATCH(_xlpm.comp,_xlpm.comp)<>_xlfn.XMATCH(_xlpm.comp,_xlpm.comp,,-1))) ->  | Q11: =COUNTIF(D11:H11,D12:H12) -> 0 | R11: 0 | S11: 0 | T11: 1 | U11: 0 | V11: =IF(AND(W11>69,W11<164,OR(X11={1;2;3;4})),1,0) -> 0 | W11: =D12+E12+F12+G12+H12 -> 80 | X11: =SUMPRODUCT(( MOD(D12:H12,2)>0)*1) -> 0 | Y11: 0 | Z11: 1 | AA11: 0 | AB11: 1 | AC11: 0 | AD11: 1 | AE11: 0 | AF11: 1 | AG11: 0 | AH11: 1 | AI11: =COUNTIF(($D12:$H12),AI$1) -> 0 | AJ11: =COUNTIF(($D12:$H12),AJ$1) -> 1 | AK11: =COUNTIF(($D12:$H12),AK$1) -> 0 | AL11: =COUNTIF(($D12:$H12),AL$1) -> 0 | AM11: =COUNTIF(($D12:$H12),AM$1) -> 0 | AN11: =COUNTIF(($D12:$H12),AN$1) -> 0 | AO11: =COUNTIF(($D12:$H12),AO$1) -> 0 | AP11: =COUNTIF(($D12:$H12),AP$1) -> 1 | AQ11: =COUNTIF(($D12:$H12),AQ$1) -> 0 | AR11: =COUNTIF(($D12:$H12),AR$1) -> 1 | AS11: =COUNTIF(($D12:$H12),AS$1) -> 0 | AT11: =COUNTIF(($D12:$H12),AT$1) -> 0 | AU11: =COUNTIF(($D12:$H12),AU$1) -> 0 | AV11: =COUNTIF(($D12:$H12),AV$1) -> 0 | AW11: =COUNTIF(($D12:$H12),AW$1) -> 0 | AX11: =COUNTIF(($D12:$H12),AX$1) -> 1 | AY11: =COUNTIF(($D12:$H12),AY$1) -> 0 | AZ11: =COUNTIF(($D12:$H12),AZ$1) -> 0 | BA11: =COUNTIF(($D12:$H12),BA$1) -> 0 | BB11: =COUNTIF(($D12:$H12),BB$1) -> 0 | BC11: =COUNTIF(($D12:$H12),BC$1) -> 0 | BD11: =COUNTIF(($D12:$H12),BD$1) -> 0 | BE11: =COUNTIF(($D12:$H12),BE$1) -> 0 | BF11: =COUNTIF(($D12:$H12),BF$1) -> 0 | BG11: =COUNTIF(($D12:$H12),BG$1) -> 0 | BH11: =COUNTIF(($D12:$H12),BH$1) -> 0 | BI11: =COUNTIF((D12:H12),BI$1) -> 0 | BJ11: =COUNTIF((D12:H12),BJ$1) -> 0 | BK11: =COUNTIF((D12:H12),BK$1) -> 0 | BL11: =COUNTIF((D12:H12),BL$1) -> 0 | BM11: =COUNTIF((D12:H12),BM$1) -> 0 | BN11: =COUNTIF((D12:H12),BN$1) -> 0 | BO11: =COUNTIF((D12:H12),BO$1) -> 0 | BP11: =COUNTIF((D12:H12),BP$1) -> 0 | BQ11: =COUNTIF((D12:H12),BQ$1) -> 0 | BR11: =COUNTIF((D12:H12),BR$1) -> 0 | BS11: =COUNTIF((D12:H12),BS$1) -> 0 | BT11: =COUNTIF((D12:H12),BT$1) -> 0 | BU11: =COUNTIF((D12:H12),BU$1) -> 0 | BV11: =COUNTIF(D12:H12,"<10") -> 1 | BW11: =(COUNTIF(D12:H12,"<20")-BV11) -> 2 | BX11: =((COUNTIF(D12:H12,"<30")))-(BV11+BW11) -> 2 | BY11: =((COUNTIF(D12:H12,"<40")))-(BW11+BX11+BV11) -> 0 | BZ11: =((COUNTIF(D12:H12,"<50")))-(BX11+BY11+BW11+BV11) -> 0 | CB11: 1 | CC11: 1 | CD11: 1 | CE11: 0 | CF11: 0 | CG11: 0 | CH11: 0 | CI11: 0 | CJ11: 0 | CK11: 0 | CL11: 0 | CM11: 0 | CN11: 0 | CO11: 0 | CP11: 0 | CQ11: 1 | CR11: 0 | CS11: 0 | CT11: 0 | CU11: 0 | CV11: 0 | CW11: 0 | CX11: 0 | CY11: 0 | CZ11: 0 | DA11: 0 | DB11: 0 | DC11: 0 | DD11: 0 | DE11: 0 | DF11: 0 | DG11: 0 | DH11: 0 | DJ11: 0 | DK11: 0 | DL11: =COUNTIF((I12),$DL$1) -> 0 | DM11: =COUNTIF((I12),$DM$1) -> 0 | DN11: =COUNTIF((I12),$DN$1) -> 0 | DO11: =COUNTIF((I12),$DO$1) -> 0 | DP11: =COUNTIF((I12),$DP$1) -> 0 | DQ11: =COUNTIF((I12),$DQ$1) -> 0 | DR11: =COUNTIF((I12),$DR$1) -> 0 | DS11: =COUNTIF((I12),$DS$1) -> 1 | DT11: =COUNTIF((I12),$DT$1) -> 0 | DU11: =COUNTIF((I12),$DU$1) -> 0 | DW11: 1 | DX11: 1 | DY11: 1 | DZ11: 1 | EA11: 1 | EB11: 1 | EC11: 1 | ED11: 0 | EE11: 0 | EF11: 1 | EI11: 1 | EJ11: 1 | EK11: 1 | EL11: 1 | EM11: 1 | EN11: 1 | EO11: 1 | EP11: 0 | EQ11: 0 | ER11: 1 | ES11: =COUNTIF(I11,I12) -> 0 | ET11: =SUMPRODUCT(( MOD(I12,2)>0)*1) -> 0 | EU11: =IF((E12=D12+1)+(F12=E12+1)+(G12=F12+1)+(H12=G12+1),("1")*1,("")) ->  | EW11: =H12-D12 -> 22 | EX11: =(MID(D12,1,2)*1) -> 4 | EY11: =(MID(E12,2,1)*1) -> 2 | EZ11: =(MID(F12,2,1)*1) -> 8 | FA11: =(MID(G12,2,1)*1) -> 0 | FB11: =(MID(H12,2,1)*1) -> 6 | FC11: 1 | FD11: 1 | FE11: =I12 -> 8 | FF11: 0 | FG11: 0 | FH11: 1 | FI11: 0 | FJ11: 0 | FK11: =IF(E12=D12+1,("1")*1,("")) ->  | FL11: =IF(F12=E12+1,("1")*1,("")) ->  | FM11: =IF(G12=F12+1,("1")*1,("")) ->  | FN11: =IF(H12=G12+1,("1")*1,("")) ->  | FW11: =SUMPRODUCT(( MOD(D12,2)>0)*1) -> 0 | FX11: =SUMPRODUCT(( MOD(E12,2)>0)*1) -> 0 | FY11: =SUMPRODUCT(( MOD(F12,2)>0)*1) -> 0 | FZ11: =SUMPRODUCT(( MOD(G12,2)>0)*1) -> 0 | GA11: =SUMPRODUCT(( MOD(H12,2)>0)*1) -> 0 | GE11: 0 | GF11: 0 | GG11: 0 | GH11: 0 | GL11: 0 | GM11: 0 | GN11: 0 | GR11: 0 | GS11: 0 | GW11: 0 | HA11: 1 | HC11: en 4 | HG11: x | HH11: x | HI11: x | HJ11: x | HK11: x | HL11: x | HM11: x | HN11: x | HO11: x | HQ11: x | HR11: x | HU11: x | JA11: =COUNTIF(D12,$JA$1)+(COUNTIF(E12,$JA$1)+(COUNTIF(F12,$JA$1)+(COUNTIF(G12,$JA$1)+(COUNTIF(H12,$JA$1))))) -> 0 | JB11: =COUNTIF(D12,$JB$1)+(COUNTIF(E12,$JB$1)+(COUNTIF(F12,$JB$1)+(COUNTIF(G12,$JB$1)+(COUNTIF(H12,$JB$1))))) -> 0 | JC11: =COUNTIF(D12,$JC$1)+(COUNTIF(E12,$JC$1)+(COUNTIF(F12,$JC$1)+(COUNTIF(G12,$JC$1)+(COUNTIF(H12,$JC$1))))) -> 0 | JD11: =COUNTIF(D12,$JD$1)+(COUNTIF(E12,$JD$1)+(COUNTIF(F12,$JD$1)+(COUNTIF(G12,$JD$1)+(COUNTIF(H12,$JD$1))))) -> 1 | JE11: =COUNTIF(D12,$JE$1)+(COUNTIF(E12,$JE$1)+(COUNTIF(F12,$JE$1)+(COUNTIF(G12,$JE$1)+(COUNTIF(H12,$JE$1))))) -> 0 | JF11: =COUNTIF(D12,$JF$1)+(COUNTIF(E12,$JF$1)+(COUNTIF(F12,$JF$1)+(COUNTIF(G12,$JF$1)+(COUNTIF(H12,$JF$1))))) -> 0 | JG11: =COUNTIF(D12,$JG$1)+(COUNTIF(E12,$JG$1)+(COUNTIF(F12,$JG$1)+(COUNTIF(G12,$JG$1)+(COUNTIF(H12,$JG$1))))) -> 0 | JH11: =COUNTIF(D12,$JH$1)+(COUNTIF(E12,$JH$1)+(COUNTIF(F12,$JH$1)+(COUNTIF(G12,$JH$1)+(COUNTIF(H12,$JH$1))))) -> 0 | JI11: =COUNTIF(D12,$JI$1)+(COUNTIF(E12,$JI$1)+(COUNTIF(F12,$JI$1)+(COUNTIF(G12,$JI$1)+(COUNTIF(H12,$JI$1))))) -> 0 | JJ11: =COUNTIF(D12,$JJ$1)+(COUNTIF(E12,$JJ$1)+(COUNTIF(F12,$JJ$1)+(COUNTIF(G12,$JJ$1)+(COUNTIF(H12,$JJ$1))))) -> 0 | JK11: =COUNTIF(D12,$JK$1)+(COUNTIF(E12,$JK$1)+(COUNTIF(F12,$JK$1)+(COUNTIF(G12,$JK$1)+(COUNTIF(H12,$JK$1))))) -> 0 | JL11: =COUNTIF(D12,$JL$1)+(COUNTIF(E12,$JL$1)+(COUNTIF(F12,$JL$1)+(COUNTIF(G12,$JL$1)+(COUNTIF(H12,$JL$1))))) -> 1 | JM11: =COUNTIF(D12,$JM$1)+(COUNTIF(E12,$JM$1)+(COUNTIF(F12,$JM$1)+(COUNTIF(G12,$JM$1)+(COUNTIF(H12,$JM$1))))) -> 0 | JN11: =COUNTIF(D12,$JN$1)+(COUNTIF(E12,$JN$1)+(COUNTIF(F12,$JN$1)+(COUNTIF(G12,$JN$1)+(COUNTIF(H12,$JN$1))))) -> 0 | JO11: =COUNTIF(D12,$JO$1)+(COUNTIF(E12,$JO$1)+(COUNTIF(F12,$JO$1)+(COUNTIF(G12,$JO$1)+(COUNTIF(H12,$JO$1))))) -> 0 | JP11: =COUNTIF(D12,$JP$1)+(COUNTIF(E12,$JP$1)+(COUNTIF(F12,$JP$1)+(COUNTIF(G12,$JP$1)+(COUNTIF(H12,$JP$1))))) -> 0 | JQ11: =COUNTIF(D12,$JQ$1)+(COUNTIF(E12,$JQ$1)+(COUNTIF(F12,$JQ$1)+(COUNTIF(G12,$JQ$1)+(COUNTIF(H12,$JQ$1))))) -> 0 | JR11: =COUNTIF(D12,$JR$1)+(COUNTIF(E12,$JR$1)+(COUNTIF(F12,$JR$1)+(COUNTIF(G12,$JR$1)+(COUNTIF(H12,$JR$1))))) -> 1 | JS11: =COUNTIF(D12,$JS$1)+(COUNTIF(E12,$JS$1)+(COUNTIF(F12,$JS$1)+(COUNTIF(G12,$JS$1)+(COUNTIF(H12,$JS$1))))) -> 0 | JT11: =COUNTIF(D12,$JT$1)+(COUNTIF(E12,$JT$1)+(COUNTIF(F12,$JT$1)+(COUNTIF(G12,$JT$1)+(COUNTIF(H12,$JT$1))))) -> 1 | JU11: =COUNTIF(D12,$JU$1)+(COUNTIF(E12,$JU$1)+(COUNTIF(F12,$JU$1)+(COUNTIF(G12,$JU$1)+(COUNTIF(H12,$JU$1))))) -> 0 | JV11: =COUNTIF(D12,$JV$1)+(COUNTIF(E12,$JV$1)+(COUNTIF(F12,$JV$1)+(COUNTIF(G12,$JV$1)+(COUNTIF(H12,$JV$1))))) -> 0 | JW11: =COUNTIF(D12,$JW$1)+(COUNTIF(E12,$JW$1)+(COUNTIF(F12,$JW$1)+(COUNTIF(G12,$JW$1)+(COUNTIF(H12,$JW$1))))) -> 0 | JX11: =COUNTIF(D12,$JX$1)+(COUNTIF(E12,$JX$1)+(COUNTIF(F12,$JX$1)+(COUNTIF(G12,$JX$1)+(COUNTIF(H12,$JX$1))))) -> 0 | JY11: =COUNTIF(D12,$JY$1)+(COUNTIF(E12,$JY$1)+(COUNTIF(F12,$JY$1)+(COUNTIF(G12,$JY$1)+(COUNTIF(H12,$JY$1))))) -> 0 | JZ11: =COUNTIF(D12,$JZ$1)+(COUNTIF(E12,$JZ$1)+(COUNTIF(F12,$JZ$1)+(COUNTIF(G12,$JZ$1)+(COUNTIF(H12,$JZ$1))))) -> 1 | KA11: =COUNTIF(D12,$KA$1)+(COUNTIF(E12,$KA$1)+(COUNTIF(F12,$KA$1)+(COUNTIF(G12,$KA$1)+(COUNTIF(H12,$KA$1))))) -> 0 | KB11: =COUNTIF(D12,$KB$1)+(COUNTIF(E12,$KB$1)+(COUNTIF(F12,$KB$1)+(COUNTIF(G12,$KB$1)+(COUNTIF(H12,$KB$1))))) -> 0 | KC11: =COUNTIF(D12,$KC$1)+(COUNTIF(E12,$KC$1)+(COUNTIF(F12,$KC$1)+(COUNTIF(G12,$KC$1)+(COUNTIF(H12,$KC$1))))) -> 0 | KD11: =COUNTIF(D12,$KD$1)+(COUNTIF(E12,$KD$1)+(COUNTIF(F12,$KD$1)+(COUNTIF(G12,$KD$1)+(COUNTIF(H12,$KD$1))))) -> 0 | KE11: =COUNTIF(D12,$KE$1)+(COUNTIF(E12,$KE$1)+(COUNTIF(F12,$KE$1)+(COUNTIF(G12,$KE$1)+(COUNTIF(H12,$KE$1))))) -> 0 | KF11: =COUNTIF(D12,$KF$1)+(COUNTIF(E12,$KF$1)+(COUNTIF(F12,$KF$1)+(COUNTIF(G12,$KF$1)+(COUNTIF(H12,$KF$1))))) -> 0 | KG11: =COUNTIF(D12,$KG$1)+(COUNTIF(E12,$KG$1)+(COUNTIF(F12,$KG$1)+(COUNTIF(G12,$KG$1)+(COUNTIF(H12,$KG$1))))) -> 0 | KH11: =COUNTIF(D12,$KH$1)+(COUNTIF(E12,$KH$1)+(COUNTIF(F12,$KH$1)+(COUNTIF(G12,$KH$1)+(COUNTIF(H12,$KH$1))))) -> 0 | KI11: =COUNTIF(D12,$KI$1)+(COUNTIF(E12,$KI$1)+(COUNTIF(F12,$KI$1)+(COUNTIF(G12,$KI$1)+(COUNTIF(H12,$KI$1))))) -> 0 | KJ11: =COUNTIF(D12,$KJ$1)+(COUNTIF(E12,$KJ$1)+(COUNTIF(F12,$KJ$1)+(COUNTIF(G12,$KJ$1)+(COUNTIF(H12,$KJ$1))))) -> 0 | KK11: =COUNTIF(D12,$KK$1)+(COUNTIF(E12,$KK$1)+(COUNTIF(F12,$KK$1)+(COUNTIF(G12,$KK$1)+(COUNTIF(H12,$KK$1))))) -> 0 | KL11: =COUNTIF(D12,$KL$1)+(COUNTIF(E12,$KL$1)+(COUNTIF(F12,$KL$1)+(COUNTIF(G12,$KL$1)+(COUNTIF(H12,$KL$1))))) -> 0 | KM11: =COUNTIF(D12,$KM$1)+(COUNTIF(E12,$KM$1)+(COUNTIF(F12,$KM$1)+(COUNTIF(G12,$KM$1)+(COUNTIF(H12,$KM$1))))) -> 0 | KN11: =COUNTIF(D12,$KN$1)+(COUNTIF(E12,$KN$1)+(COUNTIF(F12,$KN$1)+(COUNTIF(G12,$KN$1)+(COUNTIF(H12,$KN$1))))) -> 0 | KO11: =COUNTIF(D12,$KO$1)+(COUNTIF(E12,$KO$1)+(COUNTIF(F12,$KO$1)+(COUNTIF(G12,$KO$1)+(COUNTIF(H12,$KO$1))))) -> 0 | KP11: =COUNTIF(D12,$KP$1)+(COUNTIF(E12,$KP$1)+(COUNTIF(F12,$KP$1)+(COUNTIF(G12,$KP$1)+(COUNTIF(H12,$KP$1))))) -> 0 | KQ11: =COUNTIF(D12,$KQ$1)+(COUNTIF(E12,$KQ$1)+(COUNTIF(F12,$KQ$1)+(COUNTIF(G12,$KQ$1)+(COUNTIF(H12,$KQ$1))))) -> 0 | KR11: =COUNTIF(D12,$KR$1)+(COUNTIF(E12,$KR$1)+(COUNTIF(F12,$KR$1)+(COUNTIF(G12,$KR$1)+(COUNTIF(H12,$KR$1))))) -> 0 | KS11: =COUNTIF(D12,$KS$1)+(COUNTIF(E12,$KS$1)+(COUNTIF(F12,$KS$1)+(COUNTIF(G12,$KS$1)+(COUNTIF(H12,$KS$1))))) -> 0 | KT11: =COUNTIF(D12,$KT$1)+(COUNTIF(E12,$KT$1)+(COUNTIF(F12,$KT$1)+(COUNTIF(G12,$KT$1)+(COUNTIF(H12,$KT$1))))) -> 0 | KU11: =COUNTIF(D12,$KU$1)+(COUNTIF(E12,$KU$1)+(COUNTIF(F12,$KU$1)+(COUNTIF(G12,$KU$1)+(COUNTIF(H12,$KU$1))))) -> 0 | KV11: =COUNTIF(D12,$KV$1)+(COUNTIF(E12,$KV$1)+(COUNTIF(F12,$KV$1)+(COUNTIF(G12,$KV$1)+(COUNTIF(H12,$KV$1))))) -> 0 | KW11: =COUNTIF(D12,$KW$1)+(COUNTIF(E12,$KW$1)+(COUNTIF(F12,$KW$1)+(COUNTIF(G12,$KW$1)+(COUNTIF(H12,$KW$1))))) -> 0
A12: 400 | B12: LUNDI | C12: 2022-07-04 | D12: 4 | E12: 12 | F12: 18 | G12: 20 | H12: 26 | I12: 8 | J12: 6 | K12: g | L12: =COUNTIF(M11:P11,">0") -> 0 | M12: =_xlfn.LET(_xlpm.comp,RIGHT(D13:H13,1),_xlfn._xlws.FILTER(D13:H13,_xlfn.XMATCH(_xlpm.comp,_xlpm.comp)<>_xlfn.XMATCH(_xlpm.comp,_xlpm.comp,,-1))) ->  | Q12: =COUNTIF(D12:H12,D13:H13) -> 0 | R12: 0 | S12: 0 | T12: 0 | U12: 0 | V12: =IF(AND(W12>69,W12<164,OR(X12={1;2;3;4})),1,0) -> 1 | W12: =D13+E13+F13+G13+H13 -> 138 | X12: =SUMPRODUCT(( MOD(D13:H13,2)>0)*1) -> 2 | Y12: 0 | Z12: 0 | AA12: 1 | AB12: 1 | AC12: 1 | AD12: 1 | AE12: 0 | AF12: 0 | AG12: 0 | AH12: 1 | AI12: =COUNTIF(($D13:$H13),AI$1) -> 0 | AJ12: =COUNTIF(($D13:$H13),AJ$1) -> 0 | AK12: =COUNTIF(($D13:$H13),AK$1) -> 0 | AL12: =COUNTIF(($D13:$H13),AL$1) -> 0 | AM12: =COUNTIF(($D13:$H13),AM$1) -> 0 | AN12: =COUNTIF(($D13:$H13),AN$1) -> 1 | AO12: =COUNTIF(($D13:$H13),AO$1) -> 0 | AP12: =COUNTIF(($D13:$H13),AP$1) -> 0 | AQ12: =COUNTIF(($D13:$H13),AQ$1) -> 0 | AR12: =COUNTIF(($D13:$H13),AR$1) -> 0 | AS12: =COUNTIF(($D13:$H13),AS$1) -> 0 | AT12: =COUNTIF(($D13:$H13),AT$1) -> 0 | AU12: =COUNTIF(($D13:$H13),AU$1) -> 0 | AV12: =COUNTIF(($D13:$H13),AV$1) -> 0 | AW12: =COUNTIF(($D13:$H13),AW$1) -> 1 | AX12: =COUNTIF(($D13:$H13),AX$1) -> 0 | AY12: =COUNTIF(($D13:$H13),AY$1) -> 0 | AZ12: =COUNTIF(($D13:$H13),AZ$1) -> 0 | BA12: =COUNTIF(($D13:$H13),BA$1) -> 0 | BB12: =COUNTIF(($D13:$H13),BB$1) -> 0 | BC12: =COUNTIF(($D13:$H13),BC$1) -> 0 | BD12: =COUNTIF(($D13:$H13),BD$1) -> 0 | BE12: =COUNTIF(($D13:$H13),BE$1) -> 0 | BF12: =COUNTIF(($D13:$H13),BF$1) -> 0 | BG12: =COUNTIF(($D13:$H13),BG$1) -> 0 | BH12: =COUNTIF(($D13:$H13),BH$1) -> 0 | BI12: =COUNTIF((D13:H13),BI$1) -> 0 | BJ12: =COUNTIF((D13:H13),BJ$1) -> 0 | BK12: =COUNTIF((D13:H13),BK$1) -> 0 | BL12: =COUNTIF((D13:H13),BL$1) -> 0 | BM12: =COUNTIF((D13:H13),BM$1) -> 0 | BN12: =COUNTIF((D13:H13),BN$1) -> 0 | BO12: =COUNTIF((D13:H13),BO$1) -> 1 | BP12: =COUNTIF((D13:H13),BP$1) -> 1 | BQ12: =COUNTIF((D13:H13),BQ$1) -> 0 | BR12: =COUNTIF((D13:H13),BR$1) -> 0 | BS12: =COUNTIF((D13:H13),BS$1) -> 0 | BT12: =COUNTIF((D13:H13),BT$1) -> 0 | BU12: =COUNTIF((D13:H13),BU$1) -> 0 | BV12: =COUNTIF(D13:H13,"<10") -> 0 | BW12: =(COUNTIF(D13:H13,"<20")-BV12) -> 2 | BX12: =((COUNTIF(D13:H13,"<30")))-(BV12+BW12) -> 1 | BY12: =((COUNTIF(D13:H13,"<40")))-(BW12+BX12+BV12) -> 0 | BZ12: =((COUNTIF(D13:H13,"<50")))-(BX12+BY12+BW12+BV12) -> 2 | CB12: 0 | CC12: 1 | CD12: 1 | CE12: 0 | CF12: 1 | CG12: 0 | CH12: 0 | CI12: 0 | CJ12: 0 | CK12: 0 | CL12: 0 | CM12: 0 | CN12: 0 | CO12: 0 | CP12: 0 | CQ12: 0 | CR12: 0 | CS12: 0 | CT12: 0 | CU12: 0 | CV12: 0 | CW12: 0 | CX12: 1 | CY12: 0 | CZ12: 0 | DA12: 0 | DB12: 0 | DC12: 0 | DD12: 0 | DE12: 0 | DF12: 0 | DG12: 0 | DH12: 0 | DJ12: 0 | DK12: 0 | DL12: =COUNTIF((I13),$DL$1) -> 0 | DM12: =COUNTIF((I13),$DM$1) -> 0 | DN12: =COUNTIF((I13),$DN$1) -> 0 | DO12: =COUNTIF((I13),$DO$1) -> 1 | DP12: =COUNTIF((I13),$DP$1) -> 0 | DQ12: =COUNTIF((I13),$DQ$1) -> 0 | DR12: =COUNTIF((I13),$DR$1) -> 0 | DS12: =COUNTIF((I13),$DS$1) -> 0 | DT12: =COUNTIF((I13),$DT$1) -> 0 | DU12: =COUNTIF((I13),$DU$1) -> 0 | DW12: 1 | DX12: 1 | DY12: 1 | DZ12: 0 | EA12: 1 | EB12: 1 | EC12: 1 | ED12: 0 | EE12: 1 | EF12: 1 | EI12: 1 | EJ12: 1 | EK12: 1 | EL12: 0 | EM12: 1 | EN12: 1 | EO12: 1 | EP12: 0 | EQ12: 1 | ER12: 1 | ES12: =COUNTIF(I12,I13) -> 0 | ET12: =SUMPRODUCT(( MOD(I13,2)>0)*1) -> 0 | EU12: =IF((E13=D13+1)+(F13=E13+1)+(G13=F13+1)+(H13=G13+1),("1")*1,("")) -> 1 | EW12: =H13-D13 -> 34 | EX12: =(MID(D13,2,2)*1) -> 0 | EY12: =(MID(E13,2,1)*1) -> 6 | EZ12: =(MID(F13,2,1)*1) -> 5 | FA12: =(MID(G13,2,1)*1) -> 3 | FB12: =(MID(H13,2,1)*1) -> 4 | FC12: 1 | FD12: 1 | FE12: =I13 -> 4 | FF12: 0 | FG12: 0 | FH12: 0 | FI12: 0 | FJ12: 1 | FK12: =IF(E13=D13+1,("1")*1,("")) ->  | FL12: =IF(F13=E13+1,("1")*1,("")) ->  | FM12: =IF(G13=F13+1,("1")*1,("")) ->  | FN12: =IF(H13=G13+1,("1")*1,("")) -> 1 | FW12: =SUMPRODUCT(( MOD(D13,2)>0)*1) -> 0 | FX12: =SUMPRODUCT(( MOD(E13,2)>0)*1) -> 0 | FY12: =SUMPRODUCT(( MOD(F13,2)>0)*1) -> 1 | FZ12: =SUMPRODUCT(( MOD(G13,2)>0)*1) -> 1 | GA12: =SUMPRODUCT(( MOD(H13,2)>0)*1) -> 0 | GE12: 0 | GF12: 0 | GG12: 1 | GH12: 0 | GL12: 0 | GM12: 0 | GN12: 0 | GR12: 0 | GS12: 0 | GW12: 0 | HA12: 0 | HC12: en 5 | HH12: x | HI12: x | HJ12: x | HK12: x | HL12: x | HM12: x | HN12: x | HO12: x | HP12: x | HQ12: x | HR12: x | HS12: x | HU12: x | HV12: x | HW12: x | HX12: x | HZ12: x | IB12: x | IJ12: x | JA12: =COUNTIF(D13,$JA$1)+(COUNTIF(E13,$JA$1)+(COUNTIF(F13,$JA$1)+(COUNTIF(G13,$JA$1)+(COUNTIF(H13,$JA$1))))) -> 0 | JB12: =COUNTIF(D13,$JB$1)+(COUNTIF(E13,$JB$1)+(COUNTIF(F13,$JB$1)+(COUNTIF(G13,$JB$1)+(COUNTIF(H13,$JB$1))))) -> 0 | JC12: =COUNTIF(D13,$JC$1)+(COUNTIF(E13,$JC$1)+(COUNTIF(F13,$JC$1)+(COUNTIF(G13,$JC$1)+(COUNTIF(H13,$JC$1))))) -> 0 | JD12: =COUNTIF(D13,$JD$1)+(COUNTIF(E13,$JD$1)+(COUNTIF(F13,$JD$1)+(COUNTIF(G13,$JD$1)+(COUNTIF(H13,$JD$1))))) -> 0 | JE12: =COUNTIF(D13,$JE$1)+(COUNTIF(E13,$JE$1)+(COUNTIF(F13,$JE$1)+(COUNTIF(G13,$JE$1)+(COUNTIF(H13,$JE$1))))) -> 0 | JF12: =COUNTIF(D13,$JF$1)+(COUNTIF(E13,$JF$1)+(COUNTIF(F13,$JF$1)+(COUNTIF(G13,$JF$1)+(COUNTIF(H13,$JF$1))))) -> 0 | JG12: =COUNTIF(D13,$JG$1)+(COUNTIF(E13,$JG$1)+(COUNTIF(F13,$JG$1)+(COUNTIF(G13,$JG$1)+(COUNTIF(H13,$JG$1))))) -> 0 | JH12: =COUNTIF(D13,$JH$1)+(COUNTIF(E13,$JH$1)+(COUNTIF(F13,$JH$1)+(COUNTIF(G13,$JH$1)+(COUNTIF(H13,$JH$1))))) -> 0 | JI12: =COUNTIF(D13,$JI$1)+(COUNTIF(E13,$JI$1)+(COUNTIF(F13,$JI$1)+(COUNTIF(G13,$JI$1)+(COUNTIF(H13,$JI$1))))) -> 0 | JJ12: =COUNTIF(D13,$JJ$1)+(COUNTIF(E13,$JJ$1)+(COUNTIF(F13,$JJ$1)+(COUNTIF(G13,$JJ$1)+(COUNTIF(H13,$JJ$1))))) -> 1 | JK12: =COUNTIF(D13,$JK$1)+(COUNTIF(E13,$JK$1)+(COUNTIF(F13,$JK$1)+(COUNTIF(G13,$JK$1)+(COUNTIF(H13,$JK$1))))) -> 0 | JL12: =COUNTIF(D13,$JL$1)+(COUNTIF(E13,$JL$1)+(COUNTIF(F13,$JL$1)+(COUNTIF(G13,$JL$1)+(COUNTIF(H13,$JL$1))))) -> 0 | JM12: =COUNTIF(D13,$JM$1)+(COUNTIF(E13,$JM$1)+(COUNTIF(F13,$JM$1)+(COUNTIF(G13,$JM$1)+(COUNTIF(H13,$JM$1))))) -> 0 | JN12: =COUNTIF(D13,$JN$1)+(COUNTIF(E13,$JN$1)+(COUNTIF(F13,$JN$1)+(COUNTIF(G13,$JN$1)+(COUNTIF(H13,$JN$1))))) -> 0 | JO12: =COUNTIF(D13,$JO$1)+(COUNTIF(E13,$JO$1)+(COUNTIF(F13,$JO$1)+(COUNTIF(G13,$JO$1)+(COUNTIF(H13,$JO$1))))) -> 0 | JP12: =COUNTIF(D13,$JP$1)+(COUNTIF(E13,$JP$1)+(COUNTIF(F13,$JP$1)+(COUNTIF(G13,$JP$1)+(COUNTIF(H13,$JP$1))))) -> 1 | JQ12: =COUNTIF(D13,$JQ$1)+(COUNTIF(E13,$JQ$1)+(COUNTIF(F13,$JQ$1)+(COUNTIF(G13,$JQ$1)+(COUNTIF(H13,$JQ$1))))) -> 0 | JR12: =COUNTIF(D13,$JR$1)+(COUNTIF(E13,$JR$1)+(COUNTIF(F13,$JR$1)+(COUNTIF(G13,$JR$1)+(COUNTIF(H13,$JR$1))))) -> 0 | JS12: =COUNTIF(D13,$JS$1)+(COUNTIF(E13,$JS$1)+(COUNTIF(F13,$JS$1)+(COUNTIF(G13,$JS$1)+(COUNTIF(H13,$JS$1))))) -> 0 | JT12: =COUNTIF(D13,$JT$1)+(COUNTIF(E13,$JT$1)+(COUNTIF(F13,$JT$1)+(COUNTIF(G13,$JT$1)+(COUNTIF(H13,$JT$1))))) -> 0 | JU12: =COUNTIF(D13,$JU$1)+(COUNTIF(E13,$JU$1)+(COUNTIF(F13,$JU$1)+(COUNTIF(G13,$JU$1)+(COUNTIF(H13,$JU$1))))) -> 0 | JV12: =COUNTIF(D13,$JV$1)+(COUNTIF(E13,$JV$1)+(COUNTIF(F13,$JV$1)+(COUNTIF(G13,$JV$1)+(COUNTIF(H13,$JV$1))))) -> 0 | JW12: =COUNTIF(D13,$JW$1)+(COUNTIF(E13,$JW$1)+(COUNTIF(F13,$JW$1)+(COUNTIF(G13,$JW$1)+(COUNTIF(H13,$JW$1))))) -> 0 | JX12: =COUNTIF(D13,$JX$1)+(COUNTIF(E13,$JX$1)+(COUNTIF(F13,$JX$1)+(COUNTIF(G13,$JX$1)+(COUNTIF(H13,$JX$1))))) -> 0 | JY12: =COUNTIF(D13,$JY$1)+(COUNTIF(E13,$JY$1)+(COUNTIF(F13,$JY$1)+(COUNTIF(G13,$JY$1)+(COUNTIF(H13,$JY$1))))) -> 1 | JZ12: =COUNTIF(D13,$JZ$1)+(COUNTIF(E13,$JZ$1)+(COUNTIF(F13,$JZ$1)+(COUNTIF(G13,$JZ$1)+(COUNTIF(H13,$JZ$1))))) -> 0 | KA12: =COUNTIF(D13,$KA$1)+(COUNTIF(E13,$KA$1)+(COUNTIF(F13,$KA$1)+(COUNTIF(G13,$KA$1)+(COUNTIF(H13,$KA$1))))) -> 0 | KB12: =COUNTIF(D13,$KB$1)+(COUNTIF(E13,$KB$1)+(COUNTIF(F13,$KB$1)+(COUNTIF(G13,$KB$1)+(COUNTIF(H13,$KB$1))))) -> 0 | KC12: =COUNTIF(D13,$KC$1)+(COUNTIF(E13,$KC$1)+(COUNTIF(F13,$KC$1)+(COUNTIF(G13,$KC$1)+(COUNTIF(H13,$KC$1))))) -> 0 | KD12: =COUNTIF(D13,$KD$1)+(COUNTIF(E13,$KD$1)+(COUNTIF(F13,$KD$1)+(COUNTIF(G13,$KD$1)+(COUNTIF(H13,$KD$1))))) -> 0 | KE12: =COUNTIF(D13,$KE$1)+(COUNTIF(E13,$KE$1)+(COUNTIF(F13,$KE$1)+(COUNTIF(G13,$KE$1)+(COUNTIF(H13,$KE$1))))) -> 0 | KF12: =COUNTIF(D13,$KF$1)+(COUNTIF(E13,$KF$1)+(COUNTIF(F13,$KF$1)+(COUNTIF(G13,$KF$1)+(COUNTIF(H13,$KF$1))))) -> 0 | KG12: =COUNTIF(D13,$KG$1)+(COUNTIF(E13,$KG$1)+(COUNTIF(F13,$KG$1)+(COUNTIF(G13,$KG$1)+(COUNTIF(H13,$KG$1))))) -> 0 | KH12: =COUNTIF(D13,$KH$1)+(COUNTIF(E13,$KH$1)+(COUNTIF(F13,$KH$1)+(COUNTIF(G13,$KH$1)+(COUNTIF(H13,$KH$1))))) -> 0 | KI12: =COUNTIF(D13,$KI$1)+(COUNTIF(E13,$KI$1)+(COUNTIF(F13,$KI$1)+(COUNTIF(G13,$KI$1)+(COUNTIF(H13,$KI$1))))) -> 0 | KJ12: =COUNTIF(D13,$KJ$1)+(COUNTIF(E13,$KJ$1)+(COUNTIF(F13,$KJ$1)+(COUNTIF(G13,$KJ$1)+(COUNTIF(H13,$KJ$1))))) -> 0 | KK12: =COUNTIF(D13,$KK$1)+(COUNTIF(E13,$KK$1)+(COUNTIF(F13,$KK$1)+(COUNTIF(G13,$KK$1)+(COUNTIF(H13,$KK$1))))) -> 0 | KL12: =COUNTIF(D13,$KL$1)+(COUNTIF(E13,$KL$1)+(COUNTIF(F13,$KL$1)+(COUNTIF(G13,$KL$1)+(COUNTIF(H13,$KL$1))))) -> 0 | KM12: =COUNTIF(D13,$KM$1)+(COUNTIF(E13,$KM$1)+(COUNTIF(F13,$KM$1)+(COUNTIF(G13,$KM$1)+(COUNTIF(H13,$KM$1))))) -> 0 | KN12: =COUNTIF(D13,$KN$1)+(COUNTIF(E13,$KN$1)+(COUNTIF(F13,$KN$1)+(COUNTIF(G13,$KN$1)+(COUNTIF(H13,$KN$1))))) -> 0 | KO12: =COUNTIF(D13,$KO$1)+(COUNTIF(E13,$KO$1)+(COUNTIF(F13,$KO$1)+(COUNTIF(G13,$KO$1)+(COUNTIF(H13,$KO$1))))) -> 0 | KP12: =COUNTIF(D13,$KP$1)+(COUNTIF(E13,$KP$1)+(COUNTIF(F13,$KP$1)+(COUNTIF(G13,$KP$1)+(COUNTIF(H13,$KP$1))))) -> 0 | KQ12: =COUNTIF(D13,$KQ$1)+(COUNTIF(E13,$KQ$1)+(COUNTIF(F13,$KQ$1)+(COUNTIF(G13,$KQ$1)+(COUNTIF(H13,$KQ$1))))) -> 1 | KR12: =COUNTIF(D13,$KR$1)+(COUNTIF(E13,$KR$1)+(COUNTIF(F13,$KR$1)+(COUNTIF(G13,$KR$1)+(COUNTIF(H13,$KR$1))))) -> 1 | KS12: =COUNTIF(D13,$KS$1)+(COUNTIF(E13,$KS$1)+(COUNTIF(F13,$KS$1)+(COUNTIF(G13,$KS$1)+(COUNTIF(H13,$KS$1))))) -> 0 | KT12: =COUNTIF(D13,$KT$1)+(COUNTIF(E13,$KT$1)+(COUNTIF(F13,$KT$1)+(COUNTIF(G13,$KT$1)+(COUNTIF(H13,$KT$1))))) -> 0 | KU12: =COUNTIF(D13,$KU$1)+(COUNTIF(E13,$KU$1)+(COUNTIF(F13,$KU$1)+(COUNTIF(G13,$KU$1)+(COUNTIF(H13,$KU$1))))) -> 0 | KV12: =COUNTIF(D13,$KV$1)+(COUNTIF(E13,$KV$1)+(COUNTIF(F13,$KV$1)+(COUNTIF(G13,$KV$1)+(COUNTIF(H13,$KV$1))))) -> 0 | KW12: =COUNTIF(D13,$KW$1)+(COUNTIF(E13,$KW$1)+(COUNTIF(F13,$KW$1)+(COUNTIF(G13,$KW$1)+(COUNTIF(H13,$KW$1))))) -> 0
A13: 399 | B13: MERCREDI | C13: 2022-07-06 | D13: 10 | E13: 16 | F13: 25 | G13: 43 | H13: 44 | I13: 4 | J13: 4 | K13: e | L13: =COUNTIF(M12:P12,">0") -> 0 | M13: =_xlfn.LET(_xlpm.comp,RIGHT(D14:H14,1),_xlfn._xlws.FILTER(D14:H14,_xlfn.XMATCH(_xlpm.comp,_xlpm.comp)<>_xlfn.XMATCH(_xlpm.comp,_xlpm.comp,,-1))) -> 24 | N13: 34 | Q13: =COUNTIF(D13:H13,D14:H14) -> 0 | R13: 0 | S13: 0 | T13: 0 | U13: 0 | V13: =IF(AND(W13>69,W13<164,OR(X13={1;2;3;4})),1,0) -> 1 | W13: =D14+E14+F14+G14+H14 -> 112 | X13: =SUMPRODUCT(( MOD(D14:H14,2)>0)*1) -> 2 | Y13: 0 | Z13: 0 | AA13: 0 | AB13: 2 | AC13: 0 | AD13: 0 | AE13: 1 | AF13: 1 | AG13: 1 | AH13: 0 | AI13: =COUNTIF(($D14:$H14),AI$1) -> 0 | AJ13: =COUNTIF(($D14:$H14),AJ$1) -> 0 | AK13: =COUNTIF(($D14:$H14),AK$1) -> 0 | AL13: =COUNTIF(($D14:$H14),AL$1) -> 0 | AM13: =COUNTIF(($D14:$H14),AM$1) -> 0 | AN13: =COUNTIF(($D14:$H14),AN$1) -> 0 | AO13: =COUNTIF(($D14:$H14),AO$1) -> 0 | AP13: =COUNTIF(($D14:$H14),AP$1) -> 0 | AQ13: =COUNTIF(($D14:$H14),AQ$1) -> 0 | AR13: =COUNTIF(($D14:$H14),AR$1) -> 0 | AS13: =COUNTIF(($D14:$H14),AS$1) -> 0 | AT13: =COUNTIF(($D14:$H14),AT$1) -> 0 | AU13: =COUNTIF(($D14:$H14),AU$1) -> 0 | AV13: =COUNTIF(($D14:$H14),AV$1) -> 1 | AW13: =COUNTIF(($D14:$H14),AW$1) -> 0 | AX13: =COUNTIF(($D14:$H14),AX$1) -> 0 | AY13: =COUNTIF(($D14:$H14),AY$1) -> 0 | AZ13: =COUNTIF(($D14:$H14),AZ$1) -> 0 | BA13: =COUNTIF(($D14:$H14),BA$1) -> 0 | BB13: =COUNTIF(($D14:$H14),BB$1) -> 0 | BC13: =COUNTIF(($D14:$H14),BC$1) -> 0 | BD13: =COUNTIF(($D14:$H14),BD$1) -> 0 | BE13: =COUNTIF(($D14:$H14),BE$1) -> 0 | BF13: =COUNTIF(($D14:$H14),BF$1) -> 1 | BG13: =COUNTIF(($D14:$H14),BG$1) -> 0 | BH13: =COUNTIF(($D14:$H14),BH$1) -> 0 | BI13: =COUNTIF((D14:H14),BI$1) -> 1 | BJ13: =COUNTIF((D14:H14),BJ$1) -> 0 | BK13: =COUNTIF((D14:H14),BK$1) -> 0 | BL13: =COUNTIF((D14:H14),BL$1) -> 0 | BM13: =COUNTIF((D14:H14),BM$1) -> 0 | BN13: =COUNTIF((D14:H14),BN$1) -> 0 | BO13: =COUNTIF((D14:H14),BO$1) -> 0 | BP13: =COUNTIF((D14:H14),BP$1) -> 0 | BQ13: =COUNTIF((D14:H14),BQ$1) -> 0 | BR13: =COUNTIF((D14:H14),BR$1) -> 0 | BS13: =COUNTIF((D14:H14),BS$1) -> 0 | BT13: =COUNTIF((D14:H14),BT$1) -> 0 | BU13: =COUNTIF((D14:H14),BU$1) -> 0 | BV13: =COUNTIF(D14:H14,"<10") -> 2 | BW13: =(COUNTIF(D14:H14,"<20")-BV13) -> 0 | BX13: =((COUNTIF(D14:H14,"<30")))-(BV13+BW13) -> 1 | BY13: =((COUNTIF(D14:H14,"<40")))-(BW13+BX13+BV13) -> 2 | BZ13: =((COUNTIF(D14:H14,"<50")))-(BX13+BY13+BW13+BV13) -> 0 | CB13: 1 | CC13: 0 | CD13: 1 | CE13: 1 | CF13: 0 | CG13: 0 | CH13: 0 | CI13: 0 | CJ13: 0 | CK13: 0 | CL13: 0 | CM13: 1 | CN13: 0 | CO13: 0 | CP13: 0 | CQ13: 0 | CR13: 0 | CS13: 0 | CT13: 0 | CU13: 0 | CV13: 0 | CW13: 0 | CX13: 0 | CY13: 0 | CZ13: 0 | DA13: 0 | DB13: 0 | DC13: 0 | DD13: 0 | DE13: 0 | DF13: 0 | DG13: 0 | DH13: 0 | DJ13: 0 | DK13: 0 | DL13: =COUNTIF((I14),$DL$1) -> 0 | DM13: =COUNTIF((I14),$DM$1) -> 1 | DN13: =COUNTIF((I14),$DN$1) -> 0 | DO13: =COUNTIF((I14),$DO$1) -> 0 | DP13: =COUNTIF((I14),$DP$1) -> 0 | DQ13: =COUNTIF((I14),$DQ$1) -> 0 | DR13: =COUNTIF((I14),$DR$1) -> 0 | DS13: =COUNTIF((I14),$DS$1) -> 0 | DT13: =COUNTIF((I14),$DT$1) -> 0 | DU13: =COUNTIF((I14),$DU$1) -> 0 | DW13: 1 | DX13: 0 | DY13: 1 | DZ13: 0 | EA13: 1 | EB13: 1 | EC13: 1 | ED13: 1 | EE13: 1 | EF13: 1 | EI13: 1 | EJ13: 0 | EK13: 1 | EL13: 0 | EM13: 1 | EN13: 1 | EO13: 1 | EP13: 1 | EQ13: 1 | ER13: 1 | ES13: =COUNTIF(I13,I14) -> 0 | ET13: =SUMPRODUCT(( MOD(I14,2)>0)*1) -> 0 | EU13: =IF((E14=D14+1)+(F14=E14+1)+(G14=F14+1)+(H14=G14+1),("1")*1,("")) -> 1 | EV13: 1 | EW13: =H14-D14 -> 29 | EX13: =(MID(D14,1,2)*1) -> 8 | EY13: =(MID(E14,1,1)*1) -> 9 | EZ13: =(MID(F14,2,1)*1) -> 4 | FA13: =(MID(G14,2,1)*1) -> 4 | FB13: =(MID(H14,2,1)*1) -> 7 | FC13: 0 | FD13: 1 | FE13: =I14 -> 2 | FF13: 0 | FG13: 0 | FH13: 0 | FI13: 0 | FJ13: 0 | FK13: =IF(E14=D14+1,("1")*1,("")) -> 1 | FL13: =IF(F14=E14+1,("1")*1,("")) ->  | FM13: =IF(G14=F14+1,("1")*1,("")) ->  | FN13: =IF(H14=G14+1,("1")*1,("")) ->  | FW13: =SUMPRODUCT(( MOD(D14,2)>0)*1) -> 0 | FX13: =SUMPRODUCT(( MOD(E14,2)>0)*1) -> 1 | FY13: =SUMPRODUCT(( MOD(F14,2)>0)*1) -> 0 | FZ13: =SUMPRODUCT(( MOD(G14,2)>0)*1) -> 0 | GA13: =SUMPRODUCT(( MOD(H14,2)>0)*1) -> 1 | GE13: 0 | GF13: 0 | GG13: 0 | GH13: 0 | GL13: 0 | GM13: 0 | GN13: 0 | GR13: 0 | GS13: 1 | GW13: 0 | HA13: 0 | JA13: =COUNTIF(D14,$JA$1)+(COUNTIF(E14,$JA$1)+(COUNTIF(F14,$JA$1)+(COUNTIF(G14,$JA$1)+(COUNTIF(H14,$JA$1))))) -> 0 | JB13: =COUNTIF(D14,$JB$1)+(COUNTIF(E14,$JB$1)+(COUNTIF(F14,$JB$1)+(COUNTIF(G14,$JB$1)+(COUNTIF(H14,$JB$1))))) -> 0 | JC13: =COUNTIF(D14,$JC$1)+(COUNTIF(E14,$JC$1)+(COUNTIF(F14,$JC$1)+(COUNTIF(G14,$JC$1)+(COUNTIF(H14,$JC$1))))) -> 0 | JD13: =COUNTIF(D14,$JD$1)+(COUNTIF(E14,$JD$1)+(COUNTIF(F14,$JD$1)+(COUNTIF(G14,$JD$1)+(COUNTIF(H14,$JD$1))))) -> 0 | JE13: =COUNTIF(D14,$JE$1)+(COUNTIF(E14,$JE$1)+(COUNTIF(F14,$JE$1)+(COUNTIF(G14,$JE$1)+(COUNTIF(H14,$JE$1))))) -> 0 | JF13: =COUNTIF(D14,$JF$1)+(COUNTIF(E14,$JF$1)+(COUNTIF(F14,$JF$1)+(COUNTIF(G14,$JF$1)+(COUNTIF(H14,$JF$1))))) -> 0 | JG13: =COUNTIF(D14,$JG$1)+(COUNTIF(E14,$JG$1)+(COUNTIF(F14,$JG$1)+(COUNTIF(G14,$JG$1)+(COUNTIF(H14,$JG$1))))) -> 0 | JH13: =COUNTIF(D14,$JH$1)+(COUNTIF(E14,$JH$1)+(COUNTIF(F14,$JH$1)+(COUNTIF(G14,$JH$1)+(COUNTIF(H14,$JH$1))))) -> 1 | JI13: =COUNTIF(D14,$JI$1)+(COUNTIF(E14,$JI$1)+(COUNTIF(F14,$JI$1)+(COUNTIF(G14,$JI$1)+(COUNTIF(H14,$JI$1))))) -> 1 | JJ13: =COUNTIF(D14,$JJ$1)+(COUNTIF(E14,$JJ$1)+(COUNTIF(F14,$JJ$1)+(COUNTIF(G14,$JJ$1)+(COUNTIF(H14,$JJ$1))))) -> 0 | JK13: =COUNTIF(D14,$JK$1)+(COUNTIF(E14,$JK$1)+(COUNTIF(F14,$JK$1)+(COUNTIF(G14,$JK$1)+(COUNTIF(H14,$JK$1))))) -> 0 | JL13: =COUNTIF(D14,$JL$1)+(COUNTIF(E14,$JL$1)+(COUNTIF(F14,$JL$1)+(COUNTIF(G14,$JL$1)+(COUNTIF(H14,$JL$1))))) -> 0 | JM13: =COUNTIF(D14,$JM$1)+(COUNTIF(E14,$JM$1)+(COUNTIF(F14,$JM$1)+(COUNTIF(G14,$JM$1)+(COUNTIF(H14,$JM$1))))) -> 0 | JN13: =COUNTIF(D14,$JN$1)+(COUNTIF(E14,$JN$1)+(COUNTIF(F14,$JN$1)+(COUNTIF(G14,$JN$1)+(COUNTIF(H14,$JN$1))))) -> 0 | JO13: =COUNTIF(D14,$JO$1)+(COUNTIF(E14,$JO$1)+(COUNTIF(F14,$JO$1)+(COUNTIF(G14,$JO$1)+(COUNTIF(H14,$JO$1))))) -> 0 | JP13: =COUNTIF(D14,$JP$1)+(COUNTIF(E14,$JP$1)+(COUNTIF(F14,$JP$1)+(COUNTIF(G14,$JP$1)+(COUNTIF(H14,$JP$1))))) -> 0 | JQ13: =COUNTIF(D14,$JQ$1)+(COUNTIF(E14,$JQ$1)+(COUNTIF(F14,$JQ$1)+(COUNTIF(G14,$JQ$1)+(COUNTIF(H14,$JQ$1))))) -> 0 | JR13: =COUNTIF(D14,$JR$1)+(COUNTIF(E14,$JR$1)+(COUNTIF(F14,$JR$1)+(COUNTIF(G14,$JR$1)+(COUNTIF(H14,$JR$1))))) -> 0 | JS13: =COUNTIF(D14,$JS$1)+(COUNTIF(E14,$JS$1)+(COUNTIF(F14,$JS$1)+(COUNTIF(G14,$JS$1)+(COUNTIF(H14,$JS$1))))) -> 0 | JT13: =COUNTIF(D14,$JT$1)+(COUNTIF(E14,$JT$1)+(COUNTIF(F14,$JT$1)+(COUNTIF(G14,$JT$1)+(COUNTIF(H14,$JT$1))))) -> 0 | JU13: =COUNTIF(D14,$JU$1)+(COUNTIF(E14,$JU$1)+(COUNTIF(F14,$JU$1)+(COUNTIF(G14,$JU$1)+(COUNTIF(H14,$JU$1))))) -> 0 | JV13: =COUNTIF(D14,$JV$1)+(COUNTIF(E14,$JV$1)+(COUNTIF(F14,$JV$1)+(COUNTIF(G14,$JV$1)+(COUNTIF(H14,$JV$1))))) -> 0 | JW13: =COUNTIF(D14,$JW$1)+(COUNTIF(E14,$JW$1)+(COUNTIF(F14,$JW$1)+(COUNTIF(G14,$JW$1)+(COUNTIF(H14,$JW$1))))) -> 0 | JX13: =COUNTIF(D14,$JX$1)+(COUNTIF(E14,$JX$1)+(COUNTIF(F14,$JX$1)+(COUNTIF(G14,$JX$1)+(COUNTIF(H14,$JX$1))))) -> 1 | JY13: =COUNTIF(D14,$JY$1)+(COUNTIF(E14,$JY$1)+(COUNTIF(F14,$JY$1)+(COUNTIF(G14,$JY$1)+(COUNTIF(H14,$JY$1))))) -> 0 | JZ13: =COUNTIF(D14,$JZ$1)+(COUNTIF(E14,$JZ$1)+(COUNTIF(F14,$JZ$1)+(COUNTIF(G14,$JZ$1)+(COUNTIF(H14,$JZ$1))))) -> 0 | KA13: =COUNTIF(D14,$KA$1)+(COUNTIF(E14,$KA$1)+(COUNTIF(F14,$KA$1)+(COUNTIF(G14,$KA$1)+(COUNTIF(H14,$KA$1))))) -> 0 | KB13: =COUNTIF(D14,$KB$1)+(COUNTIF(E14,$KB$1)+(COUNTIF(F14,$KB$1)+(COUNTIF(G14,$KB$1)+(COUNTIF(H14,$KB$1))))) -> 0 | KC13: =COUNTIF(D14,$KC$1)+(COUNTIF(E14,$KC$1)+(COUNTIF(F14,$KC$1)+(COUNTIF(G14,$KC$1)+(COUNTIF(H14,$KC$1))))) -> 0 | KD13: =COUNTIF(D14,$KD$1)+(COUNTIF(E14,$KD$1)+(COUNTIF(F14,$KD$1)+(COUNTIF(G14,$KD$1)+(COUNTIF(H14,$KD$1))))) -> 0 | KE13: =COUNTIF(D14,$KE$1)+(COUNTIF(E14,$KE$1)+(COUNTIF(F14,$KE$1)+(COUNTIF(G14,$KE$1)+(COUNTIF(H14,$KE$1))))) -> 0 | KF13: =COUNTIF(D14,$KF$1)+(COUNTIF(E14,$KF$1)+(COUNTIF(F14,$KF$1)+(COUNTIF(G14,$KF$1)+(COUNTIF(H14,$KF$1))))) -> 0 | KG13: =COUNTIF(D14,$KG$1)+(COUNTIF(E14,$KG$1)+(COUNTIF(F14,$KG$1)+(COUNTIF(G14,$KG$1)+(COUNTIF(H14,$KG$1))))) -> 0 | KH13: =COUNTIF(D14,$KH$1)+(COUNTIF(E14,$KH$1)+(COUNTIF(F14,$KH$1)+(COUNTIF(G14,$KH$1)+(COUNTIF(H14,$KH$1))))) -> 1 | KI13: =COUNTIF(D14,$KI$1)+(COUNTIF(E14,$KI$1)+(COUNTIF(F14,$KI$1)+(COUNTIF(G14,$KI$1)+(COUNTIF(H14,$KI$1))))) -> 0 | KJ13: =COUNTIF(D14,$KJ$1)+(COUNTIF(E14,$KJ$1)+(COUNTIF(F14,$KJ$1)+(COUNTIF(G14,$KJ$1)+(COUNTIF(H14,$KJ$1))))) -> 0 | KK13: =COUNTIF(D14,$KK$1)+(COUNTIF(E14,$KK$1)+(COUNTIF(F14,$KK$1)+(COUNTIF(G14,$KK$1)+(COUNTIF(H14,$KK$1))))) -> 1 | KL13: =COUNTIF(D14,$KL$1)+(COUNTIF(E14,$KL$1)+(COUNTIF(F14,$KL$1)+(COUNTIF(G14,$KL$1)+(COUNTIF(H14,$KL$1))))) -> 0 | KM13: =COUNTIF(D14,$KM$1)+(COUNTIF(E14,$KM$1)+(COUNTIF(F14,$KM$1)+(COUNTIF(G14,$KM$1)+(COUNTIF(H14,$KM$1))))) -> 0 | KN13: =COUNTIF(D14,$KN$1)+(COUNTIF(E14,$KN$1)+(COUNTIF(F14,$KN$1)+(COUNTIF(G14,$KN$1)+(COUNTIF(H14,$KN$1))))) -> 0 | KO13: =COUNTIF(D14,$KO$1)+(COUNTIF(E14,$KO$1)+(COUNTIF(F14,$KO$1)+(COUNTIF(G14,$KO$1)+(COUNTIF(H14,$KO$1))))) -> 0 | KP13: =COUNTIF(D14,$KP$1)+(COUNTIF(E14,$KP$1)+(COUNTIF(F14,$KP$1)+(COUNTIF(G14,$KP$1)+(COUNTIF(H14,$KP$1))))) -> 0 | KQ13: =COUNTIF(D14,$KQ$1)+(COUNTIF(E14,$KQ$1)+(COUNTIF(F14,$KQ$1)+(COUNTIF(G14,$KQ$1)+(COUNTIF(H14,$KQ$1))))) -> 0 | KR13: =COUNTIF(D14,$KR$1)+(COUNTIF(E14,$KR$1)+(COUNTIF(F14,$KR$1)+(COUNTIF(G14,$KR$1)+(COUNTIF(H14,$KR$1))))) -> 0 | KS13: =COUNTIF(D14,$KS$1)+(COUNTIF(E14,$KS$1)+(COUNTIF(F14,$KS$1)+(COUNTIF(G14,$KS$1)+(COUNTIF(H14,$KS$1))))) -> 0 | KT13: =COUNTIF(D14,$KT$1)+(COUNTIF(E14,$KT$1)+(COUNTIF(F14,$KT$1)+(COUNTIF(G14,$KT$1)+(COUNTIF(H14,$KT$1))))) -> 0 | KU13: =COUNTIF(D14,$KU$1)+(COUNTIF(E14,$KU$1)+(COUNTIF(F14,$KU$1)+(COUNTIF(G14,$KU$1)+(COUNTIF(H14,$KU$1))))) -> 0 | KV13: =COUNTIF(D14,$KV$1)+(COUNTIF(E14,$KV$1)+(COUNTIF(F14,$KV$1)+(COUNTIF(G14,$KV$1)+(COUNTIF(H14,$KV$1))))) -> 0 | KW13: =COUNTIF(D14,$KW$1)+(COUNTIF(E14,$KW$1)+(COUNTIF(F14,$KW$1)+(COUNTIF(G14,$KW$1)+(COUNTIF(H14,$KW$1))))) -> 0
A14: 398 | B14: SAMEDI | C14: 2022-07-09 | D14: 8 | E14: 9 | F14: 24 | G14: 34 | H14: 37 | I14: 2 | J14: 7 | K14: h | L14: =COUNTIF(M13:P13,">0") -> 2 | M14: =_xlfn.LET(_xlpm.comp,RIGHT(D15:H15,1),_xlfn._xlws.FILTER(D15:H15,_xlfn.XMATCH(_xlpm.comp,_xlpm.comp)<>_xlfn.XMATCH(_xlpm.comp,_xlpm.comp,,-1))) ->  | Q14: =COUNTIF(D14:H14,D15:H15) -> 0 | R14: 0 | S14: 0 | T14: 0 | U14: 0 | V14: =IF(AND(W14>69,W14<164,OR(X14={1;2;3;4})),1,0) -> 1 | W14: =D15+E15+F15+G15+H15 -> 112 | X14: =SUMPRODUCT(( MOD(D15:H15,2)>0)*1) -> 4 | Y14: 1 | Z14: 0 | AA14: 0 | AB14: 0 | AC14: 1 | AD14: 0 | AE14: 1 | AF14: 0 | AG14: 1 | AH14: 1 | AI14: =COUNTIF(($D15:$H15),AI$1) -> 0 | AJ14: =COUNTIF(($D15:$H15),AJ$1) -> 0 | AK14: =COUNTIF(($D15:$H15),AK$1) -> 0 | AL14: =COUNTIF(($D15:$H15),AL$1) -> 0 | AM14: =COUNTIF(($D15:$H15),AM$1) -> 0 | AN14: =COUNTIF(($D15:$H15),AN$1) -> 0 | AO14: =COUNTIF(($D15:$H15),AO$1) -> 0 | AP14: =COUNTIF(($D15:$H15),AP$1) -> 0 | AQ14: =COUNTIF(($D15:$H15),AQ$1) -> 0 | AR14: =COUNTIF(($D15:$H15),AR$1) -> 0 | AS14: =COUNTIF(($D15:$H15),AS$1) -> 0 | AT14: =COUNTIF(($D15:$H15),AT$1) -> 0 | AU14: =COUNTIF(($D15:$H15),AU$1) -> 0 | AV14: =COUNTIF(($D15:$H15),AV$1) -> 0 | AW14: =COUNTIF(($D15:$H15),AW$1) -> 0 | AX14: =COUNTIF(($D15:$H15),AX$1) -> 0 | AY14: =COUNTIF(($D15:$H15),AY$1) -> 0 | AZ14: =COUNTIF(($D15:$H15),AZ$1) -> 0 | BA14: =COUNTIF(($D15:$H15),BA$1) -> 0 | BB14: =COUNTIF(($D15:$H15),BB$1) -> 0 | BC14: =COUNTIF(($D15:$H15),BC$1) -> 0 | BD14: =COUNTIF(($D15:$H15),BD$1) -> 0 | BE14: =COUNTIF(($D15:$H15),BE$1) -> 0 | BF14: =COUNTIF(($D15:$H15),BF$1) -> 0 | BG14: =COUNTIF(($D15:$H15),BG$1) -> 0 | BH14: =COUNTIF(($D15:$H15),BH$1) -> 0 | BI14: =COUNTIF((D15:H15),BI$1) -> 0 | BJ14: =COUNTIF((D15:H15),BJ$1) -> 0 | BK14: =COUNTIF((D15:H15),BK$1) -> 0 | BL14: =COUNTIF((D15:H15),BL$1) -> 0 | BM14: =COUNTIF((D15:H15),BM$1) -> 0 | BN14: =COUNTIF((D15:H15),BN$1) -> 0 | BO14: =COUNTIF((D15:H15),BO$1) -> 0 | BP14: =COUNTIF((D15:H15),BP$1) -> 0 | BQ14: =COUNTIF((D15:H15),BQ$1) -> 0 | BR14: =COUNTIF((D15:H15),BR$1) -> 0 | BS14: =COUNTIF((D15:H15),BS$1) -> 1 | BT14: =COUNTIF((D15:H15),BT$1) -> 0 | BU14: =COUNTIF((D15:H15),BU$1) -> 1 | BV14: =COUNTIF(D15:H15,"<10") -> 2 | BW14: =(COUNTIF(D15:H15,"<20")-BV14) -> 1 | BX14: =((COUNTIF(D15:H15,"<30")))-(BV14+BW14) -> 0 | BY14: =((COUNTIF(D15:H15,"<40")))-(BW14+BX14+BV14) -> 0 | BZ14: =((COUNTIF(D15:H15,"<50")))-(BX14+BY14+BW14+BV14) -> 2 | CB14: 1 | CC14: 1 | CD14: 0 | CE14: 0 | CF14: 1 | CG14: 0 | CH14: 0 | CI14: 0 | CJ14: 0 | CK14: 0 | CL14: 0 | CM14: 0 | CN14: 0 | CO14: 1 | CP14: 0 | CQ14: 0 | CR14: 0 | CS14: 0 | CT14: 0 | CU14: 0 | CV14: 0 | CW14: 0 | CX14: 0 | CY14: 0 | CZ14: 0 | DA14: 0 | DB14: 0 | DC14: 0 | DD14: 0 | DE14: 0 | DF14: 0 | DG14: 0 | DH14: 0 | DJ14: 0 | DK14: 0 | DL14: =COUNTIF((I15),$DL$1) -> 1 | DM14: =COUNTIF((I15),$DM$1) -> 0 | DN14: =COUNTIF((I15),$DN$1) -> 0 | DO14: =COUNTIF((I15),$DO$1) -> 0 | DP14: =COUNTIF((I15),$DP$1) -> 0 | DQ14: =COUNTIF((I15),$DQ$1) -> 0 | DR14: =COUNTIF((I15),$DR$1) -> 0 | DS14: =COUNTIF((I15),$DS$1) -> 0 | DT14: =COUNTIF((I15),$DT$1) -> 0 | DU14: =COUNTIF((I15),$DU$1) -> 0 | DW14: 0 | DX14: 0 | DY14: 1 | DZ14: 1 | EA14: 1 | EB14: 1 | EC14: 1 | ED14: 1 | EE14: 1 | EF14: 1 | EI14: 0 | EJ14: 0 | EK14: 1 | EL14: 1 | EM14: 1 | EN14: 1 | EO14: 1 | EP14: 1 | EQ14: 1 | ER14: 1 | ES14: =COUNTIF(I14,I15) -> 0 | ET14: =SUMPRODUCT(( MOD(I15,2)>0)*1) -> 1 | EU14: =IF((E15=D15+1)+(F15=E15+1)+(G15=F15+1)+(H15=G15+1),("1")*1,("")) ->  | EW14: =H15-D15 -> 48 | EX14: =(MID(D15,1,2)*1) -> 1 | EY14: =(MID(E15,1,1)*1) -> 5 | EZ14: =(MID(F15,2,1)*1) -> 0 | FA14: =(MID(G15,2,1)*1) -> 7 | FB14: =(MID(H15,2,1)*1) -> 9 | FC14: 1 | FD14: 1 | FE14: =I15 -> 1 | FF14: 1 | FG14: 0 | FH14: 0 | FI14: 0 | FJ14: 0 | FK14: =IF(E15=D15+1,("1")*1,("")) ->  | FL14: =IF(F15=E15+1,("1")*1,("")) ->  | FM14: =IF(G15=F15+1,("1")*1,("")) ->  | FN14: =IF(H15=G15+1,("1")*1,("")) ->  | FW14: =SUMPRODUCT(( MOD(D15,2)>0)*1) -> 1 | FX14: =SUMPRODUCT(( MOD(E15,2)>0)*1) -> 1 | FY14: =SUMPRODUCT(( MOD(F15,2)>0)*1) -> 0 | FZ14: =SUMPRODUCT(( MOD(G15,2)>0)*1) -> 1 | GA14: =SUMPRODUCT(( MOD(H15,2)>0)*1) -> 1 | GE14: 1 | GF14: 0 | GG14: 0 | GH14: 1 | GL14: 0 | GM14: 0 | GN14: 0 | GR14: 1 | GS14: 1 | GW14: 1 | HA14: 1 | JA14: =COUNTIF(D15,$JA$1)+(COUNTIF(E15,$JA$1)+(COUNTIF(F15,$JA$1)+(COUNTIF(G15,$JA$1)+(COUNTIF(H15,$JA$1))))) -> 1 | JB14: =COUNTIF(D15,$JB$1)+(COUNTIF(E15,$JB$1)+(COUNTIF(F15,$JB$1)+(COUNTIF(G15,$JB$1)+(COUNTIF(H15,$JB$1))))) -> 0 | JC14: =COUNTIF(D15,$JC$1)+(COUNTIF(E15,$JC$1)+(COUNTIF(F15,$JC$1)+(COUNTIF(G15,$JC$1)+(COUNTIF(H15,$JC$1))))) -> 0 | JD14: =COUNTIF(D15,$JD$1)+(COUNTIF(E15,$JD$1)+(COUNTIF(F15,$JD$1)+(COUNTIF(G15,$JD$1)+(COUNTIF(H15,$JD$1))))) -> 0 | JE14: =COUNTIF(D15,$JE$1)+(COUNTIF(E15,$JE$1)+(COUNTIF(F15,$JE$1)+(COUNTIF(G15,$JE$1)+(COUNTIF(H15,$JE$1))))) -> 1 | JF14: =COUNTIF(D15,$JF$1)+(COUNTIF(E15,$JF$1)+(COUNTIF(F15,$JF$1)+(COUNTIF(G15,$JF$1)+(COUNTIF(H15,$JF$1))))) -> 0 | JG14: =COUNTIF(D15,$JG$1)+(COUNTIF(E15,$JG$1)+(COUNTIF(F15,$JG$1)+(COUNTIF(G15,$JG$1)+(COUNTIF(H15,$JG$1))))) -> 0 | JH14: =COUNTIF(D15,$JH$1)+(COUNTIF(E15,$JH$1)+(COUNTIF(F15,$JH$1)+(COUNTIF(G15,$JH$1)+(COUNTIF(H15,$JH$1))))) -> 0 | JI14: =COUNTIF(D15,$JI$1)+(COUNTIF(E15,$JI$1)+(COUNTIF(F15,$JI$1)+(COUNTIF(G15,$JI$1)+(COUNTIF(H15,$JI$1))))) -> 0 | JJ14: =COUNTIF(D15,$JJ$1)+(COUNTIF(E15,$JJ$1)+(COUNTIF(F15,$JJ$1)+(COUNTIF(G15,$JJ$1)+(COUNTIF(H15,$JJ$1))))) -> 1 | JK14: =COUNTIF(D15,$JK$1)+(COUNTIF(E15,$JK$1)+(COUNTIF(F15,$JK$1)+(COUNTIF(G15,$JK$1)+(COUNTIF(H15,$JK$1))))) -> 0 | JL14: =COUNTIF(D15,$JL$1)+(COUNTIF(E15,$JL$1)+(COUNTIF(F15,$JL$1)+(COUNTIF(G15,$JL$1)+(COUNTIF(H15,$JL$1))))) -> 0 | JM14: =COUNTIF(D15,$JM$1)+(COUNTIF(E15,$JM$1)+(COUNTIF(F15,$JM$1)+(COUNTIF(G15,$JM$1)+(COUNTIF(H15,$JM$1))))) -> 0 | JN14: =COUNTIF(D15,$JN$1)+(COUNTIF(E15,$JN$1)+(COUNTIF(F15,$JN$1)+(COUNTIF(G15,$JN$1)+(COUNTIF(H15,$JN$1))))) -> 0 | JO14: =COUNTIF(D15,$JO$1)+(COUNTIF(E15,$JO$1)+(COUNTIF(F15,$JO$1)+(COUNTIF(G15,$JO$1)+(COUNTIF(H15,$JO$1))))) -> 0 | JP14: =COUNTIF(D15,$JP$1)+(COUNTIF(E15,$JP$1)+(COUNTIF(F15,$JP$1)+(COUNTIF(G15,$JP$1)+(COUNTIF(H15,$JP$1))))) -> 0 | JQ14: =COUNTIF(D15,$JQ$1)+(COUNTIF(E15,$JQ$1)+(COUNTIF(F15,$JQ$1)+(COUNTIF(G15,$JQ$1)+(COUNTIF(H15,$JQ$1))))) -> 0 | JR14: =COUNTIF(D15,$JR$1)+(COUNTIF(E15,$JR$1)+(COUNTIF(F15,$JR$1)+(COUNTIF(G15,$JR$1)+(COUNTIF(H15,$JR$1))))) -> 0 | JS14: =COUNTIF(D15,$JS$1)+(COUNTIF(E15,$JS$1)+(COUNTIF(F15,$JS$1)+(COUNTIF(G15,$JS$1)+(COUNTIF(H15,$JS$1))))) -> 0 | JT14: =COUNTIF(D15,$JT$1)+(COUNTIF(E15,$JT$1)+(COUNTIF(F15,$JT$1)+(COUNTIF(G15,$JT$1)+(COUNTIF(H15,$JT$1))))) -> 0 | JU14: =COUNTIF(D15,$JU$1)+(COUNTIF(E15,$JU$1)+(COUNTIF(F15,$JU$1)+(COUNTIF(G15,$JU$1)+(COUNTIF(H15,$JU$1))))) -> 0 | JV14: =COUNTIF(D15,$JV$1)+(COUNTIF(E15,$JV$1)+(COUNTIF(F15,$JV$1)+(COUNTIF(G15,$JV$1)+(COUNTIF(H15,$JV$1))))) -> 0 | JW14: =COUNTIF(D15,$JW$1)+(COUNTIF(E15,$JW$1)+(COUNTIF(F15,$JW$1)+(COUNTIF(G15,$JW$1)+(COUNTIF(H15,$JW$1))))) -> 0 | JX14: =COUNTIF(D15,$JX$1)+(COUNTIF(E15,$JX$1)+(COUNTIF(F15,$JX$1)+(COUNTIF(G15,$JX$1)+(COUNTIF(H15,$JX$1))))) -> 0 | JY14: =COUNTIF(D15,$JY$1)+(COUNTIF(E15,$JY$1)+(COUNTIF(F15,$JY$1)+(COUNTIF(G15,$JY$1)+(COUNTIF(H15,$JY$1))))) -> 0 | JZ14: =COUNTIF(D15,$JZ$1)+(COUNTIF(E15,$JZ$1)+(COUNTIF(F15,$JZ$1)+(COUNTIF(G15,$JZ$1)+(COUNTIF(H15,$JZ$1))))) -> 0 | KA14: =COUNTIF(D15,$KA$1)+(COUNTIF(E15,$KA$1)+(COUNTIF(F15,$KA$1)+(COUNTIF(G15,$KA$1)+(COUNTIF(H15,$KA$1))))) -> 0 | KB14: =COUNTIF(D15,$KB$1)+(COUNTIF(E15,$KB$1)+(COUNTIF(F15,$KB$1)+(COUNTIF(G15,$KB$1)+(COUNTIF(H15,$KB$1))))) -> 0 | KC14: =COUNTIF(D15,$KC$1)+(COUNTIF(E15,$KC$1)+(COUNTIF(F15,$KC$1)+(COUNTIF(G15,$KC$1)+(COUNTIF(H15,$KC$1))))) -> 0 | KD14: =COUNTIF(D15,$KD$1)+(COUNTIF(E15,$KD$1)+(COUNTIF(F15,$KD$1)+(COUNTIF(G15,$KD$1)+(COUNTIF(H15,$KD$1))))) -> 0 | KE14: =COUNTIF(D15,$KE$1)+(COUNTIF(E15,$KE$1)+(COUNTIF(F15,$KE$1)+(COUNTIF(G15,$KE$1)+(COUNTIF(H15,$KE$1))))) -> 0 | KF14: =COUNTIF(D15,$KF$1)+(COUNTIF(E15,$KF$1)+(COUNTIF(F15,$KF$1)+(COUNTIF(G15,$KF$1)+(COUNTIF(H15,$KF$1))))) -> 0 | KG14: =COUNTIF(D15,$KG$1)+(COUNTIF(E15,$KG$1)+(COUNTIF(F15,$KG$1)+(COUNTIF(G15,$KG$1)+(COUNTIF(H15,$KG$1))))) -> 0 | KH14: =COUNTIF(D15,$KH$1)+(COUNTIF(E15,$KH$1)+(COUNTIF(F15,$KH$1)+(COUNTIF(G15,$KH$1)+(COUNTIF(H15,$KH$1))))) -> 0 | KI14: =COUNTIF(D15,$KI$1)+(COUNTIF(E15,$KI$1)+(COUNTIF(F15,$KI$1)+(COUNTIF(G15,$KI$1)+(COUNTIF(H15,$KI$1))))) -> 0 | KJ14: =COUNTIF(D15,$KJ$1)+(COUNTIF(E15,$KJ$1)+(COUNTIF(F15,$KJ$1)+(COUNTIF(G15,$KJ$1)+(COUNTIF(H15,$KJ$1))))) -> 0 | KK14: =COUNTIF(D15,$KK$1)+(COUNTIF(E15,$KK$1)+(COUNTIF(F15,$KK$1)+(COUNTIF(G15,$KK$1)+(COUNTIF(H15,$KK$1))))) -> 0 | KL14: =COUNTIF(D15,$KL$1)+(COUNTIF(E15,$KL$1)+(COUNTIF(F15,$KL$1)+(COUNTIF(G15,$KL$1)+(COUNTIF(H15,$KL$1))))) -> 0 | KM14: =COUNTIF(D15,$KM$1)+(COUNTIF(E15,$KM$1)+(COUNTIF(F15,$KM$1)+(COUNTIF(G15,$KM$1)+(COUNTIF(H15,$KM$1))))) -> 0 | KN14: =COUNTIF(D15,$KN$1)+(COUNTIF(E15,$KN$1)+(COUNTIF(F15,$KN$1)+(COUNTIF(G15,$KN$1)+(COUNTIF(H15,$KN$1))))) -> 0 | KO14: =COUNTIF(D15,$KO$1)+(COUNTIF(E15,$KO$1)+(COUNTIF(F15,$KO$1)+(COUNTIF(G15,$KO$1)+(COUNTIF(H15,$KO$1))))) -> 0 | KP14: =COUNTIF(D15,$KP$1)+(COUNTIF(E15,$KP$1)+(COUNTIF(F15,$KP$1)+(COUNTIF(G15,$KP$1)+(COUNTIF(H15,$KP$1))))) -> 0 | KQ14: =COUNTIF(D15,$KQ$1)+(COUNTIF(E15,$KQ$1)+(COUNTIF(F15,$KQ$1)+(COUNTIF(G15,$KQ$1)+(COUNTIF(H15,$KQ$1))))) -> 0 | KR14: =COUNTIF(D15,$KR$1)+(COUNTIF(E15,$KR$1)+(COUNTIF(F15,$KR$1)+(COUNTIF(G15,$KR$1)+(COUNTIF(H15,$KR$1))))) -> 0 | KS14: =COUNTIF(D15,$KS$1)+(COUNTIF(E15,$KS$1)+(COUNTIF(F15,$KS$1)+(COUNTIF(G15,$KS$1)+(COUNTIF(H15,$KS$1))))) -> 0 | KT14: =COUNTIF(D15,$KT$1)+(COUNTIF(E15,$KT$1)+(COUNTIF(F15,$KT$1)+(COUNTIF(G15,$KT$1)+(COUNTIF(H15,$KT$1))))) -> 0 | KU14: =COUNTIF(D15,$KU$1)+(COUNTIF(E15,$KU$1)+(COUNTIF(F15,$KU$1)+(COUNTIF(G15,$KU$1)+(COUNTIF(H15,$KU$1))))) -> 1 | KV14: =COUNTIF(D15,$KV$1)+(COUNTIF(E15,$KV$1)+(COUNTIF(F15,$KV$1)+(COUNTIF(G15,$KV$1)+(COUNTIF(H15,$KV$1))))) -> 0 | KW14: =COUNTIF(D15,$KW$1)+(COUNTIF(E15,$KW$1)+(COUNTIF(F15,$KW$1)+(COUNTIF(G15,$KW$1)+(COUNTIF(H15,$KW$1))))) -> 1
A15: 397 | B15: LUNDI | C15: 2022-07-11 | D15: 1 | E15: 5 | F15: 10 | G15: 47 | H15: 49 | I15: 1 | J15: 9 | K15: j | L15: =COUNTIF(M14:P14,">0") -> 0 | M15: =_xlfn.LET(_xlpm.comp,RIGHT(D16:H16,1),_xlfn._xlws.FILTER(D16:H16,_xlfn.XMATCH(_xlpm.comp,_xlpm.comp)<>_xlfn.XMATCH(_xlpm.comp,_xlpm.comp,,-1))) ->  | Q15: =COUNTIF(D15:H15,D16:H16) -> 0 | R15: 0 | S15: 0 | T15: 0 | U15: 0 | V15: =IF(AND(W15>69,W15<164,OR(X15={1;2;3;4})),1,0) -> 1 | W15: =D16+E16+F16+G16+H16 -> 162 | X15: =SUMPRODUCT(( MOD(D16:H16,2)>0)*1) -> 2 | Y15: 1 | Z15: 0 | AA15: 0 | AB15: 0 | AC15: 0 | AD15: 1 | AE15: 1 | AF15: 1 | AG15: 0 | AH15: 1 | AI15: =COUNTIF(($D16:$H16),AI$1) -> 0 | AJ15: =COUNTIF(($D16:$H16),AJ$1) -> 0 | AK15: =COUNTIF(($D16:$H16),AK$1) -> 0 | AL15: =COUNTIF(($D16:$H16),AL$1) -> 0 | AM15: =COUNTIF(($D16:$H16),AM$1) -> 0 | AN15: =COUNTIF(($D16:$H16),AN$1) -> 0 | AO15: =COUNTIF(($D16:$H16),AO$1) -> 0 | AP15: =COUNTIF(($D16:$H16),AP$1) -> 0 | AQ15: =COUNTIF(($D16:$H16),AQ$1) -> 0 | AR15: =COUNTIF(($D16:$H16),AR$1) -> 0 | AS15: =COUNTIF(($D16:$H16),AS$1) -> 0 | AT15: =COUNTIF(($D16:$H16),AT$1) -> 0 | AU15: =COUNTIF(($D16:$H16),AU$1) -> 0 | AV15: =COUNTIF(($D16:$H16),AV$1) -> 0 | AW15: =COUNTIF(($D16:$H16),AW$1) -> 0 | AX15: =COUNTIF(($D16:$H16),AX$1) -> 0 | AY15: =COUNTIF(($D16:$H16),AY$1) -> 0 | AZ15: =COUNTIF(($D16:$H16),AZ$1) -> 0 | BA15: =COUNTIF(($D16:$H16),BA$1) -> 0 | BB15: =COUNTIF(($D16:$H16),BB$1) -> 1 | BC15: =COUNTIF(($D16:$H16),BC$1) -> 1 | BD15: =COUNTIF(($D16:$H16),BD$1) -> 0 | BE15: =COUNTIF(($D16:$H16),BE$1) -> 0 | BF15: =COUNTIF(($D16:$H16),BF$1) -> 0 | BG15: =COUNTIF(($D16:$H16),BG$1) -> 0 | BH15: =COUNTIF(($D16:$H16),BH$1) -> 0 | BI15: =COUNTIF((D16:H16),BI$1) -> 0 | BJ15: =COUNTIF((D16:H16),BJ$1) -> 0 | BK15: =COUNTIF((D16:H16),BK$1) -> 0 | BL15: =COUNTIF((D16:H16),BL$1) -> 0 | BM15: =COUNTIF((D16:H16),BM$1) -> 0 | BN15: =COUNTIF((D16:H16),BN$1) -> 0 | BO15: =COUNTIF((D16:H16),BO$1) -> 0 | BP15: =COUNTIF((D16:H16),BP$1) -> 0 | BQ15: =COUNTIF((D16:H16),BQ$1) -> 0 | BR15: =COUNTIF((D16:H16),BR$1) -> 1 | BS15: =COUNTIF((D16:H16),BS$1) -> 0 | BT15: =COUNTIF((D16:H16),BT$1) -> 1 | BU15: =COUNTIF((D16:H16),BU$1) -> 0 | BV15: =COUNTIF(D16:H16,"<10") -> 1 | BW15: =(COUNTIF(D16:H16,"<20")-BV15) -> 0 | BX15: =((COUNTIF(D16:H16,"<30")))-(BV15+BW15) -> 0 | BY15: =((COUNTIF(D16:H16,"<40")))-(BW15+BX15+BV15) -> 2 | BZ15: =((COUNTIF(D16:H16,"<50")))-(BX15+BY15+BW15+BV15) -> 2 | CB15: 1 | CC15: 0 | CD15: 0 | CE15: 1 | CF15: 1 | CG15: 0 | CH15: 0 | CI15: 0 | CJ15: 0 | CK15: 0 | CL15: 0 | CM15: 0 | CN15: 0 | CO15: 0 | CP15: 1 | CQ15: 0 | CR15: 0 | CS15: 0 | CT15: 0 | CU15: 0 | CV15: 0 | CW15: 0 | CX15: 0 | CY15: 0 | CZ15: 0 | DA15: 0 | DB15: 0 | DC15: 0 | DD15: 0 | DE15: 0 | DF15: 0 | DG15: 0 | DH15: 0 | DJ15: 0 | DK15: 0 | DL15: =COUNTIF((I16),$DL$1) -> 0 | DM15: =COUNTIF((I16),$DM$1) -> 0 | DN15: =COUNTIF((I16),$DN$1) -> 1 | DO15: =COUNTIF((I16),$DO$1) -> 0 | DP15: =COUNTIF((I16),$DP$1) -> 0 | DQ15: =COUNTIF((I16),$DQ$1) -> 0 | DR15: =COUNTIF((I16),$DR$1) -> 0 | DS15: =COUNTIF((I16),$DS$1) -> 0 | DT15: =COUNTIF((I16),$DT$1) -> 0 | DU15: =COUNTIF((I16),$DU$1) -> 0 | DW15: 0 | DX15: 1 | DY15: 0 | DZ15: 1 | EA15: 1 | EB15: 1 | EC15: 1 | ED15: 1 | EE15: 1 | EF15: 1 | EI15: 0 | EJ15: 1 | EK15: 0 | EL15: 1 | EM15: 1 | EN15: 1 | EO15: 1 | EP15: 1 | EQ15: 1 | ER15: 1 | ES15: =COUNTIF(I15,I16) -> 0 | ET15: =SUMPRODUCT(( MOD(I16,2)>0)*1) -> 1 | EU15: =IF((E16=D16+1)+(F16=E16+1)+(G16=F16+1)+(H16=G16+1),("1")*1,("")) -> 1 | EW15: =H16-D16 -> 41 | EX15: =(MID(D16,1,2)*1) -> 7 | EY15: =(MID(E16,2,1)*1) -> 0 | EZ15: =(MID(F16,2,1)*1) -> 1 | FA15: =(MID(G16,2,1)*1) -> 6 | FB15: =(MID(H16,2,1)*1) -> 8 | FC15: 0 | FD15: 1 | FE15: =I16 -> 3 | FF15: 0 | FG15: 0 | FH15: 0 | FI15: 0 | FJ15: 0 | FK15: =IF(E16=D16+1,("1")*1,("")) ->  | FL15: =IF(F16=E16+1,("1")*1,("")) -> 1 | FM15: =IF(G16=F16+1,("1")*1,("")) ->  | FN15: =IF(H16=G16+1,("1")*1,("")) ->  | FW15: =SUMPRODUCT(( MOD(D16,2)>0)*1) -> 1 | FX15: =SUMPRODUCT(( MOD(E16,2)>0)*1) -> 0 | FY15: =SUMPRODUCT(( MOD(F16,2)>0)*1) -> 1 | FZ15: =SUMPRODUCT(( MOD(G16,2)>0)*1) -> 0 | GA15: =SUMPRODUCT(( MOD(H16,2)>0)*1) -> 0 | GE15: 0 | GF15: 0 | GG15: 0 | GH15: 0 | GL15: 1 | GM15: 1 | GN15: 0 | GR15: 0 | GS15: 0 | GW15: 0 | HA15: 0 | JA15: =COUNTIF(D16,$JA$1)+(COUNTIF(E16,$JA$1)+(COUNTIF(F16,$JA$1)+(COUNTIF(G16,$JA$1)+(COUNTIF(H16,$JA$1))))) -> 0 | JB15: =COUNTIF(D16,$JB$1)+(COUNTIF(E16,$JB$1)+(COUNTIF(F16,$JB$1)+(COUNTIF(G16,$JB$1)+(COUNTIF(H16,$JB$1))))) -> 0 | JC15: =COUNTIF(D16,$JC$1)+(COUNTIF(E16,$JC$1)+(COUNTIF(F16,$JC$1)+(COUNTIF(G16,$JC$1)+(COUNTIF(H16,$JC$1))))) -> 0 | JD15: =COUNTIF(D16,$JD$1)+(COUNTIF(E16,$JD$1)+(COUNTIF(F16,$JD$1)+(COUNTIF(G16,$JD$1)+(COUNTIF(H16,$JD$1))))) -> 0 | JE15: =COUNTIF(D16,$JE$1)+(COUNTIF(E16,$JE$1)+(COUNTIF(F16,$JE$1)+(COUNTIF(G16,$JE$1)+(COUNTIF(H16,$JE$1))))) -> 0 | JF15: =COUNTIF(D16,$JF$1)+(COUNTIF(E16,$JF$1)+(COUNTIF(F16,$JF$1)+(COUNTIF(G16,$JF$1)+(COUNTIF(H16,$JF$1))))) -> 0 | JG15: =COUNTIF(D16,$JG$1)+(COUNTIF(E16,$JG$1)+(COUNTIF(F16,$JG$1)+(COUNTIF(G16,$JG$1)+(COUNTIF(H16,$JG$1))))) -> 1 | JH15: =COUNTIF(D16,$JH$1)+(COUNTIF(E16,$JH$1)+(COUNTIF(F16,$JH$1)+(COUNTIF(G16,$JH$1)+(COUNTIF(H16,$JH$1))))) -> 0 | JI15: =COUNTIF(D16,$JI$1)+(COUNTIF(E16,$JI$1)+(COUNTIF(F16,$JI$1)+(COUNTIF(G16,$JI$1)+(COUNTIF(H16,$JI$1))))) -> 0 | JJ15: =COUNTIF(D16,$JJ$1)+(COUNTIF(E16,$JJ$1)+(COUNTIF(F16,$JJ$1)+(COUNTIF(G16,$JJ$1)+(COUNTIF(H16,$JJ$1))))) -> 0 | JK15: =COUNTIF(D16,$JK$1)+(COUNTIF(E16,$JK$1)+(COUNTIF(F16,$JK$1)+(COUNTIF(G16,$JK$1)+(COUNTIF(H16,$JK$1))))) -> 0 | JL15: =COUNTIF(D16,$JL$1)+(COUNTIF(E16,$JL$1)+(COUNTIF(F16,$JL$1)+(COUNTIF(G16,$JL$1)+(COUNTIF(H16,$JL$1))))) -> 0 | JM15: =COUNTIF(D16,$JM$1)+(COUNTIF(E16,$JM$1)+(COUNTIF(F16,$JM$1)+(COUNTIF(G16,$JM$1)+(COUNTIF(H16,$JM$1))))) -> 0 | JN15: =COUNTIF(D16,$JN$1)+(COUNTIF(E16,$JN$1)+(COUNTIF(F16,$JN$1)+(COUNTIF(G16,$JN$1)+(COUNTIF(H16,$JN$1))))) -> 0 | JO15: =COUNTIF(D16,$JO$1)+(COUNTIF(E16,$JO$1)+(COUNTIF(F16,$JO$1)+(COUNTIF(G16,$JO$1)+(COUNTIF(H16,$JO$1))))) -> 0 | JP15: =COUNTIF(D16,$JP$1)+(COUNTIF(E16,$JP$1)+(COUNTIF(F16,$JP$1)+(COUNTIF(G16,$JP$1)+(COUNTIF(H16,$JP$1))))) -> 0 | JQ15: =COUNTIF(D16,$JQ$1)+(COUNTIF(E16,$JQ$1)+(COUNTIF(F16,$JQ$1)+(COUNTIF(G16,$JQ$1)+(COUNTIF(H16,$JQ$1))))) -> 0 | JR15: =COUNTIF(D16,$JR$1)+(COUNTIF(E16,$JR$1)+(COUNTIF(F16,$JR$1)+(COUNTIF(G16,$JR$1)+(COUNTIF(H16,$JR$1))))) -> 0 | JS15: =COUNTIF(D16,$JS$1)+(COUNTIF(E16,$JS$1)+(COUNTIF(F16,$JS$1)+(COUNTIF(G16,$JS$1)+(COUNTIF(H16,$JS$1))))) -> 0 | JT15: =COUNTIF(D16,$JT$1)+(COUNTIF(E16,$JT$1)+(COUNTIF(F16,$JT$1)+(COUNTIF(G16,$JT$1)+(COUNTIF(H16,$JT$1))))) -> 0 | JU15: =COUNTIF(D16,$JU$1)+(COUNTIF(E16,$JU$1)+(COUNTIF(F16,$JU$1)+(COUNTIF(G16,$JU$1)+(COUNTIF(H16,$JU$1))))) -> 0 | JV15: =COUNTIF(D16,$JV$1)+(COUNTIF(E16,$JV$1)+(COUNTIF(F16,$JV$1)+(COUNTIF(G16,$JV$1)+(COUNTIF(H16,$JV$1))))) -> 0 | JW15: =COUNTIF(D16,$JW$1)+(COUNTIF(E16,$JW$1)+(COUNTIF(F16,$JW$1)+(COUNTIF(G16,$JW$1)+(COUNTIF(H16,$JW$1))))) -> 0 | JX15: =COUNTIF(D16,$JX$1)+(COUNTIF(E16,$JX$1)+(COUNTIF(F16,$JX$1)+(COUNTIF(G16,$JX$1)+(COUNTIF(H16,$JX$1))))) -> 0 | JY15: =COUNTIF(D16,$JY$1)+(COUNTIF(E16,$JY$1)+(COUNTIF(F16,$JY$1)+(COUNTIF(G16,$JY$1)+(COUNTIF(H16,$JY$1))))) -> 0 | JZ15: =COUNTIF(D16,$JZ$1)+(COUNTIF(E16,$JZ$1)+(COUNTIF(F16,$JZ$1)+(COUNTIF(G16,$JZ$1)+(COUNTIF(H16,$JZ$1))))) -> 0 | KA15: =COUNTIF(D16,$KA$1)+(COUNTIF(E16,$KA$1)+(COUNTIF(F16,$KA$1)+(COUNTIF(G16,$KA$1)+(COUNTIF(H16,$KA$1))))) -> 0 | KB15: =COUNTIF(D16,$KB$1)+(COUNTIF(E16,$KB$1)+(COUNTIF(F16,$KB$1)+(COUNTIF(G16,$KB$1)+(COUNTIF(H16,$KB$1))))) -> 0 | KC15: =COUNTIF(D16,$KC$1)+(COUNTIF(E16,$KC$1)+(COUNTIF(F16,$KC$1)+(COUNTIF(G16,$KC$1)+(COUNTIF(H16,$KC$1))))) -> 0 | KD15: =COUNTIF(D16,$KD$1)+(COUNTIF(E16,$KD$1)+(COUNTIF(F16,$KD$1)+(COUNTIF(G16,$KD$1)+(COUNTIF(H16,$KD$1))))) -> 1 | KE15: =COUNTIF(D16,$KE$1)+(COUNTIF(E16,$KE$1)+(COUNTIF(F16,$KE$1)+(COUNTIF(G16,$KE$1)+(COUNTIF(H16,$KE$1))))) -> 1 | KF15: =COUNTIF(D16,$KF$1)+(COUNTIF(E16,$KF$1)+(COUNTIF(F16,$KF$1)+(COUNTIF(G16,$KF$1)+(COUNTIF(H16,$KF$1))))) -> 0 | KG15: =COUNTIF(D16,$KG$1)+(COUNTIF(E16,$KG$1)+(COUNTIF(F16,$KG$1)+(COUNTIF(G16,$KG$1)+(COUNTIF(H16,$KG$1))))) -> 0 | KH15: =COUNTIF(D16,$KH$1)+(COUNTIF(E16,$KH$1)+(COUNTIF(F16,$KH$1)+(COUNTIF(G16,$KH$1)+(COUNTIF(H16,$KH$1))))) -> 0 | KI15: =COUNTIF(D16,$KI$1)+(COUNTIF(E16,$KI$1)+(COUNTIF(F16,$KI$1)+(COUNTIF(G16,$KI$1)+(COUNTIF(H16,$KI$1))))) -> 0 | KJ15: =COUNTIF(D16,$KJ$1)+(COUNTIF(E16,$KJ$1)+(COUNTIF(F16,$KJ$1)+(COUNTIF(G16,$KJ$1)+(COUNTIF(H16,$KJ$1))))) -> 0 | KK15: =COUNTIF(D16,$KK$1)+(COUNTIF(E16,$KK$1)+(COUNTIF(F16,$KK$1)+(COUNTIF(G16,$KK$1)+(COUNTIF(H16,$KK$1))))) -> 0 | KL15: =COUNTIF(D16,$KL$1)+(COUNTIF(E16,$KL$1)+(COUNTIF(F16,$KL$1)+(COUNTIF(G16,$KL$1)+(COUNTIF(H16,$KL$1))))) -> 0 | KM15: =COUNTIF(D16,$KM$1)+(COUNTIF(E16,$KM$1)+(COUNTIF(F16,$KM$1)+(COUNTIF(G16,$KM$1)+(COUNTIF(H16,$KM$1))))) -> 0 | KN15: =COUNTIF(D16,$KN$1)+(COUNTIF(E16,$KN$1)+(COUNTIF(F16,$KN$1)+(COUNTIF(G16,$KN$1)+(COUNTIF(H16,$KN$1))))) -> 0 | KO15: =COUNTIF(D16,$KO$1)+(COUNTIF(E16,$KO$1)+(COUNTIF(F16,$KO$1)+(COUNTIF(G16,$KO$1)+(COUNTIF(H16,$KO$1))))) -> 0 | KP15: =COUNTIF(D16,$KP$1)+(COUNTIF(E16,$KP$1)+(COUNTIF(F16,$KP$1)+(COUNTIF(G16,$KP$1)+(COUNTIF(H16,$KP$1))))) -> 0 | KQ15: =COUNTIF(D16,$KQ$1)+(COUNTIF(E16,$KQ$1)+(COUNTIF(F16,$KQ$1)+(COUNTIF(G16,$KQ$1)+(COUNTIF(H16,$KQ$1))))) -> 0 | KR15: =COUNTIF(D16,$KR$1)+(COUNTIF(E16,$KR$1)+(COUNTIF(F16,$KR$1)+(COUNTIF(G16,$KR$1)+(COUNTIF(H16,$KR$1))))) -> 0 | KS15: =COUNTIF(D16,$KS$1)+(COUNTIF(E16,$KS$1)+(COUNTIF(F16,$KS$1)+(COUNTIF(G16,$KS$1)+(COUNTIF(H16,$KS$1))))) -> 0 | KT15: =COUNTIF(D16,$KT$1)+(COUNTIF(E16,$KT$1)+(COUNTIF(F16,$KT$1)+(COUNTIF(G16,$KT$1)+(COUNTIF(H16,$KT$1))))) -> 1 | KU15: =COUNTIF(D16,$KU$1)+(COUNTIF(E16,$KU$1)+(COUNTIF(F16,$KU$1)+(COUNTIF(G16,$KU$1)+(COUNTIF(H16,$KU$1))))) -> 0 | KV15: =COUNTIF(D16,$KV$1)+(COUNTIF(E16,$KV$1)+(COUNTIF(F16,$KV$1)+(COUNTIF(G16,$KV$1)+(COUNTIF(H16,$KV$1))))) -> 1 | KW15: =COUNTIF(D16,$KW$1)+(COUNTIF(E16,$KW$1)+(COUNTIF(F16,$KW$1)+(COUNTIF(G16,$KW$1)+(COUNTIF(H16,$KW$1))))) -> 0
A16: 396 | B16: MERCREDI | C16: 2022-07-13 | D16: 7 | E16: 30 | F16: 31 | G16: 46 | H16: 48 | I16: 3 | J16: 8 | K16: i | L16: =COUNTIF(M15:P15,">0") -> 0 | M16: =_xlfn.LET(_xlpm.comp,RIGHT(D17:H17,1),_xlfn._xlws.FILTER(D17:H17,_xlfn.XMATCH(_xlpm.comp,_xlpm.comp)<>_xlfn.XMATCH(_xlpm.comp,_xlpm.comp,,-1))) -> 3 | N16: 4 | O16: 14 | P16: 33 | Q16: =COUNTIF(D16:H16,D17:H17) -> 0 | R16: 0 | S16: 0 | T16: 0 | U16: 0 | V16: =IF(AND(W16>69,W16<164,OR(X16={1;2;3;4})),1,0) -> 1 | W16: =D17+E17+F17+G17+H17 -> 103 | X16: =SUMPRODUCT(( MOD(D17:H17,2)>0)*1) -> 3 | Y16: 0 | Z16: 0 | AA16: 2 | AB16: 2 | AC16: 0 | AD16: 0 | AE16: 0 | AF16: 0 | AG16: 1 | AH16: 0 | AI16: =COUNTIF(($D17:$H17),AI$1) -> 0 | AJ16: =COUNTIF(($D17:$H17),AJ$1) -> 0 | AK16: =COUNTIF(($D17:$H17),AK$1) -> 0 | AL16: =COUNTIF(($D17:$H17),AL$1) -> 1 | AM16: =COUNTIF(($D17:$H17),AM$1) -> 0 | AN16: =COUNTIF(($D17:$H17),AN$1) -> 0 | AO16: =COUNTIF(($D17:$H17),AO$1) -> 0 | AP16: =COUNTIF(($D17:$H17),AP$1) -> 0 | AQ16: =COUNTIF(($D17:$H17),AQ$1) -> 0 | AR16: =COUNTIF(($D17:$H17),AR$1) -> 0 | AS16: =COUNTIF(($D17:$H17),AS$1) -> 0 | AT16: =COUNTIF(($D17:$H17),AT$1) -> 0 | AU16: =COUNTIF(($D17:$H17),AU$1) -> 0 | AV16: =COUNTIF(($D17:$H17),AV$1) -> 0 | AW16: =COUNTIF(($D17:$H17),AW$1) -> 0 | AX16: =COUNTIF(($D17:$H17),AX$1) -> 0 | AY16: =COUNTIF(($D17:$H17),AY$1) -> 0 | AZ16: =COUNTIF(($D17:$H17),AZ$1) -> 0 | BA16: =COUNTIF(($D17:$H17),BA$1) -> 0 | BB16: =COUNTIF(($D17:$H17),BB$1) -> 0 | BC16: =COUNTIF(($D17:$H17),BC$1) -> 0 | BD16: =COUNTIF(($D17:$H17),BD$1) -> 0 | BE16: =COUNTIF(($D17:$H17),BE$1) -> 1 | BF16: =COUNTIF(($D17:$H17),BF$1) -> 0 | BG16: =COUNTIF(($D17:$H17),BG$1) -> 0 | BH16: =COUNTIF(($D17:$H17),BH$1) -> 0 | BI16: =COUNTIF((D17:H17),BI$1) -> 0 | BJ16: =COUNTIF((D17:H17),BJ$1) -> 0 | BK16: =COUNTIF((D17:H17),BK$1) -> 0 | BL16: =COUNTIF((D17:H17),BL$1) -> 0 | BM16: =COUNTIF((D17:H17),BM$1) -> 0 | BN16: =COUNTIF((D17:H17),BN$1) -> 0 | BO16: =COUNTIF((D17:H17),BO$1) -> 0 | BP16: =COUNTIF((D17:H17),BP$1) -> 0 | BQ16: =COUNTIF((D17:H17),BQ$1) -> 0 | BR16: =COUNTIF((D17:H17),BR$1) -> 0 | BS16: =COUNTIF((D17:H17),BS$1) -> 0 | BT16: =COUNTIF((D17:H17),BT$1) -> 0 | BU16: =COUNTIF((D17:H17),BU$1) -> 1 | BV16: =COUNTIF(D17:H17,"<10") -> 2 | BW16: =(COUNTIF(D17:H17,"<20")-BV16) -> 1 | BX16: =((COUNTIF(D17:H17,"<30")))-(BV16+BW16) -> 0 | BY16: =((COUNTIF(D17:H17,"<40")))-(BW16+BX16+BV16) -> 1 | BZ16: =((COUNTIF(D17:H17,"<50")))-(BX16+BY16+BW16+BV16) -> 1 | CB16: 1 | CC16: 1 | CD16: 0 | CE16: 1 | CF16: 1 | CG16: 0 | CH16: 0 | CI16: 0 | CJ16: 1 | CK16: 0 | CL16: 0 | CM16: 0 | CN16: 0 | CO16: 0 | CP16: 0 | CQ16: 0 | CR16: 0 | CS16: 0 | CT16: 0 | CU16: 0 | CV16: 0 | CW16: 0 | CX16: 0 | CY16: 0 | CZ16: 0 | DA16: 0 | DB16: 0 | DC16: 0 | DD16: 0 | DE16: 0 | DF16: 0 | DG16: 0 | DH16: 0 | DJ16: 0 | DK16: 0 | DL16: =COUNTIF((I17),$DL$1) -> 0 | DM16: =COUNTIF((I17),$DM$1) -> 0 | DN16: =COUNTIF((I17),$DN$1) -> 1 | DO16: =COUNTIF((I17),$DO$1) -> 0 | DP16: =COUNTIF((I17),$DP$1) -> 0 | DQ16: =COUNTIF((I17),$DQ$1) -> 0 | DR16: =COUNTIF((I17),$DR$1) -> 0 | DS16: =COUNTIF((I17),$DS$1) -> 0 | DT16: =COUNTIF((I17),$DT$1) -> 0 | DU16: =COUNTIF((I17),$DU$1) -> 0 | DW16: 1 | DX16: 1 | DY16: 1 | DZ16: 1 | EA16: 1 | EB16: 1 | EC16: 1 | ED16: 1 | EE16: 1 | EF16: 1 | EI16: 1 | EJ16: 1 | EK16: 1 | EL16: 1 | EM16: 1 | EN16: 1 | EO16: 1 | EP16: 1 | EQ16: 1 | ER16: 1 | ES16: =COUNTIF(I16,I17) -> 1 | ET16: =SUMPRODUCT(( MOD(I17,2)>0)*1) -> 1 | EU16: =IF((E17=D17+1)+(F17=E17+1)+(G17=F17+1)+(H17=G17+1),("1")*1,("")) -> 1 | EV16: 1 | EW16: =H17-D17 -> 46 | EX16: =(MID(D17,1,2)*1) -> 3 | EY16: =(MID(E17,1,1)*1) -> 4 | EZ16: =(MID(F17,2,1)*1) -> 4 | FA16: =(MID(G17,2,1)*1) -> 3 | FB16: =(MID(H17,2,1)*1) -> 9 | FC16: 2 | FD16: 1 | FE16: =I17 -> 3 | FF16: 1 | FG16: 0 | FH16: 0 | FI16: 1 | FJ16: 0 | FK16: =IF(E17=D17+1,("1")*1,("")) -> 1 | FL16: =IF(F17=E17+1,("1")*1,("")) ->  | FM16: =IF(G17=F17+1,("1")*1,("")) ->  | FN16: =IF(H17=G17+1,("1")*1,("")) ->  | FW16: =SUMPRODUCT(( MOD(D17,2)>0)*1) -> 1 | FX16: =SUMPRODUCT(( MOD(E17,2)>0)*1) -> 0 | FY16: =SUMPRODUCT(( MOD(F17,2)>0)*1) -> 0 | FZ16: =SUMPRODUCT(( MOD(G17,2)>0)*1) -> 1 | GA16: =SUMPRODUCT(( MOD(H17,2)>0)*1) -> 1 | GE16: 0 | GF16: 0 | GG16: 0 | GH16: 1 | GL16: 0 | GM16: 0 | GN16: 0 | GR16: 1 | GS16: 0 | GW16: 1 | HA16: 0 | JA16: =COUNTIF(D17,$JA$1)+(COUNTIF(E17,$JA$1)+(COUNTIF(F17,$JA$1)+(COUNTIF(G17,$JA$1)+(COUNTIF(H17,$JA$1))))) -> 0 | JB16: =COUNTIF(D17,$JB$1)+(COUNTIF(E17,$JB$1)+(COUNTIF(F17,$JB$1)+(COUNTIF(G17,$JB$1)+(COUNTIF(H17,$JB$1))))) -> 0 | JC16: =COUNTIF(D17,$JC$1)+(COUNTIF(E17,$JC$1)+(COUNTIF(F17,$JC$1)+(COUNTIF(G17,$JC$1)+(COUNTIF(H17,$JC$1))))) -> 1 | JD16: =COUNTIF(D17,$JD$1)+(COUNTIF(E17,$JD$1)+(COUNTIF(F17,$JD$1)+(COUNTIF(G17,$JD$1)+(COUNTIF(H17,$JD$1))))) -> 1 | JE16: =COUNTIF(D17,$JE$1)+(COUNTIF(E17,$JE$1)+(COUNTIF(F17,$JE$1)+(COUNTIF(G17,$JE$1)+(COUNTIF(H17,$JE$1))))) -> 0 | JF16: =COUNTIF(D17,$JF$1)+(COUNTIF(E17,$JF$1)+(COUNTIF(F17,$JF$1)+(COUNTIF(G17,$JF$1)+(COUNTIF(H17,$JF$1))))) -> 0 | JG16: =COUNTIF(D17,$JG$1)+(COUNTIF(E17,$JG$1)+(COUNTIF(F17,$JG$1)+(COUNTIF(G17,$JG$1)+(COUNTIF(H17,$JG$1))))) -> 0 | JH16: =COUNTIF(D17,$JH$1)+(COUNTIF(E17,$JH$1)+(COUNTIF(F17,$JH$1)+(COUNTIF(G17,$JH$1)+(COUNTIF(H17,$JH$1))))) -> 0 | JI16: =COUNTIF(D17,$JI$1)+(COUNTIF(E17,$JI$1)+(COUNTIF(F17,$JI$1)+(COUNTIF(G17,$JI$1)+(COUNTIF(H17,$JI$1))))) -> 0 | JJ16: =COUNTIF(D17,$JJ$1)+(COUNTIF(E17,$JJ$1)+(COUNTIF(F17,$JJ$1)+(COUNTIF(G17,$JJ$1)+(COUNTIF(H17,$JJ$1))))) -> 0 | JK16: =COUNTIF(D17,$JK$1)+(COUNTIF(E17,$JK$1)+(COUNTIF(F17,$JK$1)+(COUNTIF(G17,$JK$1)+(COUNTIF(H17,$JK$1))))) -> 0 | JL16: =COUNTIF(D17,$JL$1)+(COUNTIF(E17,$JL$1)+(COUNTIF(F17,$JL$1)+(COUNTIF(G17,$JL$1)+(COUNTIF(H17,$JL$1))))) -> 0 | JM16: =COUNTIF(D17,$JM$1)+(COUNTIF(E17,$JM$1)+(COUNTIF(F17,$JM$1)+(COUNTIF(G17,$JM$1)+(COUNTIF(H17,$JM$1))))) -> 0 | JN16: =COUNTIF(D17,$JN$1)+(COUNTIF(E17,$JN$1)+(COUNTIF(F17,$JN$1)+(COUNTIF(G17,$JN$1)+(COUNTIF(H17,$JN$1))))) -> 1 | JO16: =COUNTIF(D17,$JO$1)+(COUNTIF(E17,$JO$1)+(COUNTIF(F17,$JO$1)+(COUNTIF(G17,$JO$1)+(COUNTIF(H17,$JO$1))))) -> 0 | JP16: =COUNTIF(D17,$JP$1)+(COUNTIF(E17,$JP$1)+(COUNTIF(F17,$JP$1)+(COUNTIF(G17,$JP$1)+(COUNTIF(H17,$JP$1))))) -> 0 | JQ16: =COUNTIF(D17,$JQ$1)+(COUNTIF(E17,$JQ$1)+(COUNTIF(F17,$JQ$1)+(COUNTIF(G17,$JQ$1)+(COUNTIF(H17,$JQ$1))))) -> 0 | JR16: =COUNTIF(D17,$JR$1)+(COUNTIF(E17,$JR$1)+(COUNTIF(F17,$JR$1)+(COUNTIF(G17,$JR$1)+(COUNTIF(H17,$JR$1))))) -> 0 | JS16: =COUNTIF(D17,$JS$1)+(COUNTIF(E17,$JS$1)+(COUNTIF(F17,$JS$1)+(COUNTIF(G17,$JS$1)+(COUNTIF(H17,$JS$1))))) -> 0 | JT16: =COUNTIF(D17,$JT$1)+(COUNTIF(E17,$JT$1)+(COUNTIF(F17,$JT$1)+(COUNTIF(G17,$JT$1)+(COUNTIF(H17,$JT$1))))) -> 0 | JU16: =COUNTIF(D17,$JU$1)+(COUNTIF(E17,$JU$1)+(COUNTIF(F17,$JU$1)+(COUNTIF(G17,$JU$1)+(COUNTIF(H17,$JU$1))))) -> 0 | JV16: =COUNTIF(D17,$JV$1)+(COUNTIF(E17,$JV$1)+(COUNTIF(F17,$JV$1)+(COUNTIF(G17,$JV$1)+(COUNTIF(H17,$JV$1))))) -> 0 | JW16: =COUNTIF(D17,$JW$1)+(COUNTIF(E17,$JW$1)+(COUNTIF(F17,$JW$1)+(COUNTIF(G17,$JW$1)+(COUNTIF(H17,$JW$1))))) -> 0 | JX16: =COUNTIF(D17,$JX$1)+(COUNTIF(E17,$JX$1)+(COUNTIF(F17,$JX$1)+(COUNTIF(G17,$JX$1)+(COUNTIF(H17,$JX$1))))) -> 0 | JY16: =COUNTIF(D17,$JY$1)+(COUNTIF(E17,$JY$1)+(COUNTIF(F17,$JY$1)+(COUNTIF(G17,$JY$1)+(COUNTIF(H17,$JY$1))))) -> 0 | JZ16: =COUNTIF(D17,$JZ$1)+(COUNTIF(E17,$JZ$1)+(COUNTIF(F17,$JZ$1)+(COUNTIF(G17,$JZ$1)+(COUNTIF(H17,$JZ$1))))) -> 0 | KA16: =COUNTIF(D17,$KA$1)+(COUNTIF(E17,$KA$1)+(COUNTIF(F17,$KA$1)+(COUNTIF(G17,$KA$1)+(COUNTIF(H17,$KA$1))))) -> 0 | KB16: =COUNTIF(D17,$KB$1)+(COUNTIF(E17,$KB$1)+(COUNTIF(F17,$KB$1)+(COUNTIF(G17,$KB$1)+(COUNTIF(H17,$KB$1))))) -> 0 | KC16: =COUNTIF(D17,$KC$1)+(COUNTIF(E17,$KC$1)+(COUNTIF(F17,$KC$1)+(COUNTIF(G17,$KC$1)+(COUNTIF(H17,$KC$1))))) -> 0 | KD16: =COUNTIF(D17,$KD$1)+(COUNTIF(E17,$KD$1)+(COUNTIF(F17,$KD$1)+(COUNTIF(G17,$KD$1)+(COUNTIF(H17,$KD$1))))) -> 0 | KE16: =COUNTIF(D17,$KE$1)+(COUNTIF(E17,$KE$1)+(COUNTIF(F17,$KE$1)+(COUNTIF(G17,$KE$1)+(COUNTIF(H17,$KE$1))))) -> 0 | KF16: =COUNTIF(D17,$KF$1)+(COUNTIF(E17,$KF$1)+(COUNTIF(F17,$KF$1)+(COUNTIF(G17,$KF$1)+(COUNTIF(H17,$KF$1))))) -> 0 | KG16: =COUNTIF(D17,$KG$1)+(COUNTIF(E17,$KG$1)+(COUNTIF(F17,$KG$1)+(COUNTIF(G17,$KG$1)+(COUNTIF(H17,$KG$1))))) -> 1 | KH16: =COUNTIF(D17,$KH$1)+(COUNTIF(E17,$KH$1)+(COUNTIF(F17,$KH$1)+(COUNTIF(G17,$KH$1)+(COUNTIF(H17,$KH$1))))) -> 0 | KI16: =COUNTIF(D17,$KI$1)+(COUNTIF(E17,$KI$1)+(COUNTIF(F17,$KI$1)+(COUNTIF(G17,$KI$1)+(COUNTIF(H17,$KI$1))))) -> 0 | KJ16: =COUNTIF(D17,$KJ$1)+(COUNTIF(E17,$KJ$1)+(COUNTIF(F17,$KJ$1)+(COUNTIF(G17,$KJ$1)+(COUNTIF(H17,$KJ$1))))) -> 0 | KK16: =COUNTIF(D17,$KK$1)+(COUNTIF(E17,$KK$1)+(COUNTIF(F17,$KK$1)+(COUNTIF(G17,$KK$1)+(COUNTIF(H17,$KK$1))))) -> 0 | KL16: =COUNTIF(D17,$KL$1)+(COUNTIF(E17,$KL$1)+(COUNTIF(F17,$KL$1)+(COUNTIF(G17,$KL$1)+(COUNTIF(H17,$KL$1))))) -> 0 | KM16: =COUNTIF(D17,$KM$1)+(COUNTIF(E17,$KM$1)+(COUNTIF(F17,$KM$1)+(COUNTIF(G17,$KM$1)+(COUNTIF(H17,$KM$1))))) -> 0 | KN16: =COUNTIF(D17,$KN$1)+(COUNTIF(E17,$KN$1)+(COUNTIF(F17,$KN$1)+(COUNTIF(G17,$KN$1)+(COUNTIF(H17,$KN$1))))) -> 0 | KO16: =COUNTIF(D17,$KO$1)+(COUNTIF(E17,$KO$1)+(COUNTIF(F17,$KO$1)+(COUNTIF(G17,$KO$1)+(COUNTIF(H17,$KO$1))))) -> 0 | KP16: =COUNTIF(D17,$KP$1)+(COUNTIF(E17,$KP$1)+(COUNTIF(F17,$KP$1)+(COUNTIF(G17,$KP$1)+(COUNTIF(H17,$KP$1))))) -> 0 | KQ16: =COUNTIF(D17,$KQ$1)+(COUNTIF(E17,$KQ$1)+(COUNTIF(F17,$KQ$1)+(COUNTIF(G17,$KQ$1)+(COUNTIF(H17,$KQ$1))))) -> 0 | KR16: =COUNTIF(D17,$KR$1)+(COUNTIF(E17,$KR$1)+(COUNTIF(F17,$KR$1)+(COUNTIF(G17,$KR$1)+(COUNTIF(H17,$KR$1))))) -> 0 | KS16: =COUNTIF(D17,$KS$1)+(COUNTIF(E17,$KS$1)+(COUNTIF(F17,$KS$1)+(COUNTIF(G17,$KS$1)+(COUNTIF(H17,$KS$1))))) -> 0 | KT16: =COUNTIF(D17,$KT$1)+(COUNTIF(E17,$KT$1)+(COUNTIF(F17,$KT$1)+(COUNTIF(G17,$KT$1)+(COUNTIF(H17,$KT$1))))) -> 0 | KU16: =COUNTIF(D17,$KU$1)+(COUNTIF(E17,$KU$1)+(COUNTIF(F17,$KU$1)+(COUNTIF(G17,$KU$1)+(COUNTIF(H17,$KU$1))))) -> 0 | KV16: =COUNTIF(D17,$KV$1)+(COUNTIF(E17,$KV$1)+(COUNTIF(F17,$KV$1)+(COUNTIF(G17,$KV$1)+(COUNTIF(H17,$KV$1))))) -> 0 | KW16: =COUNTIF(D17,$KW$1)+(COUNTIF(E17,$KW$1)+(COUNTIF(F17,$KW$1)+(COUNTIF(G17,$KW$1)+(COUNTIF(H17,$KW$1))))) -> 1
A17: 395 | B17: SAMEDI | C17: 2022-07-16 | D17: 3 | E17: 4 | F17: 14 | G17: 33 | H17: 49 | I17: 3 | J17: 9 | K17: j | L17: =COUNTIF(M16:P16,">0") -> 4 | M17: =_xlfn.LET(_xlpm.comp,RIGHT(D18:H18,1),_xlfn._xlws.FILTER(D18:H18,_xlfn.XMATCH(_xlpm.comp,_xlpm.comp)<>_xlfn.XMATCH(_xlpm.comp,_xlpm.comp,,-1))) -> 29 | N17: 49 | Q17: =COUNTIF(D17:H17,D18:H18) -> 0 | R17: 0 | S17: 0 | T17: 0 | U17: 1 | V17: =IF(AND(W17>69,W17<164,OR(X17={1;2;3;4})),1,0) -> 1 | W17: =D18+E18+F18+G18+H18 -> 138 | X17: =SUMPRODUCT(( MOD(D18:H18,2)>0)*1) -> 4 | Y17: 0 | Z17: 0 | AA17: 0 | AB17: 0 | AC17: 1 | AD17: 0 | AE17: 1 | AF17: 1 | AG17: 2 | AH17: 0 | AI17: =COUNTIF(($D18:$H18),AI$1) -> 0 | AJ17: =COUNTIF(($D18:$H18),AJ$1) -> 0 | AK17: =COUNTIF(($D18:$H18),AK$1) -> 0 | AL17: =COUNTIF(($D18:$H18),AL$1) -> 0 | AM17: =COUNTIF(($D18:$H18),AM$1) -> 0 | AN17: =COUNTIF(($D18:$H18),AN$1) -> 0 | AO17: =COUNTIF(($D18:$H18),AO$1) -> 0 | AP17: =COUNTIF(($D18:$H18),AP$1) -> 1 | AQ17: =COUNTIF(($D18:$H18),AQ$1) -> 0 | AR17: =COUNTIF(($D18:$H18),AR$1) -> 0 | AS17: =COUNTIF(($D18:$H18),AS$1) -> 0 | AT17: =COUNTIF(($D18:$H18),AT$1) -> 0 | AU17: =COUNTIF(($D18:$H18),AU$1) -> 0 | AV17: =COUNTIF(($D18:$H18),AV$1) -> 0 | AW17: =COUNTIF(($D18:$H18),AW$1) -> 0 | AX17: =COUNTIF(($D18:$H18),AX$1) -> 0 | AY17: =COUNTIF(($D18:$H18),AY$1) -> 0 | AZ17: =COUNTIF(($D18:$H18),AZ$1) -> 0 | BA17: =COUNTIF(($D18:$H18),BA$1) -> 1 | BB17: =COUNTIF(($D18:$H18),BB$1) -> 0 | BC17: =COUNTIF(($D18:$H18),BC$1) -> 0 | BD17: =COUNTIF(($D18:$H18),BD$1) -> 0 | BE17: =COUNTIF(($D18:$H18),BE$1) -> 0 | BF17: =COUNTIF(($D18:$H18),BF$1) -> 0 | BG17: =COUNTIF(($D18:$H18),BG$1) -> 0 | BH17: =COUNTIF(($D18:$H18),BH$1) -> 0 | BI17: =COUNTIF((D18:H18),BI$1) -> 1 | BJ17: =COUNTIF((D18:H18),BJ$1) -> 0 | BK17: =COUNTIF((D18:H18),BK$1) -> 0 | BL17: =COUNTIF((D18:H18),BL$1) -> 0 | BM17: =COUNTIF((D18:H18),BM$1) -> 0 | BN17: =COUNTIF((D18:H18),BN$1) -> 0 | BO17: =COUNTIF((D18:H18),BO$1) -> 0 | BP17: =COUNTIF((D18:H18),BP$1) -> 0 | BQ17: =COUNTIF((D18:H18),BQ$1) -> 0 | BR17: =COUNTIF((D18:H18),BR$1) -> 0 | BS17: =COUNTIF((D18:H18),BS$1) -> 0 | BT17: =COUNTIF((D18:H18),BT$1) -> 0 | BU17: =COUNTIF((D18:H18),BU$1) -> 1 | BV17: =COUNTIF(D18:H18,"<10") -> 1 | BW17: =(COUNTIF(D18:H18,"<20")-BV17) -> 1 | BX17: =((COUNTIF(D18:H18,"<30")))-(BV17+BW17) -> 1 | BY17: =((COUNTIF(D18:H18,"<40")))-(BW17+BX17+BV17) -> 1 | BZ17: =((COUNTIF(D18:H18,"<50")))-(BX17+BY17+BW17+BV17) -> 1 | CA17: 1 | CB17: 1 | CC17: 1 | CD17: 1 | CE17: 1 | CF17: 1 | CG17: 1 | CH17: 0 | CI17: 0 | CJ17: 0 | CK17: 0 | CL17: 0 | CM17: 0 | CN17: 0 | CO17: 0 | CP17: 0 | CQ17: 0 | CR17: 0 | CS17: 0 | CT17: 0 | CU17: 0 | CV17: 0 | CW17: 0 | CX17: 0 | CY17: 0 | CZ17: 0 | DA17: 0 | DB17: 0 | DC17: 0 | DD17: 0 | DE17: 0 | DF17: 0 | DG17: 0 | DH17: 0 | DJ17: 0 | DK17: 0 | DL17: =COUNTIF((I18),$DL$1) -> 0 | DM17: =COUNTIF((I18),$DM$1) -> 0 | DN17: =COUNTIF((I18),$DN$1) -> 0 | DO17: =COUNTIF((I18),$DO$1) -> 0 | DP17: =COUNTIF((I18),$DP$1) -> 0 | DQ17: =COUNTIF((I18),$DQ$1) -> 0 | DR17: =COUNTIF((I18),$DR$1) -> 0 | DS17: =COUNTIF((I18),$DS$1) -> 1 | DT17: =COUNTIF((I18),$DT$1) -> 0 | DU17: =COUNTIF((I18),$DU$1) -> 0 | DW17: 1 | DX17: 1 | DY17: 0 | DZ17: 1 | EA17: 1 | EB17: 1 | EC17: 1 | ED17: 0 | EE17: 1 | EF17: 1 | EI17: =COUNTIF(DW17,"=1") -> 1 | EJ17: =COUNTIF(DX17,"=1") -> 1 | EK17: =COUNTIF(DY17,"=1") -> 0 | EL17: =COUNTIF(DZ17,"=1") -> 1 | EM17: =COUNTIF(EA17,"=1") -> 1 | EN17: =COUNTIF(EB17,"=1") -> 1 | EO17: =COUNTIF(EC17,"=1") -> 1 | EP17: =COUNTIF(ED17,"=1") -> 0 | EQ17: =COUNTIF(EE17,"=1") -> 1 | ER17: =COUNTIF(EF17,"=1") -> 1 | ES17: =COUNTIF(I17,I18) -> 0 | ET17: =SUMPRODUCT(( MOD(I18,2)>0)*1) -> 0 | EU17: =IF((E18=D18+1)+(F18=E18+1)+(G18=F18+1)+(H18=G18+1),("1")*1,("")) ->  | EV17: 1 | EW17: =H18-D18 -> 44 | EX17: =(MID(D18,1,2)*1) -> 5 | EY17: =(MID(E18,2,1)*1) -> 8 | EZ17: =(MID(F18,2,1)*1) -> 9 | FA17: =(MID(G18,2,1)*1) -> 7 | FB17: =(MID(H18,2,1)*1) -> 9 | FC17: 1 | FD17: 1 | FE17: =I18 -> 8 | FF17: 0 | FG17: 1 | FH17: 0 | FI17: 0 | FJ17: 0 | FK17: =IF(E18=D18+1,("1")*1,("")) ->  | FL17: =IF(F18=E18+1,("1")*1,("")) ->  | FM17: =IF(G18=F18+1,("1")*1,("")) ->  | FN17: =IF(H18=G18+1,("1")*1,("")) ->  | FW17: =SUMPRODUCT(( MOD(D18,2)>0)*1) -> 1 | FX17: =SUMPRODUCT(( MOD(E18,2)>0)*1) -> 0 | FY17: =SUMPRODUCT(( MOD(F18,2)>0)*1) -> 1 | FZ17: =SUMPRODUCT(( MOD(G18,2)>0)*1) -> 1 | GA17: =SUMPRODUCT(( MOD(H18,2)>0)*1) -> 1 | GE17: 0 | GF17: 0 | GG17: 1 | GH17: 1 | GL17: 1 | GM17: 0 | GN17: 1 | GR17: 1 | GS17: 0 | GW17: 1 | HA17: 0 | JA17: =COUNTIF(D18,$JA$1)+(COUNTIF(E18,$JA$1)+(COUNTIF(F18,$JA$1)+(COUNTIF(G18,$JA$1)+(COUNTIF(H18,$JA$1))))) -> 0 | JB17: =COUNTIF(D18,$JB$1)+(COUNTIF(E18,$JB$1)+(COUNTIF(F18,$JB$1)+(COUNTIF(G18,$JB$1)+(COUNTIF(H18,$JB$1))))) -> 0 | JC17: =COUNTIF(D18,$JC$1)+(COUNTIF(E18,$JC$1)+(COUNTIF(F18,$JC$1)+(COUNTIF(G18,$JC$1)+(COUNTIF(H18,$JC$1))))) -> 0 | JD17: =COUNTIF(D18,$JD$1)+(COUNTIF(E18,$JD$1)+(COUNTIF(F18,$JD$1)+(COUNTIF(G18,$JD$1)+(COUNTIF(H18,$JD$1))))) -> 0 | JE17: =COUNTIF(D18,$JE$1)+(COUNTIF(E18,$JE$1)+(COUNTIF(F18,$JE$1)+(COUNTIF(G18,$JE$1)+(COUNTIF(H18,$JE$1))))) -> 1 | JF17: =COUNTIF(D18,$JF$1)+(COUNTIF(E18,$JF$1)+(COUNTIF(F18,$JF$1)+(COUNTIF(G18,$JF$1)+(COUNTIF(H18,$JF$1))))) -> 0 | JG17: =COUNTIF(D18,$JG$1)+(COUNTIF(E18,$JG$1)+(COUNTIF(F18,$JG$1)+(COUNTIF(G18,$JG$1)+(COUNTIF(H18,$JG$1))))) -> 0 | JH17: =COUNTIF(D18,$JH$1)+(COUNTIF(E18,$JH$1)+(COUNTIF(F18,$JH$1)+(COUNTIF(G18,$JH$1)+(COUNTIF(H18,$JH$1))))) -> 0 | JI17: =COUNTIF(D18,$JI$1)+(COUNTIF(E18,$JI$1)+(COUNTIF(F18,$JI$1)+(COUNTIF(G18,$JI$1)+(COUNTIF(H18,$JI$1))))) -> 0 | JJ17: =COUNTIF(D18,$JJ$1)+(COUNTIF(E18,$JJ$1)+(COUNTIF(F18,$JJ$1)+(COUNTIF(G18,$JJ$1)+(COUNTIF(H18,$JJ$1))))) -> 0 | JK17: =COUNTIF(D18,$JK$1)+(COUNTIF(E18,$JK$1)+(COUNTIF(F18,$JK$1)+(COUNTIF(G18,$JK$1)+(COUNTIF(H18,$JK$1))))) -> 0 | JL17: =COUNTIF(D18,$JL$1)+(COUNTIF(E18,$JL$1)+(COUNTIF(F18,$JL$1)+(COUNTIF(G18,$JL$1)+(COUNTIF(H18,$JL$1))))) -> 0 | JM17: =COUNTIF(D18,$JM$1)+(COUNTIF(E18,$JM$1)+(COUNTIF(F18,$JM$1)+(COUNTIF(G18,$JM$1)+(COUNTIF(H18,$JM$1))))) -> 0 | JN17: =COUNTIF(D18,$JN$1)+(COUNTIF(E18,$JN$1)+(COUNTIF(F18,$JN$1)+(COUNTIF(G18,$JN$1)+(COUNTIF(H18,$JN$1))))) -> 0 | JO17: =COUNTIF(D18,$JO$1)+(COUNTIF(E18,$JO$1)+(COUNTIF(F18,$JO$1)+(COUNTIF(G18,$JO$1)+(COUNTIF(H18,$JO$1))))) -> 0 | JP17: =COUNTIF(D18,$JP$1)+(COUNTIF(E18,$JP$1)+(COUNTIF(F18,$JP$1)+(COUNTIF(G18,$JP$1)+(COUNTIF(H18,$JP$1))))) -> 0 | JQ17: =COUNTIF(D18,$JQ$1)+(COUNTIF(E18,$JQ$1)+(COUNTIF(F18,$JQ$1)+(COUNTIF(G18,$JQ$1)+(COUNTIF(H18,$JQ$1))))) -> 0 | JR17: =COUNTIF(D18,$JR$1)+(COUNTIF(E18,$JR$1)+(COUNTIF(F18,$JR$1)+(COUNTIF(G18,$JR$1)+(COUNTIF(H18,$JR$1))))) -> 1 | JS17: =COUNTIF(D18,$JS$1)+(COUNTIF(E18,$JS$1)+(COUNTIF(F18,$JS$1)+(COUNTIF(G18,$JS$1)+(COUNTIF(H18,$JS$1))))) -> 0 | JT17: =COUNTIF(D18,$JT$1)+(COUNTIF(E18,$JT$1)+(COUNTIF(F18,$JT$1)+(COUNTIF(G18,$JT$1)+(COUNTIF(H18,$JT$1))))) -> 0 | JU17: =COUNTIF(D18,$JU$1)+(COUNTIF(E18,$JU$1)+(COUNTIF(F18,$JU$1)+(COUNTIF(G18,$JU$1)+(COUNTIF(H18,$JU$1))))) -> 0 | JV17: =COUNTIF(D18,$JV$1)+(COUNTIF(E18,$JV$1)+(COUNTIF(F18,$JV$1)+(COUNTIF(G18,$JV$1)+(COUNTIF(H18,$JV$1))))) -> 0 | JW17: =COUNTIF(D18,$JW$1)+(COUNTIF(E18,$JW$1)+(COUNTIF(F18,$JW$1)+(COUNTIF(G18,$JW$1)+(COUNTIF(H18,$JW$1))))) -> 0 | JX17: =COUNTIF(D18,$JX$1)+(COUNTIF(E18,$JX$1)+(COUNTIF(F18,$JX$1)+(COUNTIF(G18,$JX$1)+(COUNTIF(H18,$JX$1))))) -> 0 | JY17: =COUNTIF(D18,$JY$1)+(COUNTIF(E18,$JY$1)+(COUNTIF(F18,$JY$1)+(COUNTIF(G18,$JY$1)+(COUNTIF(H18,$JY$1))))) -> 0 | JZ17: =COUNTIF(D18,$JZ$1)+(COUNTIF(E18,$JZ$1)+(COUNTIF(F18,$JZ$1)+(COUNTIF(G18,$JZ$1)+(COUNTIF(H18,$JZ$1))))) -> 0 | KA17: =COUNTIF(D18,$KA$1)+(COUNTIF(E18,$KA$1)+(COUNTIF(F18,$KA$1)+(COUNTIF(G18,$KA$1)+(COUNTIF(H18,$KA$1))))) -> 0 | KB17: =COUNTIF(D18,$KB$1)+(COUNTIF(E18,$KB$1)+(COUNTIF(F18,$KB$1)+(COUNTIF(G18,$KB$1)+(COUNTIF(H18,$KB$1))))) -> 0 | KC17: =COUNTIF(D18,$KC$1)+(COUNTIF(E18,$KC$1)+(COUNTIF(F18,$KC$1)+(COUNTIF(G18,$KC$1)+(COUNTIF(H18,$KC$1))))) -> 1 | KD17: =COUNTIF(D18,$KD$1)+(COUNTIF(E18,$KD$1)+(COUNTIF(F18,$KD$1)+(COUNTIF(G18,$KD$1)+(COUNTIF(H18,$KD$1))))) -> 0 | KE17: =COUNTIF(D18,$KE$1)+(COUNTIF(E18,$KE$1)+(COUNTIF(F18,$KE$1)+(COUNTIF(G18,$KE$1)+(COUNTIF(H18,$KE$1))))) -> 0 | KF17: =COUNTIF(D18,$KF$1)+(COUNTIF(E18,$KF$1)+(COUNTIF(F18,$KF$1)+(COUNTIF(G18,$KF$1)+(COUNTIF(H18,$KF$1))))) -> 0 | KG17: =COUNTIF(D18,$KG$1)+(COUNTIF(E18,$KG$1)+(COUNTIF(F18,$KG$1)+(COUNTIF(G18,$KG$1)+(COUNTIF(H18,$KG$1))))) -> 0 | KH17: =COUNTIF(D18,$KH$1)+(COUNTIF(E18,$KH$1)+(COUNTIF(F18,$KH$1)+(COUNTIF(G18,$KH$1)+(COUNTIF(H18,$KH$1))))) -> 0 | KI17: =COUNTIF(D18,$KI$1)+(COUNTIF(E18,$KI$1)+(COUNTIF(F18,$KI$1)+(COUNTIF(G18,$KI$1)+(COUNTIF(H18,$KI$1))))) -> 0 | KJ17: =COUNTIF(D18,$KJ$1)+(COUNTIF(E18,$KJ$1)+(COUNTIF(F18,$KJ$1)+(COUNTIF(G18,$KJ$1)+(COUNTIF(H18,$KJ$1))))) -> 0 | KK17: =COUNTIF(D18,$KK$1)+(COUNTIF(E18,$KK$1)+(COUNTIF(F18,$KK$1)+(COUNTIF(G18,$KK$1)+(COUNTIF(H18,$KK$1))))) -> 1 | KL17: =COUNTIF(D18,$KL$1)+(COUNTIF(E18,$KL$1)+(COUNTIF(F18,$KL$1)+(COUNTIF(G18,$KL$1)+(COUNTIF(H18,$KL$1))))) -> 0 | KM17: =COUNTIF(D18,$KM$1)+(COUNTIF(E18,$KM$1)+(COUNTIF(F18,$KM$1)+(COUNTIF(G18,$KM$1)+(COUNTIF(H18,$KM$1))))) -> 0 | KN17: =COUNTIF(D18,$KN$1)+(COUNTIF(E18,$KN$1)+(COUNTIF(F18,$KN$1)+(COUNTIF(G18,$KN$1)+(COUNTIF(H18,$KN$1))))) -> 0 | KO17: =COUNTIF(D18,$KO$1)+(COUNTIF(E18,$KO$1)+(COUNTIF(F18,$KO$1)+(COUNTIF(G18,$KO$1)+(COUNTIF(H18,$KO$1))))) -> 0 | KP17: =COUNTIF(D18,$KP$1)+(COUNTIF(E18,$KP$1)+(COUNTIF(F18,$KP$1)+(COUNTIF(G18,$KP$1)+(COUNTIF(H18,$KP$1))))) -> 0 | KQ17: =COUNTIF(D18,$KQ$1)+(COUNTIF(E18,$KQ$1)+(COUNTIF(F18,$KQ$1)+(COUNTIF(G18,$KQ$1)+(COUNTIF(H18,$KQ$1))))) -> 0 | KR17: =COUNTIF(D18,$KR$1)+(COUNTIF(E18,$KR$1)+(COUNTIF(F18,$KR$1)+(COUNTIF(G18,$KR$1)+(COUNTIF(H18,$KR$1))))) -> 0 | KS17: =COUNTIF(D18,$KS$1)+(COUNTIF(E18,$KS$1)+(COUNTIF(F18,$KS$1)+(COUNTIF(G18,$KS$1)+(COUNTIF(H18,$KS$1))))) -> 0 | KT17: =COUNTIF(D18,$KT$1)+(COUNTIF(E18,$KT$1)+(COUNTIF(F18,$KT$1)+(COUNTIF(G18,$KT$1)+(COUNTIF(H18,$KT$1))))) -> 0 | KU17: =COUNTIF(D18,$KU$1)+(COUNTIF(E18,$KU$1)+(COUNTIF(F18,$KU$1)+(COUNTIF(G18,$KU$1)+(COUNTIF(H18,$KU$1))))) -> 0 | KV17: =COUNTIF(D18,$KV$1)+(COUNTIF(E18,$KV$1)+(COUNTIF(F18,$KV$1)+(COUNTIF(G18,$KV$1)+(COUNTIF(H18,$KV$1))))) -> 0 | KW17: =COUNTIF(D18,$KW$1)+(COUNTIF(E18,$KW$1)+(COUNTIF(F18,$KW$1)+(COUNTIF(G18,$KW$1)+(COUNTIF(H18,$KW$1))))) -> 1
A18: 394 | B18: LUNDI | C18: 2022-07-18 | D18: 5 | E18: 18 | F18: 29 | G18: 37 | H18: 49 | I18: 8 | J18: 9 | K18: j | L18: =COUNTIF(M17:P17,">0") -> 2 | M18: =_xlfn.LET(_xlpm.comp,RIGHT(D19:H19,1),_xlfn._xlws.FILTER(D19:H19,_xlfn.XMATCH(_xlpm.comp,_xlpm.comp)<>_xlfn.XMATCH(_xlpm.comp,_xlpm.comp,,-1))) -> 17 | N18: 21 | O18: 31 | P18: 47 | Q18: =COUNTIF(D18:H18,D19:H19) -> 0 | R18: 0 | S18: 1 | T18: 0 | U18: 0 | V18: =IF(AND(W18>69,W18<164,OR(X18={1;2;3;4})),1,0) -> 0 | W18: =D19+E19+F19+G19+H19 -> 145 | X18: =SUMPRODUCT(( MOD(D19:H19,2)>0)*1) -> 5 | Y18: 2 | Z18: 0 | AA18: 0 | AB18: 0 | AC18: 0 | AD18: 0 | AE18: 2 | AF18: 0 | AG18: 1 | AH18: 0 | AI18: =COUNTIF(($D19:$H19),AI$1) -> 0 | AJ18: =COUNTIF(($D19:$H19),AJ$1) -> 0 | AK18: =COUNTIF(($D19:$H19),AK$1) -> 0 | AL18: =COUNTIF(($D19:$H19),AL$1) -> 0 | AM18: =COUNTIF(($D19:$H19),AM$1) -> 0 | AN18: =COUNTIF(($D19:$H19),AN$1) -> 0 | AO18: =COUNTIF(($D19:$H19),AO$1) -> 1 | AP18: =COUNTIF(($D19:$H19),AP$1) -> 0 | AQ18: =COUNTIF(($D19:$H19),AQ$1) -> 0 | AR18: =COUNTIF(($D19:$H19),AR$1) -> 0 | AS18: =COUNTIF(($D19:$H19),AS$1) -> 1 | AT18: =COUNTIF(($D19:$H19),AT$1) -> 0 | AU18: =COUNTIF(($D19:$H19),AU$1) -> 0 | AV18: =COUNTIF(($D19:$H19),AV$1) -> 0 | AW18: =COUNTIF(($D19:$H19),AW$1) -> 0 | AX18: =COUNTIF(($D19:$H19),AX$1) -> 0 | AY18: =COUNTIF(($D19:$H19),AY$1) -> 0 | AZ18: =COUNTIF(($D19:$H19),AZ$1) -> 0 | BA18: =COUNTIF(($D19:$H19),BA$1) -> 1 | BB18: =COUNTIF(($D19:$H19),BB$1) -> 0 | BC18: =COUNTIF(($D19:$H19),BC$1) -> 1 | BD18: =COUNTIF(($D19:$H19),BD$1) -> 0 | BE18: =COUNTIF(($D19:$H19),BE$1) -> 0 | BF18: =COUNTIF(($D19:$H19),BF$1) -> 0 | BG18: =COUNTIF(($D19:$H19),BG$1) -> 0 | BH18: =COUNTIF(($D19:$H19),BH$1) -> 0 | BI18: =COUNTIF((D19:H19),BI$1) -> 0 | BJ18: =COUNTIF((D19:H19),BJ$1) -> 0 | BK18: =COUNTIF((D19:H19),BK$1) -> 0 | BL18: =COUNTIF((D19:H19),BL$1) -> 0 | BM18: =COUNTIF((D19:H19),BM$1) -> 0 | BN18: =COUNTIF((D19:H19),BN$1) -> 0 | BO18: =COUNTIF((D19:H19),BO$1) -> 0 | BP18: =COUNTIF((D19:H19),BP$1) -> 0 | BQ18: =COUNTIF((D19:H19),BQ$1) -> 0 | BR18: =COUNTIF((D19:H19),BR$1) -> 0 | BS18: =COUNTIF((D19:H19),BS$1) -> 1 | BT18: =COUNTIF((D19:H19),BT$1) -> 0 | BU18: =COUNTIF((D19:H19),BU$1) -> 0 | BV18: =COUNTIF(D19:H19,"<10") -> 0 | BW18: =(COUNTIF(D19:H19,"<20")-BV18) -> 1 | BX18: =((COUNTIF(D19:H19,"<30")))-(BV18+BW18) -> 2 | BY18: =((COUNTIF(D19:H19,"<40")))-(BW18+BX18+BV18) -> 1 | BZ18: =((COUNTIF(D19:H19,"<50")))-(BX18+BY18+BW18+BV18) -> 1 | CB18: 0 | CC18: 1 | CD18: 1 | CE18: 1 | CF18: 1 | CG18: 0 | CH18: 1 | CI18: 0 | CJ18: 0 | CK18: 0 | CL18: 0 | CM18: 0 | CN18: 0 | CO18: 0 | CP18: 0 | CQ18: 0 | CR18: 0 | CS18: 0 | CT18: 0 | CU18: 0 | CV18: 0 | CW18: 0 | CX18: 0 | CY18: 0 | CZ18: 0 | DA18: 0 | DB18: 0 | DC18: 0 | DD18: 0 | DE18: 0 | DF18: 0 | DG18: 0 | DH18: 0 | DJ18: 0 | DK18: 0 | DL18: =COUNTIF((I19),$DL$1) -> 0 | DM18: =COUNTIF((I19),$DM$1) -> 0 | DN18: =COUNTIF((I19),$DN$1) -> 0 | DO18: =COUNTIF((I19),$DO$1) -> 1 | DP18: =COUNTIF((I19),$DP$1) -> 0 | DQ18: =COUNTIF((I19),$DQ$1) -> 0 | DR18: =COUNTIF((I19),$DR$1) -> 0 | DS18: =COUNTIF((I19),$DS$1) -> 0 | DT18: =COUNTIF((I19),$DT$1) -> 0 | DU18: =COUNTIF((I19),$DU$1) -> 0 | DW18: 1 | DX18: 1 | DY18: 1 | DZ18: 0 | EA18: 1 | EB18: 1 | EC18: 1 | ED18: 0 | EE18: 1 | EF18: 1 | EI18: 1 | EJ18: 1 | EK18: 1 | EL18: 0 | EM18: 1 | EN18: 1 | EO18: 1 | EP18: 0 | EQ18: 1 | ER18: 1 | ES18: =COUNTIF(I18,I19) -> 0 | ET18: =SUMPRODUCT(( MOD(I19,2)>0)*1) -> 0 | EU18: =IF((E19=D19+1)+(F19=E19+1)+(G19=F19+1)+(H19=G19+1),("1")*1,("")) ->  | EV18: 1 | EW18: =H19-D19 -> 30 | EX18: =(MID(D19,2,2)*1) -> 7 | EY18: =(MID(E19,2,1)*1) -> 1 | EZ18: =(MID(F19,2,1)*1) -> 9 | FA18: =(MID(G19,2,1)*1) -> 1 | FB18: =(MID(H19,2,1)*1) -> 7 | FC18: 0 | FD18: 1 | FE18: =I19 -> 4 | FF18: 0 | FG18: 0 | FH18: 0 | FI18: 0 | FJ18: 0 | FK18: =IF(E19=D19+1,("1")*1,("")) ->  | FL18: =IF(F19=E19+1,("1")*1,("")) ->  | FM18: =IF(G19=F19+1,("1")*1,("")) ->  | FN18: =IF(H19=G19+1,("1")*1,("")) ->  | FW18: =SUMPRODUCT(( MOD(D19,2)>0)*1) -> 1 | FX18: =SUMPRODUCT(( MOD(E19,2)>0)*1) -> 1 | FY18: =SUMPRODUCT(( MOD(F19,2)>0)*1) -> 1 | FZ18: =SUMPRODUCT(( MOD(G19,2)>0)*1) -> 1 | GA18: =SUMPRODUCT(( MOD(H19,2)>0)*1) -> 1 | GE18: 1 | GF18: 1 | GG18: 1 | GH18: 1 | GL18: 1 | GM18: 0 | GN18: 1 | GR18: 1 | GS18: 1 | GW18: 1 | HA18: 1 | JA18: =COUNTIF(D19,$JA$1)+(COUNTIF(E19,$JA$1)+(COUNTIF(F19,$JA$1)+(COUNTIF(G19,$JA$1)+(COUNTIF(H19,$JA$1))))) -> 0 | JB18: =COUNTIF(D19,$JB$1)+(COUNTIF(E19,$JB$1)+(COUNTIF(F19,$JB$1)+(COUNTIF(G19,$JB$1)+(COUNTIF(H19,$JB$1))))) -> 0 | JC18: =COUNTIF(D19,$JC$1)+(COUNTIF(E19,$JC$1)+(COUNTIF(F19,$JC$1)+(COUNTIF(G19,$JC$1)+(COUNTIF(H19,$JC$1))))) -> 0 | JD18: =COUNTIF(D19,$JD$1)+(COUNTIF(E19,$JD$1)+(COUNTIF(F19,$JD$1)+(COUNTIF(G19,$JD$1)+(COUNTIF(H19,$JD$1))))) -> 0 | JE18: =COUNTIF(D19,$JE$1)+(COUNTIF(E19,$JE$1)+(COUNTIF(F19,$JE$1)+(COUNTIF(G19,$JE$1)+(COUNTIF(H19,$JE$1))))) -> 0 | JF18: =COUNTIF(D19,$JF$1)+(COUNTIF(E19,$JF$1)+(COUNTIF(F19,$JF$1)+(COUNTIF(G19,$JF$1)+(COUNTIF(H19,$JF$1))))) -> 0 | JG18: =COUNTIF(D19,$JG$1)+(COUNTIF(E19,$JG$1)+(COUNTIF(F19,$JG$1)+(COUNTIF(G19,$JG$1)+(COUNTIF(H19,$JG$1))))) -> 0 | JH18: =COUNTIF(D19,$JH$1)+(COUNTIF(E19,$JH$1)+(COUNTIF(F19,$JH$1)+(COUNTIF(G19,$JH$1)+(COUNTIF(H19,$JH$1))))) -> 0 | JI18: =COUNTIF(D19,$JI$1)+(COUNTIF(E19,$JI$1)+(COUNTIF(F19,$JI$1)+(COUNTIF(G19,$JI$1)+(COUNTIF(H19,$JI$1))))) -> 0 | JJ18: =COUNTIF(D19,$JJ$1)+(COUNTIF(E19,$JJ$1)+(COUNTIF(F19,$JJ$1)+(COUNTIF(G19,$JJ$1)+(COUNTIF(H19,$JJ$1))))) -> 0 | JK18: =COUNTIF(D19,$JK$1)+(COUNTIF(E19,$JK$1)+(COUNTIF(F19,$JK$1)+(COUNTIF(G19,$JK$1)+(COUNTIF(H19,$JK$1))))) -> 0 | JL18: =COUNTIF(D19,$JL$1)+(COUNTIF(E19,$JL$1)+(COUNTIF(F19,$JL$1)+(COUNTIF(G19,$JL$1)+(COUNTIF(H19,$JL$1))))) -> 0 | JM18: =COUNTIF(D19,$JM$1)+(COUNTIF(E19,$JM$1)+(COUNTIF(F19,$JM$1)+(COUNTIF(G19,$JM$1)+(COUNTIF(H19,$JM$1))))) -> 0 | JN18: =COUNTIF(D19,$JN$1)+(COUNTIF(E19,$JN$1)+(COUNTIF(F19,$JN$1)+(COUNTIF(G19,$JN$1)+(COUNTIF(H19,$JN$1))))) -> 0 | JO18: =COUNTIF(D19,$JO$1)+(COUNTIF(E19,$JO$1)+(COUNTIF(F19,$JO$1)+(COUNTIF(G19,$JO$1)+(COUNTIF(H19,$JO$1))))) -> 0 | JP18: =COUNTIF(D19,$JP$1)+(COUNTIF(E19,$JP$1)+(COUNTIF(F19,$JP$1)+(COUNTIF(G19,$JP$1)+(COUNTIF(H19,$JP$1))))) -> 0 | JQ18: =COUNTIF(D19,$JQ$1)+(COUNTIF(E19,$JQ$1)+(COUNTIF(F19,$JQ$1)+(COUNTIF(G19,$JQ$1)+(COUNTIF(H19,$JQ$1))))) -> 1 | JR18: =COUNTIF(D19,$JR$1)+(COUNTIF(E19,$JR$1)+(COUNTIF(F19,$JR$1)+(COUNTIF(G19,$JR$1)+(COUNTIF(H19,$JR$1))))) -> 0 | JS18: =COUNTIF(D19,$JS$1)+(COUNTIF(E19,$JS$1)+(COUNTIF(F19,$JS$1)+(COUNTIF(G19,$JS$1)+(COUNTIF(H19,$JS$1))))) -> 0 | JT18: =COUNTIF(D19,$JT$1)+(COUNTIF(E19,$JT$1)+(COUNTIF(F19,$JT$1)+(COUNTIF(G19,$JT$1)+(COUNTIF(H19,$JT$1))))) -> 0 | JU18: =COUNTIF(D19,$JU$1)+(COUNTIF(E19,$JU$1)+(COUNTIF(F19,$JU$1)+(COUNTIF(G19,$JU$1)+(COUNTIF(H19,$JU$1))))) -> 1 | JV18: =COUNTIF(D19,$JV$1)+(COUNTIF(E19,$JV$1)+(COUNTIF(F19,$JV$1)+(COUNTIF(G19,$JV$1)+(COUNTIF(H19,$JV$1))))) -> 0 | JW18: =COUNTIF(D19,$JW$1)+(COUNTIF(E19,$JW$1)+(COUNTIF(F19,$JW$1)+(COUNTIF(G19,$JW$1)+(COUNTIF(H19,$JW$1))))) -> 0 | JX18: =COUNTIF(D19,$JX$1)+(COUNTIF(E19,$JX$1)+(COUNTIF(F19,$JX$1)+(COUNTIF(G19,$JX$1)+(COUNTIF(H19,$JX$1))))) -> 0 | JY18: =COUNTIF(D19,$JY$1)+(COUNTIF(E19,$JY$1)+(COUNTIF(F19,$JY$1)+(COUNTIF(G19,$JY$1)+(COUNTIF(H19,$JY$1))))) -> 0 | JZ18: =COUNTIF(D19,$JZ$1)+(COUNTIF(E19,$JZ$1)+(COUNTIF(F19,$JZ$1)+(COUNTIF(G19,$JZ$1)+(COUNTIF(H19,$JZ$1))))) -> 0 | KA18: =COUNTIF(D19,$KA$1)+(COUNTIF(E19,$KA$1)+(COUNTIF(F19,$KA$1)+(COUNTIF(G19,$KA$1)+(COUNTIF(H19,$KA$1))))) -> 0 | KB18: =COUNTIF(D19,$KB$1)+(COUNTIF(E19,$KB$1)+(COUNTIF(F19,$KB$1)+(COUNTIF(G19,$KB$1)+(COUNTIF(H19,$KB$1))))) -> 0 | KC18: =COUNTIF(D19,$KC$1)+(COUNTIF(E19,$KC$1)+(COUNTIF(F19,$KC$1)+(COUNTIF(G19,$KC$1)+(COUNTIF(H19,$KC$1))))) -> 1 | KD18: =COUNTIF(D19,$KD$1)+(COUNTIF(E19,$KD$1)+(COUNTIF(F19,$KD$1)+(COUNTIF(G19,$KD$1)+(COUNTIF(H19,$KD$1))))) -> 0 | KE18: =COUNTIF(D19,$KE$1)+(COUNTIF(E19,$KE$1)+(COUNTIF(F19,$KE$1)+(COUNTIF(G19,$KE$1)+(COUNTIF(H19,$KE$1))))) -> 1 | KF18: =COUNTIF(D19,$KF$1)+(COUNTIF(E19,$KF$1)+(COUNTIF(F19,$KF$1)+(COUNTIF(G19,$KF$1)+(COUNTIF(H19,$KF$1))))) -> 0 | KG18: =COUNTIF(D19,$KG$1)+(COUNTIF(E19,$KG$1)+(COUNTIF(F19,$KG$1)+(COUNTIF(G19,$KG$1)+(COUNTIF(H19,$KG$1))))) -> 0 | KH18: =COUNTIF(D19,$KH$1)+(COUNTIF(E19,$KH$1)+(COUNTIF(F19,$KH$1)+(COUNTIF(G19,$KH$1)+(COUNTIF(H19,$KH$1))))) -> 0 | KI18: =COUNTIF(D19,$KI$1)+(COUNTIF(E19,$KI$1)+(COUNTIF(F19,$KI$1)+(COUNTIF(G19,$KI$1)+(COUNTIF(H19,$KI$1))))) -> 0 | KJ18: =COUNTIF(D19,$KJ$1)+(COUNTIF(E19,$KJ$1)+(COUNTIF(F19,$KJ$1)+(COUNTIF(G19,$KJ$1)+(COUNTIF(H19,$KJ$1))))) -> 0 | KK18: =COUNTIF(D19,$KK$1)+(COUNTIF(E19,$KK$1)+(COUNTIF(F19,$KK$1)+(COUNTIF(G19,$KK$1)+(COUNTIF(H19,$KK$1))))) -> 0 | KL18: =COUNTIF(D19,$KL$1)+(COUNTIF(E19,$KL$1)+(COUNTIF(F19,$KL$1)+(COUNTIF(G19,$KL$1)+(COUNTIF(H19,$KL$1))))) -> 0 | KM18: =COUNTIF(D19,$KM$1)+(COUNTIF(E19,$KM$1)+(COUNTIF(F19,$KM$1)+(COUNTIF(G19,$KM$1)+(COUNTIF(H19,$KM$1))))) -> 0 | KN18: =COUNTIF(D19,$KN$1)+(COUNTIF(E19,$KN$1)+(COUNTIF(F19,$KN$1)+(COUNTIF(G19,$KN$1)+(COUNTIF(H19,$KN$1))))) -> 0 | KO18: =COUNTIF(D19,$KO$1)+(COUNTIF(E19,$KO$1)+(COUNTIF(F19,$KO$1)+(COUNTIF(G19,$KO$1)+(COUNTIF(H19,$KO$1))))) -> 0 | KP18: =COUNTIF(D19,$KP$1)+(COUNTIF(E19,$KP$1)+(COUNTIF(F19,$KP$1)+(COUNTIF(G19,$KP$1)+(COUNTIF(H19,$KP$1))))) -> 0 | KQ18: =COUNTIF(D19,$KQ$1)+(COUNTIF(E19,$KQ$1)+(COUNTIF(F19,$KQ$1)+(COUNTIF(G19,$KQ$1)+(COUNTIF(H19,$KQ$1))))) -> 0 | KR18: =COUNTIF(D19,$KR$1)+(COUNTIF(E19,$KR$1)+(COUNTIF(F19,$KR$1)+(COUNTIF(G19,$KR$1)+(COUNTIF(H19,$KR$1))))) -> 0 | KS18: =COUNTIF(D19,$KS$1)+(COUNTIF(E19,$KS$1)+(COUNTIF(F19,$KS$1)+(COUNTIF(G19,$KS$1)+(COUNTIF(H19,$KS$1))))) -> 0 | KT18: =COUNTIF(D19,$KT$1)+(COUNTIF(E19,$KT$1)+(COUNTIF(F19,$KT$1)+(COUNTIF(G19,$KT$1)+(COUNTIF(H19,$KT$1))))) -> 0 | KU18: =COUNTIF(D19,$KU$1)+(COUNTIF(E19,$KU$1)+(COUNTIF(F19,$KU$1)+(COUNTIF(G19,$KU$1)+(COUNTIF(H19,$KU$1))))) -> 1 | KV18: =COUNTIF(D19,$KV$1)+(COUNTIF(E19,$KV$1)+(COUNTIF(F19,$KV$1)+(COUNTIF(G19,$KV$1)+(COUNTIF(H19,$KV$1))))) -> 0 | KW18: =COUNTIF(D19,$KW$1)+(COUNTIF(E19,$KW$1)+(COUNTIF(F19,$KW$1)+(COUNTIF(G19,$KW$1)+(COUNTIF(H19,$KW$1))))) -> 0
A19: 393 | B19: MERCREDI | C19: 2022-07-20 | D19: 17 | E19: 21 | F19: 29 | G19: 31 | H19: 47 | I19: 4 | J19: 7 | K19: h | L19: =COUNTIF(M18:P18,">0") -> 4 | M19: =_xlfn.LET(_xlpm.comp,RIGHT(D20:H20,1),_xlfn._xlws.FILTER(D20:H20,_xlfn.XMATCH(_xlpm.comp,_xlpm.comp)<>_xlfn.XMATCH(_xlpm.comp,_xlpm.comp,,-1))) -> 15 | N19: 25 | Q19: =COUNTIF(D19:H19,D20:H20) -> 0 | R19: 0 | S19: 0 | T19: 0 | U19: 1 | V19: =IF(AND(W19>69,W19<164,OR(X19={1;2;3;4})),1,0) -> 0 | W19: =D20+E20+F20+G20+H20 -> 167 | X19: =SUMPRODUCT(( MOD(D20:H20,2)>0)*1) -> 5 | Y19: 1 | Z19: 0 | AA19: 0 | AB19: 0 | AC19: 2 | AD19: 0 | AE19: 1 | AF19: 0 | AG19: 1 | AH19: 0 | AI19: =COUNTIF(($D20:$H20),AI$1) -> 0 | AJ19: =COUNTIF(($D20:$H20),AJ$1) -> 0 | AK19: =COUNTIF(($D20:$H20),AK$1) -> 0 | AL19: =COUNTIF(($D20:$H20),AL$1) -> 0 | AM19: =COUNTIF(($D20:$H20),AM$1) -> 1 | AN19: =COUNTIF(($D20:$H20),AN$1) -> 0 | AO19: =COUNTIF(($D20:$H20),AO$1) -> 0 | AP19: =COUNTIF(($D20:$H20),AP$1) -> 0 | AQ19: =COUNTIF(($D20:$H20),AQ$1) -> 0 | AR19: =COUNTIF(($D20:$H20),AR$1) -> 0 | AS19: =COUNTIF(($D20:$H20),AS$1) -> 0 | AT19: =COUNTIF(($D20:$H20),AT$1) -> 0 | AU19: =COUNTIF(($D20:$H20),AU$1) -> 0 | AV19: =COUNTIF(($D20:$H20),AV$1) -> 0 | AW19: =COUNTIF(($D20:$H20),AW$1) -> 1 | AX19: =COUNTIF(($D20:$H20),AX$1) -> 0 | AY19: =COUNTIF(($D20:$H20),AY$1) -> 0 | AZ19: =COUNTIF(($D20:$H20),AZ$1) -> 0 | BA19: =COUNTIF(($D20:$H20),BA$1) -> 0 | BB19: =COUNTIF(($D20:$H20),BB$1) -> 0 | BC19: =COUNTIF(($D20:$H20),BC$1) -> 0 | BD19: =COUNTIF(($D20:$H20),BD$1) -> 0 | BE19: =COUNTIF(($D20:$H20),BE$1) -> 0 | BF19: =COUNTIF(($D20:$H20),BF$1) -> 0 | BG19: =COUNTIF(($D20:$H20),BG$1) -> 0 | BH19: =COUNTIF(($D20:$H20),BH$1) -> 0 | BI19: =COUNTIF((D20:H20),BI$1) -> 0 | BJ19: =COUNTIF((D20:H20),BJ$1) -> 0 | BK19: =COUNTIF((D20:H20),BK$1) -> 1 | BL19: =COUNTIF((D20:H20),BL$1) -> 0 | BM19: =COUNTIF((D20:H20),BM$1) -> 1 | BN19: =COUNTIF((D20:H20),BN$1) -> 0 | BO19: =COUNTIF((D20:H20),BO$1) -> 0 | BP19: =COUNTIF((D20:H20),BP$1) -> 0 | BQ19: =COUNTIF((D20:H20),BQ$1) -> 0 | BR19: =COUNTIF((D20:H20),BR$1) -> 0 | BS19: =COUNTIF((D20:H20),BS$1) -> 1 | BT19: =COUNTIF((D20:H20),BT$1) -> 0 | BU19: =COUNTIF((D20:H20),BU$1) -> 0 | BV19: =COUNTIF(D20:H20,"<10") -> 0 | BW19: =(COUNTIF(D20:H20,"<20")-BV19) -> 1 | BX19: =((COUNTIF(D20:H20,"<30")))-(BV19+BW19) -> 1 | BY19: =((COUNTIF(D20:H20,"<40")))-(BW19+BX19+BV19) -> 1 | BZ19: =((COUNTIF(D20:H20,"<50")))-(BX19+BY19+BW19+BV19) -> 2 | CB19: 0 | CC19: 1 | CD19: 1 | CE19: 1 | CF19: 1 | CG19: 0 | CH19: 1 | CI19: 0 | CJ19: 0 | CK19: 0 | CL19: 0 | CM19: 0 | CN19: 0 | CO19: 0 | CP19: 0 | CQ19: 0 | CR19: 0 | CS19: 0 | CT19: 0 | CU19: 0 | CV19: 0 | CW19: 0 | CX19: 0 | CY19: 0 | CZ19: 0 | DA19: 0 | DB19: 0 | DC19: 0 | DD19: 0 | DE19: 0 | DF19: 0 | DG19: 0 | DH19: 0 | DJ19: 0 | DK19: 0 | DL19: =COUNTIF((I20),$DL$1) -> 0 | DM19: =COUNTIF((I20),$DM$1) -> 0 | DN19: =COUNTIF((I20),$DN$1) -> 0 | DO19: =COUNTIF((I20),$DO$1) -> 0 | DP19: =COUNTIF((I20),$DP$1) -> 0 | DQ19: =COUNTIF((I20),$DQ$1) -> 0 | DR19: =COUNTIF((I20),$DR$1) -> 0 | DS19: =COUNTIF((I20),$DS$1) -> 0 | DT19: =COUNTIF((I20),$DT$1) -> 1 | DU19: =COUNTIF((I20),$DU$1) -> 0 | DW19: 1 | DX19: 1 | DY19: 1 | DZ19: 0 | EA19: 1 | EB19: 1 | EC19: 1 | ED19: 1 | EE19: 0 | EF19: 1 | EI19: 1 | EJ19: 1 | EK19: 1 | EL19: 0 | EM19: 1 | EN19: 1 | EO19: 1 | EP19: 1 | EQ19: 0 | ER19: 1 | ES19: =COUNTIF(I19,I20) -> 0 | ET19: =SUMPRODUCT(( MOD(I20,2)>0)*1) -> 1 | EU19: =IF((E20=D20+1)+(F20=E20+1)+(G20=F20+1)+(H20=G20+1),("1")*1,("")) ->  | EV19: 1 | EW19: =H20-D20 -> 32 | EX19: =(MID(D20,2,2)*1) -> 5 | EY19: =(MID(E20,2,1)*1) -> 5 | EZ19: =(MID(F20,2,1)*1) -> 9 | FA19: =(MID(G20,2,1)*1) -> 1 | FB19: =(MID(H20,2,1)*1) -> 7 | FC19: 1 | FD19: 1 | FE19: =I20 -> 9 | FF19: 0 | FG19: 0 | FH19: 1 | FI19: 0 | FJ19: 0 | FK19: =IF(E20=D20+1,("1")*1,("")) ->  | FL19: =IF(F20=E20+1,("1")*1,("")) ->  | FM19: =IF(G20=F20+1,("1")*1,("")) ->  | FN19: =IF(H20=G20+1,("1")*1,("")) ->  | FW19: =SUMPRODUCT(( MOD(D20,2)>0)*1) -> 1 | FX19: =SUMPRODUCT(( MOD(E20,2)>0)*1) -> 1 | FY19: =SUMPRODUCT(( MOD(F20,2)>0)*1) -> 1 | FZ19: =SUMPRODUCT(( MOD(G20,2)>0)*1) -> 1 | GA19: =SUMPRODUCT(( MOD(H20,2)>0)*1) -> 1 | GE19: 1 | GF19: 1 | GG19: 1 | GH19: 1 | GL19: 1 | GM19: 1 | GN19: 1 | GR19: 1 | GS19: 1 | GW19: 1 | HA19: 1 | JA19: =COUNTIF(D20,$JA$1)+(COUNTIF(E20,$JA$1)+(COUNTIF(F20,$JA$1)+(COUNTIF(G20,$JA$1)+(COUNTIF(H20,$JA$1))))) -> 0 | JB19: =COUNTIF(D20,$JB$1)+(COUNTIF(E20,$JB$1)+(COUNTIF(F20,$JB$1)+(COUNTIF(G20,$JB$1)+(COUNTIF(H20,$JB$1))))) -> 0 | JC19: =COUNTIF(D20,$JC$1)+(COUNTIF(E20,$JC$1)+(COUNTIF(F20,$JC$1)+(COUNTIF(G20,$JC$1)+(COUNTIF(H20,$JC$1))))) -> 0 | JD19: =COUNTIF(D20,$JD$1)+(COUNTIF(E20,$JD$1)+(COUNTIF(F20,$JD$1)+(COUNTIF(G20,$JD$1)+(COUNTIF(H20,$JD$1))))) -> 0 | JE19: =COUNTIF(D20,$JE$1)+(COUNTIF(E20,$JE$1)+(COUNTIF(F20,$JE$1)+(COUNTIF(G20,$JE$1)+(COUNTIF(H20,$JE$1))))) -> 0 | JF19: =COUNTIF(D20,$JF$1)+(COUNTIF(E20,$JF$1)+(COUNTIF(F20,$JF$1)+(COUNTIF(G20,$JF$1)+(COUNTIF(H20,$JF$1))))) -> 0 | JG19: =COUNTIF(D20,$JG$1)+(COUNTIF(E20,$JG$1)+(COUNTIF(F20,$JG$1)+(COUNTIF(G20,$JG$1)+(COUNTIF(H20,$JG$1))))) -> 0 | JH19: =COUNTIF(D20,$JH$1)+(COUNTIF(E20,$JH$1)+(COUNTIF(F20,$JH$1)+(COUNTIF(G20,$JH$1)+(COUNTIF(H20,$JH$1))))) -> 0 | JI19: =COUNTIF(D20,$JI$1)+(COUNTIF(E20,$JI$1)+(COUNTIF(F20,$JI$1)+(COUNTIF(G20,$JI$1)+(COUNTIF(H20,$JI$1))))) -> 0 | JJ19: =COUNTIF(D20,$JJ$1)+(COUNTIF(E20,$JJ$1)+(COUNTIF(F20,$JJ$1)+(COUNTIF(G20,$JJ$1)+(COUNTIF(H20,$JJ$1))))) -> 0 | JK19: =COUNTIF(D20,$JK$1)+(COUNTIF(E20,$JK$1)+(COUNTIF(F20,$JK$1)+(COUNTIF(G20,$JK$1)+(COUNTIF(H20,$JK$1))))) -> 0 | JL19: =COUNTIF(D20,$JL$1)+(COUNTIF(E20,$JL$1)+(COUNTIF(F20,$JL$1)+(COUNTIF(G20,$JL$1)+(COUNTIF(H20,$JL$1))))) -> 0 | JM19: =COUNTIF(D20,$JM$1)+(COUNTIF(E20,$JM$1)+(COUNTIF(F20,$JM$1)+(COUNTIF(G20,$JM$1)+(COUNTIF(H20,$JM$1))))) -> 0 | JN19: =COUNTIF(D20,$JN$1)+(COUNTIF(E20,$JN$1)+(COUNTIF(F20,$JN$1)+(COUNTIF(G20,$JN$1)+(COUNTIF(H20,$JN$1))))) -> 0 | JO19: =COUNTIF(D20,$JO$1)+(COUNTIF(E20,$JO$1)+(COUNTIF(F20,$JO$1)+(COUNTIF(G20,$JO$1)+(COUNTIF(H20,$JO$1))))) -> 1 | JP19: =COUNTIF(D20,$JP$1)+(COUNTIF(E20,$JP$1)+(COUNTIF(F20,$JP$1)+(COUNTIF(G20,$JP$1)+(COUNTIF(H20,$JP$1))))) -> 0 | JQ19: =COUNTIF(D20,$JQ$1)+(COUNTIF(E20,$JQ$1)+(COUNTIF(F20,$JQ$1)+(COUNTIF(G20,$JQ$1)+(COUNTIF(H20,$JQ$1))))) -> 0 | JR19: =COUNTIF(D20,$JR$1)+(COUNTIF(E20,$JR$1)+(COUNTIF(F20,$JR$1)+(COUNTIF(G20,$JR$1)+(COUNTIF(H20,$JR$1))))) -> 0 | JS19: =COUNTIF(D20,$JS$1)+(COUNTIF(E20,$JS$1)+(COUNTIF(F20,$JS$1)+(COUNTIF(G20,$JS$1)+(COUNTIF(H20,$JS$1))))) -> 0 | JT19: =COUNTIF(D20,$JT$1)+(COUNTIF(E20,$JT$1)+(COUNTIF(F20,$JT$1)+(COUNTIF(G20,$JT$1)+(COUNTIF(H20,$JT$1))))) -> 0 | JU19: =COUNTIF(D20,$JU$1)+(COUNTIF(E20,$JU$1)+(COUNTIF(F20,$JU$1)+(COUNTIF(G20,$JU$1)+(COUNTIF(H20,$JU$1))))) -> 0 | JV19: =COUNTIF(D20,$JV$1)+(COUNTIF(E20,$JV$1)+(COUNTIF(F20,$JV$1)+(COUNTIF(G20,$JV$1)+(COUNTIF(H20,$JV$1))))) -> 0 | JW19: =COUNTIF(D20,$JW$1)+(COUNTIF(E20,$JW$1)+(COUNTIF(F20,$JW$1)+(COUNTIF(G20,$JW$1)+(COUNTIF(H20,$JW$1))))) -> 0 | JX19: =COUNTIF(D20,$JX$1)+(COUNTIF(E20,$JX$1)+(COUNTIF(F20,$JX$1)+(COUNTIF(G20,$JX$1)+(COUNTIF(H20,$JX$1))))) -> 0 | JY19: =COUNTIF(D20,$JY$1)+(COUNTIF(E20,$JY$1)+(COUNTIF(F20,$JY$1)+(COUNTIF(G20,$JY$1)+(COUNTIF(H20,$JY$1))))) -> 1 | JZ19: =COUNTIF(D20,$JZ$1)+(COUNTIF(E20,$JZ$1)+(COUNTIF(F20,$JZ$1)+(COUNTIF(G20,$JZ$1)+(COUNTIF(H20,$JZ$1))))) -> 0 | KA19: =COUNTIF(D20,$KA$1)+(COUNTIF(E20,$KA$1)+(COUNTIF(F20,$KA$1)+(COUNTIF(G20,$KA$1)+(COUNTIF(H20,$KA$1))))) -> 0 | KB19: =COUNTIF(D20,$KB$1)+(COUNTIF(E20,$KB$1)+(COUNTIF(F20,$KB$1)+(COUNTIF(G20,$KB$1)+(COUNTIF(H20,$KB$1))))) -> 0 | KC19: =COUNTIF(D20,$KC$1)+(COUNTIF(E20,$KC$1)+(COUNTIF(F20,$KC$1)+(COUNTIF(G20,$KC$1)+(COUNTIF(H20,$KC$1))))) -> 0 | KD19: =COUNTIF(D20,$KD$1)+(COUNTIF(E20,$KD$1)+(COUNTIF(F20,$KD$1)+(COUNTIF(G20,$KD$1)+(COUNTIF(H20,$KD$1))))) -> 0 | KE19: =COUNTIF(D20,$KE$1)+(COUNTIF(E20,$KE$1)+(COUNTIF(F20,$KE$1)+(COUNTIF(G20,$KE$1)+(COUNTIF(H20,$KE$1))))) -> 0 | KF19: =COUNTIF(D20,$KF$1)+(COUNTIF(E20,$KF$1)+(COUNTIF(F20,$KF$1)+(COUNTIF(G20,$KF$1)+(COUNTIF(H20,$KF$1))))) -> 0 | KG19: =COUNTIF(D20,$KG$1)+(COUNTIF(E20,$KG$1)+(COUNTIF(F20,$KG$1)+(COUNTIF(G20,$KG$1)+(COUNTIF(H20,$KG$1))))) -> 0 | KH19: =COUNTIF(D20,$KH$1)+(COUNTIF(E20,$KH$1)+(COUNTIF(F20,$KH$1)+(COUNTIF(G20,$KH$1)+(COUNTIF(H20,$KH$1))))) -> 0 | KI19: =COUNTIF(D20,$KI$1)+(COUNTIF(E20,$KI$1)+(COUNTIF(F20,$KI$1)+(COUNTIF(G20,$KI$1)+(COUNTIF(H20,$KI$1))))) -> 0 | KJ19: =COUNTIF(D20,$KJ$1)+(COUNTIF(E20,$KJ$1)+(COUNTIF(F20,$KJ$1)+(COUNTIF(G20,$KJ$1)+(COUNTIF(H20,$KJ$1))))) -> 0 | KK19: =COUNTIF(D20,$KK$1)+(COUNTIF(E20,$KK$1)+(COUNTIF(F20,$KK$1)+(COUNTIF(G20,$KK$1)+(COUNTIF(H20,$KK$1))))) -> 0 | KL19: =COUNTIF(D20,$KL$1)+(COUNTIF(E20,$KL$1)+(COUNTIF(F20,$KL$1)+(COUNTIF(G20,$KL$1)+(COUNTIF(H20,$KL$1))))) -> 0 | KM19: =COUNTIF(D20,$KM$1)+(COUNTIF(E20,$KM$1)+(COUNTIF(F20,$KM$1)+(COUNTIF(G20,$KM$1)+(COUNTIF(H20,$KM$1))))) -> 1 | KN19: =COUNTIF(D20,$KN$1)+(COUNTIF(E20,$KN$1)+(COUNTIF(F20,$KN$1)+(COUNTIF(G20,$KN$1)+(COUNTIF(H20,$KN$1))))) -> 0 | KO19: =COUNTIF(D20,$KO$1)+(COUNTIF(E20,$KO$1)+(COUNTIF(F20,$KO$1)+(COUNTIF(G20,$KO$1)+(COUNTIF(H20,$KO$1))))) -> 1 | KP19: =COUNTIF(D20,$KP$1)+(COUNTIF(E20,$KP$1)+(COUNTIF(F20,$KP$1)+(COUNTIF(G20,$KP$1)+(COUNTIF(H20,$KP$1))))) -> 0 | KQ19: =COUNTIF(D20,$KQ$1)+(COUNTIF(E20,$KQ$1)+(COUNTIF(F20,$KQ$1)+(COUNTIF(G20,$KQ$1)+(COUNTIF(H20,$KQ$1))))) -> 0 | KR19: =COUNTIF(D20,$KR$1)+(COUNTIF(E20,$KR$1)+(COUNTIF(F20,$KR$1)+(COUNTIF(G20,$KR$1)+(COUNTIF(H20,$KR$1))))) -> 0 | KS19: =COUNTIF(D20,$KS$1)+(COUNTIF(E20,$KS$1)+(COUNTIF(F20,$KS$1)+(COUNTIF(G20,$KS$1)+(COUNTIF(H20,$KS$1))))) -> 0 | KT19: =COUNTIF(D20,$KT$1)+(COUNTIF(E20,$KT$1)+(COUNTIF(F20,$KT$1)+(COUNTIF(G20,$KT$1)+(COUNTIF(H20,$KT$1))))) -> 0 | KU19: =COUNTIF(D20,$KU$1)+(COUNTIF(E20,$KU$1)+(COUNTIF(F20,$KU$1)+(COUNTIF(G20,$KU$1)+(COUNTIF(H20,$KU$1))))) -> 1 | KV19: =COUNTIF(D20,$KV$1)+(COUNTIF(E20,$KV$1)+(COUNTIF(F20,$KV$1)+(COUNTIF(G20,$KV$1)+(COUNTIF(H20,$KV$1))))) -> 0 | KW19: =COUNTIF(D20,$KW$1)+(COUNTIF(E20,$KW$1)+(COUNTIF(F20,$KW$1)+(COUNTIF(G20,$KW$1)+(COUNTIF(H20,$KW$1))))) -> 0
A20: 392 | B20: SAMEDI | C20: 2022-07-23 | D20: 15 | E20: 25 | F20: 39 | G20: 41 | H20: 47 | I20: 9 | J20: 7 | K20: h | L20: =COUNTIF(M19:P19,">0") -> 2 | M20: =_xlfn.LET(_xlpm.comp,RIGHT(D21:H21,1),_xlfn._xlws.FILTER(D21:H21,_xlfn.XMATCH(_xlpm.comp,_xlpm.comp)<>_xlfn.XMATCH(_xlpm.comp,_xlpm.comp,,-1))) ->  | Q20: =COUNTIF(D20:H20,D21:H21) -> 0 | R20: 0 | S20: 0 | T20: 0 | U20: 0 | V20: =IF(AND(W20>69,W20<164,OR(X20={1;2;3;4})),1,0) -> 1 | W20: =D21+E21+F21+G21+H21 -> 112 | X20: =SUMPRODUCT(( MOD(D21:H21,2)>0)*1) -> 2 | Y20: 0 | Z20: 1 | AA20: 1 | AB20: 1 | AC20: 0 | AD20: 1 | AE20: 1 | AF20: 0 | AG20: 0 | AH20: 0 | AI20: =COUNTIF(($D21:$H21),AI$1) -> 0 | AJ20: =COUNTIF(($D21:$H21),AJ$1) -> 0 | AK20: =COUNTIF(($D21:$H21),AK$1) -> 1 | AL20: =COUNTIF(($D21:$H21),AL$1) -> 0 | AM20: =COUNTIF(($D21:$H21),AM$1) -> 0 | AN20: =COUNTIF(($D21:$H21),AN$1) -> 0 | AO20: =COUNTIF(($D21:$H21),AO$1) -> 0 | AP20: =COUNTIF(($D21:$H21),AP$1) -> 0 | AQ20: =COUNTIF(($D21:$H21),AQ$1) -> 0 | AR20: =COUNTIF(($D21:$H21),AR$1) -> 0 | AS20: =COUNTIF(($D21:$H21),AS$1) -> 0 | AT20: =COUNTIF(($D21:$H21),AT$1) -> 0 | AU20: =COUNTIF(($D21:$H21),AU$1) -> 0 | AV20: =COUNTIF(($D21:$H21),AV$1) -> 1 | AW20: =COUNTIF(($D21:$H21),AW$1) -> 0 | AX20: =COUNTIF(($D21:$H21),AX$1) -> 1 | AY20: =COUNTIF(($D21:$H21),AY$1) -> 0 | AZ20: =COUNTIF(($D21:$H21),AZ$1) -> 0 | BA20: =COUNTIF(($D21:$H21),BA$1) -> 0 | BB20: =COUNTIF(($D21:$H21),BB$1) -> 0 | BC20: =COUNTIF(($D21:$H21),BC$1) -> 0 | BD20: =COUNTIF(($D21:$H21),BD$1) -> 0 | BE20: =COUNTIF(($D21:$H21),BE$1) -> 0 | BF20: =COUNTIF(($D21:$H21),BF$1) -> 0 | BG20: =COUNTIF(($D21:$H21),BG$1) -> 0 | BH20: =COUNTIF(($D21:$H21),BH$1) -> 0 | BI20: =COUNTIF((D21:H21),BI$1) -> 0 | BJ20: =COUNTIF((D21:H21),BJ$1) -> 0 | BK20: =COUNTIF((D21:H21),BK$1) -> 0 | BL20: =COUNTIF((D21:H21),BL$1) -> 0 | BM20: =COUNTIF((D21:H21),BM$1) -> 0 | BN20: =COUNTIF((D21:H21),BN$1) -> 1 | BO20: =COUNTIF((D21:H21),BO$1) -> 0 | BP20: =COUNTIF((D21:H21),BP$1) -> 0 | BQ20: =COUNTIF((D21:H21),BQ$1) -> 0 | BR20: =COUNTIF((D21:H21),BR$1) -> 0 | BS20: =COUNTIF((D21:H21),BS$1) -> 0 | BT20: =COUNTIF((D21:H21),BT$1) -> 0 | BU20: =COUNTIF((D21:H21),BU$1) -> 0 | BV20: =COUNTIF(D21:H21,"<10") -> 1 | BW20: =(COUNTIF(D21:H21,"<20")-BV20) -> 1 | BX20: =((COUNTIF(D21:H21,"<30")))-(BV20+BW20) -> 2 | BY20: =((COUNTIF(D21:H21,"<40")))-(BW20+BX20+BV20) -> 0 | BZ20: =((COUNTIF(D21:H21,"<50")))-(BX20+BY20+BW20+BV20) -> 1 | CB20: 1 | CC20: 1 | CD20: 1 | CE20: 0 | CF20: 1 | CG20: 0 | CH20: 0 | CI20: 0 | CJ20: 0 | CK20: 1 | CL20: 0 | CM20: 0 | CN20: 0 | CO20: 0 | CP20: 0 | CQ20: 0 | CR20: 0 | CS20: 0 | CT20: 0 | CU20: 0 | CV20: 0 | CW20: 0 | CX20: 0 | CY20: 0 | CZ20: 0 | DA20: 0 | DB20: 0 | DC20: 0 | DD20: 0 | DE20: 0 | DF20: 0 | DG20: 0 | DH20: 0 | DJ20: 0 | DK20: 0 | DL20: =COUNTIF((I21),$DL$1) -> 0 | DM20: =COUNTIF((I21),$DM$1) -> 1 | DN20: =COUNTIF((I21),$DN$1) -> 0 | DO20: =COUNTIF((I21),$DO$1) -> 0 | DP20: =COUNTIF((I21),$DP$1) -> 0 | DQ20: =COUNTIF((I21),$DQ$1) -> 0 | DR20: =COUNTIF((I21),$DR$1) -> 0 | DS20: =COUNTIF((I21),$DS$1) -> 0 | DT20: =COUNTIF((I21),$DT$1) -> 0 | DU20: =COUNTIF((I21),$DU$1) -> 0 | DW20: 1 | DX20: 0 | DY20: 1 | DZ20: 1 | EA20: 1 | EB20: 1 | EC20: 1 | ED20: 1 | EE20: 0 | EF20: 1 | EI20: 1 | EJ20: 0 | EK20: 1 | EL20: 1 | EM20: 1 | EN20: 1 | EO20: 1 | EP20: 1 | EQ20: 0 | ER20: 1 | ES20: =COUNTIF(I20,I21) -> 0 | ET20: =SUMPRODUCT(( MOD(I21,2)>0)*1) -> 0 | EU20: =IF((E21=D21+1)+(F21=E21+1)+(G21=F21+1)+(H21=G21+1),("1")*1,("")) ->  | EW20: =H21-D21 -> 35 | EX20: =(MID(D21,1,2)*1) -> 7 | EY20: =(MID(E21,2,1)*1) -> 3 | EZ20: =(MID(F21,2,1)*1) -> 4 | FA20: =(MID(G21,2,1)*1) -> 6 | FB20: =(MID(H21,2,1)*1) -> 2 | FC20: 1 | FD20: 1 | FE20: =I21 -> 2 | FF20: 0 | FG20: 0 | FH20: 0 | FI20: 0 | FJ20: 1 | FK20: =IF(E21=D21+1,("1")*1,("")) ->  | FL20: =IF(F21=E21+1,("1")*1,("")) ->  | FM20: =IF(G21=F21+1,("1")*1,("")) ->  | FN20: =IF(H21=G21+1,("1")*1,("")) ->  | FW20: =SUMPRODUCT(( MOD(D21,2)>0)*1) -> 1 | FX20: =SUMPRODUCT(( MOD(E21,2)>0)*1) -> 1 | FY20: =SUMPRODUCT(( MOD(F21,2)>0)*1) -> 0 | FZ20: =SUMPRODUCT(( MOD(G21,2)>0)*1) -> 0 | GA20: =SUMPRODUCT(( MOD(H21,2)>0)*1) -> 0 | GE20: 1 | GF20: 0 | GG20: 0 | GH20: 0 | GL20: 0 | GM20: 1 | GN20: 0 | GR20: 0 | GS20: 0 | GW20: 0 | HA20: 0 | JA20: =COUNTIF(D21,$JA$1)+(COUNTIF(E21,$JA$1)+(COUNTIF(F21,$JA$1)+(COUNTIF(G21,$JA$1)+(COUNTIF(H21,$JA$1))))) -> 0 | JB20: =COUNTIF(D21,$JB$1)+(COUNTIF(E21,$JB$1)+(COUNTIF(F21,$JB$1)+(COUNTIF(G21,$JB$1)+(COUNTIF(H21,$JB$1))))) -> 0 | JC20: =COUNTIF(D21,$JC$1)+(COUNTIF(E21,$JC$1)+(COUNTIF(F21,$JC$1)+(COUNTIF(G21,$JC$1)+(COUNTIF(H21,$JC$1))))) -> 0 | JD20: =COUNTIF(D21,$JD$1)+(COUNTIF(E21,$JD$1)+(COUNTIF(F21,$JD$1)+(COUNTIF(G21,$JD$1)+(COUNTIF(H21,$JD$1))))) -> 0 | JE20: =COUNTIF(D21,$JE$1)+(COUNTIF(E21,$JE$1)+(COUNTIF(F21,$JE$1)+(COUNTIF(G21,$JE$1)+(COUNTIF(H21,$JE$1))))) -> 0 | JF20: =COUNTIF(D21,$JF$1)+(COUNTIF(E21,$JF$1)+(COUNTIF(F21,$JF$1)+(COUNTIF(G21,$JF$1)+(COUNTIF(H21,$JF$1))))) -> 0 | JG20: =COUNTIF(D21,$JG$1)+(COUNTIF(E21,$JG$1)+(COUNTIF(F21,$JG$1)+(COUNTIF(G21,$JG$1)+(COUNTIF(H21,$JG$1))))) -> 1 | JH20: =COUNTIF(D21,$JH$1)+(COUNTIF(E21,$JH$1)+(COUNTIF(F21,$JH$1)+(COUNTIF(G21,$JH$1)+(COUNTIF(H21,$JH$1))))) -> 0 | JI20: =COUNTIF(D21,$JI$1)+(COUNTIF(E21,$JI$1)+(COUNTIF(F21,$JI$1)+(COUNTIF(G21,$JI$1)+(COUNTIF(H21,$JI$1))))) -> 0 | JJ20: =COUNTIF(D21,$JJ$1)+(COUNTIF(E21,$JJ$1)+(COUNTIF(F21,$JJ$1)+(COUNTIF(G21,$JJ$1)+(COUNTIF(H21,$JJ$1))))) -> 0 | JK20: =COUNTIF(D21,$JK$1)+(COUNTIF(E21,$JK$1)+(COUNTIF(F21,$JK$1)+(COUNTIF(G21,$JK$1)+(COUNTIF(H21,$JK$1))))) -> 0 | JL20: =COUNTIF(D21,$JL$1)+(COUNTIF(E21,$JL$1)+(COUNTIF(F21,$JL$1)+(COUNTIF(G21,$JL$1)+(COUNTIF(H21,$JL$1))))) -> 0 | JM20: =COUNTIF(D21,$JM$1)+(COUNTIF(E21,$JM$1)+(COUNTIF(F21,$JM$1)+(COUNTIF(G21,$JM$1)+(COUNTIF(H21,$JM$1))))) -> 1 | JN20: =COUNTIF(D21,$JN$1)+(COUNTIF(E21,$JN$1)+(COUNTIF(F21,$JN$1)+(COUNTIF(G21,$JN$1)+(COUNTIF(H21,$JN$1))))) -> 0 | JO20: =COUNTIF(D21,$JO$1)+(COUNTIF(E21,$JO$1)+(COUNTIF(F21,$JO$1)+(COUNTIF(G21,$JO$1)+(COUNTIF(H21,$JO$1))))) -> 0 | JP20: =COUNTIF(D21,$JP$1)+(COUNTIF(E21,$JP$1)+(COUNTIF(F21,$JP$1)+(COUNTIF(G21,$JP$1)+(COUNTIF(H21,$JP$1))))) -> 0 | JQ20: =COUNTIF(D21,$JQ$1)+(COUNTIF(E21,$JQ$1)+(COUNTIF(F21,$JQ$1)+(COUNTIF(G21,$JQ$1)+(COUNTIF(H21,$JQ$1))))) -> 0 | JR20: =COUNTIF(D21,$JR$1)+(COUNTIF(E21,$JR$1)+(COUNTIF(F21,$JR$1)+(COUNTIF(G21,$JR$1)+(COUNTIF(H21,$JR$1))))) -> 0 | JS20: =COUNTIF(D21,$JS$1)+(COUNTIF(E21,$JS$1)+(COUNTIF(F21,$JS$1)+(COUNTIF(G21,$JS$1)+(COUNTIF(H21,$JS$1))))) -> 0 | JT20: =COUNTIF(D21,$JT$1)+(COUNTIF(E21,$JT$1)+(COUNTIF(F21,$JT$1)+(COUNTIF(G21,$JT$1)+(COUNTIF(H21,$JT$1))))) -> 0 | JU20: =COUNTIF(D21,$JU$1)+(COUNTIF(E21,$JU$1)+(COUNTIF(F21,$JU$1)+(COUNTIF(G21,$JU$1)+(COUNTIF(H21,$JU$1))))) -> 0 | JV20: =COUNTIF(D21,$JV$1)+(COUNTIF(E21,$JV$1)+(COUNTIF(F21,$JV$1)+(COUNTIF(G21,$JV$1)+(COUNTIF(H21,$JV$1))))) -> 0 | JW20: =COUNTIF(D21,$JW$1)+(COUNTIF(E21,$JW$1)+(COUNTIF(F21,$JW$1)+(COUNTIF(G21,$JW$1)+(COUNTIF(H21,$JW$1))))) -> 0 | JX20: =COUNTIF(D21,$JX$1)+(COUNTIF(E21,$JX$1)+(COUNTIF(F21,$JX$1)+(COUNTIF(G21,$JX$1)+(COUNTIF(H21,$JX$1))))) -> 1 | JY20: =COUNTIF(D21,$JY$1)+(COUNTIF(E21,$JY$1)+(COUNTIF(F21,$JY$1)+(COUNTIF(G21,$JY$1)+(COUNTIF(H21,$JY$1))))) -> 0 | JZ20: =COUNTIF(D21,$JZ$1)+(COUNTIF(E21,$JZ$1)+(COUNTIF(F21,$JZ$1)+(COUNTIF(G21,$JZ$1)+(COUNTIF(H21,$JZ$1))))) -> 1 | KA20: =COUNTIF(D21,$KA$1)+(COUNTIF(E21,$KA$1)+(COUNTIF(F21,$KA$1)+(COUNTIF(G21,$KA$1)+(COUNTIF(H21,$KA$1))))) -> 0 | KB20: =COUNTIF(D21,$KB$1)+(COUNTIF(E21,$KB$1)+(COUNTIF(F21,$KB$1)+(COUNTIF(G21,$KB$1)+(COUNTIF(H21,$KB$1))))) -> 0 | KC20: =COUNTIF(D21,$KC$1)+(COUNTIF(E21,$KC$1)+(COUNTIF(F21,$KC$1)+(COUNTIF(G21,$KC$1)+(COUNTIF(H21,$KC$1))))) -> 0 | KD20: =COUNTIF(D21,$KD$1)+(COUNTIF(E21,$KD$1)+(COUNTIF(F21,$KD$1)+(COUNTIF(G21,$KD$1)+(COUNTIF(H21,$KD$1))))) -> 0 | KE20: =COUNTIF(D21,$KE$1)+(COUNTIF(E21,$KE$1)+(COUNTIF(F21,$KE$1)+(COUNTIF(G21,$KE$1)+(COUNTIF(H21,$KE$1))))) -> 0 | KF20: =COUNTIF(D21,$KF$1)+(COUNTIF(E21,$KF$1)+(COUNTIF(F21,$KF$1)+(COUNTIF(G21,$KF$1)+(COUNTIF(H21,$KF$1))))) -> 0 | KG20: =COUNTIF(D21,$KG$1)+(COUNTIF(E21,$KG$1)+(COUNTIF(F21,$KG$1)+(COUNTIF(G21,$KG$1)+(COUNTIF(H21,$KG$1))))) -> 0 | KH20: =COUNTIF(D21,$KH$1)+(COUNTIF(E21,$KH$1)+(COUNTIF(F21,$KH$1)+(COUNTIF(G21,$KH$1)+(COUNTIF(H21,$KH$1))))) -> 0 | KI20: =COUNTIF(D21,$KI$1)+(COUNTIF(E21,$KI$1)+(COUNTIF(F21,$KI$1)+(COUNTIF(G21,$KI$1)+(COUNTIF(H21,$KI$1))))) -> 0 | KJ20: =COUNTIF(D21,$KJ$1)+(COUNTIF(E21,$KJ$1)+(COUNTIF(F21,$KJ$1)+(COUNTIF(G21,$KJ$1)+(COUNTIF(H21,$KJ$1))))) -> 0 | KK20: =COUNTIF(D21,$KK$1)+(COUNTIF(E21,$KK$1)+(COUNTIF(F21,$KK$1)+(COUNTIF(G21,$KK$1)+(COUNTIF(H21,$KK$1))))) -> 0 | KL20: =COUNTIF(D21,$KL$1)+(COUNTIF(E21,$KL$1)+(COUNTIF(F21,$KL$1)+(COUNTIF(G21,$KL$1)+(COUNTIF(H21,$KL$1))))) -> 0 | KM20: =COUNTIF(D21,$KM$1)+(COUNTIF(E21,$KM$1)+(COUNTIF(F21,$KM$1)+(COUNTIF(G21,$KM$1)+(COUNTIF(H21,$KM$1))))) -> 0 | KN20: =COUNTIF(D21,$KN$1)+(COUNTIF(E21,$KN$1)+(COUNTIF(F21,$KN$1)+(COUNTIF(G21,$KN$1)+(COUNTIF(H21,$KN$1))))) -> 0 | KO20: =COUNTIF(D21,$KO$1)+(COUNTIF(E21,$KO$1)+(COUNTIF(F21,$KO$1)+(COUNTIF(G21,$KO$1)+(COUNTIF(H21,$KO$1))))) -> 0 | KP20: =COUNTIF(D21,$KP$1)+(COUNTIF(E21,$KP$1)+(COUNTIF(F21,$KP$1)+(COUNTIF(G21,$KP$1)+(COUNTIF(H21,$KP$1))))) -> 1 | KQ20: =COUNTIF(D21,$KQ$1)+(COUNTIF(E21,$KQ$1)+(COUNTIF(F21,$KQ$1)+(COUNTIF(G21,$KQ$1)+(COUNTIF(H21,$KQ$1))))) -> 0 | KR20: =COUNTIF(D21,$KR$1)+(COUNTIF(E21,$KR$1)+(COUNTIF(F21,$KR$1)+(COUNTIF(G21,$KR$1)+(COUNTIF(H21,$KR$1))))) -> 0 | KS20: =COUNTIF(D21,$KS$1)+(COUNTIF(E21,$KS$1)+(COUNTIF(F21,$KS$1)+(COUNTIF(G21,$KS$1)+(COUNTIF(H21,$KS$1))))) -> 0 | KT20: =COUNTIF(D21,$KT$1)+(COUNTIF(E21,$KT$1)+(COUNTIF(F21,$KT$1)+(COUNTIF(G21,$KT$1)+(COUNTIF(H21,$KT$1))))) -> 0 | KU20: =COUNTIF(D21,$KU$1)+(COUNTIF(E21,$KU$1)+(COUNTIF(F21,$KU$1)+(COUNTIF(G21,$KU$1)+(COUNTIF(H21,$KU$1))))) -> 0 | KV20: =COUNTIF(D21,$KV$1)+(COUNTIF(E21,$KV$1)+(COUNTIF(F21,$KV$1)+(COUNTIF(G21,$KV$1)+(COUNTIF(H21,$KV$1))))) -> 0 | KW20: =COUNTIF(D21,$KW$1)+(COUNTIF(E21,$KW$1)+(COUNTIF(F21,$KW$1)+(COUNTIF(G21,$KW$1)+(COUNTIF(H21,$KW$1))))) -> 0
A21: 391 | B21: LUNDI | C21: 2022-07-25 | D21: 7 | E21: 13 | F21: 24 | G21: 26 | H21: 42 | I21: 2 | J21: 2 | K21: c | L21: =COUNTIF(M20:P20,">0") -> 0 | M21: =_xlfn.LET(_xlpm.comp,RIGHT(D22:H22,1),_xlfn._xlws.FILTER(D22:H22,_xlfn.XMATCH(_xlpm.comp,_xlpm.comp)<>_xlfn.XMATCH(_xlpm.comp,_xlpm.comp,,-1))) -> 13 | N21: 43 | Q21: =COUNTIF(D21:H21,D22:H22) -> 1 | R21: 0 | S21: 0 | T21: 0 | U21: 0 | V21: =IF(AND(W21>69,W21<164,OR(X21={1;2;3;4})),1,0) -> 0 | W21: =D22+E22+F22+G22+H22 -> 180 | X21: =SUMPRODUCT(( MOD(D22:H22,2)>0)*1) -> 4 | Y21: 1 | Z21: 0 | AA21: 2 | AB21: 0 | AC21: 0 | AD21: 1 | AE21: 1 | AF21: 0 | AG21: 0 | AH21: 0 | AI21: =COUNTIF(($D22:$H22),AI$1) -> 0 | AJ21: =COUNTIF(($D22:$H22),AJ$1) -> 0 | AK21: =COUNTIF(($D22:$H22),AK$1) -> 1 | AL21: =COUNTIF(($D22:$H22),AL$1) -> 0 | AM21: =COUNTIF(($D22:$H22),AM$1) -> 0 | AN21: =COUNTIF(($D22:$H22),AN$1) -> 0 | AO21: =COUNTIF(($D22:$H22),AO$1) -> 0 | AP21: =COUNTIF(($D22:$H22),AP$1) -> 0 | AQ21: =COUNTIF(($D22:$H22),AQ$1) -> 0 | AR21: =COUNTIF(($D22:$H22),AR$1) -> 0 | AS21: =COUNTIF(($D22:$H22),AS$1) -> 0 | AT21: =COUNTIF(($D22:$H22),AT$1) -> 0 | AU21: =COUNTIF(($D22:$H22),AU$1) -> 0 | AV21: =COUNTIF(($D22:$H22),AV$1) -> 0 | AW21: =COUNTIF(($D22:$H22),AW$1) -> 0 | AX21: =COUNTIF(($D22:$H22),AX$1) -> 0 | AY21: =COUNTIF(($D22:$H22),AY$1) -> 0 | AZ21: =COUNTIF(($D22:$H22),AZ$1) -> 0 | BA21: =COUNTIF(($D22:$H22),BA$1) -> 0 | BB21: =COUNTIF(($D22:$H22),BB$1) -> 0 | BC21: =COUNTIF(($D22:$H22),BC$1) -> 1 | BD21: =COUNTIF(($D22:$H22),BD$1) -> 0 | BE21: =COUNTIF(($D22:$H22),BE$1) -> 0 | BF21: =COUNTIF(($D22:$H22),BF$1) -> 0 | BG21: =COUNTIF(($D22:$H22),BG$1) -> 0 | BH21: =COUNTIF(($D22:$H22),BH$1) -> 0 | BI21: =COUNTIF((D22:H22),BI$1) -> 0 | BJ21: =COUNTIF((D22:H22),BJ$1) -> 0 | BK21: =COUNTIF((D22:H22),BK$1) -> 0 | BL21: =COUNTIF((D22:H22),BL$1) -> 0 | BM21: =COUNTIF((D22:H22),BM$1) -> 0 | BN21: =COUNTIF((D22:H22),BN$1) -> 0 | BO21: =COUNTIF((D22:H22),BO$1) -> 1 | BP21: =COUNTIF((D22:H22),BP$1) -> 0 | BQ21: =COUNTIF((D22:H22),BQ$1) -> 0 | BR21: =COUNTIF((D22:H22),BR$1) -> 1 | BS21: =COUNTIF((D22:H22),BS$1) -> 1 | BT21: =COUNTIF((D22:H22),BT$1) -> 0 | BU21: =COUNTIF((D22:H22),BU$1) -> 0 | BV21: =COUNTIF(D22:H22,"<10") -> 0 | BW21: =(COUNTIF(D22:H22,"<20")-BV21) -> 1 | BX21: =((COUNTIF(D22:H22,"<30")))-(BV21+BW21) -> 0 | BY21: =((COUNTIF(D22:H22,"<40")))-(BW21+BX21+BV21) -> 1 | BZ21: =((COUNTIF(D22:H22,"<50")))-(BX21+BY21+BW21+BV21) -> 3 | CB21: 0 | CC21: 1 | CD21: 0 | CE21: 1 | CF21: 1 | CG21: 0 | CH21: 0 | CI21: 0 | CJ21: 0 | CK21: 0 | CL21: 0 | CM21: 0 | CN21: 0 | CO21: 0 | CP21: 0 | CQ21: 0 | CR21: 1 | CS21: 0 | CT21: 0 | CU21: 0 | CV21: 0 | CW21: 0 | CX21: 0 | CY21: 0 | CZ21: 0 | DA21: 0 | DB21: 0 | DC21: 0 | DD21: 0 | DE21: 0 | DF21: 0 | DG21: 0 | DH21: 0 | DJ21: 0 | DK21: 0 | DL21: =COUNTIF((I22),$DL$1) -> 0 | DM21: =COUNTIF((I22),$DM$1) -> 0 | DN21: =COUNTIF((I22),$DN$1) -> 0 | DO21: =COUNTIF((I22),$DO$1) -> 0 | DP21: =COUNTIF((I22),$DP$1) -> 0 | DQ21: =COUNTIF((I22),$DQ$1) -> 0 | DR21: =COUNTIF((I22),$DR$1) -> 0 | DS21: =COUNTIF((I22),$DS$1) -> 0 | DT21: =COUNTIF((I22),$DT$1) -> 0 | DU21: =COUNTIF((I22),$DU$1) -> 1 | DW21: 1 | DX21: 0 | DY21: 1 | DZ21: 1 | EA21: 1 | EB21: 1 | EC21: 1 | ED21: 1 | EE21: 1 | EF21: 0 | EI21: 1 | EJ21: 0 | EK21: 1 | EL21: 1 | EM21: 1 | EN21: 1 | EO21: 1 | EP21: 1 | EQ21: 1 | ER21: 0 | ES21: =COUNTIF(I21,I22) -> 0 | ET21: =SUMPRODUCT(( MOD(I22,2)>0)*1) -> 0 | EU21: =IF((E22=D22+1)+(F22=E22+1)+(G22=F22+1)+(H22=G22+1),("1")*1,("")) -> 1 | EV21: 1 | EW21: =H22-D22 -> 34 | EX21: =(MID(D22,2,2)*1) -> 3 | EY21: =(MID(E22,2,1)*1) -> 1 | EZ21: =(MID(F22,2,1)*1) -> 3 | FA21: =(MID(G22,2,1)*1) -> 6 | FB21: =(MID(H22,2,1)*1) -> 7 | FC21: 0 | FD21: 1 | FE21: 0 | FF21: 0 | FG21: 0 | FH21: 0 | FI21: 0 | FJ21: 0 | FK21: =IF(E22=D22+1,("1")*1,("")) ->  | FL21: =IF(F22=E22+1,("1")*1,("")) ->  | FM21: =IF(G22=F22+1,("1")*1,("")) ->  | FN21: =IF(H22=G22+1,("1")*1,("")) -> 1 | FW21: =SUMPRODUCT(( MOD(D22,2)>0)*1) -> 1 | FX21: =SUMPRODUCT(( MOD(E22,2)>0)*1) -> 1 | FY21: =SUMPRODUCT(( MOD(F22,2)>0)*1) -> 1 | FZ21: =SUMPRODUCT(( MOD(G22,2)>0)*1) -> 0 | GA21: =SUMPRODUCT(( MOD(H22,2)>0)*1) -> 1 | GE21: 1 | GF21: 1 | GG21: 0 | GH21: 0 | GL21: 1 | GM21: 0 | GN21: 1 | GR21: 0 | GS21: 1 | GW21: 1 | HA21: 0 | JA21: =COUNTIF(D22,$JA$1)+(COUNTIF(E22,$JA$1)+(COUNTIF(F22,$JA$1)+(COUNTIF(G22,$JA$1)+(COUNTIF(H22,$JA$1))))) -> 0 | JB21: =COUNTIF(D22,$JB$1)+(COUNTIF(E22,$JB$1)+(COUNTIF(F22,$JB$1)+(COUNTIF(G22,$JB$1)+(COUNTIF(H22,$JB$1))))) -> 0 | JC21: =COUNTIF(D22,$JC$1)+(COUNTIF(E22,$JC$1)+(COUNTIF(F22,$JC$1)+(COUNTIF(G22,$JC$1)+(COUNTIF(H22,$JC$1))))) -> 0 | JD21: =COUNTIF(D22,$JD$1)+(COUNTIF(E22,$JD$1)+(COUNTIF(F22,$JD$1)+(COUNTIF(G22,$JD$1)+(COUNTIF(H22,$JD$1))))) -> 0 | JE21: =COUNTIF(D22,$JE$1)+(COUNTIF(E22,$JE$1)+(COUNTIF(F22,$JE$1)+(COUNTIF(G22,$JE$1)+(COUNTIF(H22,$JE$1))))) -> 0 | JF21: =COUNTIF(D22,$JF$1)+(COUNTIF(E22,$JF$1)+(COUNTIF(F22,$JF$1)+(COUNTIF(G22,$JF$1)+(COUNTIF(H22,$JF$1))))) -> 0 | JG21: =COUNTIF(D22,$JG$1)+(COUNTIF(E22,$JG$1)+(COUNTIF(F22,$JG$1)+(COUNTIF(G22,$JG$1)+(COUNTIF(H22,$JG$1))))) -> 0 | JH21: =COUNTIF(D22,$JH$1)+(COUNTIF(E22,$JH$1)+(COUNTIF(F22,$JH$1)+(COUNTIF(G22,$JH$1)+(COUNTIF(H22,$JH$1))))) -> 0 | JI21: =COUNTIF(D22,$JI$1)+(COUNTIF(E22,$JI$1)+(COUNTIF(F22,$JI$1)+(COUNTIF(G22,$JI$1)+(COUNTIF(H22,$JI$1))))) -> 0 | JJ21: =COUNTIF(D22,$JJ$1)+(COUNTIF(E22,$JJ$1)+(COUNTIF(F22,$JJ$1)+(COUNTIF(G22,$JJ$1)+(COUNTIF(H22,$JJ$1))))) -> 0 | JK21: =COUNTIF(D22,$JK$1)+(COUNTIF(E22,$JK$1)+(COUNTIF(F22,$JK$1)+(COUNTIF(G22,$JK$1)+(COUNTIF(H22,$JK$1))))) -> 0 | JL21: =COUNTIF(D22,$JL$1)+(COUNTIF(E22,$JL$1)+(COUNTIF(F22,$JL$1)+(COUNTIF(G22,$JL$1)+(COUNTIF(H22,$JL$1))))) -> 0 | JM21: =COUNTIF(D22,$JM$1)+(COUNTIF(E22,$JM$1)+(COUNTIF(F22,$JM$1)+(COUNTIF(G22,$JM$1)+(COUNTIF(H22,$JM$1))))) -> 1 | JN21: =COUNTIF(D22,$JN$1)+(COUNTIF(E22,$JN$1)+(COUNTIF(F22,$JN$1)+(COUNTIF(G22,$JN$1)+(COUNTIF(H22,$JN$1))))) -> 0 | JO21: =COUNTIF(D22,$JO$1)+(COUNTIF(E22,$JO$1)+(COUNTIF(F22,$JO$1)+(COUNTIF(G22,$JO$1)+(COUNTIF(H22,$JO$1))))) -> 0 | JP21: =COUNTIF(D22,$JP$1)+(COUNTIF(E22,$JP$1)+(COUNTIF(F22,$JP$1)+(COUNTIF(G22,$JP$1)+(COUNTIF(H22,$JP$1))))) -> 0 | JQ21: =COUNTIF(D22,$JQ$1)+(COUNTIF(E22,$JQ$1)+(COUNTIF(F22,$JQ$1)+(COUNTIF(G22,$JQ$1)+(COUNTIF(H22,$JQ$1))))) -> 0 | JR21: =COUNTIF(D22,$JR$1)+(COUNTIF(E22,$JR$1)+(COUNTIF(F22,$JR$1)+(COUNTIF(G22,$JR$1)+(COUNTIF(H22,$JR$1))))) -> 0 | JS21: =COUNTIF(D22,$JS$1)+(COUNTIF(E22,$JS$1)+(COUNTIF(F22,$JS$1)+(COUNTIF(G22,$JS$1)+(COUNTIF(H22,$JS$1))))) -> 0 | JT21: =COUNTIF(D22,$JT$1)+(COUNTIF(E22,$JT$1)+(COUNTIF(F22,$JT$1)+(COUNTIF(G22,$JT$1)+(COUNTIF(H22,$JT$1))))) -> 0 | JU21: =COUNTIF(D22,$JU$1)+(COUNTIF(E22,$JU$1)+(COUNTIF(F22,$JU$1)+(COUNTIF(G22,$JU$1)+(COUNTIF(H22,$JU$1))))) -> 0 | JV21: =COUNTIF(D22,$JV$1)+(COUNTIF(E22,$JV$1)+(COUNTIF(F22,$JV$1)+(COUNTIF(G22,$JV$1)+(COUNTIF(H22,$JV$1))))) -> 0 | JW21: =COUNTIF(D22,$JW$1)+(COUNTIF(E22,$JW$1)+(COUNTIF(F22,$JW$1)+(COUNTIF(G22,$JW$1)+(COUNTIF(H22,$JW$1))))) -> 0 | JX21: =COUNTIF(D22,$JX$1)+(COUNTIF(E22,$JX$1)+(COUNTIF(F22,$JX$1)+(COUNTIF(G22,$JX$1)+(COUNTIF(H22,$JX$1))))) -> 0 | JY21: =COUNTIF(D22,$JY$1)+(COUNTIF(E22,$JY$1)+(COUNTIF(F22,$JY$1)+(COUNTIF(G22,$JY$1)+(COUNTIF(H22,$JY$1))))) -> 0 | JZ21: =COUNTIF(D22,$JZ$1)+(COUNTIF(E22,$JZ$1)+(COUNTIF(F22,$JZ$1)+(COUNTIF(G22,$JZ$1)+(COUNTIF(H22,$JZ$1))))) -> 0 | KA21: =COUNTIF(D22,$KA$1)+(COUNTIF(E22,$KA$1)+(COUNTIF(F22,$KA$1)+(COUNTIF(G22,$KA$1)+(COUNTIF(H22,$KA$1))))) -> 0 | KB21: =COUNTIF(D22,$KB$1)+(COUNTIF(E22,$KB$1)+(COUNTIF(F22,$KB$1)+(COUNTIF(G22,$KB$1)+(COUNTIF(H22,$KB$1))))) -> 0 | KC21: =COUNTIF(D22,$KC$1)+(COUNTIF(E22,$KC$1)+(COUNTIF(F22,$KC$1)+(COUNTIF(G22,$KC$1)+(COUNTIF(H22,$KC$1))))) -> 0 | KD21: =COUNTIF(D22,$KD$1)+(COUNTIF(E22,$KD$1)+(COUNTIF(F22,$KD$1)+(COUNTIF(G22,$KD$1)+(COUNTIF(H22,$KD$1))))) -> 0 | KE21: =COUNTIF(D22,$KE$1)+(COUNTIF(E22,$KE$1)+(COUNTIF(F22,$KE$1)+(COUNTIF(G22,$KE$1)+(COUNTIF(H22,$KE$1))))) -> 1 | KF21: =COUNTIF(D22,$KF$1)+(COUNTIF(E22,$KF$1)+(COUNTIF(F22,$KF$1)+(COUNTIF(G22,$KF$1)+(COUNTIF(H22,$KF$1))))) -> 0 | KG21: =COUNTIF(D22,$KG$1)+(COUNTIF(E22,$KG$1)+(COUNTIF(F22,$KG$1)+(COUNTIF(G22,$KG$1)+(COUNTIF(H22,$KG$1))))) -> 0 | KH21: =COUNTIF(D22,$KH$1)+(COUNTIF(E22,$KH$1)+(COUNTIF(F22,$KH$1)+(COUNTIF(G22,$KH$1)+(COUNTIF(H22,$KH$1))))) -> 0 | KI21: =COUNTIF(D22,$KI$1)+(COUNTIF(E22,$KI$1)+(COUNTIF(F22,$KI$1)+(COUNTIF(G22,$KI$1)+(COUNTIF(H22,$KI$1))))) -> 0 | KJ21: =COUNTIF(D22,$KJ$1)+(COUNTIF(E22,$KJ$1)+(COUNTIF(F22,$KJ$1)+(COUNTIF(G22,$KJ$1)+(COUNTIF(H22,$KJ$1))))) -> 0 | KK21: =COUNTIF(D22,$KK$1)+(COUNTIF(E22,$KK$1)+(COUNTIF(F22,$KK$1)+(COUNTIF(G22,$KK$1)+(COUNTIF(H22,$KK$1))))) -> 0 | KL21: =COUNTIF(D22,$KL$1)+(COUNTIF(E22,$KL$1)+(COUNTIF(F22,$KL$1)+(COUNTIF(G22,$KL$1)+(COUNTIF(H22,$KL$1))))) -> 0 | KM21: =COUNTIF(D22,$KM$1)+(COUNTIF(E22,$KM$1)+(COUNTIF(F22,$KM$1)+(COUNTIF(G22,$KM$1)+(COUNTIF(H22,$KM$1))))) -> 0 | KN21: =COUNTIF(D22,$KN$1)+(COUNTIF(E22,$KN$1)+(COUNTIF(F22,$KN$1)+(COUNTIF(G22,$KN$1)+(COUNTIF(H22,$KN$1))))) -> 0 | KO21: =COUNTIF(D22,$KO$1)+(COUNTIF(E22,$KO$1)+(COUNTIF(F22,$KO$1)+(COUNTIF(G22,$KO$1)+(COUNTIF(H22,$KO$1))))) -> 0 | KP21: =COUNTIF(D22,$KP$1)+(COUNTIF(E22,$KP$1)+(COUNTIF(F22,$KP$1)+(COUNTIF(G22,$KP$1)+(COUNTIF(H22,$KP$1))))) -> 0 | KQ21: =COUNTIF(D22,$KQ$1)+(COUNTIF(E22,$KQ$1)+(COUNTIF(F22,$KQ$1)+(COUNTIF(G22,$KQ$1)+(COUNTIF(H22,$KQ$1))))) -> 1 | KR21: =COUNTIF(D22,$KR$1)+(COUNTIF(E22,$KR$1)+(COUNTIF(F22,$KR$1)+(COUNTIF(G22,$KR$1)+(COUNTIF(H22,$KR$1))))) -> 0 | KS21: =COUNTIF(D22,$KS$1)+(COUNTIF(E22,$KS$1)+(COUNTIF(F22,$KS$1)+(COUNTIF(G22,$KS$1)+(COUNTIF(H22,$KS$1))))) -> 0 | KT21: =COUNTIF(D22,$KT$1)+(COUNTIF(E22,$KT$1)+(COUNTIF(F22,$KT$1)+(COUNTIF(G22,$KT$1)+(COUNTIF(H22,$KT$1))))) -> 1 | KU21: =COUNTIF(D22,$KU$1)+(COUNTIF(E22,$KU$1)+(COUNTIF(F22,$KU$1)+(COUNTIF(G22,$KU$1)+(COUNTIF(H22,$KU$1))))) -> 1 | KV21: =COUNTIF(D22,$KV$1)+(COUNTIF(E22,$KV$1)+(COUNTIF(F22,$KV$1)+(COUNTIF(G22,$KV$1)+(COUNTIF(H22,$KV$1))))) -> 0 | KW21: =COUNTIF(D22,$KW$1)+(COUNTIF(E22,$KW$1)+(COUNTIF(F22,$KW$1)+(COUNTIF(G22,$KW$1)+(COUNTIF(H22,$KW$1))))) -> 0
A22: 390 | B22: MERCREDI | C22: 2022-07-27 | D22: 13 | E22: 31 | F22: 43 | G22: 46 | H22: 47 | I22: 10 | J22: 7 | K22: h | L22: =COUNTIF(M21:P21,">0") -> 2 | M22: =_xlfn.LET(_xlpm.comp,RIGHT(D23:H23,1),_xlfn._xlws.FILTER(D23:H23,_xlfn.XMATCH(_xlpm.comp,_xlpm.comp)<>_xlfn.XMATCH(_xlpm.comp,_xlpm.comp,,-1))) -> 14 | N22: 24 | Q22: =COUNTIF(D22:H22,D23:H23) -> 0 | R22: 0 | S22: 0 | T22: 0 | U22: 0 | V22: =IF(AND(W22>69,W22<164,OR(X22={1;2;3;4})),1,0) -> 1 | W22: =D23+E23+F23+G23+H23 -> 99 | X22: =SUMPRODUCT(( MOD(D23:H23,2)>0)*1) -> 1 | Y22: 1 | Z22: 1 | AA22: 0 | AB22: 2 | AC22: 0 | AD22: 0 | AE22: 0 | AF22: 1 | AG22: 0 | AH22: 0 | AI22: =COUNTIF(($D23:$H23),AI$1) -> 0 | AJ22: =COUNTIF(($D23:$H23),AJ$1) -> 0 | AK22: =COUNTIF(($D23:$H23),AK$1) -> 0 | AL22: =COUNTIF(($D23:$H23),AL$1) -> 1 | AM22: =COUNTIF(($D23:$H23),AM$1) -> 0 | AN22: =COUNTIF(($D23:$H23),AN$1) -> 0 | AO22: =COUNTIF(($D23:$H23),AO$1) -> 0 | AP22: =COUNTIF(($D23:$H23),AP$1) -> 0 | AQ22: =COUNTIF(($D23:$H23),AQ$1) -> 0 | AR22: =COUNTIF(($D23:$H23),AR$1) -> 0 | AS22: =COUNTIF(($D23:$H23),AS$1) -> 1 | AT22: =COUNTIF(($D23:$H23),AT$1) -> 0 | AU22: =COUNTIF(($D23:$H23),AU$1) -> 0 | AV22: =COUNTIF(($D23:$H23),AV$1) -> 1 | AW22: =COUNTIF(($D23:$H23),AW$1) -> 0 | AX22: =COUNTIF(($D23:$H23),AX$1) -> 0 | AY22: =COUNTIF(($D23:$H23),AY$1) -> 0 | AZ22: =COUNTIF(($D23:$H23),AZ$1) -> 0 | BA22: =COUNTIF(($D23:$H23),BA$1) -> 0 | BB22: =COUNTIF(($D23:$H23),BB$1) -> 0 | BC22: =COUNTIF(($D23:$H23),BC$1) -> 0 | BD22: =COUNTIF(($D23:$H23),BD$1) -> 0 | BE22: =COUNTIF(($D23:$H23),BE$1) -> 0 | BF22: =COUNTIF(($D23:$H23),BF$1) -> 0 | BG22: =COUNTIF(($D23:$H23),BG$1) -> 0 | BH22: =COUNTIF(($D23:$H23),BH$1) -> 0 | BI22: =COUNTIF((D23:H23),BI$1) -> 0 | BJ22: =COUNTIF((D23:H23),BJ$1) -> 1 | BK22: =COUNTIF((D23:H23),BK$1) -> 0 | BL22: =COUNTIF((D23:H23),BL$1) -> 0 | BM22: =COUNTIF((D23:H23),BM$1) -> 0 | BN22: =COUNTIF((D23:H23),BN$1) -> 0 | BO22: =COUNTIF((D23:H23),BO$1) -> 0 | BP22: =COUNTIF((D23:H23),BP$1) -> 0 | BQ22: =COUNTIF((D23:H23),BQ$1) -> 0 | BR22: =COUNTIF((D23:H23),BR$1) -> 0 | BS22: =COUNTIF((D23:H23),BS$1) -> 0 | BT22: =COUNTIF((D23:H23),BT$1) -> 0 | BU22: =COUNTIF((D23:H23),BU$1) -> 0 | BV22: =COUNTIF(D23:H23,"<10") -> 1 | BW22: =(COUNTIF(D23:H23,"<20")-BV22) -> 1 | BX22: =((COUNTIF(D23:H23,"<30")))-(BV22+BW22) -> 2 | BY22: =((COUNTIF(D23:H23,"<40")))-(BW22+BX22+BV22) -> 1 | BZ22: =((COUNTIF(D23:H23,"<50")))-(BX22+BY22+BW22+BV22) -> 0 | CB22: 1 | CC22: 1 | CD22: 1 | CE22: 1 | CF22: 0 | CG22: 0 | CH22: 0 | CI22: 0 | CJ22: 0 | CK22: 0 | CL22: 1 | CM22: 0 | CN22: 0 | CO22: 0 | CP22: 0 | CQ22: 0 | CR22: 0 | CS22: 0 | CT22: 0 | CU22: 0 | CV22: 0 | CW22: 0 | CX22: 0 | CY22: 0 | CZ22: 0 | DA22: 0 | DB22: 0 | DC22: 0 | DD22: 0 | DE22: 0 | DF22: 0 | DG22: 0 | DH22: 0 | DJ22: 0 | DK22: 0 | DL22: =COUNTIF((I23),$DL$1) -> 0 | DM22: =COUNTIF((I23),$DM$1) -> 0 | DN22: =COUNTIF((I23),$DN$1) -> 0 | DO22: =COUNTIF((I23),$DO$1) -> 0 | DP22: =COUNTIF((I23),$DP$1) -> 0 | DQ22: =COUNTIF((I23),$DQ$1) -> 1 | DR22: =COUNTIF((I23),$DR$1) -> 0 | DS22: =COUNTIF((I23),$DS$1) -> 0 | DT22: =COUNTIF((I23),$DT$1) -> 0 | DU22: =COUNTIF((I23),$DU$1) -> 0 | DW22: 1 | DX22: 1 | DY22: 1 | DZ22: 1 | EA22: 1 | EB22: 0 | EC22: 1 | ED22: 1 | EE22: 1 | EF22: 0 | EI22: 1 | EJ22: 1 | EK22: 1 | EL22: 1 | EM22: 1 | EN22: 0 | EO22: 1 | EP22: 1 | EQ22: 1 | ER22: 0 | ES22: =COUNTIF(I22,I23) -> 0 | ET22: =SUMPRODUCT(( MOD(I23,2)>0)*1) -> 0 | EU22: =IF((E23=D23+1)+(F23=E23+1)+(G23=F23+1)+(H23=G23+1),("1")*1,("")) ->  | EV22: 1 | EW22: =H23-D23 -> 36 | EX22: =(MID(D23,1,2)*1) -> 2 | EY22: =(MID(E23,2,1)*1) -> 4 | EZ22: =(MID(F23,2,1)*1) -> 1 | FA22: =(MID(G23,2,1)*1) -> 4 | FB22: =(MID(H23,2,1)*1) -> 8 | FC22: 0 | FD22: 1 | FE22: =I23 -> 6 | FF22: 0 | FG22: 0 | FH22: 0 | FI22: 0 | FJ22: 0 | FK22: =IF(E23=D23+1,("1")*1,("")) ->  | FL22: =IF(F23=E23+1,("1")*1,("")) ->  | FM22: =IF(G23=F23+1,("1")*1,("")) ->  | FN22: =IF(H23=G23+1,("1")*1,("")) ->  | FW22: =SUMPRODUCT(( MOD(D23,2)>0)*1) -> 0 | FX22: =SUMPRODUCT(( MOD(E23,2)>0)*1) -> 0 | FY22: =SUMPRODUCT(( MOD(F23,2)>0)*1) -> 1 | FZ22: =SUMPRODUCT(( MOD(G23,2)>0)*1) -> 0 | GA22: =SUMPRODUCT(( MOD(H23,2)>0)*1) -> 0 | GE22: 0 | GF22: 0 | GG22: 0 | GH22: 0 | GL22: 0 | GM22: 0 | GN22: 0 | GR22: 0 | GS22: 0 | GW22: 0 | HA22: 1 | JA22: =COUNTIF(D23,$JA$1)+(COUNTIF(E23,$JA$1)+(COUNTIF(F23,$JA$1)+(COUNTIF(G23,$JA$1)+(COUNTIF(H23,$JA$1))))) -> 0 | JB22: =COUNTIF(D23,$JB$1)+(COUNTIF(E23,$JB$1)+(COUNTIF(F23,$JB$1)+(COUNTIF(G23,$JB$1)+(COUNTIF(H23,$JB$1))))) -> 1 | JC22: =COUNTIF(D23,$JC$1)+(COUNTIF(E23,$JC$1)+(COUNTIF(F23,$JC$1)+(COUNTIF(G23,$JC$1)+(COUNTIF(H23,$JC$1))))) -> 0 | JD22: =COUNTIF(D23,$JD$1)+(COUNTIF(E23,$JD$1)+(COUNTIF(F23,$JD$1)+(COUNTIF(G23,$JD$1)+(COUNTIF(H23,$JD$1))))) -> 0 | JE22: =COUNTIF(D23,$JE$1)+(COUNTIF(E23,$JE$1)+(COUNTIF(F23,$JE$1)+(COUNTIF(G23,$JE$1)+(COUNTIF(H23,$JE$1))))) -> 0 | JF22: =COUNTIF(D23,$JF$1)+(COUNTIF(E23,$JF$1)+(COUNTIF(F23,$JF$1)+(COUNTIF(G23,$JF$1)+(COUNTIF(H23,$JF$1))))) -> 0 | JG22: =COUNTIF(D23,$JG$1)+(COUNTIF(E23,$JG$1)+(COUNTIF(F23,$JG$1)+(COUNTIF(G23,$JG$1)+(COUNTIF(H23,$JG$1))))) -> 0 | JH22: =COUNTIF(D23,$JH$1)+(COUNTIF(E23,$JH$1)+(COUNTIF(F23,$JH$1)+(COUNTIF(G23,$JH$1)+(COUNTIF(H23,$JH$1))))) -> 0 | JI22: =COUNTIF(D23,$JI$1)+(COUNTIF(E23,$JI$1)+(COUNTIF(F23,$JI$1)+(COUNTIF(G23,$JI$1)+(COUNTIF(H23,$JI$1))))) -> 0 | JJ22: =COUNTIF(D23,$JJ$1)+(COUNTIF(E23,$JJ$1)+(COUNTIF(F23,$JJ$1)+(COUNTIF(G23,$JJ$1)+(COUNTIF(H23,$JJ$1))))) -> 0 | JK22: =COUNTIF(D23,$JK$1)+(COUNTIF(E23,$JK$1)+(COUNTIF(F23,$JK$1)+(COUNTIF(G23,$JK$1)+(COUNTIF(H23,$JK$1))))) -> 0 | JL22: =COUNTIF(D23,$JL$1)+(COUNTIF(E23,$JL$1)+(COUNTIF(F23,$JL$1)+(COUNTIF(G23,$JL$1)+(COUNTIF(H23,$JL$1))))) -> 0 | JM22: =COUNTIF(D23,$JM$1)+(COUNTIF(E23,$JM$1)+(COUNTIF(F23,$JM$1)+(COUNTIF(G23,$JM$1)+(COUNTIF(H23,$JM$1))))) -> 0 | JN22: =COUNTIF(D23,$JN$1)+(COUNTIF(E23,$JN$1)+(COUNTIF(F23,$JN$1)+(COUNTIF(G23,$JN$1)+(COUNTIF(H23,$JN$1))))) -> 1 | JO22: =COUNTIF(D23,$JO$1)+(COUNTIF(E23,$JO$1)+(COUNTIF(F23,$JO$1)+(COUNTIF(G23,$JO$1)+(COUNTIF(H23,$JO$1))))) -> 0 | JP22: =COUNTIF(D23,$JP$1)+(COUNTIF(E23,$JP$1)+(COUNTIF(F23,$JP$1)+(COUNTIF(G23,$JP$1)+(COUNTIF(H23,$JP$1))))) -> 0 | JQ22: =COUNTIF(D23,$JQ$1)+(COUNTIF(E23,$JQ$1)+(COUNTIF(F23,$JQ$1)+(COUNTIF(G23,$JQ$1)+(COUNTIF(H23,$JQ$1))))) -> 0 | JR22: =COUNTIF(D23,$JR$1)+(COUNTIF(E23,$JR$1)+(COUNTIF(F23,$JR$1)+(COUNTIF(G23,$JR$1)+(COUNTIF(H23,$JR$1))))) -> 0 | JS22: =COUNTIF(D23,$JS$1)+(COUNTIF(E23,$JS$1)+(COUNTIF(F23,$JS$1)+(COUNTIF(G23,$JS$1)+(COUNTIF(H23,$JS$1))))) -> 0 | JT22: =COUNTIF(D23,$JT$1)+(COUNTIF(E23,$JT$1)+(COUNTIF(F23,$JT$1)+(COUNTIF(G23,$JT$1)+(COUNTIF(H23,$JT$1))))) -> 0 | JU22: =COUNTIF(D23,$JU$1)+(COUNTIF(E23,$JU$1)+(COUNTIF(F23,$JU$1)+(COUNTIF(G23,$JU$1)+(COUNTIF(H23,$JU$1))))) -> 1 | JV22: =COUNTIF(D23,$JV$1)+(COUNTIF(E23,$JV$1)+(COUNTIF(F23,$JV$1)+(COUNTIF(G23,$JV$1)+(COUNTIF(H23,$JV$1))))) -> 0 | JW22: =COUNTIF(D23,$JW$1)+(COUNTIF(E23,$JW$1)+(COUNTIF(F23,$JW$1)+(COUNTIF(G23,$JW$1)+(COUNTIF(H23,$JW$1))))) -> 0 | JX22: =COUNTIF(D23,$JX$1)+(COUNTIF(E23,$JX$1)+(COUNTIF(F23,$JX$1)+(COUNTIF(G23,$JX$1)+(COUNTIF(H23,$JX$1))))) -> 1 | JY22: =COUNTIF(D23,$JY$1)+(COUNTIF(E23,$JY$1)+(COUNTIF(F23,$JY$1)+(COUNTIF(G23,$JY$1)+(COUNTIF(H23,$JY$1))))) -> 0 | JZ22: =COUNTIF(D23,$JZ$1)+(COUNTIF(E23,$JZ$1)+(COUNTIF(F23,$JZ$1)+(COUNTIF(G23,$JZ$1)+(COUNTIF(H23,$JZ$1))))) -> 0 | KA22: =COUNTIF(D23,$KA$1)+(COUNTIF(E23,$KA$1)+(COUNTIF(F23,$KA$1)+(COUNTIF(G23,$KA$1)+(COUNTIF(H23,$KA$1))))) -> 0 | KB22: =COUNTIF(D23,$KB$1)+(COUNTIF(E23,$KB$1)+(COUNTIF(F23,$KB$1)+(COUNTIF(G23,$KB$1)+(COUNTIF(H23,$KB$1))))) -> 0 | KC22: =COUNTIF(D23,$KC$1)+(COUNTIF(E23,$KC$1)+(COUNTIF(F23,$KC$1)+(COUNTIF(G23,$KC$1)+(COUNTIF(H23,$KC$1))))) -> 0 | KD22: =COUNTIF(D23,$KD$1)+(COUNTIF(E23,$KD$1)+(COUNTIF(F23,$KD$1)+(COUNTIF(G23,$KD$1)+(COUNTIF(H23,$KD$1))))) -> 0 | KE22: =COUNTIF(D23,$KE$1)+(COUNTIF(E23,$KE$1)+(COUNTIF(F23,$KE$1)+(COUNTIF(G23,$KE$1)+(COUNTIF(H23,$KE$1))))) -> 0 | KF22: =COUNTIF(D23,$KF$1)+(COUNTIF(E23,$KF$1)+(COUNTIF(F23,$KF$1)+(COUNTIF(G23,$KF$1)+(COUNTIF(H23,$KF$1))))) -> 0 | KG22: =COUNTIF(D23,$KG$1)+(COUNTIF(E23,$KG$1)+(COUNTIF(F23,$KG$1)+(COUNTIF(G23,$KG$1)+(COUNTIF(H23,$KG$1))))) -> 0 | KH22: =COUNTIF(D23,$KH$1)+(COUNTIF(E23,$KH$1)+(COUNTIF(F23,$KH$1)+(COUNTIF(G23,$KH$1)+(COUNTIF(H23,$KH$1))))) -> 0 | KI22: =COUNTIF(D23,$KI$1)+(COUNTIF(E23,$KI$1)+(COUNTIF(F23,$KI$1)+(COUNTIF(G23,$KI$1)+(COUNTIF(H23,$KI$1))))) -> 0 | KJ22: =COUNTIF(D23,$KJ$1)+(COUNTIF(E23,$KJ$1)+(COUNTIF(F23,$KJ$1)+(COUNTIF(G23,$KJ$1)+(COUNTIF(H23,$KJ$1))))) -> 0 | KK22: =COUNTIF(D23,$KK$1)+(COUNTIF(E23,$KK$1)+(COUNTIF(F23,$KK$1)+(COUNTIF(G23,$KK$1)+(COUNTIF(H23,$KK$1))))) -> 0 | KL22: =COUNTIF(D23,$KL$1)+(COUNTIF(E23,$KL$1)+(COUNTIF(F23,$KL$1)+(COUNTIF(G23,$KL$1)+(COUNTIF(H23,$KL$1))))) -> 1 | KM22: =COUNTIF(D23,$KM$1)+(COUNTIF(E23,$KM$1)+(COUNTIF(F23,$KM$1)+(COUNTIF(G23,$KM$1)+(COUNTIF(H23,$KM$1))))) -> 0 | KN22: =COUNTIF(D23,$KN$1)+(COUNTIF(E23,$KN$1)+(COUNTIF(F23,$KN$1)+(COUNTIF(G23,$KN$1)+(COUNTIF(H23,$KN$1))))) -> 0 | KO22: =COUNTIF(D23,$KO$1)+(COUNTIF(E23,$KO$1)+(COUNTIF(F23,$KO$1)+(COUNTIF(G23,$KO$1)+(COUNTIF(H23,$KO$1))))) -> 0 | KP22: =COUNTIF(D23,$KP$1)+(COUNTIF(E23,$KP$1)+(COUNTIF(F23,$KP$1)+(COUNTIF(G23,$KP$1)+(COUNTIF(H23,$KP$1))))) -> 0 | KQ22: =COUNTIF(D23,$KQ$1)+(COUNTIF(E23,$KQ$1)+(COUNTIF(F23,$KQ$1)+(COUNTIF(G23,$KQ$1)+(COUNTIF(H23,$KQ$1))))) -> 0 | KR22: =COUNTIF(D23,$KR$1)+(COUNTIF(E23,$KR$1)+(COUNTIF(F23,$KR$1)+(COUNTIF(G23,$KR$1)+(COUNTIF(H23,$KR$1))))) -> 0 | KS22: =COUNTIF(D23,$KS$1)+(COUNTIF(E23,$KS$1)+(COUNTIF(F23,$KS$1)+(COUNTIF(G23,$KS$1)+(COUNTIF(H23,$KS$1))))) -> 0 | KT22: =COUNTIF(D23,$KT$1)+(COUNTIF(E23,$KT$1)+(COUNTIF(F23,$KT$1)+(COUNTIF(G23,$KT$1)+(COUNTIF(H23,$KT$1))))) -> 0 | KU22: =COUNTIF(D23,$KU$1)+(COUNTIF(E23,$KU$1)+(COUNTIF(F23,$KU$1)+(COUNTIF(G23,$KU$1)+(COUNTIF(H23,$KU$1))))) -> 0 | KV22: =COUNTIF(D23,$KV$1)+(COUNTIF(E23,$KV$1)+(COUNTIF(F23,$KV$1)+(COUNTIF(G23,$KV$1)+(COUNTIF(H23,$KV$1))))) -> 0 | KW22: =COUNTIF(D23,$KW$1)+(COUNTIF(E23,$KW$1)+(COUNTIF(F23,$KW$1)+(COUNTIF(G23,$KW$1)+(COUNTIF(H23,$KW$1))))) -> 0
A23: 389 | B23: SAMEDI | C23: 2022-07-30 | D23: 2 | E23: 14 | F23: 21 | G23: 24 | H23: 38 | I23: 6 | J23: 8 | K23: i | L23: =COUNTIF(M22:P22,">0") -> 2 | M23: =_xlfn.LET(_xlpm.comp,RIGHT(D24:H24,1),_xlfn._xlws.FILTER(D24:H24,_xlfn.XMATCH(_xlpm.comp,_xlpm.comp)<>_xlfn.XMATCH(_xlpm.comp,_xlpm.comp,,-1))) ->  | Q23: =COUNTIF(D23:H23,D24:H24) -> 0 | R23: 0 | S23: 0 | T23: 0 | U23: 1 | V23: =IF(AND(W23>69,W23<164,OR(X23={1;2;3;4})),1,0) -> 1 | W23: =D24+E24+F24+G24+H24 -> 96 | X23: =SUMPRODUCT(( MOD(D24:H24,2)>0)*1) -> 2 | Y23: 1 | Z23: 0 | AA23: 1 | AB23: 1 | AC23: 0 | AD23: 0 | AE23: 0 | AF23: 1 | AG23: 0 | AH23: 1 | AI23: =COUNTIF(($D24:$H24),AI$1) -> 0 | AJ23: =COUNTIF(($D24:$H24),AJ$1) -> 0 | AK23: =COUNTIF(($D24:$H24),AK$1) -> 0 | AL23: =COUNTIF(($D24:$H24),AL$1) -> 0 | AM23: =COUNTIF(($D24:$H24),AM$1) -> 0 | AN23: =COUNTIF(($D24:$H24),AN$1) -> 0 | AO23: =COUNTIF(($D24:$H24),AO$1) -> 0 | AP23: =COUNTIF(($D24:$H24),AP$1) -> 0 | AQ23: =COUNTIF(($D24:$H24),AQ$1) -> 0 | AR23: =COUNTIF(($D24:$H24),AR$1) -> 0 | AS23: =COUNTIF(($D24:$H24),AS$1) -> 0 | AT23: =COUNTIF(($D24:$H24),AT$1) -> 0 | AU23: =COUNTIF(($D24:$H24),AU$1) -> 1 | AV23: =COUNTIF(($D24:$H24),AV$1) -> 0 | AW23: =COUNTIF(($D24:$H24),AW$1) -> 0 | AX23: =COUNTIF(($D24:$H24),AX$1) -> 0 | AY23: =COUNTIF(($D24:$H24),AY$1) -> 0 | AZ23: =COUNTIF(($D24:$H24),AZ$1) -> 0 | BA23: =COUNTIF(($D24:$H24),BA$1) -> 0 | BB23: =COUNTIF(($D24:$H24),BB$1) -> 1 | BC23: =COUNTIF(($D24:$H24),BC$1) -> 0 | BD23: =COUNTIF(($D24:$H24),BD$1) -> 0 | BE23: =COUNTIF(($D24:$H24),BE$1) -> 0 | BF23: =COUNTIF(($D24:$H24),BF$1) -> 0 | BG23: =COUNTIF(($D24:$H24),BG$1) -> 0 | BH23: =COUNTIF(($D24:$H24),BH$1) -> 0 | BI23: =COUNTIF((D24:H24),BI$1) -> 0 | BJ23: =COUNTIF((D24:H24),BJ$1) -> 1 | BK23: =COUNTIF((D24:H24),BK$1) -> 0 | BL23: =COUNTIF((D24:H24),BL$1) -> 0 | BM23: =COUNTIF((D24:H24),BM$1) -> 0 | BN23: =COUNTIF((D24:H24),BN$1) -> 0 | BO23: =COUNTIF((D24:H24),BO$1) -> 0 | BP23: =COUNTIF((D24:H24),BP$1) -> 0 | BQ23: =COUNTIF((D24:H24),BQ$1) -> 0 | BR23: =COUNTIF((D24:H24),BR$1) -> 0 | BS23: =COUNTIF((D24:H24),BS$1) -> 0 | BT23: =COUNTIF((D24:H24),BT$1) -> 0 | BU23: =COUNTIF((D24:H24),BU$1) -> 0 | BV23: =COUNTIF(D24:H24,"<10") -> 2 | BW23: =(COUNTIF(D24:H24,"<20")-BV23) -> 0 | BX23: =((COUNTIF(D24:H24,"<30")))-(BV23+BW23) -> 1 | BY23: =((COUNTIF(D24:H24,"<40")))-(BW23+BX23+BV23) -> 2 | BZ23: =((COUNTIF(D24:H24,"<50")))-(BX23+BY23+BW23+BV23) -> 0 | CB23: 1 | CC23: 0 | CD23: 1 | CE23: 1 | CF23: 0 | CG23: 0 | CH23: 0 | CI23: 0 | CJ23: 0 | CK23: 0 | CL23: 0 | CM23: 1 | CN23: 0 | CO23: 0 | CP23: 0 | CQ23: 0 | CR23: 0 | CS23: 0 | CT23: 0 | CU23: 0 | CV23: 0 | CW23: 0 | CX23: 0 | CY23: 0 | CZ23: 0 | DA23: 0 | DB23: 0 | DC23: 0 | DD23: 0 | DE23: 0 | DF23: 0 | DG23: 0 | DH23: 0 | DJ23: 0 | DK23: 0 | DL23: =COUNTIF((I24),$DL$1) -> 0 | DM23: =COUNTIF((I24),$DM$1) -> 0 | DN23: =COUNTIF((I24),$DN$1) -> 0 | DO23: =COUNTIF((I24),$DO$1) -> 0 | DP23: =COUNTIF((I24),$DP$1) -> 0 | DQ23: =COUNTIF((I24),$DQ$1) -> 1 | DR23: =COUNTIF((I24),$DR$1) -> 0 | DS23: =COUNTIF((I24),$DS$1) -> 0 | DT23: =COUNTIF((I24),$DT$1) -> 0 | DU23: =COUNTIF((I24),$DU$1) -> 0 | DW23: 1 | DX23: 1 | DY23: 1 | DZ23: 1 | EA23: 1 | EB23: 1 | EC23: 1 | ED23: 1 | EE23: 1 | EF23: 1 | EI23: 1 | EJ23: 1 | EK23: 1 | EL23: 1 | EM23: 1 | EN23: 1 | EO23: 1 | EP23: 1 | EQ23: 1 | ER23: 1 | ES23: =COUNTIF(I23,I24) -> 1 | ET23: =SUMPRODUCT(( MOD(I24,2)>0)*1) -> 0 | EU23: =IF((E24=D24+1)+(F24=E24+1)+(G24=F24+1)+(H24=G24+1),("1")*1,("")) ->  | EW23: =H24-D24 -> 37 | EX23: =(MID(D24,1,2)*1) -> 1 | EY23: =(MID(E24,1,1)*1) -> 4 | EZ23: =(MID(F24,2,1)*1) -> 3 | FA23: =(MID(G24,2,1)*1) -> 0 | FB23: =(MID(H24,2,1)*1) -> 8 | FC23: 0 | FD23: 1 | FE23: =I24 -> 6 | FF23: 0 | FG23: 0 | FH23: 0 | FI23: 0 | FJ23: 0 | FK23: =IF(E24=D24+1,("1")*1,("")) ->  | FL23: =IF(F24=E24+1,("1")*1,("")) ->  | FM23: =IF(G24=F24+1,("1")*1,("")) ->  | FN23: =IF(H24=G24+1,("1")*1,("")) ->  | FW23: =SUMPRODUCT(( MOD(D24,2)>0)*1) -> 1 | FX23: =SUMPRODUCT(( MOD(E24,2)>0)*1) -> 0 | FY23: =SUMPRODUCT(( MOD(F24,2)>0)*1) -> 1 | FZ23: =SUMPRODUCT(( MOD(G24,2)>0)*1) -> 0 | GA23: =SUMPRODUCT(( MOD(H24,2)>0)*1) -> 0 | GE23: 0 | GF23: 0 | GG23: 0 | GH23: 0 | GL23: 1 | GM23: 0 | GN23: 0 | GR23: 0 | GS23: 0 | GW23: 0 | HA23: 0 | JA23: =COUNTIF(D24,$JA$1)+(COUNTIF(E24,$JA$1)+(COUNTIF(F24,$JA$1)+(COUNTIF(G24,$JA$1)+(COUNTIF(H24,$JA$1))))) -> 1 | JB23: =COUNTIF(D24,$JB$1)+(COUNTIF(E24,$JB$1)+(COUNTIF(F24,$JB$1)+(COUNTIF(G24,$JB$1)+(COUNTIF(H24,$JB$1))))) -> 0 | JC23: =COUNTIF(D24,$JC$1)+(COUNTIF(E24,$JC$1)+(COUNTIF(F24,$JC$1)+(COUNTIF(G24,$JC$1)+(COUNTIF(H24,$JC$1))))) -> 0 | JD23: =COUNTIF(D24,$JD$1)+(COUNTIF(E24,$JD$1)+(COUNTIF(F24,$JD$1)+(COUNTIF(G24,$JD$1)+(COUNTIF(H24,$JD$1))))) -> 1 | JE23: =COUNTIF(D24,$JE$1)+(COUNTIF(E24,$JE$1)+(COUNTIF(F24,$JE$1)+(COUNTIF(G24,$JE$1)+(COUNTIF(H24,$JE$1))))) -> 0 | JF23: =COUNTIF(D24,$JF$1)+(COUNTIF(E24,$JF$1)+(COUNTIF(F24,$JF$1)+(COUNTIF(G24,$JF$1)+(COUNTIF(H24,$JF$1))))) -> 0 | JG23: =COUNTIF(D24,$JG$1)+(COUNTIF(E24,$JG$1)+(COUNTIF(F24,$JG$1)+(COUNTIF(G24,$JG$1)+(COUNTIF(H24,$JG$1))))) -> 0 | JH23: =COUNTIF(D24,$JH$1)+(COUNTIF(E24,$JH$1)+(COUNTIF(F24,$JH$1)+(COUNTIF(G24,$JH$1)+(COUNTIF(H24,$JH$1))))) -> 0 | JI23: =COUNTIF(D24,$JI$1)+(COUNTIF(E24,$JI$1)+(COUNTIF(F24,$JI$1)+(COUNTIF(G24,$JI$1)+(COUNTIF(H24,$JI$1))))) -> 0 | JJ23: =COUNTIF(D24,$JJ$1)+(COUNTIF(E24,$JJ$1)+(COUNTIF(F24,$JJ$1)+(COUNTIF(G24,$JJ$1)+(COUNTIF(H24,$JJ$1))))) -> 0 | JK23: =COUNTIF(D24,$JK$1)+(COUNTIF(E24,$JK$1)+(COUNTIF(F24,$JK$1)+(COUNTIF(G24,$JK$1)+(COUNTIF(H24,$JK$1))))) -> 0 | JL23: =COUNTIF(D24,$JL$1)+(COUNTIF(E24,$JL$1)+(COUNTIF(F24,$JL$1)+(COUNTIF(G24,$JL$1)+(COUNTIF(H24,$JL$1))))) -> 0 | JM23: =COUNTIF(D24,$JM$1)+(COUNTIF(E24,$JM$1)+(COUNTIF(F24,$JM$1)+(COUNTIF(G24,$JM$1)+(COUNTIF(H24,$JM$1))))) -> 0 | JN23: =COUNTIF(D24,$JN$1)+(COUNTIF(E24,$JN$1)+(COUNTIF(F24,$JN$1)+(COUNTIF(G24,$JN$1)+(COUNTIF(H24,$JN$1))))) -> 0 | JO23: =COUNTIF(D24,$JO$1)+(COUNTIF(E24,$JO$1)+(COUNTIF(F24,$JO$1)+(COUNTIF(G24,$JO$1)+(COUNTIF(H24,$JO$1))))) -> 0 | JP23: =COUNTIF(D24,$JP$1)+(COUNTIF(E24,$JP$1)+(COUNTIF(F24,$JP$1)+(COUNTIF(G24,$JP$1)+(COUNTIF(H24,$JP$1))))) -> 0 | JQ23: =COUNTIF(D24,$JQ$1)+(COUNTIF(E24,$JQ$1)+(COUNTIF(F24,$JQ$1)+(COUNTIF(G24,$JQ$1)+(COUNTIF(H24,$JQ$1))))) -> 0 | JR23: =COUNTIF(D24,$JR$1)+(COUNTIF(E24,$JR$1)+(COUNTIF(F24,$JR$1)+(COUNTIF(G24,$JR$1)+(COUNTIF(H24,$JR$1))))) -> 0 | JS23: =COUNTIF(D24,$JS$1)+(COUNTIF(E24,$JS$1)+(COUNTIF(F24,$JS$1)+(COUNTIF(G24,$JS$1)+(COUNTIF(H24,$JS$1))))) -> 0 | JT23: =COUNTIF(D24,$JT$1)+(COUNTIF(E24,$JT$1)+(COUNTIF(F24,$JT$1)+(COUNTIF(G24,$JT$1)+(COUNTIF(H24,$JT$1))))) -> 0 | JU23: =COUNTIF(D24,$JU$1)+(COUNTIF(E24,$JU$1)+(COUNTIF(F24,$JU$1)+(COUNTIF(G24,$JU$1)+(COUNTIF(H24,$JU$1))))) -> 0 | JV23: =COUNTIF(D24,$JV$1)+(COUNTIF(E24,$JV$1)+(COUNTIF(F24,$JV$1)+(COUNTIF(G24,$JV$1)+(COUNTIF(H24,$JV$1))))) -> 0 | JW23: =COUNTIF(D24,$JW$1)+(COUNTIF(E24,$JW$1)+(COUNTIF(F24,$JW$1)+(COUNTIF(G24,$JW$1)+(COUNTIF(H24,$JW$1))))) -> 1 | JX23: =COUNTIF(D24,$JX$1)+(COUNTIF(E24,$JX$1)+(COUNTIF(F24,$JX$1)+(COUNTIF(G24,$JX$1)+(COUNTIF(H24,$JX$1))))) -> 0 | JY23: =COUNTIF(D24,$JY$1)+(COUNTIF(E24,$JY$1)+(COUNTIF(F24,$JY$1)+(COUNTIF(G24,$JY$1)+(COUNTIF(H24,$JY$1))))) -> 0 | JZ23: =COUNTIF(D24,$JZ$1)+(COUNTIF(E24,$JZ$1)+(COUNTIF(F24,$JZ$1)+(COUNTIF(G24,$JZ$1)+(COUNTIF(H24,$JZ$1))))) -> 0 | KA23: =COUNTIF(D24,$KA$1)+(COUNTIF(E24,$KA$1)+(COUNTIF(F24,$KA$1)+(COUNTIF(G24,$KA$1)+(COUNTIF(H24,$KA$1))))) -> 0 | KB23: =COUNTIF(D24,$KB$1)+(COUNTIF(E24,$KB$1)+(COUNTIF(F24,$KB$1)+(COUNTIF(G24,$KB$1)+(COUNTIF(H24,$KB$1))))) -> 0 | KC23: =COUNTIF(D24,$KC$1)+(COUNTIF(E24,$KC$1)+(COUNTIF(F24,$KC$1)+(COUNTIF(G24,$KC$1)+(COUNTIF(H24,$KC$1))))) -> 0 | KD23: =COUNTIF(D24,$KD$1)+(COUNTIF(E24,$KD$1)+(COUNTIF(F24,$KD$1)+(COUNTIF(G24,$KD$1)+(COUNTIF(H24,$KD$1))))) -> 1 | KE23: =COUNTIF(D24,$KE$1)+(COUNTIF(E24,$KE$1)+(COUNTIF(F24,$KE$1)+(COUNTIF(G24,$KE$1)+(COUNTIF(H24,$KE$1))))) -> 0 | KF23: =COUNTIF(D24,$KF$1)+(COUNTIF(E24,$KF$1)+(COUNTIF(F24,$KF$1)+(COUNTIF(G24,$KF$1)+(COUNTIF(H24,$KF$1))))) -> 0 | KG23: =COUNTIF(D24,$KG$1)+(COUNTIF(E24,$KG$1)+(COUNTIF(F24,$KG$1)+(COUNTIF(G24,$KG$1)+(COUNTIF(H24,$KG$1))))) -> 0 | KH23: =COUNTIF(D24,$KH$1)+(COUNTIF(E24,$KH$1)+(COUNTIF(F24,$KH$1)+(COUNTIF(G24,$KH$1)+(COUNTIF(H24,$KH$1))))) -> 0 | KI23: =COUNTIF(D24,$KI$1)+(COUNTIF(E24,$KI$1)+(COUNTIF(F24,$KI$1)+(COUNTIF(G24,$KI$1)+(COUNTIF(H24,$KI$1))))) -> 0 | KJ23: =COUNTIF(D24,$KJ$1)+(COUNTIF(E24,$KJ$1)+(COUNTIF(F24,$KJ$1)+(COUNTIF(G24,$KJ$1)+(COUNTIF(H24,$KJ$1))))) -> 0 | KK23: =COUNTIF(D24,$KK$1)+(COUNTIF(E24,$KK$1)+(COUNTIF(F24,$KK$1)+(COUNTIF(G24,$KK$1)+(COUNTIF(H24,$KK$1))))) -> 0 | KL23: =COUNTIF(D24,$KL$1)+(COUNTIF(E24,$KL$1)+(COUNTIF(F24,$KL$1)+(COUNTIF(G24,$KL$1)+(COUNTIF(H24,$KL$1))))) -> 1 | KM23: =COUNTIF(D24,$KM$1)+(COUNTIF(E24,$KM$1)+(COUNTIF(F24,$KM$1)+(COUNTIF(G24,$KM$1)+(COUNTIF(H24,$KM$1))))) -> 0 | KN23: =COUNTIF(D24,$KN$1)+(COUNTIF(E24,$KN$1)+(COUNTIF(F24,$KN$1)+(COUNTIF(G24,$KN$1)+(COUNTIF(H24,$KN$1))))) -> 0 | KO23: =COUNTIF(D24,$KO$1)+(COUNTIF(E24,$KO$1)+(COUNTIF(F24,$KO$1)+(COUNTIF(G24,$KO$1)+(COUNTIF(H24,$KO$1))))) -> 0 | KP23: =COUNTIF(D24,$KP$1)+(COUNTIF(E24,$KP$1)+(COUNTIF(F24,$KP$1)+(COUNTIF(G24,$KP$1)+(COUNTIF(H24,$KP$1))))) -> 0 | KQ23: =COUNTIF(D24,$KQ$1)+(COUNTIF(E24,$KQ$1)+(COUNTIF(F24,$KQ$1)+(COUNTIF(G24,$KQ$1)+(COUNTIF(H24,$KQ$1))))) -> 0 | KR23: =COUNTIF(D24,$KR$1)+(COUNTIF(E24,$KR$1)+(COUNTIF(F24,$KR$1)+(COUNTIF(G24,$KR$1)+(COUNTIF(H24,$KR$1))))) -> 0 | KS23: =COUNTIF(D24,$KS$1)+(COUNTIF(E24,$KS$1)+(COUNTIF(F24,$KS$1)+(COUNTIF(G24,$KS$1)+(COUNTIF(H24,$KS$1))))) -> 0 | KT23: =COUNTIF(D24,$KT$1)+(COUNTIF(E24,$KT$1)+(COUNTIF(F24,$KT$1)+(COUNTIF(G24,$KT$1)+(COUNTIF(H24,$KT$1))))) -> 0 | KU23: =COUNTIF(D24,$KU$1)+(COUNTIF(E24,$KU$1)+(COUNTIF(F24,$KU$1)+(COUNTIF(G24,$KU$1)+(COUNTIF(H24,$KU$1))))) -> 0 | KV23: =COUNTIF(D24,$KV$1)+(COUNTIF(E24,$KV$1)+(COUNTIF(F24,$KV$1)+(COUNTIF(G24,$KV$1)+(COUNTIF(H24,$KV$1))))) -> 0 | KW23: =COUNTIF(D24,$KW$1)+(COUNTIF(E24,$KW$1)+(COUNTIF(F24,$KW$1)+(COUNTIF(G24,$KW$1)+(COUNTIF(H24,$KW$1))))) -> 0
A24: 388 | B24: LUNDI | C24: 2022-08-01 | D24: 1 | E24: 4 | F24: 23 | G24: 30 | H24: 38 | I24: 6 | J24: 8 | K24: i | L24: =COUNTIF(M23:P23,">0") -> 0 | M24: =_xlfn.LET(_xlpm.comp,RIGHT(D25:H25,1),_xlfn._xlws.FILTER(D25:H25,_xlfn.XMATCH(_xlpm.comp,_xlpm.comp)<>_xlfn.XMATCH(_xlpm.comp,_xlpm.comp,,-1))) -> 5 | N24: 10 | O24: 40 | P24: 45 | Q24: =COUNTIF(D24:H24,D25:H25) -> 0 | R24: 0 | S24: 0 | T24: 0 | U24: 0 | V24: =IF(AND(W24>69,W24<164,OR(X24={1;2;3;4})),1,0) -> 1 | W24: =D25+E25+F25+G25+H25 -> 132 | X24: =SUMPRODUCT(( MOD(D25:H25,2)>0)*1) -> 2 | Y24: 0 | Z24: 1 | AA24: 0 | AB24: 0 | AC24: 2 | AD24: 0 | AE24: 0 | AF24: 0 | AG24: 0 | AH24: 2 | AI24: =COUNTIF(($D25:$H25),AI$1) -> 0 | AJ24: =COUNTIF(($D25:$H25),AJ$1) -> 0 | AK24: =COUNTIF(($D25:$H25),AK$1) -> 0 | AL24: =COUNTIF(($D25:$H25),AL$1) -> 0 | AM24: =COUNTIF(($D25:$H25),AM$1) -> 0 | AN24: =COUNTIF(($D25:$H25),AN$1) -> 0 | AO24: =COUNTIF(($D25:$H25),AO$1) -> 0 | AP24: =COUNTIF(($D25:$H25),AP$1) -> 0 | AQ24: =COUNTIF(($D25:$H25),AQ$1) -> 0 | AR24: =COUNTIF(($D25:$H25),AR$1) -> 0 | AS24: =COUNTIF(($D25:$H25),AS$1) -> 0 | AT24: =COUNTIF(($D25:$H25),AT$1) -> 0 | AU24: =COUNTIF(($D25:$H25),AU$1) -> 0 | AV24: =COUNTIF(($D25:$H25),AV$1) -> 0 | AW24: =COUNTIF(($D25:$H25),AW$1) -> 0 | AX24: =COUNTIF(($D25:$H25),AX$1) -> 0 | AY24: =COUNTIF(($D25:$H25),AY$1) -> 0 | AZ24: =COUNTIF(($D25:$H25),AZ$1) -> 0 | BA24: =COUNTIF(($D25:$H25),BA$1) -> 0 | BB24: =COUNTIF(($D25:$H25),BB$1) -> 0 | BC24: =COUNTIF(($D25:$H25),BC$1) -> 0 | BD24: =COUNTIF(($D25:$H25),BD$1) -> 1 | BE24: =COUNTIF(($D25:$H25),BE$1) -> 0 | BF24: =COUNTIF(($D25:$H25),BF$1) -> 0 | BG24: =COUNTIF(($D25:$H25),BG$1) -> 0 | BH24: =COUNTIF(($D25:$H25),BH$1) -> 0 | BI24: =COUNTIF((D25:H25),BI$1) -> 0 | BJ24: =COUNTIF((D25:H25),BJ$1) -> 0 | BK24: =COUNTIF((D25:H25),BK$1) -> 0 | BL24: =COUNTIF((D25:H25),BL$1) -> 1 | BM24: =COUNTIF((D25:H25),BM$1) -> 0 | BN24: =COUNTIF((D25:H25),BN$1) -> 0 | BO24: =COUNTIF((D25:H25),BO$1) -> 0 | BP24: =COUNTIF((D25:H25),BP$1) -> 0 | BQ24: =COUNTIF((D25:H25),BQ$1) -> 1 | BR24: =COUNTIF((D25:H25),BR$1) -> 0 | BS24: =COUNTIF((D25:H25),BS$1) -> 0 | BT24: =COUNTIF((D25:H25),BT$1) -> 0 | BU24: =COUNTIF((D25:H25),BU$1) -> 0 | BV24: =COUNTIF(D25:H25,"<10") -> 1 | BW24: =(COUNTIF(D25:H25,"<20")-BV24) -> 1 | BX24: =((COUNTIF(D25:H25,"<30")))-(BV24+BW24) -> 0 | BY24: =((COUNTIF(D25:H25,"<40")))-(BW24+BX24+BV24) -> 1 | BZ24: =((COUNTIF(D25:H25,"<50")))-(BX24+BY24+BW24+BV24) -> 2 | CB24: 1 | CC24: 1 | CD24: 0 | CE24: 1 | CF24: 1 | CG24: 0 | CH24: 0 | CI24: 0 | CJ24: 1 | CK24: 0 | CL24: 0 | CM24: 0 | CN24: 0 | CO24: 0 | CP24: 0 | CQ24: 0 | CR24: 0 | CS24: 0 | CT24: 0 | CU24: 0 | CV24: 0 | CW24: 0 | CX24: 0 | CY24: 0 | CZ24: 0 | DA24: 0 | DB24: 0 | DC24: 0 | DD24: 0 | DE24: 0 | DF24: 0 | DG24: 0 | DH24: 0 | DJ24: 0 | DK24: 0 | DL24: =COUNTIF((I25),$DL$1) -> 0 | DM24: =COUNTIF((I25),$DM$1) -> 0 | DN24: =COUNTIF((I25),$DN$1) -> 0 | DO24: =COUNTIF((I25),$DO$1) -> 0 | DP24: =COUNTIF((I25),$DP$1) -> 1 | DQ24: =COUNTIF((I25),$DQ$1) -> 0 | DR24: =COUNTIF((I25),$DR$1) -> 0 | DS24: =COUNTIF((I25),$DS$1) -> 0 | DT24: =COUNTIF((I25),$DT$1) -> 0 | DU24: =COUNTIF((I25),$DU$1) -> 0 | DW24: 1 | DX24: 1 | DY24: 1 | DZ24: 1 | EA24: 0 | EB24: 0 | EC24: 1 | ED24: 1 | EE24: 1 | EF24: 1 | EI24: 1 | EJ24: 1 | EK24: 1 | EL24: 1 | EM24: 0 | EN24: 0 | EO24: 1 | EP24: 1 | EQ24: 1 | ER24: 1 | ES24: =COUNTIF(I24,I25) -> 0 | ET24: =SUMPRODUCT(( MOD(I25,2)>0)*1) -> 1 | EU24: =IF((E25=D25+1)+(F25=E25+1)+(G25=F25+1)+(H25=G25+1),("1")*1,("")) ->  | EV24: 1 | EW24: =H25-D25 -> 40 | EX24: =(MID(D25,1,2)*1) -> 5 | EY24: =(MID(E25,2,1)*1) -> 0 | EZ24: =(MID(F25,2,1)*1) -> 2 | FA24: =(MID(G25,2,1)*1) -> 0 | FB24: =(MID(H25,2,1)*1) -> 5 | FC24: 2 | FD24: 1 | FE24: =I25 -> 5 | FF24: 1 | FG24: 0 | FH24: 0 | FI24: 0 | FJ24: 1 | FK24: =IF(E25=D25+1,("1")*1,("")) ->  | FL24: =IF(F25=E25+1,("1")*1,("")) ->  | FM24: =IF(G25=F25+1,("1")*1,("")) ->  | FN24: =IF(H25=G25+1,("1")*1,("")) ->  | FW24: =SUMPRODUCT(( MOD(D25,2)>0)*1) -> 1 | FX24: =SUMPRODUCT(( MOD(E25,2)>0)*1) -> 0 | FY24: =SUMPRODUCT(( MOD(F25,2)>0)*1) -> 0 | FZ24: =SUMPRODUCT(( MOD(G25,2)>0)*1) -> 0 | GA24: =SUMPRODUCT(( MOD(H25,2)>0)*1) -> 1 | GE24: 0 | GF24: 0 | GG24: 0 | GH24: 0 | GL24: 0 | GM24: 0 | GN24: 0 | GR24: 0 | GS24: 0 | GW24: 1 | HA24: 1 | JA24: =COUNTIF(D25,$JA$1)+(COUNTIF(E25,$JA$1)+(COUNTIF(F25,$JA$1)+(COUNTIF(G25,$JA$1)+(COUNTIF(H25,$JA$1))))) -> 0 | JB24: =COUNTIF(D25,$JB$1)+(COUNTIF(E25,$JB$1)+(COUNTIF(F25,$JB$1)+(COUNTIF(G25,$JB$1)+(COUNTIF(H25,$JB$1))))) -> 0 | JC24: =COUNTIF(D25,$JC$1)+(COUNTIF(E25,$JC$1)+(COUNTIF(F25,$JC$1)+(COUNTIF(G25,$JC$1)+(COUNTIF(H25,$JC$1))))) -> 0 | JD24: =COUNTIF(D25,$JD$1)+(COUNTIF(E25,$JD$1)+(COUNTIF(F25,$JD$1)+(COUNTIF(G25,$JD$1)+(COUNTIF(H25,$JD$1))))) -> 0 | JE24: =COUNTIF(D25,$JE$1)+(COUNTIF(E25,$JE$1)+(COUNTIF(F25,$JE$1)+(COUNTIF(G25,$JE$1)+(COUNTIF(H25,$JE$1))))) -> 1 | JF24: =COUNTIF(D25,$JF$1)+(COUNTIF(E25,$JF$1)+(COUNTIF(F25,$JF$1)+(COUNTIF(G25,$JF$1)+(COUNTIF(H25,$JF$1))))) -> 0 | JG24: =COUNTIF(D25,$JG$1)+(COUNTIF(E25,$JG$1)+(COUNTIF(F25,$JG$1)+(COUNTIF(G25,$JG$1)+(COUNTIF(H25,$JG$1))))) -> 0 | JH24: =COUNTIF(D25,$JH$1)+(COUNTIF(E25,$JH$1)+(COUNTIF(F25,$JH$1)+(COUNTIF(G25,$JH$1)+(COUNTIF(H25,$JH$1))))) -> 0 | JI24: =COUNTIF(D25,$JI$1)+(COUNTIF(E25,$JI$1)+(COUNTIF(F25,$JI$1)+(COUNTIF(G25,$JI$1)+(COUNTIF(H25,$JI$1))))) -> 0 | JJ24: =COUNTIF(D25,$JJ$1)+(COUNTIF(E25,$JJ$1)+(COUNTIF(F25,$JJ$1)+(COUNTIF(G25,$JJ$1)+(COUNTIF(H25,$JJ$1))))) -> 1 | JK24: =COUNTIF(D25,$JK$1)+(COUNTIF(E25,$JK$1)+(COUNTIF(F25,$JK$1)+(COUNTIF(G25,$JK$1)+(COUNTIF(H25,$JK$1))))) -> 0 | JL24: =COUNTIF(D25,$JL$1)+(COUNTIF(E25,$JL$1)+(COUNTIF(F25,$JL$1)+(COUNTIF(G25,$JL$1)+(COUNTIF(H25,$JL$1))))) -> 0 | JM24: =COUNTIF(D25,$JM$1)+(COUNTIF(E25,$JM$1)+(COUNTIF(F25,$JM$1)+(COUNTIF(G25,$JM$1)+(COUNTIF(H25,$JM$1))))) -> 0 | JN24: =COUNTIF(D25,$JN$1)+(COUNTIF(E25,$JN$1)+(COUNTIF(F25,$JN$1)+(COUNTIF(G25,$JN$1)+(COUNTIF(H25,$JN$1))))) -> 0 | JO24: =COUNTIF(D25,$JO$1)+(COUNTIF(E25,$JO$1)+(COUNTIF(F25,$JO$1)+(COUNTIF(G25,$JO$1)+(COUNTIF(H25,$JO$1))))) -> 0 | JP24: =COUNTIF(D25,$JP$1)+(COUNTIF(E25,$JP$1)+(COUNTIF(F25,$JP$1)+(COUNTIF(G25,$JP$1)+(COUNTIF(H25,$JP$1))))) -> 0 | JQ24: =COUNTIF(D25,$JQ$1)+(COUNTIF(E25,$JQ$1)+(COUNTIF(F25,$JQ$1)+(COUNTIF(G25,$JQ$1)+(COUNTIF(H25,$JQ$1))))) -> 0 | JR24: =COUNTIF(D25,$JR$1)+(COUNTIF(E25,$JR$1)+(COUNTIF(F25,$JR$1)+(COUNTIF(G25,$JR$1)+(COUNTIF(H25,$JR$1))))) -> 0 | JS24: =COUNTIF(D25,$JS$1)+(COUNTIF(E25,$JS$1)+(COUNTIF(F25,$JS$1)+(COUNTIF(G25,$JS$1)+(COUNTIF(H25,$JS$1))))) -> 0 | JT24: =COUNTIF(D25,$JT$1)+(COUNTIF(E25,$JT$1)+(COUNTIF(F25,$JT$1)+(COUNTIF(G25,$JT$1)+(COUNTIF(H25,$JT$1))))) -> 0 | JU24: =COUNTIF(D25,$JU$1)+(COUNTIF(E25,$JU$1)+(COUNTIF(F25,$JU$1)+(COUNTIF(G25,$JU$1)+(COUNTIF(H25,$JU$1))))) -> 0 | JV24: =COUNTIF(D25,$JV$1)+(COUNTIF(E25,$JV$1)+(COUNTIF(F25,$JV$1)+(COUNTIF(G25,$JV$1)+(COUNTIF(H25,$JV$1))))) -> 0 | JW24: =COUNTIF(D25,$JW$1)+(COUNTIF(E25,$JW$1)+(COUNTIF(F25,$JW$1)+(COUNTIF(G25,$JW$1)+(COUNTIF(H25,$JW$1))))) -> 0 | JX24: =COUNTIF(D25,$JX$1)+(COUNTIF(E25,$JX$1)+(COUNTIF(F25,$JX$1)+(COUNTIF(G25,$JX$1)+(COUNTIF(H25,$JX$1))))) -> 0 | JY24: =COUNTIF(D25,$JY$1)+(COUNTIF(E25,$JY$1)+(COUNTIF(F25,$JY$1)+(COUNTIF(G25,$JY$1)+(COUNTIF(H25,$JY$1))))) -> 0 | JZ24: =COUNTIF(D25,$JZ$1)+(COUNTIF(E25,$JZ$1)+(COUNTIF(F25,$JZ$1)+(COUNTIF(G25,$JZ$1)+(COUNTIF(H25,$JZ$1))))) -> 0 | KA24: =COUNTIF(D25,$KA$1)+(COUNTIF(E25,$KA$1)+(COUNTIF(F25,$KA$1)+(COUNTIF(G25,$KA$1)+(COUNTIF(H25,$KA$1))))) -> 0 | KB24: =COUNTIF(D25,$KB$1)+(COUNTIF(E25,$KB$1)+(COUNTIF(F25,$KB$1)+(COUNTIF(G25,$KB$1)+(COUNTIF(H25,$KB$1))))) -> 0 | KC24: =COUNTIF(D25,$KC$1)+(COUNTIF(E25,$KC$1)+(COUNTIF(F25,$KC$1)+(COUNTIF(G25,$KC$1)+(COUNTIF(H25,$KC$1))))) -> 0 | KD24: =COUNTIF(D25,$KD$1)+(COUNTIF(E25,$KD$1)+(COUNTIF(F25,$KD$1)+(COUNTIF(G25,$KD$1)+(COUNTIF(H25,$KD$1))))) -> 0 | KE24: =COUNTIF(D25,$KE$1)+(COUNTIF(E25,$KE$1)+(COUNTIF(F25,$KE$1)+(COUNTIF(G25,$KE$1)+(COUNTIF(H25,$KE$1))))) -> 0 | KF24: =COUNTIF(D25,$KF$1)+(COUNTIF(E25,$KF$1)+(COUNTIF(F25,$KF$1)+(COUNTIF(G25,$KF$1)+(COUNTIF(H25,$KF$1))))) -> 1 | KG24: =COUNTIF(D25,$KG$1)+(COUNTIF(E25,$KG$1)+(COUNTIF(F25,$KG$1)+(COUNTIF(G25,$KG$1)+(COUNTIF(H25,$KG$1))))) -> 0 | KH24: =COUNTIF(D25,$KH$1)+(COUNTIF(E25,$KH$1)+(COUNTIF(F25,$KH$1)+(COUNTIF(G25,$KH$1)+(COUNTIF(H25,$KH$1))))) -> 0 | KI24: =COUNTIF(D25,$KI$1)+(COUNTIF(E25,$KI$1)+(COUNTIF(F25,$KI$1)+(COUNTIF(G25,$KI$1)+(COUNTIF(H25,$KI$1))))) -> 0 | KJ24: =COUNTIF(D25,$KJ$1)+(COUNTIF(E25,$KJ$1)+(COUNTIF(F25,$KJ$1)+(COUNTIF(G25,$KJ$1)+(COUNTIF(H25,$KJ$1))))) -> 0 | KK24: =COUNTIF(D25,$KK$1)+(COUNTIF(E25,$KK$1)+(COUNTIF(F25,$KK$1)+(COUNTIF(G25,$KK$1)+(COUNTIF(H25,$KK$1))))) -> 0 | KL24: =COUNTIF(D25,$KL$1)+(COUNTIF(E25,$KL$1)+(COUNTIF(F25,$KL$1)+(COUNTIF(G25,$KL$1)+(COUNTIF(H25,$KL$1))))) -> 0 | KM24: =COUNTIF(D25,$KM$1)+(COUNTIF(E25,$KM$1)+(COUNTIF(F25,$KM$1)+(COUNTIF(G25,$KM$1)+(COUNTIF(H25,$KM$1))))) -> 0 | KN24: =COUNTIF(D25,$KN$1)+(COUNTIF(E25,$KN$1)+(COUNTIF(F25,$KN$1)+(COUNTIF(G25,$KN$1)+(COUNTIF(H25,$KN$1))))) -> 1 | KO24: =COUNTIF(D25,$KO$1)+(COUNTIF(E25,$KO$1)+(COUNTIF(F25,$KO$1)+(COUNTIF(G25,$KO$1)+(COUNTIF(H25,$KO$1))))) -> 0 | KP24: =COUNTIF(D25,$KP$1)+(COUNTIF(E25,$KP$1)+(COUNTIF(F25,$KP$1)+(COUNTIF(G25,$KP$1)+(COUNTIF(H25,$KP$1))))) -> 0 | KQ24: =COUNTIF(D25,$KQ$1)+(COUNTIF(E25,$KQ$1)+(COUNTIF(F25,$KQ$1)+(COUNTIF(G25,$KQ$1)+(COUNTIF(H25,$KQ$1))))) -> 0 | KR24: =COUNTIF(D25,$KR$1)+(COUNTIF(E25,$KR$1)+(COUNTIF(F25,$KR$1)+(COUNTIF(G25,$KR$1)+(COUNTIF(H25,$KR$1))))) -> 0 | KS24: =COUNTIF(D25,$KS$1)+(COUNTIF(E25,$KS$1)+(COUNTIF(F25,$KS$1)+(COUNTIF(G25,$KS$1)+(COUNTIF(H25,$KS$1))))) -> 1 | KT24: =COUNTIF(D25,$KT$1)+(COUNTIF(E25,$KT$1)+(COUNTIF(F25,$KT$1)+(COUNTIF(G25,$KT$1)+(COUNTIF(H25,$KT$1))))) -> 0 | KU24: =COUNTIF(D25,$KU$1)+(COUNTIF(E25,$KU$1)+(COUNTIF(F25,$KU$1)+(COUNTIF(G25,$KU$1)+(COUNTIF(H25,$KU$1))))) -> 0 | KV24: =COUNTIF(D25,$KV$1)+(COUNTIF(E25,$KV$1)+(COUNTIF(F25,$KV$1)+(COUNTIF(G25,$KV$1)+(COUNTIF(H25,$KV$1))))) -> 0 | KW24: =COUNTIF(D25,$KW$1)+(COUNTIF(E25,$KW$1)+(COUNTIF(F25,$KW$1)+(COUNTIF(G25,$KW$1)+(COUNTIF(H25,$KW$1))))) -> 0
A25: 387 | B25: MERCREDI | C25: 2022-08-03 | D25: 5 | E25: 10 | F25: 32 | G25: 40 | H25: 45 | I25: 5 | J25: 5 | K25: f | L25: =COUNTIF(M24:P24,">0") -> 4 | M25: =_xlfn.LET(_xlpm.comp,RIGHT(D26:H26,1),_xlfn._xlws.FILTER(D26:H26,_xlfn.XMATCH(_xlpm.comp,_xlpm.comp)<>_xlfn.XMATCH(_xlpm.comp,_xlpm.comp,,-1))) -> 28 | N25: 38 | Q25: =COUNTIF(D25:H25,D26:H26) -> 0 | R25: 0 | S25: 0 | T25: 0 | U25: 0 | V25: =IF(AND(W25>69,W25<164,OR(X25={1;2;3;4})),1,0) -> 1 | W25: =D26+E26+F26+G26+H26 -> 132 | X25: =SUMPRODUCT(( MOD(D26:H26,2)>0)*1) -> 2 | Y25: 0 | Z25: 0 | AA25: 1 | AB25: 0 | AC25: 0 | AD25: 1 | AE25: 1 | AF25: 2 | AG25: 0 | AH25: 0 | AI25: =COUNTIF(($D26:$H26),AI$1) -> 0 | AJ25: =COUNTIF(($D26:$H26),AJ$1) -> 0 | AK25: =COUNTIF(($D26:$H26),AK$1) -> 0 | AL25: =COUNTIF(($D26:$H26),AL$1) -> 0 | AM25: =COUNTIF(($D26:$H26),AM$1) -> 0 | AN25: =COUNTIF(($D26:$H26),AN$1) -> 0 | AO25: =COUNTIF(($D26:$H26),AO$1) -> 0 | AP25: =COUNTIF(($D26:$H26),AP$1) -> 0 | AQ25: =COUNTIF(($D26:$H26),AQ$1) -> 0 | AR25: =COUNTIF(($D26:$H26),AR$1) -> 0 | AS25: =COUNTIF(($D26:$H26),AS$1) -> 0 | AT25: =COUNTIF(($D26:$H26),AT$1) -> 0 | AU25: =COUNTIF(($D26:$H26),AU$1) -> 1 | AV25: =COUNTIF(($D26:$H26),AV$1) -> 0 | AW25: =COUNTIF(($D26:$H26),AW$1) -> 0 | AX25: =COUNTIF(($D26:$H26),AX$1) -> 0 | AY25: =COUNTIF(($D26:$H26),AY$1) -> 0 | AZ25: =COUNTIF(($D26:$H26),AZ$1) -> 1 | BA25: =COUNTIF(($D26:$H26),BA$1) -> 0 | BB25: =COUNTIF(($D26:$H26),BB$1) -> 0 | BC25: =COUNTIF(($D26:$H26),BC$1) -> 0 | BD25: =COUNTIF(($D26:$H26),BD$1) -> 0 | BE25: =COUNTIF(($D26:$H26),BE$1) -> 0 | BF25: =COUNTIF(($D26:$H26),BF$1) -> 0 | BG25: =COUNTIF(($D26:$H26),BG$1) -> 0 | BH25: =COUNTIF(($D26:$H26),BH$1) -> 0 | BI25: =COUNTIF((D26:H26),BI$1) -> 1 | BJ25: =COUNTIF((D26:H26),BJ$1) -> 1 | BK25: =COUNTIF((D26:H26),BK$1) -> 0 | BL25: =COUNTIF((D26:H26),BL$1) -> 0 | BM25: =COUNTIF((D26:H26),BM$1) -> 0 | BN25: =COUNTIF((D26:H26),BN$1) -> 0 | BO25: =COUNTIF((D26:H26),BO$1) -> 0 | BP25: =COUNTIF((D26:H26),BP$1) -> 0 | BQ25: =COUNTIF((D26:H26),BQ$1) -> 0 | BR25: =COUNTIF((D26:H26),BR$1) -> 0 | BS25: =COUNTIF((D26:H26),BS$1) -> 0 | BT25: =COUNTIF((D26:H26),BT$1) -> 0 | BU25: =COUNTIF((D26:H26),BU$1) -> 0 | BV25: =COUNTIF(D26:H26,"<10") -> 1 | BW25: =(COUNTIF(D26:H26,"<20")-BV25) -> 0 | BX25: =((COUNTIF(D26:H26,"<30")))-(BV25+BW25) -> 2 | BY25: =((COUNTIF(D26:H26,"<40")))-(BW25+BX25+BV25) -> 2 | BZ25: =((COUNTIF(D26:H26,"<50")))-(BX25+BY25+BW25+BV25) -> 0 | CB25: 1 | CC25: 0 | CD25: 1 | CE25: 1 | CF25: 0 | CG25: 0 | CH25: 0 | CI25: 0 | CJ25: 0 | CK25: 0 | CL25: 0 | CM25: 1 | CN25: 0 | CO25: 0 | CP25: 0 | CQ25: 0 | CR25: 0 | CS25: 0 | CT25: 0 | CU25: 0 | CV25: 0 | CW25: 0 | CX25: 0 | CY25: 0 | CZ25: 0 | DA25: 0 | DB25: 0 | DC25: 0 | DD25: 0 | DE25: 0 | DF25: 0 | DG25: 0 | DH25: 0 | DJ25: 0 | DK25: 0 | DL25: =COUNTIF((I26),$DL$1) -> 1 | DM25: =COUNTIF((I26),$DM$1) -> 0 | DN25: =COUNTIF((I26),$DN$1) -> 0 | DO25: =COUNTIF((I26),$DO$1) -> 0 | DP25: =COUNTIF((I26),$DP$1) -> 0 | DQ25: =COUNTIF((I26),$DQ$1) -> 0 | DR25: =COUNTIF((I26),$DR$1) -> 0 | DS25: =COUNTIF((I26),$DS$1) -> 0 | DT25: =COUNTIF((I26),$DT$1) -> 0 | DU25: =COUNTIF((I26),$DU$1) -> 0 | DW25: 0 | DX25: 1 | DY25: 1 | DZ25: 1 | EA25: 0 | EB25: 1 | EC25: 1 | ED25: 1 | EE25: 1 | EF25: 1 | EI25: 0 | EJ25: 1 | EK25: 1 | EL25: 1 | EM25: 0 | EN25: 1 | EO25: 1 | EP25: 1 | EQ25: 1 | ER25: 1 | ES25: =COUNTIF(I25,I26) -> 0 | ET25: =SUMPRODUCT(( MOD(I26,2)>0)*1) -> 1 | EU25: =IF((E26=D26+1)+(F26=E26+1)+(G26=F26+1)+(H26=G26+1),("1")*1,("")) -> 1 | EV25: 1 | EW25: =H26-D26 -> 32 | EX25: =(MID(D26,1,2)*1) -> 6 | EY25: =(MID(E26,2,1)*1) -> 3 | EZ25: =(MID(F26,2,1)*1) -> 8 | FA25: =(MID(G26,2,1)*1) -> 7 | FB25: =(MID(H26,2,1)*1) -> 8 | FC25: 0 | FD25: 1 | FE25: =I26 -> 1 | FF25: 0 | FG25: 0 | FH25: 0 | FI25: 0 | FJ25: 0 | FK25: =IF(E26=D26+1,("1")*1,("")) ->  | FL25: =IF(F26=E26+1,("1")*1,("")) ->  | FM25: =IF(G26=F26+1,("1")*1,("")) ->  | FN25: =IF(H26=G26+1,("1")*1,("")) -> 1 | FW25: =SUMPRODUCT(( MOD(D26,2)>0)*1) -> 0 | FX25: =SUMPRODUCT(( MOD(E26,2)>0)*1) -> 1 | FY25: =SUMPRODUCT(( MOD(F26,2)>0)*1) -> 0 | FZ25: =SUMPRODUCT(( MOD(G26,2)>0)*1) -> 1 | GA25: =SUMPRODUCT(( MOD(H26,2)>0)*1) -> 0 | GE25: 0 | GF25: 0 | GG25: 0 | GH25: 0 | GL25: 0 | GM25: 0 | GN25: 0 | GR25: 0 | GS25: 0 | GW25: 0 | HA25: 1 | JA25: =COUNTIF(D26,$JA$1)+(COUNTIF(E26,$JA$1)+(COUNTIF(F26,$JA$1)+(COUNTIF(G26,$JA$1)+(COUNTIF(H26,$JA$1))))) -> 0 | JB25: =COUNTIF(D26,$JB$1)+(COUNTIF(E26,$JB$1)+(COUNTIF(F26,$JB$1)+(COUNTIF(G26,$JB$1)+(COUNTIF(H26,$JB$1))))) -> 0 | JC25: =COUNTIF(D26,$JC$1)+(COUNTIF(E26,$JC$1)+(COUNTIF(F26,$JC$1)+(COUNTIF(G26,$JC$1)+(COUNTIF(H26,$JC$1))))) -> 0 | JD25: =COUNTIF(D26,$JD$1)+(COUNTIF(E26,$JD$1)+(COUNTIF(F26,$JD$1)+(COUNTIF(G26,$JD$1)+(COUNTIF(H26,$JD$1))))) -> 0 | JE25: =COUNTIF(D26,$JE$1)+(COUNTIF(E26,$JE$1)+(COUNTIF(F26,$JE$1)+(COUNTIF(G26,$JE$1)+(COUNTIF(H26,$JE$1))))) -> 0 | JF25: =COUNTIF(D26,$JF$1)+(COUNTIF(E26,$JF$1)+(COUNTIF(F26,$JF$1)+(COUNTIF(G26,$JF$1)+(COUNTIF(H26,$JF$1))))) -> 1 | JG25: =COUNTIF(D26,$JG$1)+(COUNTIF(E26,$JG$1)+(COUNTIF(F26,$JG$1)+(COUNTIF(G26,$JG$1)+(COUNTIF(H26,$JG$1))))) -> 0 | JH25: =COUNTIF(D26,$JH$1)+(COUNTIF(E26,$JH$1)+(COUNTIF(F26,$JH$1)+(COUNTIF(G26,$JH$1)+(COUNTIF(H26,$JH$1))))) -> 0 | JI25: =COUNTIF(D26,$JI$1)+(COUNTIF(E26,$JI$1)+(COUNTIF(F26,$JI$1)+(COUNTIF(G26,$JI$1)+(COUNTIF(H26,$JI$1))))) -> 0 | JJ25: =COUNTIF(D26,$JJ$1)+(COUNTIF(E26,$JJ$1)+(COUNTIF(F26,$JJ$1)+(COUNTIF(G26,$JJ$1)+(COUNTIF(H26,$JJ$1))))) -> 0 | JK25: =COUNTIF(D26,$JK$1)+(COUNTIF(E26,$JK$1)+(COUNTIF(F26,$JK$1)+(COUNTIF(G26,$JK$1)+(COUNTIF(H26,$JK$1))))) -> 0 | JL25: =COUNTIF(D26,$JL$1)+(COUNTIF(E26,$JL$1)+(COUNTIF(F26,$JL$1)+(COUNTIF(G26,$JL$1)+(COUNTIF(H26,$JL$1))))) -> 0 | JM25: =COUNTIF(D26,$JM$1)+(COUNTIF(E26,$JM$1)+(COUNTIF(F26,$JM$1)+(COUNTIF(G26,$JM$1)+(COUNTIF(H26,$JM$1))))) -> 0 | JN25: =COUNTIF(D26,$JN$1)+(COUNTIF(E26,$JN$1)+(COUNTIF(F26,$JN$1)+(COUNTIF(G26,$JN$1)+(COUNTIF(H26,$JN$1))))) -> 0 | JO25: =COUNTIF(D26,$JO$1)+(COUNTIF(E26,$JO$1)+(COUNTIF(F26,$JO$1)+(COUNTIF(G26,$JO$1)+(COUNTIF(H26,$JO$1))))) -> 0 | JP25: =COUNTIF(D26,$JP$1)+(COUNTIF(E26,$JP$1)+(COUNTIF(F26,$JP$1)+(COUNTIF(G26,$JP$1)+(COUNTIF(H26,$JP$1))))) -> 0 | JQ25: =COUNTIF(D26,$JQ$1)+(COUNTIF(E26,$JQ$1)+(COUNTIF(F26,$JQ$1)+(COUNTIF(G26,$JQ$1)+(COUNTIF(H26,$JQ$1))))) -> 0 | JR25: =COUNTIF(D26,$JR$1)+(COUNTIF(E26,$JR$1)+(COUNTIF(F26,$JR$1)+(COUNTIF(G26,$JR$1)+(COUNTIF(H26,$JR$1))))) -> 0 | JS25: =COUNTIF(D26,$JS$1)+(COUNTIF(E26,$JS$1)+(COUNTIF(F26,$JS$1)+(COUNTIF(G26,$JS$1)+(COUNTIF(H26,$JS$1))))) -> 0 | JT25: =COUNTIF(D26,$JT$1)+(COUNTIF(E26,$JT$1)+(COUNTIF(F26,$JT$1)+(COUNTIF(G26,$JT$1)+(COUNTIF(H26,$JT$1))))) -> 0 | JU25: =COUNTIF(D26,$JU$1)+(COUNTIF(E26,$JU$1)+(COUNTIF(F26,$JU$1)+(COUNTIF(G26,$JU$1)+(COUNTIF(H26,$JU$1))))) -> 0 | JV25: =COUNTIF(D26,$JV$1)+(COUNTIF(E26,$JV$1)+(COUNTIF(F26,$JV$1)+(COUNTIF(G26,$JV$1)+(COUNTIF(H26,$JV$1))))) -> 0 | JW25: =COUNTIF(D26,$JW$1)+(COUNTIF(E26,$JW$1)+(COUNTIF(F26,$JW$1)+(COUNTIF(G26,$JW$1)+(COUNTIF(H26,$JW$1))))) -> 1 | JX25: =COUNTIF(D26,$JX$1)+(COUNTIF(E26,$JX$1)+(COUNTIF(F26,$JX$1)+(COUNTIF(G26,$JX$1)+(COUNTIF(H26,$JX$1))))) -> 0 | JY25: =COUNTIF(D26,$JY$1)+(COUNTIF(E26,$JY$1)+(COUNTIF(F26,$JY$1)+(COUNTIF(G26,$JY$1)+(COUNTIF(H26,$JY$1))))) -> 0 | JZ25: =COUNTIF(D26,$JZ$1)+(COUNTIF(E26,$JZ$1)+(COUNTIF(F26,$JZ$1)+(COUNTIF(G26,$JZ$1)+(COUNTIF(H26,$JZ$1))))) -> 0 | KA25: =COUNTIF(D26,$KA$1)+(COUNTIF(E26,$KA$1)+(COUNTIF(F26,$KA$1)+(COUNTIF(G26,$KA$1)+(COUNTIF(H26,$KA$1))))) -> 0 | KB25: =COUNTIF(D26,$KB$1)+(COUNTIF(E26,$KB$1)+(COUNTIF(F26,$KB$1)+(COUNTIF(G26,$KB$1)+(COUNTIF(H26,$KB$1))))) -> 1 | KC25: =COUNTIF(D26,$KC$1)+(COUNTIF(E26,$KC$1)+(COUNTIF(F26,$KC$1)+(COUNTIF(G26,$KC$1)+(COUNTIF(H26,$KC$1))))) -> 0 | KD25: =COUNTIF(D26,$KD$1)+(COUNTIF(E26,$KD$1)+(COUNTIF(F26,$KD$1)+(COUNTIF(G26,$KD$1)+(COUNTIF(H26,$KD$1))))) -> 0 | KE25: =COUNTIF(D26,$KE$1)+(COUNTIF(E26,$KE$1)+(COUNTIF(F26,$KE$1)+(COUNTIF(G26,$KE$1)+(COUNTIF(H26,$KE$1))))) -> 0 | KF25: =COUNTIF(D26,$KF$1)+(COUNTIF(E26,$KF$1)+(COUNTIF(F26,$KF$1)+(COUNTIF(G26,$KF$1)+(COUNTIF(H26,$KF$1))))) -> 0 | KG25: =COUNTIF(D26,$KG$1)+(COUNTIF(E26,$KG$1)+(COUNTIF(F26,$KG$1)+(COUNTIF(G26,$KG$1)+(COUNTIF(H26,$KG$1))))) -> 0 | KH25: =COUNTIF(D26,$KH$1)+(COUNTIF(E26,$KH$1)+(COUNTIF(F26,$KH$1)+(COUNTIF(G26,$KH$1)+(COUNTIF(H26,$KH$1))))) -> 0 | KI25: =COUNTIF(D26,$KI$1)+(COUNTIF(E26,$KI$1)+(COUNTIF(F26,$KI$1)+(COUNTIF(G26,$KI$1)+(COUNTIF(H26,$KI$1))))) -> 0 | KJ25: =COUNTIF(D26,$KJ$1)+(COUNTIF(E26,$KJ$1)+(COUNTIF(F26,$KJ$1)+(COUNTIF(G26,$KJ$1)+(COUNTIF(H26,$KJ$1))))) -> 0 | KK25: =COUNTIF(D26,$KK$1)+(COUNTIF(E26,$KK$1)+(COUNTIF(F26,$KK$1)+(COUNTIF(G26,$KK$1)+(COUNTIF(H26,$KK$1))))) -> 1 | KL25: =COUNTIF(D26,$KL$1)+(COUNTIF(E26,$KL$1)+(COUNTIF(F26,$KL$1)+(COUNTIF(G26,$KL$1)+(COUNTIF(H26,$KL$1))))) -> 1 | KM25: =COUNTIF(D26,$KM$1)+(COUNTIF(E26,$KM$1)+(COUNTIF(F26,$KM$1)+(COUNTIF(G26,$KM$1)+(COUNTIF(H26,$KM$1))))) -> 0 | KN25: =COUNTIF(D26,$KN$1)+(COUNTIF(E26,$KN$1)+(COUNTIF(F26,$KN$1)+(COUNTIF(G26,$KN$1)+(COUNTIF(H26,$KN$1))))) -> 0 | KO25: =COUNTIF(D26,$KO$1)+(COUNTIF(E26,$KO$1)+(COUNTIF(F26,$KO$1)+(COUNTIF(G26,$KO$1)+(COUNTIF(H26,$KO$1))))) -> 0 | KP25: =COUNTIF(D26,$KP$1)+(COUNTIF(E26,$KP$1)+(COUNTIF(F26,$KP$1)+(COUNTIF(G26,$KP$1)+(COUNTIF(H26,$KP$1))))) -> 0 | KQ25: =COUNTIF(D26,$KQ$1)+(COUNTIF(E26,$KQ$1)+(COUNTIF(F26,$KQ$1)+(COUNTIF(G26,$KQ$1)+(COUNTIF(H26,$KQ$1))))) -> 0 | KR25: =COUNTIF(D26,$KR$1)+(COUNTIF(E26,$KR$1)+(COUNTIF(F26,$KR$1)+(COUNTIF(G26,$KR$1)+(COUNTIF(H26,$KR$1))))) -> 0 | KS25: =COUNTIF(D26,$KS$1)+(COUNTIF(E26,$KS$1)+(COUNTIF(F26,$KS$1)+(COUNTIF(G26,$KS$1)+(COUNTIF(H26,$KS$1))))) -> 0 | KT25: =COUNTIF(D26,$KT$1)+(COUNTIF(E26,$KT$1)+(COUNTIF(F26,$KT$1)+(COUNTIF(G26,$KT$1)+(COUNTIF(H26,$KT$1))))) -> 0 | KU25: =COUNTIF(D26,$KU$1)+(COUNTIF(E26,$KU$1)+(COUNTIF(F26,$KU$1)+(COUNTIF(G26,$KU$1)+(COUNTIF(H26,$KU$1))))) -> 0 | KV25: =COUNTIF(D26,$KV$1)+(COUNTIF(E26,$KV$1)+(COUNTIF(F26,$KV$1)+(COUNTIF(G26,$KV$1)+(COUNTIF(H26,$KV$1))))) -> 0 | KW25: =COUNTIF(D26,$KW$1)+(COUNTIF(E26,$KW$1)+(COUNTIF(F26,$KW$1)+(COUNTIF(G26,$KW$1)+(COUNTIF(H26,$KW$1))))) -> 0
A26: 386 | B26: SAMEDI | C26: 2022-08-06 | D26: 6 | E26: 23 | F26: 28 | G26: 37 | H26: 38 | I26: 1 | J26: 8 | K26: i | L26: =COUNTIF(M25:P25,">0") -> 2 | M26: =_xlfn.LET(_xlpm.comp,RIGHT(D27:H27,1),_xlfn._xlws.FILTER(D27:H27,_xlfn.XMATCH(_xlpm.comp,_xlpm.comp)<>_xlfn.XMATCH(_xlpm.comp,_xlpm.comp,,-1))) ->  | Q26: =COUNTIF(D26:H26,D27:H27) -> 0 | R26: 0 | S26: 1 | T26: 0 | U26: 0 | V26: =IF(AND(W26>69,W26<164,OR(X26={1;2;3;4})),1,0) -> 1 | W26: =D27+E27+F27+G27+H27 -> 143 | X26: =SUMPRODUCT(( MOD(D27:H27,2)>0)*1) -> 3 | Y26: 1 | Z26: 1 | AA26: 1 | AB26: 0 | AC26: 0 | AD26: 0 | AE26: 1 | AF26: 0 | AG26: 0 | AH26: 1 | AI26: =COUNTIF(($D27:$H27),AI$1) -> 0 | AJ26: =COUNTIF(($D27:$H27),AJ$1) -> 0 | AK26: =COUNTIF(($D27:$H27),AK$1) -> 0 | AL26: =COUNTIF(($D27:$H27),AL$1) -> 0 | AM26: =COUNTIF(($D27:$H27),AM$1) -> 0 | AN26: =COUNTIF(($D27:$H27),AN$1) -> 0 | AO26: =COUNTIF(($D27:$H27),AO$1) -> 0 | AP26: =COUNTIF(($D27:$H27),AP$1) -> 0 | AQ26: =COUNTIF(($D27:$H27),AQ$1) -> 0 | AR26: =COUNTIF(($D27:$H27),AR$1) -> 0 | AS26: =COUNTIF(($D27:$H27),AS$1) -> 0 | AT26: =COUNTIF(($D27:$H27),AT$1) -> 1 | AU26: =COUNTIF(($D27:$H27),AU$1) -> 0 | AV26: =COUNTIF(($D27:$H27),AV$1) -> 0 | AW26: =COUNTIF(($D27:$H27),AW$1) -> 0 | AX26: =COUNTIF(($D27:$H27),AX$1) -> 0 | AY26: =COUNTIF(($D27:$H27),AY$1) -> 0 | AZ26: =COUNTIF(($D27:$H27),AZ$1) -> 0 | BA26: =COUNTIF(($D27:$H27),BA$1) -> 0 | BB26: =COUNTIF(($D27:$H27),BB$1) -> 0 | BC26: =COUNTIF(($D27:$H27),BC$1) -> 0 | BD26: =COUNTIF(($D27:$H27),BD$1) -> 0 | BE26: =COUNTIF(($D27:$H27),BE$1) -> 0 | BF26: =COUNTIF(($D27:$H27),BF$1) -> 0 | BG26: =COUNTIF(($D27:$H27),BG$1) -> 0 | BH26: =COUNTIF(($D27:$H27),BH$1) -> 0 | BI26: =COUNTIF((D27:H27),BI$1) -> 1 | BJ26: =COUNTIF((D27:H27),BJ$1) -> 0 | BK26: =COUNTIF((D27:H27),BK$1) -> 0 | BL26: =COUNTIF((D27:H27),BL$1) -> 1 | BM26: =COUNTIF((D27:H27),BM$1) -> 1 | BN26: =COUNTIF((D27:H27),BN$1) -> 0 | BO26: =COUNTIF((D27:H27),BO$1) -> 0 | BP26: =COUNTIF((D27:H27),BP$1) -> 0 | BQ26: =COUNTIF((D27:H27),BQ$1) -> 0 | BR26: =COUNTIF((D27:H27),BR$1) -> 0 | BS26: =COUNTIF((D27:H27),BS$1) -> 0 | BT26: =COUNTIF((D27:H27),BT$1) -> 0 | BU26: =COUNTIF((D27:H27),BU$1) -> 0 | BV26: =COUNTIF(D27:H27,"<10") -> 1 | BW26: =(COUNTIF(D27:H27,"<20")-BV26) -> 0 | BX26: =((COUNTIF(D27:H27,"<30")))-(BV26+BW26) -> 1 | BY26: =((COUNTIF(D27:H27,"<40")))-(BW26+BX26+BV26) -> 1 | BZ26: =((COUNTIF(D27:H27,"<50")))-(BX26+BY26+BW26+BV26) -> 2 | CB26: 1 | CC26: 0 | CD26: 1 | CE26: 1 | CF26: 1 | CG26: 0 | CH26: 0 | CI26: 1 | CJ26: 0 | CK26: 0 | CL26: 0 | CM26: 0 | CN26: 0 | CO26: 0 | CP26: 0 | CQ26: 0 | CR26: 0 | CS26: 0 | CT26: 0 | CU26: 0 | CV26: 0 | CW26: 0 | CX26: 0 | CY26: 0 | CZ26: 0 | DA26: 0 | DB26: 0 | DC26: 0 | DD26: 0 | DE26: 0 | DF26: 0 | DG26: 0 | DH26: 0 | DJ26: 0 | DK26: 0 | DL26: =COUNTIF((I27),$DL$1) -> 0 | DM26: =COUNTIF((I27),$DM$1) -> 1 | DN26: =COUNTIF((I27),$DN$1) -> 0 | DO26: =COUNTIF((I27),$DO$1) -> 0 | DP26: =COUNTIF((I27),$DP$1) -> 0 | DQ26: =COUNTIF((I27),$DQ$1) -> 0 | DR26: =COUNTIF((I27),$DR$1) -> 0 | DS26: =COUNTIF((I27),$DS$1) -> 0 | DT26: =COUNTIF((I27),$DT$1) -> 0 | DU26: =COUNTIF((I27),$DU$1) -> 0 | DW26: 0 | DX26: 0 | DY26: 1 | DZ26: 1 | EA26: 1 | EB26: 1 | EC26: 1 | ED26: 1 | EE26: 1 | EF26: 1 | EI26: 0 | EJ26: 0 | EK26: 1 | EL26: 1 | EM26: 1 | EN26: 1 | EO26: 1 | EP26: 1 | EQ26: 1 | ER26: 1 | ES26: =COUNTIF(I26,I27) -> 0 | ET26: =SUMPRODUCT(( MOD(I27,2)>0)*1) -> 0 | EU26: =IF((E27=D27+1)+(F27=E27+1)+(G27=F27+1)+(H27=G27+1),("1")*1,("")) -> 1 | EW26: =H27-D27 -> 38 | EX26: =(MID(D27,1,2)*1) -> 3 | EY26: =(MID(E27,2,1)*1) -> 2 | EZ26: =(MID(F27,2,1)*1) -> 7 | FA26: =(MID(G27,2,1)*1) -> 0 | FB26: =(MID(H27,2,1)*1) -> 1 | FC26: =COUNTIF(EX26:FB26,FE26) -> 1 | FD26: 1 | FE26: =I27 -> 2 | FF26: 0 | FG26: 1 | FH26: 0 | FI26: 0 | FJ26: 0 | FK26: =IF(E27=D27+1,("1")*1,("")) ->  | FL26: =IF(F27=E27+1,("1")*1,("")) ->  | FM26: =IF(G27=F27+1,("1")*1,("")) ->  | FN26: =IF(H27=G27+1,("1")*1,("")) -> 1 | FW26: =SUMPRODUCT(( MOD(D27,2)>0)*1) -> 1 | FX26: =SUMPRODUCT(( MOD(E27,2)>0)*1) -> 0 | FY26: =SUMPRODUCT(( MOD(F27,2)>0)*1) -> 1 | FZ26: =SUMPRODUCT(( MOD(G27,2)>0)*1) -> 0 | GA26: =SUMPRODUCT(( MOD(H27,2)>0)*1) -> 1 | GE26: 0 | GF26: 0 | GG26: 0 | GH26: 0 | GL26: 1 | GM26: 1 | GN26: 1 | GR26: 0 | GS26: 0 | GW26: 1 | HA26: 1 | JA26: =COUNTIF(D27,$JA$1)+(COUNTIF(E27,$JA$1)+(COUNTIF(F27,$JA$1)+(COUNTIF(G27,$JA$1)+(COUNTIF(H27,$JA$1))))) -> 0 | JB26: =COUNTIF(D27,$JB$1)+(COUNTIF(E27,$JB$1)+(COUNTIF(F27,$JB$1)+(COUNTIF(G27,$JB$1)+(COUNTIF(H27,$JB$1))))) -> 0 | JC26: =COUNTIF(D27,$JC$1)+(COUNTIF(E27,$JC$1)+(COUNTIF(F27,$JC$1)+(COUNTIF(G27,$JC$1)+(COUNTIF(H27,$JC$1))))) -> 1 | JD26: =COUNTIF(D27,$JD$1)+(COUNTIF(E27,$JD$1)+(COUNTIF(F27,$JD$1)+(COUNTIF(G27,$JD$1)+(COUNTIF(H27,$JD$1))))) -> 0 | JE26: =COUNTIF(D27,$JE$1)+(COUNTIF(E27,$JE$1)+(COUNTIF(F27,$JE$1)+(COUNTIF(G27,$JE$1)+(COUNTIF(H27,$JE$1))))) -> 0 | JF26: =COUNTIF(D27,$JF$1)+(COUNTIF(E27,$JF$1)+(COUNTIF(F27,$JF$1)+(COUNTIF(G27,$JF$1)+(COUNTIF(H27,$JF$1))))) -> 0 | JG26: =COUNTIF(D27,$JG$1)+(COUNTIF(E27,$JG$1)+(COUNTIF(F27,$JG$1)+(COUNTIF(G27,$JG$1)+(COUNTIF(H27,$JG$1))))) -> 0 | JH26: =COUNTIF(D27,$JH$1)+(COUNTIF(E27,$JH$1)+(COUNTIF(F27,$JH$1)+(COUNTIF(G27,$JH$1)+(COUNTIF(H27,$JH$1))))) -> 0 | JI26: =COUNTIF(D27,$JI$1)+(COUNTIF(E27,$JI$1)+(COUNTIF(F27,$JI$1)+(COUNTIF(G27,$JI$1)+(COUNTIF(H27,$JI$1))))) -> 0 | JJ26: =COUNTIF(D27,$JJ$1)+(COUNTIF(E27,$JJ$1)+(COUNTIF(F27,$JJ$1)+(COUNTIF(G27,$JJ$1)+(COUNTIF(H27,$JJ$1))))) -> 0 | JK26: =COUNTIF(D27,$JK$1)+(COUNTIF(E27,$JK$1)+(COUNTIF(F27,$JK$1)+(COUNTIF(G27,$JK$1)+(COUNTIF(H27,$JK$1))))) -> 0 | JL26: =COUNTIF(D27,$JL$1)+(COUNTIF(E27,$JL$1)+(COUNTIF(F27,$JL$1)+(COUNTIF(G27,$JL$1)+(COUNTIF(H27,$JL$1))))) -> 0 | JM26: =COUNTIF(D27,$JM$1)+(COUNTIF(E27,$JM$1)+(COUNTIF(F27,$JM$1)+(COUNTIF(G27,$JM$1)+(COUNTIF(H27,$JM$1))))) -> 0 | JN26: =COUNTIF(D27,$JN$1)+(COUNTIF(E27,$JN$1)+(COUNTIF(F27,$JN$1)+(COUNTIF(G27,$JN$1)+(COUNTIF(H27,$JN$1))))) -> 0 | JO26: =COUNTIF(D27,$JO$1)+(COUNTIF(E27,$JO$1)+(COUNTIF(F27,$JO$1)+(COUNTIF(G27,$JO$1)+(COUNTIF(H27,$JO$1))))) -> 0 | JP26: =COUNTIF(D27,$JP$1)+(COUNTIF(E27,$JP$1)+(COUNTIF(F27,$JP$1)+(COUNTIF(G27,$JP$1)+(COUNTIF(H27,$JP$1))))) -> 0 | JQ26: =COUNTIF(D27,$JQ$1)+(COUNTIF(E27,$JQ$1)+(COUNTIF(F27,$JQ$1)+(COUNTIF(G27,$JQ$1)+(COUNTIF(H27,$JQ$1))))) -> 0 | JR26: =COUNTIF(D27,$JR$1)+(COUNTIF(E27,$JR$1)+(COUNTIF(F27,$JR$1)+(COUNTIF(G27,$JR$1)+(COUNTIF(H27,$JR$1))))) -> 0 | JS26: =COUNTIF(D27,$JS$1)+(COUNTIF(E27,$JS$1)+(COUNTIF(F27,$JS$1)+(COUNTIF(G27,$JS$1)+(COUNTIF(H27,$JS$1))))) -> 0 | JT26: =COUNTIF(D27,$JT$1)+(COUNTIF(E27,$JT$1)+(COUNTIF(F27,$JT$1)+(COUNTIF(G27,$JT$1)+(COUNTIF(H27,$JT$1))))) -> 0 | JU26: =COUNTIF(D27,$JU$1)+(COUNTIF(E27,$JU$1)+(COUNTIF(F27,$JU$1)+(COUNTIF(G27,$JU$1)+(COUNTIF(H27,$JU$1))))) -> 0 | JV26: =COUNTIF(D27,$JV$1)+(COUNTIF(E27,$JV$1)+(COUNTIF(F27,$JV$1)+(COUNTIF(G27,$JV$1)+(COUNTIF(H27,$JV$1))))) -> 1 | JW26: =COUNTIF(D27,$JW$1)+(COUNTIF(E27,$JW$1)+(COUNTIF(F27,$JW$1)+(COUNTIF(G27,$JW$1)+(COUNTIF(H27,$JW$1))))) -> 0 | JX26: =COUNTIF(D27,$JX$1)+(COUNTIF(E27,$JX$1)+(COUNTIF(F27,$JX$1)+(COUNTIF(G27,$JX$1)+(COUNTIF(H27,$JX$1))))) -> 0 | JY26: =COUNTIF(D27,$JY$1)+(COUNTIF(E27,$JY$1)+(COUNTIF(F27,$JY$1)+(COUNTIF(G27,$JY$1)+(COUNTIF(H27,$JY$1))))) -> 0 | JZ26: =COUNTIF(D27,$JZ$1)+(COUNTIF(E27,$JZ$1)+(COUNTIF(F27,$JZ$1)+(COUNTIF(G27,$JZ$1)+(COUNTIF(H27,$JZ$1))))) -> 0 | KA26: =COUNTIF(D27,$KA$1)+(COUNTIF(E27,$KA$1)+(COUNTIF(F27,$KA$1)+(COUNTIF(G27,$KA$1)+(COUNTIF(H27,$KA$1))))) -> 0 | KB26: =COUNTIF(D27,$KB$1)+(COUNTIF(E27,$KB$1)+(COUNTIF(F27,$KB$1)+(COUNTIF(G27,$KB$1)+(COUNTIF(H27,$KB$1))))) -> 0 | KC26: =COUNTIF(D27,$KC$1)+(COUNTIF(E27,$KC$1)+(COUNTIF(F27,$KC$1)+(COUNTIF(G27,$KC$1)+(COUNTIF(H27,$KC$1))))) -> 0 | KD26: =COUNTIF(D27,$KD$1)+(COUNTIF(E27,$KD$1)+(COUNTIF(F27,$KD$1)+(COUNTIF(G27,$KD$1)+(COUNTIF(H27,$KD$1))))) -> 0 | KE26: =COUNTIF(D27,$KE$1)+(COUNTIF(E27,$KE$1)+(COUNTIF(F27,$KE$1)+(COUNTIF(G27,$KE$1)+(COUNTIF(H27,$KE$1))))) -> 0 | KF26: =COUNTIF(D27,$KF$1)+(COUNTIF(E27,$KF$1)+(COUNTIF(F27,$KF$1)+(COUNTIF(G27,$KF$1)+(COUNTIF(H27,$KF$1))))) -> 0 | KG26: =COUNTIF(D27,$KG$1)+(COUNTIF(E27,$KG$1)+(COUNTIF(F27,$KG$1)+(COUNTIF(G27,$KG$1)+(COUNTIF(H27,$KG$1))))) -> 0 | KH26: =COUNTIF(D27,$KH$1)+(COUNTIF(E27,$KH$1)+(COUNTIF(F27,$KH$1)+(COUNTIF(G27,$KH$1)+(COUNTIF(H27,$KH$1))))) -> 0 | KI26: =COUNTIF(D27,$KI$1)+(COUNTIF(E27,$KI$1)+(COUNTIF(F27,$KI$1)+(COUNTIF(G27,$KI$1)+(COUNTIF(H27,$KI$1))))) -> 0 | KJ26: =COUNTIF(D27,$KJ$1)+(COUNTIF(E27,$KJ$1)+(COUNTIF(F27,$KJ$1)+(COUNTIF(G27,$KJ$1)+(COUNTIF(H27,$KJ$1))))) -> 0 | KK26: =COUNTIF(D27,$KK$1)+(COUNTIF(E27,$KK$1)+(COUNTIF(F27,$KK$1)+(COUNTIF(G27,$KK$1)+(COUNTIF(H27,$KK$1))))) -> 1 | KL26: =COUNTIF(D27,$KL$1)+(COUNTIF(E27,$KL$1)+(COUNTIF(F27,$KL$1)+(COUNTIF(G27,$KL$1)+(COUNTIF(H27,$KL$1))))) -> 0 | KM26: =COUNTIF(D27,$KM$1)+(COUNTIF(E27,$KM$1)+(COUNTIF(F27,$KM$1)+(COUNTIF(G27,$KM$1)+(COUNTIF(H27,$KM$1))))) -> 0 | KN26: =COUNTIF(D27,$KN$1)+(COUNTIF(E27,$KN$1)+(COUNTIF(F27,$KN$1)+(COUNTIF(G27,$KN$1)+(COUNTIF(H27,$KN$1))))) -> 1 | KO26: =COUNTIF(D27,$KO$1)+(COUNTIF(E27,$KO$1)+(COUNTIF(F27,$KO$1)+(COUNTIF(G27,$KO$1)+(COUNTIF(H27,$KO$1))))) -> 1 | KP26: =COUNTIF(D27,$KP$1)+(COUNTIF(E27,$KP$1)+(COUNTIF(F27,$KP$1)+(COUNTIF(G27,$KP$1)+(COUNTIF(H27,$KP$1))))) -> 0 | KQ26: =COUNTIF(D27,$KQ$1)+(COUNTIF(E27,$KQ$1)+(COUNTIF(F27,$KQ$1)+(COUNTIF(G27,$KQ$1)+(COUNTIF(H27,$KQ$1))))) -> 0 | KR26: =COUNTIF(D27,$KR$1)+(COUNTIF(E27,$KR$1)+(COUNTIF(F27,$KR$1)+(COUNTIF(G27,$KR$1)+(COUNTIF(H27,$KR$1))))) -> 0 | KS26: =COUNTIF(D27,$KS$1)+(COUNTIF(E27,$KS$1)+(COUNTIF(F27,$KS$1)+(COUNTIF(G27,$KS$1)+(COUNTIF(H27,$KS$1))))) -> 0 | KT26: =COUNTIF(D27,$KT$1)+(COUNTIF(E27,$KT$1)+(COUNTIF(F27,$KT$1)+(COUNTIF(G27,$KT$1)+(COUNTIF(H27,$KT$1))))) -> 0 | KU26: =COUNTIF(D27,$KU$1)+(COUNTIF(E27,$KU$1)+(COUNTIF(F27,$KU$1)+(COUNTIF(G27,$KU$1)+(COUNTIF(H27,$KU$1))))) -> 0 | KV26: =COUNTIF(D27,$KV$1)+(COUNTIF(E27,$KV$1)+(COUNTIF(F27,$KV$1)+(COUNTIF(G27,$KV$1)+(COUNTIF(H27,$KV$1))))) -> 0 | KW26: =COUNTIF(D27,$KW$1)+(COUNTIF(E27,$KW$1)+(COUNTIF(F27,$KW$1)+(COUNTIF(G27,$KW$1)+(COUNTIF(H27,$KW$1))))) -> 0
A27: 385 | B27: LUNDI | C27: 2022-08-08 | D27: 3 | E27: 22 | F27: 37 | G27: 40 | H27: 41 | I27: 2 | J27: 1 | K27: b | L27: =COUNTIF(M26:P26,">0") -> 0 | M27: =_xlfn.LET(_xlpm.comp,RIGHT(D28:H28,1),_xlfn._xlws.FILTER(D28:H28,_xlfn.XMATCH(_xlpm.comp,_xlpm.comp)<>_xlfn.XMATCH(_xlpm.comp,_xlpm.comp,,-1))) -> 15 | N27: 35 | Q27: =COUNTIF(D27:H27,D28:H28) -> 0 | R27: 0 | S27: 0 | T27: 0 | U27: 0 | V27: =IF(AND(W27>69,W27<164,OR(X27={1;2;3;4})),1,0) -> 1 | W27: =D28+E28+F28+G28+H28 -> 98 | X27: =SUMPRODUCT(( MOD(D28:H28,2)>0)*1) -> 4 | Y27: 1 | Z27: 0 | AA27: 0 | AB27: 0 | AC27: 2 | AD27: 0 | AE27: 0 | AF27: 1 | AG27: 1 | AH27: 0 | AI27: =COUNTIF(($D28:$H28),AI$1) -> 1 | AJ27: =COUNTIF(($D28:$H28),AJ$1) -> 0 | AK27: =COUNTIF(($D28:$H28),AK$1) -> 0 | AL27: =COUNTIF(($D28:$H28),AL$1) -> 0 | AM27: =COUNTIF(($D28:$H28),AM$1) -> 1 | AN27: =COUNTIF(($D28:$H28),AN$1) -> 0 | AO27: =COUNTIF(($D28:$H28),AO$1) -> 0 | AP27: =COUNTIF(($D28:$H28),AP$1) -> 0 | AQ27: =COUNTIF(($D28:$H28),AQ$1) -> 0 | AR27: =COUNTIF(($D28:$H28),AR$1) -> 0 | AS27: =COUNTIF(($D28:$H28),AS$1) -> 0 | AT27: =COUNTIF(($D28:$H28),AT$1) -> 0 | AU27: =COUNTIF(($D28:$H28),AU$1) -> 0 | AV27: =COUNTIF(($D28:$H28),AV$1) -> 0 | AW27: =COUNTIF(($D28:$H28),AW$1) -> 0 | AX27: =COUNTIF(($D28:$H28),AX$1) -> 0 | AY27: =COUNTIF(($D28:$H28),AY$1) -> 0 | AZ27: =COUNTIF(($D28:$H28),AZ$1) -> 1 | BA27: =COUNTIF(($D28:$H28),BA$1) -> 0 | BB27: =COUNTIF(($D28:$H28),BB$1) -> 0 | BC27: =COUNTIF(($D28:$H28),BC$1) -> 0 | BD27: =COUNTIF(($D28:$H28),BD$1) -> 0 | BE27: =COUNTIF(($D28:$H28),BE$1) -> 0 | BF27: =COUNTIF(($D28:$H28),BF$1) -> 0 | BG27: =COUNTIF(($D28:$H28),BG$1) -> 1 | BH27: =COUNTIF(($D28:$H28),BH$1) -> 0 | BI27: =COUNTIF((D28:H28),BI$1) -> 0 | BJ27: =COUNTIF((D28:H28),BJ$1) -> 0 | BK27: =COUNTIF((D28:H28),BK$1) -> 0 | BL27: =COUNTIF((D28:H28),BL$1) -> 0 | BM27: =COUNTIF((D28:H28),BM$1) -> 0 | BN27: =COUNTIF((D28:H28),BN$1) -> 0 | BO27: =COUNTIF((D28:H28),BO$1) -> 0 | BP27: =COUNTIF((D28:H28),BP$1) -> 0 | BQ27: =COUNTIF((D28:H28),BQ$1) -> 0 | BR27: =COUNTIF((D28:H28),BR$1) -> 0 | BS27: =COUNTIF((D28:H28),BS$1) -> 0 | BT27: =COUNTIF((D28:H28),BT$1) -> 0 | BU27: =COUNTIF((D28:H28),BU$1) -> 0 | BV27: =COUNTIF(D28:H28,"<10") -> 1 | BW27: =(COUNTIF(D28:H28,"<20")-BV27) -> 2 | BX27: =((COUNTIF(D28:H28,"<30")))-(BV27+BW27) -> 1 | BY27: =((COUNTIF(D28:H28,"<40")))-(BW27+BX27+BV27) -> 1 | BZ27: =((COUNTIF(D28:H28,"<50")))-(BX27+BY27+BW27+BV27) -> 0 | CB27: 1 | CC27: 1 | CD27: 1 | CE27: 1 | CF27: 0 | CG27: 0 | CH27: 0 | CI27: 0 | CJ27: 0 | CK27: 0 | CL27: 1 | CM27: 0 | CN27: 0 | CO27: 0 | CP27: 0 | CQ27: 0 | CR27: 0 | CS27: 0 | CT27: 0 | CU27: 0 | CV27: 0 | CW27: 0 | CX27: 0 | CY27: 0 | CZ27: 0 | DA27: 0 | DB27: 0 | DC27: 0 | DD27: 0 | DE27: 0 | DF27: 0 | DG27: 0 | DH27: 0 | DJ27: 0 | DK27: 0 | DL27: =COUNTIF((I28),$DL$1) -> 0 | DM27: =COUNTIF((I28),$DM$1) -> 1 | DN27: =COUNTIF((I28),$DN$1) -> 0 | DO27: =COUNTIF((I28),$DO$1) -> 0 | DP27: =COUNTIF((I28),$DP$1) -> 0 | DQ27: =COUNTIF((I28),$DQ$1) -> 0 | DR27: =COUNTIF((I28),$DR$1) -> 0 | DS27: =COUNTIF((I28),$DS$1) -> 0 | DT27: =COUNTIF((I28),$DT$1) -> 0 | DU27: =COUNTIF((I28),$DU$1) -> 0 | DW27: 1 | DX27: 1 | DY27: 1 | DZ27: 1 | EA27: 1 | EB27: 1 | EC27: 1 | ED27: 1 | EE27: 1 | EF27: 1 | EI27: 1 | EJ27: 1 | EK27: 1 | EL27: 1 | EM27: 1 | EN27: 1 | EO27: 1 | EP27: 1 | EQ27: 1 | ER27: 1 | ES27: =COUNTIF(I27,I28) -> 1 | ET27: =SUMPRODUCT(( MOD(I28,2)>0)*1) -> 0 | EU27: =IF((E28=D28+1)+(F28=E28+1)+(G28=F28+1)+(H28=G28+1),("1")*1,("")) ->  | EV27: 1 | EW27: =H28-D28 -> 26 | EX27: =(MID(D28,1,2)*1) -> 9 | EY27: =(MID(E28,2,1)*1) -> 1 | EZ27: =(MID(F28,2,1)*1) -> 5 | FA27: =(MID(G28,2,1)*1) -> 8 | FB27: =(MID(H28,2,1)*1) -> 5 | FC27: 0 | FD27: 1 | FE27: =I28 -> 2 | FF27: 0 | FG27: 0 | FH27: 0 | FI27: 0 | FJ27: 0 | FK27: =IF(E28=D28+1,("1")*1,("")) ->  | FL27: =IF(F28=E28+1,("1")*1,("")) ->  | FM27: =IF(G28=F28+1,("1")*1,("")) ->  | FN27: =IF(H28=G28+1,("1")*1,("")) ->  | FW27: =SUMPRODUCT(( MOD(D28,2)>0)*1) -> 1 | FX27: =SUMPRODUCT(( MOD(E28,2)>0)*1) -> 1 | FY27: =SUMPRODUCT(( MOD(F28,2)>0)*1) -> 1 | FZ27: =SUMPRODUCT(( MOD(G28,2)>0)*1) -> 0 | GA27: =SUMPRODUCT(( MOD(H28,2)>0)*1) -> 1 | GE27: 1 | GF27: 1 | GG27: 0 | GH27: 0 | GL27: 1 | GM27: 0 | GN27: 1 | GR27: 0 | GS27: 1 | GW27: 1 | HA27: 0 | JA27: =COUNTIF(D28,$JA$1)+(COUNTIF(E28,$JA$1)+(COUNTIF(F28,$JA$1)+(COUNTIF(G28,$JA$1)+(COUNTIF(H28,$JA$1))))) -> 0 | JB27: =COUNTIF(D28,$JB$1)+(COUNTIF(E28,$JB$1)+(COUNTIF(F28,$JB$1)+(COUNTIF(G28,$JB$1)+(COUNTIF(H28,$JB$1))))) -> 0 | JC27: =COUNTIF(D28,$JC$1)+(COUNTIF(E28,$JC$1)+(COUNTIF(F28,$JC$1)+(COUNTIF(G28,$JC$1)+(COUNTIF(H28,$JC$1))))) -> 0 | JD27: =COUNTIF(D28,$JD$1)+(COUNTIF(E28,$JD$1)+(COUNTIF(F28,$JD$1)+(COUNTIF(G28,$JD$1)+(COUNTIF(H28,$JD$1))))) -> 0 | JE27: =COUNTIF(D28,$JE$1)+(COUNTIF(E28,$JE$1)+(COUNTIF(F28,$JE$1)+(COUNTIF(G28,$JE$1)+(COUNTIF(H28,$JE$1))))) -> 0 | JF27: =COUNTIF(D28,$JF$1)+(COUNTIF(E28,$JF$1)+(COUNTIF(F28,$JF$1)+(COUNTIF(G28,$JF$1)+(COUNTIF(H28,$JF$1))))) -> 0 | JG27: =COUNTIF(D28,$JG$1)+(COUNTIF(E28,$JG$1)+(COUNTIF(F28,$JG$1)+(COUNTIF(G28,$JG$1)+(COUNTIF(H28,$JG$1))))) -> 0 | JH27: =COUNTIF(D28,$JH$1)+(COUNTIF(E28,$JH$1)+(COUNTIF(F28,$JH$1)+(COUNTIF(G28,$JH$1)+(COUNTIF(H28,$JH$1))))) -> 0 | JI27: =COUNTIF(D28,$JI$1)+(COUNTIF(E28,$JI$1)+(COUNTIF(F28,$JI$1)+(COUNTIF(G28,$JI$1)+(COUNTIF(H28,$JI$1))))) -> 1 | JJ27: =COUNTIF(D28,$JJ$1)+(COUNTIF(E28,$JJ$1)+(COUNTIF(F28,$JJ$1)+(COUNTIF(G28,$JJ$1)+(COUNTIF(H28,$JJ$1))))) -> 0 | JK27: =COUNTIF(D28,$JK$1)+(COUNTIF(E28,$JK$1)+(COUNTIF(F28,$JK$1)+(COUNTIF(G28,$JK$1)+(COUNTIF(H28,$JK$1))))) -> 1 | JL27: =COUNTIF(D28,$JL$1)+(COUNTIF(E28,$JL$1)+(COUNTIF(F28,$JL$1)+(COUNTIF(G28,$JL$1)+(COUNTIF(H28,$JL$1))))) -> 0 | JM27: =COUNTIF(D28,$JM$1)+(COUNTIF(E28,$JM$1)+(COUNTIF(F28,$JM$1)+(COUNTIF(G28,$JM$1)+(COUNTIF(H28,$JM$1))))) -> 0 | JN27: =COUNTIF(D28,$JN$1)+(COUNTIF(E28,$JN$1)+(COUNTIF(F28,$JN$1)+(COUNTIF(G28,$JN$1)+(COUNTIF(H28,$JN$1))))) -> 0 | JO27: =COUNTIF(D28,$JO$1)+(COUNTIF(E28,$JO$1)+(COUNTIF(F28,$JO$1)+(COUNTIF(G28,$JO$1)+(COUNTIF(H28,$JO$1))))) -> 1 | JP27: =COUNTIF(D28,$JP$1)+(COUNTIF(E28,$JP$1)+(COUNTIF(F28,$JP$1)+(COUNTIF(G28,$JP$1)+(COUNTIF(H28,$JP$1))))) -> 0 | JQ27: =COUNTIF(D28,$JQ$1)+(COUNTIF(E28,$JQ$1)+(COUNTIF(F28,$JQ$1)+(COUNTIF(G28,$JQ$1)+(COUNTIF(H28,$JQ$1))))) -> 0 | JR27: =COUNTIF(D28,$JR$1)+(COUNTIF(E28,$JR$1)+(COUNTIF(F28,$JR$1)+(COUNTIF(G28,$JR$1)+(COUNTIF(H28,$JR$1))))) -> 0 | JS27: =COUNTIF(D28,$JS$1)+(COUNTIF(E28,$JS$1)+(COUNTIF(F28,$JS$1)+(COUNTIF(G28,$JS$1)+(COUNTIF(H28,$JS$1))))) -> 0 | JT27: =COUNTIF(D28,$JT$1)+(COUNTIF(E28,$JT$1)+(COUNTIF(F28,$JT$1)+(COUNTIF(G28,$JT$1)+(COUNTIF(H28,$JT$1))))) -> 0 | JU27: =COUNTIF(D28,$JU$1)+(COUNTIF(E28,$JU$1)+(COUNTIF(F28,$JU$1)+(COUNTIF(G28,$JU$1)+(COUNTIF(H28,$JU$1))))) -> 0 | JV27: =COUNTIF(D28,$JV$1)+(COUNTIF(E28,$JV$1)+(COUNTIF(F28,$JV$1)+(COUNTIF(G28,$JV$1)+(COUNTIF(H28,$JV$1))))) -> 0 | JW27: =COUNTIF(D28,$JW$1)+(COUNTIF(E28,$JW$1)+(COUNTIF(F28,$JW$1)+(COUNTIF(G28,$JW$1)+(COUNTIF(H28,$JW$1))))) -> 0 | JX27: =COUNTIF(D28,$JX$1)+(COUNTIF(E28,$JX$1)+(COUNTIF(F28,$JX$1)+(COUNTIF(G28,$JX$1)+(COUNTIF(H28,$JX$1))))) -> 0 | JY27: =COUNTIF(D28,$JY$1)+(COUNTIF(E28,$JY$1)+(COUNTIF(F28,$JY$1)+(COUNTIF(G28,$JY$1)+(COUNTIF(H28,$JY$1))))) -> 0 | JZ27: =COUNTIF(D28,$JZ$1)+(COUNTIF(E28,$JZ$1)+(COUNTIF(F28,$JZ$1)+(COUNTIF(G28,$JZ$1)+(COUNTIF(H28,$JZ$1))))) -> 0 | KA27: =COUNTIF(D28,$KA$1)+(COUNTIF(E28,$KA$1)+(COUNTIF(F28,$KA$1)+(COUNTIF(G28,$KA$1)+(COUNTIF(H28,$KA$1))))) -> 0 | KB27: =COUNTIF(D28,$KB$1)+(COUNTIF(E28,$KB$1)+(COUNTIF(F28,$KB$1)+(COUNTIF(G28,$KB$1)+(COUNTIF(H28,$KB$1))))) -> 1 | KC27: =COUNTIF(D28,$KC$1)+(COUNTIF(E28,$KC$1)+(COUNTIF(F28,$KC$1)+(COUNTIF(G28,$KC$1)+(COUNTIF(H28,$KC$1))))) -> 0 | KD27: =COUNTIF(D28,$KD$1)+(COUNTIF(E28,$KD$1)+(COUNTIF(F28,$KD$1)+(COUNTIF(G28,$KD$1)+(COUNTIF(H28,$KD$1))))) -> 0 | KE27: =COUNTIF(D28,$KE$1)+(COUNTIF(E28,$KE$1)+(COUNTIF(F28,$KE$1)+(COUNTIF(G28,$KE$1)+(COUNTIF(H28,$KE$1))))) -> 0 | KF27: =COUNTIF(D28,$KF$1)+(COUNTIF(E28,$KF$1)+(COUNTIF(F28,$KF$1)+(COUNTIF(G28,$KF$1)+(COUNTIF(H28,$KF$1))))) -> 0 | KG27: =COUNTIF(D28,$KG$1)+(COUNTIF(E28,$KG$1)+(COUNTIF(F28,$KG$1)+(COUNTIF(G28,$KG$1)+(COUNTIF(H28,$KG$1))))) -> 0 | KH27: =COUNTIF(D28,$KH$1)+(COUNTIF(E28,$KH$1)+(COUNTIF(F28,$KH$1)+(COUNTIF(G28,$KH$1)+(COUNTIF(H28,$KH$1))))) -> 0 | KI27: =COUNTIF(D28,$KI$1)+(COUNTIF(E28,$KI$1)+(COUNTIF(F28,$KI$1)+(COUNTIF(G28,$KI$1)+(COUNTIF(H28,$KI$1))))) -> 1 | KJ27: =COUNTIF(D28,$KJ$1)+(COUNTIF(E28,$KJ$1)+(COUNTIF(F28,$KJ$1)+(COUNTIF(G28,$KJ$1)+(COUNTIF(H28,$KJ$1))))) -> 0 | KK27: =COUNTIF(D28,$KK$1)+(COUNTIF(E28,$KK$1)+(COUNTIF(F28,$KK$1)+(COUNTIF(G28,$KK$1)+(COUNTIF(H28,$KK$1))))) -> 0 | KL27: =COUNTIF(D28,$KL$1)+(COUNTIF(E28,$KL$1)+(COUNTIF(F28,$KL$1)+(COUNTIF(G28,$KL$1)+(COUNTIF(H28,$KL$1))))) -> 0 | KM27: =COUNTIF(D28,$KM$1)+(COUNTIF(E28,$KM$1)+(COUNTIF(F28,$KM$1)+(COUNTIF(G28,$KM$1)+(COUNTIF(H28,$KM$1))))) -> 0 | KN27: =COUNTIF(D28,$KN$1)+(COUNTIF(E28,$KN$1)+(COUNTIF(F28,$KN$1)+(COUNTIF(G28,$KN$1)+(COUNTIF(H28,$KN$1))))) -> 0 | KO27: =COUNTIF(D28,$KO$1)+(COUNTIF(E28,$KO$1)+(COUNTIF(F28,$KO$1)+(COUNTIF(G28,$KO$1)+(COUNTIF(H28,$KO$1))))) -> 0 | KP27: =COUNTIF(D28,$KP$1)+(COUNTIF(E28,$KP$1)+(COUNTIF(F28,$KP$1)+(COUNTIF(G28,$KP$1)+(COUNTIF(H28,$KP$1))))) -> 0 | KQ27: =COUNTIF(D28,$KQ$1)+(COUNTIF(E28,$KQ$1)+(COUNTIF(F28,$KQ$1)+(COUNTIF(G28,$KQ$1)+(COUNTIF(H28,$KQ$1))))) -> 0 | KR27: =COUNTIF(D28,$KR$1)+(COUNTIF(E28,$KR$1)+(COUNTIF(F28,$KR$1)+(COUNTIF(G28,$KR$1)+(COUNTIF(H28,$KR$1))))) -> 0 | KS27: =COUNTIF(D28,$KS$1)+(COUNTIF(E28,$KS$1)+(COUNTIF(F28,$KS$1)+(COUNTIF(G28,$KS$1)+(COUNTIF(H28,$KS$1))))) -> 0 | KT27: =COUNTIF(D28,$KT$1)+(COUNTIF(E28,$KT$1)+(COUNTIF(F28,$KT$1)+(COUNTIF(G28,$KT$1)+(COUNTIF(H28,$KT$1))))) -> 0 | KU27: =COUNTIF(D28,$KU$1)+(COUNTIF(E28,$KU$1)+(COUNTIF(F28,$KU$1)+(COUNTIF(G28,$KU$1)+(COUNTIF(H28,$KU$1))))) -> 0 | KV27: =COUNTIF(D28,$KV$1)+(COUNTIF(E28,$KV$1)+(COUNTIF(F28,$KV$1)+(COUNTIF(G28,$KV$1)+(COUNTIF(H28,$KV$1))))) -> 0 | KW27: =COUNTIF(D28,$KW$1)+(COUNTIF(E28,$KW$1)+(COUNTIF(F28,$KW$1)+(COUNTIF(G28,$KW$1)+(COUNTIF(H28,$KW$1))))) -> 0
A28: 384 | B28: MERCREDI | C28: 2022-08-10 | D28: 9 | E28: 11 | F28: 15 | G28: 28 | H28: 35 | I28: 2 | J28: 5 | K28: f | L28: =COUNTIF(M27:P27,">0") -> 2 | M28: =_xlfn.LET(_xlpm.comp,RIGHT(D29:H29,1),_xlfn._xlws.FILTER(D29:H29,_xlfn.XMATCH(_xlpm.comp,_xlpm.comp)<>_xlfn.XMATCH(_xlpm.comp,_xlpm.comp,,-1))) -> 17 | N28: 37 | Q28: =COUNTIF(D28:H28,D29:H29) -> 1 | R28: 0 | S28: 0 | T28: 0 | U28: 0 | V28: =IF(AND(W28>69,W28<164,OR(X28={1;2;3;4})),1,0) -> 1 | W28: =D29+E29+F29+G29+H29 -> 142 | X28: =SUMPRODUCT(( MOD(D29:H29,2)>0)*1) -> 4 | Y28: 1 | Z28: 0 | AA28: 0 | AB28: 0 | AC28: 0 | AD28: 0 | AE28: 2 | AF28: 1 | AG28: 1 | AH28: 0 | AI28: =COUNTIF(($D29:$H29),AI$1) -> 1 | AJ28: =COUNTIF(($D29:$H29),AJ$1) -> 0 | AK28: =COUNTIF(($D29:$H29),AK$1) -> 0 | AL28: =COUNTIF(($D29:$H29),AL$1) -> 0 | AM28: =COUNTIF(($D29:$H29),AM$1) -> 0 | AN28: =COUNTIF(($D29:$H29),AN$1) -> 0 | AO28: =COUNTIF(($D29:$H29),AO$1) -> 1 | AP28: =COUNTIF(($D29:$H29),AP$1) -> 0 | AQ28: =COUNTIF(($D29:$H29),AQ$1) -> 0 | AR28: =COUNTIF(($D29:$H29),AR$1) -> 0 | AS28: =COUNTIF(($D29:$H29),AS$1) -> 0 | AT28: =COUNTIF(($D29:$H29),AT$1) -> 0 | AU28: =COUNTIF(($D29:$H29),AU$1) -> 0 | AV28: =COUNTIF(($D29:$H29),AV$1) -> 0 | AW28: =COUNTIF(($D29:$H29),AW$1) -> 0 | AX28: =COUNTIF(($D29:$H29),AX$1) -> 0 | AY28: =COUNTIF(($D29:$H29),AY$1) -> 0 | AZ28: =COUNTIF(($D29:$H29),AZ$1) -> 0 | BA28: =COUNTIF(($D29:$H29),BA$1) -> 0 | BB28: =COUNTIF(($D29:$H29),BB$1) -> 0 | BC28: =COUNTIF(($D29:$H29),BC$1) -> 0 | BD28: =COUNTIF(($D29:$H29),BD$1) -> 0 | BE28: =COUNTIF(($D29:$H29),BE$1) -> 0 | BF28: =COUNTIF(($D29:$H29),BF$1) -> 0 | BG28: =COUNTIF(($D29:$H29),BG$1) -> 0 | BH28: =COUNTIF(($D29:$H29),BH$1) -> 0 | BI28: =COUNTIF((D29:H29),BI$1) -> 1 | BJ28: =COUNTIF((D29:H29),BJ$1) -> 1 | BK28: =COUNTIF((D29:H29),BK$1) -> 1 | BL28: =COUNTIF((D29:H29),BL$1) -> 0 | BM28: =COUNTIF((D29:H29),BM$1) -> 0 | BN28: =COUNTIF((D29:H29),BN$1) -> 0 | BO28: =COUNTIF((D29:H29),BO$1) -> 0 | BP28: =COUNTIF((D29:H29),BP$1) -> 0 | BQ28: =COUNTIF((D29:H29),BQ$1) -> 0 | BR28: =COUNTIF((D29:H29),BR$1) -> 0 | BS28: =COUNTIF((D29:H29),BS$1) -> 0 | BT28: =COUNTIF((D29:H29),BT$1) -> 0 | BU28: =COUNTIF((D29:H29),BU$1) -> 0 | BV28: =COUNTIF(D29:H29,"<10") -> 0 | BW28: =(COUNTIF(D29:H29,"<20")-BV28) -> 2 | BX28: =((COUNTIF(D29:H29,"<30")))-(BV28+BW28) -> 0 | BY28: =((COUNTIF(D29:H29,"<40")))-(BW28+BX28+BV28) -> 3 | BZ28: =((COUNTIF(D29:H29,"<50")))-(BX28+BY28+BW28+BV28) -> 0 | CB28: 0 | CC28: 1 | CD28: 0 | CE28: 1 | CF28: 0 | CG28: 0 | CH28: 0 | CI28: 0 | CJ28: 0 | CK28: 0 | CL28: 0 | CM28: 0 | CN28: 0 | CO28: 0 | CP28: 0 | CQ28: 0 | CR28: 0 | CS28: 0 | CT28: 0 | CU28: 0 | CV28: 0 | CW28: 0 | CX28: 0 | CY28: 0 | CZ28: 0 | DA28: 0 | DB28: 0 | DC28: 1 | DD28: 0 | DE28: 0 | DF28: 0 | DG28: 0 | DH28: 0 | DJ28: 0 | DK28: 0 | DL28: =COUNTIF((I29),$DL$1) -> 0 | DM28: =COUNTIF((I29),$DM$1) -> 1 | DN28: =COUNTIF((I29),$DN$1) -> 0 | DO28: =COUNTIF((I29),$DO$1) -> 0 | DP28: =COUNTIF((I29),$DP$1) -> 0 | DQ28: =COUNTIF((I29),$DQ$1) -> 0 | DR28: =COUNTIF((I29),$DR$1) -> 0 | DS28: =COUNTIF((I29),$DS$1) -> 0 | DT28: =COUNTIF((I29),$DT$1) -> 0 | DU28: =COUNTIF((I29),$DU$1) -> 0 | DW28: 1 | DX28: 1 | DY28: 1 | DZ28: 1 | EA28: 1 | EB28: 1 | EC28: 1 | ED28: 1 | EE28: 1 | EF28: 1 | EI28: 1 | EJ28: 1 | EK28: 1 | EL28: 1 | EM28: 1 | EN28: 1 | EO28: 1 | EP28: 1 | EQ28: 1 | ER28: 1 | ES28: =COUNTIF(I28,I29) -> 1 | ET28: =SUMPRODUCT(( MOD(I29,2)>0)*1) -> 0 | EU28: =IF((E29=D29+1)+(F29=E29+1)+(G29=F29+1)+(H29=G29+1),("1")*1,("")) -> 1 | EV28: 1 | EW28: =H29-D29 -> 28 | EX28: =(MID(D29,2,2)*1) -> 1 | EY28: =(MID(E29,2,1)*1) -> 7 | EZ28: =(MID(F29,2,1)*1) -> 7 | FA28: =(MID(G29,2,1)*1) -> 8 | FB28: =(MID(H29,2,1)*1) -> 9 | FC28: 0 | FD28: 1 | FE28: =I29 -> 2 | FF28: 0 | FG28: 0 | FH28: 0 | FI28: 0 | FJ28: 0 | FK28: =IF(E29=D29+1,("1")*1,("")) ->  | FL28: =IF(F29=E29+1,("1")*1,("")) ->  | FM28: =IF(G29=F29+1,("1")*1,("")) -> 1 | FN28: =IF(H29=G29+1,("1")*1,("")) -> 1 | FW28: =SUMPRODUCT(( MOD(D29,2)>0)*1) -> 1 | FX28: =SUMPRODUCT(( MOD(E29,2)>0)*1) -> 1 | FY28: =SUMPRODUCT(( MOD(F29,2)>0)*1) -> 1 | FZ28: =SUMPRODUCT(( MOD(G29,2)>0)*1) -> 0 | GA28: =SUMPRODUCT(( MOD(H29,2)>0)*1) -> 1 | GE28: 1 | GF28: 1 | GG28: 0 | GH28: 0 | GL28: 1 | GM28: 0 | GN28: 1 | GR28: 0 | GS28: 1 | GW28: 1 | HA28: 0 | JA28: =COUNTIF(D29,$JA$1)+(COUNTIF(E29,$JA$1)+(COUNTIF(F29,$JA$1)+(COUNTIF(G29,$JA$1)+(COUNTIF(H29,$JA$1))))) -> 0 | JB28: =COUNTIF(D29,$JB$1)+(COUNTIF(E29,$JB$1)+(COUNTIF(F29,$JB$1)+(COUNTIF(G29,$JB$1)+(COUNTIF(H29,$JB$1))))) -> 0 | JC28: =COUNTIF(D29,$JC$1)+(COUNTIF(E29,$JC$1)+(COUNTIF(F29,$JC$1)+(COUNTIF(G29,$JC$1)+(COUNTIF(H29,$JC$1))))) -> 0 | JD28: =COUNTIF(D29,$JD$1)+(COUNTIF(E29,$JD$1)+(COUNTIF(F29,$JD$1)+(COUNTIF(G29,$JD$1)+(COUNTIF(H29,$JD$1))))) -> 0 | JE28: =COUNTIF(D29,$JE$1)+(COUNTIF(E29,$JE$1)+(COUNTIF(F29,$JE$1)+(COUNTIF(G29,$JE$1)+(COUNTIF(H29,$JE$1))))) -> 0 | JF28: =COUNTIF(D29,$JF$1)+(COUNTIF(E29,$JF$1)+(COUNTIF(F29,$JF$1)+(COUNTIF(G29,$JF$1)+(COUNTIF(H29,$JF$1))))) -> 0 | JG28: =COUNTIF(D29,$JG$1)+(COUNTIF(E29,$JG$1)+(COUNTIF(F29,$JG$1)+(COUNTIF(G29,$JG$1)+(COUNTIF(H29,$JG$1))))) -> 0 | JH28: =COUNTIF(D29,$JH$1)+(COUNTIF(E29,$JH$1)+(COUNTIF(F29,$JH$1)+(COUNTIF(G29,$JH$1)+(COUNTIF(H29,$JH$1))))) -> 0 | JI28: =COUNTIF(D29,$JI$1)+(COUNTIF(E29,$JI$1)+(COUNTIF(F29,$JI$1)+(COUNTIF(G29,$JI$1)+(COUNTIF(H29,$JI$1))))) -> 0 | JJ28: =COUNTIF(D29,$JJ$1)+(COUNTIF(E29,$JJ$1)+(COUNTIF(F29,$JJ$1)+(COUNTIF(G29,$JJ$1)+(COUNTIF(H29,$JJ$1))))) -> 0 | JK28: =COUNTIF(D29,$JK$1)+(COUNTIF(E29,$JK$1)+(COUNTIF(F29,$JK$1)+(COUNTIF(G29,$JK$1)+(COUNTIF(H29,$JK$1))))) -> 1 | JL28: =COUNTIF(D29,$JL$1)+(COUNTIF(E29,$JL$1)+(COUNTIF(F29,$JL$1)+(COUNTIF(G29,$JL$1)+(COUNTIF(H29,$JL$1))))) -> 0 | JM28: =COUNTIF(D29,$JM$1)+(COUNTIF(E29,$JM$1)+(COUNTIF(F29,$JM$1)+(COUNTIF(G29,$JM$1)+(COUNTIF(H29,$JM$1))))) -> 0 | JN28: =COUNTIF(D29,$JN$1)+(COUNTIF(E29,$JN$1)+(COUNTIF(F29,$JN$1)+(COUNTIF(G29,$JN$1)+(COUNTIF(H29,$JN$1))))) -> 0 | JO28: =COUNTIF(D29,$JO$1)+(COUNTIF(E29,$JO$1)+(COUNTIF(F29,$JO$1)+(COUNTIF(G29,$JO$1)+(COUNTIF(H29,$JO$1))))) -> 0 | JP28: =COUNTIF(D29,$JP$1)+(COUNTIF(E29,$JP$1)+(COUNTIF(F29,$JP$1)+(COUNTIF(G29,$JP$1)+(COUNTIF(H29,$JP$1))))) -> 0 | JQ28: =COUNTIF(D29,$JQ$1)+(COUNTIF(E29,$JQ$1)+(COUNTIF(F29,$JQ$1)+(COUNTIF(G29,$JQ$1)+(COUNTIF(H29,$JQ$1))))) -> 1 | JR28: =COUNTIF(D29,$JR$1)+(COUNTIF(E29,$JR$1)+(COUNTIF(F29,$JR$1)+(COUNTIF(G29,$JR$1)+(COUNTIF(H29,$JR$1))))) -> 0 | JS28: =COUNTIF(D29,$JS$1)+(COUNTIF(E29,$JS$1)+(COUNTIF(F29,$JS$1)+(COUNTIF(G29,$JS$1)+(COUNTIF(H29,$JS$1))))) -> 0 | JT28: =COUNTIF(D29,$JT$1)+(COUNTIF(E29,$JT$1)+(COUNTIF(F29,$JT$1)+(COUNTIF(G29,$JT$1)+(COUNTIF(H29,$JT$1))))) -> 0 | JU28: =COUNTIF(D29,$JU$1)+(COUNTIF(E29,$JU$1)+(COUNTIF(F29,$JU$1)+(COUNTIF(G29,$JU$1)+(COUNTIF(H29,$JU$1))))) -> 0 | JV28: =COUNTIF(D29,$JV$1)+(COUNTIF(E29,$JV$1)+(COUNTIF(F29,$JV$1)+(COUNTIF(G29,$JV$1)+(COUNTIF(H29,$JV$1))))) -> 0 | JW28: =COUNTIF(D29,$JW$1)+(COUNTIF(E29,$JW$1)+(COUNTIF(F29,$JW$1)+(COUNTIF(G29,$JW$1)+(COUNTIF(H29,$JW$1))))) -> 0 | JX28: =COUNTIF(D29,$JX$1)+(COUNTIF(E29,$JX$1)+(COUNTIF(F29,$JX$1)+(COUNTIF(G29,$JX$1)+(COUNTIF(H29,$JX$1))))) -> 0 | JY28: =COUNTIF(D29,$JY$1)+(COUNTIF(E29,$JY$1)+(COUNTIF(F29,$JY$1)+(COUNTIF(G29,$JY$1)+(COUNTIF(H29,$JY$1))))) -> 0 | JZ28: =COUNTIF(D29,$JZ$1)+(COUNTIF(E29,$JZ$1)+(COUNTIF(F29,$JZ$1)+(COUNTIF(G29,$JZ$1)+(COUNTIF(H29,$JZ$1))))) -> 0 | KA28: =COUNTIF(D29,$KA$1)+(COUNTIF(E29,$KA$1)+(COUNTIF(F29,$KA$1)+(COUNTIF(G29,$KA$1)+(COUNTIF(H29,$KA$1))))) -> 0 | KB28: =COUNTIF(D29,$KB$1)+(COUNTIF(E29,$KB$1)+(COUNTIF(F29,$KB$1)+(COUNTIF(G29,$KB$1)+(COUNTIF(H29,$KB$1))))) -> 0 | KC28: =COUNTIF(D29,$KC$1)+(COUNTIF(E29,$KC$1)+(COUNTIF(F29,$KC$1)+(COUNTIF(G29,$KC$1)+(COUNTIF(H29,$KC$1))))) -> 0 | KD28: =COUNTIF(D29,$KD$1)+(COUNTIF(E29,$KD$1)+(COUNTIF(F29,$KD$1)+(COUNTIF(G29,$KD$1)+(COUNTIF(H29,$KD$1))))) -> 0 | KE28: =COUNTIF(D29,$KE$1)+(COUNTIF(E29,$KE$1)+(COUNTIF(F29,$KE$1)+(COUNTIF(G29,$KE$1)+(COUNTIF(H29,$KE$1))))) -> 0 | KF28: =COUNTIF(D29,$KF$1)+(COUNTIF(E29,$KF$1)+(COUNTIF(F29,$KF$1)+(COUNTIF(G29,$KF$1)+(COUNTIF(H29,$KF$1))))) -> 0 | KG28: =COUNTIF(D29,$KG$1)+(COUNTIF(E29,$KG$1)+(COUNTIF(F29,$KG$1)+(COUNTIF(G29,$KG$1)+(COUNTIF(H29,$KG$1))))) -> 0 | KH28: =COUNTIF(D29,$KH$1)+(COUNTIF(E29,$KH$1)+(COUNTIF(F29,$KH$1)+(COUNTIF(G29,$KH$1)+(COUNTIF(H29,$KH$1))))) -> 0 | KI28: =COUNTIF(D29,$KI$1)+(COUNTIF(E29,$KI$1)+(COUNTIF(F29,$KI$1)+(COUNTIF(G29,$KI$1)+(COUNTIF(H29,$KI$1))))) -> 0 | KJ28: =COUNTIF(D29,$KJ$1)+(COUNTIF(E29,$KJ$1)+(COUNTIF(F29,$KJ$1)+(COUNTIF(G29,$KJ$1)+(COUNTIF(H29,$KJ$1))))) -> 0 | KK28: =COUNTIF(D29,$KK$1)+(COUNTIF(E29,$KK$1)+(COUNTIF(F29,$KK$1)+(COUNTIF(G29,$KK$1)+(COUNTIF(H29,$KK$1))))) -> 1 | KL28: =COUNTIF(D29,$KL$1)+(COUNTIF(E29,$KL$1)+(COUNTIF(F29,$KL$1)+(COUNTIF(G29,$KL$1)+(COUNTIF(H29,$KL$1))))) -> 1 | KM28: =COUNTIF(D29,$KM$1)+(COUNTIF(E29,$KM$1)+(COUNTIF(F29,$KM$1)+(COUNTIF(G29,$KM$1)+(COUNTIF(H29,$KM$1))))) -> 1 | KN28: =COUNTIF(D29,$KN$1)+(COUNTIF(E29,$KN$1)+(COUNTIF(F29,$KN$1)+(COUNTIF(G29,$KN$1)+(COUNTIF(H29,$KN$1))))) -> 0 | KO28: =COUNTIF(D29,$KO$1)+(COUNTIF(E29,$KO$1)+(COUNTIF(F29,$KO$1)+(COUNTIF(G29,$KO$1)+(COUNTIF(H29,$KO$1))))) -> 0 | KP28: =COUNTIF(D29,$KP$1)+(COUNTIF(E29,$KP$1)+(COUNTIF(F29,$KP$1)+(COUNTIF(G29,$KP$1)+(COUNTIF(H29,$KP$1))))) -> 0 | KQ28: =COUNTIF(D29,$KQ$1)+(COUNTIF(E29,$KQ$1)+(COUNTIF(F29,$KQ$1)+(COUNTIF(G29,$KQ$1)+(COUNTIF(H29,$KQ$1))))) -> 0 | KR28: =COUNTIF(D29,$KR$1)+(COUNTIF(E29,$KR$1)+(COUNTIF(F29,$KR$1)+(COUNTIF(G29,$KR$1)+(COUNTIF(H29,$KR$1))))) -> 0 | KS28: =COUNTIF(D29,$KS$1)+(COUNTIF(E29,$KS$1)+(COUNTIF(F29,$KS$1)+(COUNTIF(G29,$KS$1)+(COUNTIF(H29,$KS$1))))) -> 0 | KT28: =COUNTIF(D29,$KT$1)+(COUNTIF(E29,$KT$1)+(COUNTIF(F29,$KT$1)+(COUNTIF(G29,$KT$1)+(COUNTIF(H29,$KT$1))))) -> 0 | KU28: =COUNTIF(D29,$KU$1)+(COUNTIF(E29,$KU$1)+(COUNTIF(F29,$KU$1)+(COUNTIF(G29,$KU$1)+(COUNTIF(H29,$KU$1))))) -> 0 | KV28: =COUNTIF(D29,$KV$1)+(COUNTIF(E29,$KV$1)+(COUNTIF(F29,$KV$1)+(COUNTIF(G29,$KV$1)+(COUNTIF(H29,$KV$1))))) -> 0 | KW28: =COUNTIF(D29,$KW$1)+(COUNTIF(E29,$KW$1)+(COUNTIF(F29,$KW$1)+(COUNTIF(G29,$KW$1)+(COUNTIF(H29,$KW$1))))) -> 0
A29: 383 | B29: SAMEDI | C29: 2022-08-13 | D29: 11 | E29: 17 | F29: 37 | G29: 38 | H29: 39 | I29: 2 | J29: 9 | K29: j | L29: =COUNTIF(M28:P28,">0") -> 2 | M29: =_xlfn.LET(_xlpm.comp,RIGHT(D30:H30,1),_xlfn._xlws.FILTER(D30:H30,_xlfn.XMATCH(_xlpm.comp,_xlpm.comp)<>_xlfn.XMATCH(_xlpm.comp,_xlpm.comp,,-1))) -> 4 | N29: 22 | O29: 34 | P29: 42 | Q29: =COUNTIF(D29:H29,D30:H30) -> 0 | R29: 0 | S29: 0 | T29: 0 | U29: 0 | V29: =IF(AND(W29>69,W29<164,OR(X29={1;2;3;4})),1,0) -> 0 | W29: =D30+E30+F30+G30+H30 -> 150 | X29: =SUMPRODUCT(( MOD(D30:H30,2)>0)*1) -> 0 | Y29: 0 | Z29: 2 | AA29: 0 | AB29: 2 | AC29: 0 | AD29: 0 | AE29: 0 | AF29: 1 | AG29: 0 | AH29: 0 | AI29: =COUNTIF(($D30:$H30),AI$1) -> 0 | AJ29: =COUNTIF(($D30:$H30),AJ$1) -> 0 | AK29: =COUNTIF(($D30:$H30),AK$1) -> 0 | AL29: =COUNTIF(($D30:$H30),AL$1) -> 0 | AM29: =COUNTIF(($D30:$H30),AM$1) -> 0 | AN29: =COUNTIF(($D30:$H30),AN$1) -> 0 | AO29: =COUNTIF(($D30:$H30),AO$1) -> 0 | AP29: =COUNTIF(($D30:$H30),AP$1) -> 0 | AQ29: =COUNTIF(($D30:$H30),AQ$1) -> 0 | AR29: =COUNTIF(($D30:$H30),AR$1) -> 0 | AS29: =COUNTIF(($D30:$H30),AS$1) -> 0 | AT29: =COUNTIF(($D30:$H30),AT$1) -> 1 | AU29: =COUNTIF(($D30:$H30),AU$1) -> 0 | AV29: =COUNTIF(($D30:$H30),AV$1) -> 0 | AW29: =COUNTIF(($D30:$H30),AW$1) -> 0 | AX29: =COUNTIF(($D30:$H30),AX$1) -> 0 | AY29: =COUNTIF(($D30:$H30),AY$1) -> 0 | AZ29: =COUNTIF(($D30:$H30),AZ$1) -> 0 | BA29: =COUNTIF(($D30:$H30),BA$1) -> 0 | BB29: =COUNTIF(($D30:$H30),BB$1) -> 0 | BC29: =COUNTIF(($D30:$H30),BC$1) -> 0 | BD29: =COUNTIF(($D30:$H30),BD$1) -> 0 | BE29: =COUNTIF(($D30:$H30),BE$1) -> 0 | BF29: =COUNTIF(($D30:$H30),BF$1) -> 1 | BG29: =COUNTIF(($D30:$H30),BG$1) -> 0 | BH29: =COUNTIF(($D30:$H30),BH$1) -> 0 | BI29: =COUNTIF((D30:H30),BI$1) -> 0 | BJ29: =COUNTIF((D30:H30),BJ$1) -> 0 | BK29: =COUNTIF((D30:H30),BK$1) -> 0 | BL29: =COUNTIF((D30:H30),BL$1) -> 0 | BM29: =COUNTIF((D30:H30),BM$1) -> 0 | BN29: =COUNTIF((D30:H30),BN$1) -> 1 | BO29: =COUNTIF((D30:H30),BO$1) -> 0 | BP29: =COUNTIF((D30:H30),BP$1) -> 0 | BQ29: =COUNTIF((D30:H30),BQ$1) -> 0 | BR29: =COUNTIF((D30:H30),BR$1) -> 0 | BS29: =COUNTIF((D30:H30),BS$1) -> 0 | BT29: =COUNTIF((D30:H30),BT$1) -> 1 | BU29: =COUNTIF((D30:H30),BU$1) -> 0 | BV29: =COUNTIF(D30:H30,"<10") -> 1 | BW29: =(COUNTIF(D30:H30,"<20")-BV29) -> 0 | BX29: =((COUNTIF(D30:H30,"<30")))-(BV29+BW29) -> 1 | BY29: =((COUNTIF(D30:H30,"<40")))-(BW29+BX29+BV29) -> 1 | BZ29: =((COUNTIF(D30:H30,"<50")))-(BX29+BY29+BW29+BV29) -> 2 | CB29: 1 | CC29: 0 | CD29: 1 | CE29: 1 | CF29: 1 | CG29: 0 | CH29: 0 | CI29: 1 | CJ29: 0 | CK29: 0 | CL29: 0 | CM29: 0 | CN29: 0 | CO29: 0 | CP29: 0 | CQ29: 0 | CR29: 0 | CS29: 0 | CT29: 0 | CU29: 0 | CV29: 0 | CW29: 0 | CX29: 0 | CY29: 0 | CZ29: 0 | DA29: 0 | DB29: 0 | DC29: 0 | DD29: 0 | DE29: 0 | DF29: 0 | DG29: 0 | DH29: 0 | DJ29: 0 | DK29: 0 | DL29: =COUNTIF((I30),$DL$1) -> 0 | DM29: =COUNTIF((I30),$DM$1) -> 0 | DN29: =COUNTIF((I30),$DN$1) -> 1 | DO29: =COUNTIF((I30),$DO$1) -> 0 | DP29: =COUNTIF((I30),$DP$1) -> 0 | DQ29: =COUNTIF((I30),$DQ$1) -> 0 | DR29: =COUNTIF((I30),$DR$1) -> 0 | DS29: =COUNTIF((I30),$DS$1) -> 0 | DT29: =COUNTIF((I30),$DT$1) -> 0 | DU29: =COUNTIF((I30),$DU$1) -> 0 | DW29: 1 | DX29: 0 | DY29: 0 | DZ29: 1 | EA29: 1 | EB29: 1 | EC29: 1 | ED29: 1 | EE29: 1 | EF29: 1 | EI29: 1 | EJ29: 0 | EK29: 0 | EL29: 1 | EM29: 1 | EN29: 1 | EO29: 1 | EP29: 1 | EQ29: 1 | ER29: 1 | ES29: =COUNTIF(I29,I30) -> 0 | ET29: =SUMPRODUCT(( MOD(I30,2)>0)*1) -> 1 | EU29: =IF((E30=D30+1)+(F30=E30+1)+(G30=F30+1)+(H30=G30+1),("1")*1,("")) ->  | EV29: 1 | EW29: =H30-D30 -> 44 | EX29: =(MID(D30,1,2)*1) -> 4 | EY29: =(MID(E30,2,1)*1) -> 2 | EZ29: =(MID(F30,2,1)*1) -> 4 | FA29: =(MID(G30,2,1)*1) -> 2 | FB29: =(MID(H30,2,1)*1) -> 8 | FC29: 0 | FD29: 1 | FE29: =I30 -> 3 | FF29: 0 | FG29: 0 | FH29: 0 | FI29: 0 | FJ29: 0 | FK29: =IF(E30=D30+1,("1")*1,("")) ->  | FL29: =IF(F30=E30+1,("1")*1,("")) ->  | FM29: =IF(G30=F30+1,("1")*1,("")) ->  | FN29: =IF(H30=G30+1,("1")*1,("")) ->  | FW29: =SUMPRODUCT(( MOD(D30,2)>0)*1) -> 0 | FX29: =SUMPRODUCT(( MOD(E30,2)>0)*1) -> 0 | FY29: =SUMPRODUCT(( MOD(F30,2)>0)*1) -> 0 | FZ29: =SUMPRODUCT(( MOD(G30,2)>0)*1) -> 0 | GA29: =SUMPRODUCT(( MOD(H30,2)>0)*1) -> 0 | GE29: 0 | GF29: 0 | GG29: 0 | GH29: 0 | GL29: 0 | GM29: 0 | GN29: 0 | GR29: 0 | GS29: 0 | GW29: 0 | HA29: 1 | JA29: =COUNTIF(D30,$JA$1)+(COUNTIF(E30,$JA$1)+(COUNTIF(F30,$JA$1)+(COUNTIF(G30,$JA$1)+(COUNTIF(H30,$JA$1))))) -> 0 | JB29: =COUNTIF(D30,$JB$1)+(COUNTIF(E30,$JB$1)+(COUNTIF(F30,$JB$1)+(COUNTIF(G30,$JB$1)+(COUNTIF(H30,$JB$1))))) -> 0 | JC29: =COUNTIF(D30,$JC$1)+(COUNTIF(E30,$JC$1)+(COUNTIF(F30,$JC$1)+(COUNTIF(G30,$JC$1)+(COUNTIF(H30,$JC$1))))) -> 0 | JD29: =COUNTIF(D30,$JD$1)+(COUNTIF(E30,$JD$1)+(COUNTIF(F30,$JD$1)+(COUNTIF(G30,$JD$1)+(COUNTIF(H30,$JD$1))))) -> 1 | JE29: =COUNTIF(D30,$JE$1)+(COUNTIF(E30,$JE$1)+(COUNTIF(F30,$JE$1)+(COUNTIF(G30,$JE$1)+(COUNTIF(H30,$JE$1))))) -> 0 | JF29: =COUNTIF(D30,$JF$1)+(COUNTIF(E30,$JF$1)+(COUNTIF(F30,$JF$1)+(COUNTIF(G30,$JF$1)+(COUNTIF(H30,$JF$1))))) -> 0 | JG29: =COUNTIF(D30,$JG$1)+(COUNTIF(E30,$JG$1)+(COUNTIF(F30,$JG$1)+(COUNTIF(G30,$JG$1)+(COUNTIF(H30,$JG$1))))) -> 0 | JH29: =COUNTIF(D30,$JH$1)+(COUNTIF(E30,$JH$1)+(COUNTIF(F30,$JH$1)+(COUNTIF(G30,$JH$1)+(COUNTIF(H30,$JH$1))))) -> 0 | JI29: =COUNTIF(D30,$JI$1)+(COUNTIF(E30,$JI$1)+(COUNTIF(F30,$JI$1)+(COUNTIF(G30,$JI$1)+(COUNTIF(H30,$JI$1))))) -> 0 | JJ29: =COUNTIF(D30,$JJ$1)+(COUNTIF(E30,$JJ$1)+(COUNTIF(F30,$JJ$1)+(COUNTIF(G30,$JJ$1)+(COUNTIF(H30,$JJ$1))))) -> 0 | JK29: =COUNTIF(D30,$JK$1)+(COUNTIF(E30,$JK$1)+(COUNTIF(F30,$JK$1)+(COUNTIF(G30,$JK$1)+(COUNTIF(H30,$JK$1))))) -> 0 | JL29: =COUNTIF(D30,$JL$1)+(COUNTIF(E30,$JL$1)+(COUNTIF(F30,$JL$1)+(COUNTIF(G30,$JL$1)+(COUNTIF(H30,$JL$1))))) -> 0 | JM29: =COUNTIF(D30,$JM$1)+(COUNTIF(E30,$JM$1)+(COUNTIF(F30,$JM$1)+(COUNTIF(G30,$JM$1)+(COUNTIF(H30,$JM$1))))) -> 0 | JN29: =COUNTIF(D30,$JN$1)+(COUNTIF(E30,$JN$1)+(COUNTIF(F30,$JN$1)+(COUNTIF(G30,$JN$1)+(COUNTIF(H30,$JN$1))))) -> 0 | JO29: =COUNTIF(D30,$JO$1)+(COUNTIF(E30,$JO$1)+(COUNTIF(F30,$JO$1)+(COUNTIF(G30,$JO$1)+(COUNTIF(H30,$JO$1))))) -> 0 | JP29: =COUNTIF(D30,$JP$1)+(COUNTIF(E30,$JP$1)+(COUNTIF(F30,$JP$1)+(COUNTIF(G30,$JP$1)+(COUNTIF(H30,$JP$1))))) -> 0 | JQ29: =COUNTIF(D30,$JQ$1)+(COUNTIF(E30,$JQ$1)+(COUNTIF(F30,$JQ$1)+(COUNTIF(G30,$JQ$1)+(COUNTIF(H30,$JQ$1))))) -> 0 | JR29: =COUNTIF(D30,$JR$1)+(COUNTIF(E30,$JR$1)+(COUNTIF(F30,$JR$1)+(COUNTIF(G30,$JR$1)+(COUNTIF(H30,$JR$1))))) -> 0 | JS29: =COUNTIF(D30,$JS$1)+(COUNTIF(E30,$JS$1)+(COUNTIF(F30,$JS$1)+(COUNTIF(G30,$JS$1)+(COUNTIF(H30,$JS$1))))) -> 0 | JT29: =COUNTIF(D30,$JT$1)+(COUNTIF(E30,$JT$1)+(COUNTIF(F30,$JT$1)+(COUNTIF(G30,$JT$1)+(COUNTIF(H30,$JT$1))))) -> 0 | JU29: =COUNTIF(D30,$JU$1)+(COUNTIF(E30,$JU$1)+(COUNTIF(F30,$JU$1)+(COUNTIF(G30,$JU$1)+(COUNTIF(H30,$JU$1))))) -> 0 | JV29: =COUNTIF(D30,$JV$1)+(COUNTIF(E30,$JV$1)+(COUNTIF(F30,$JV$1)+(COUNTIF(G30,$JV$1)+(COUNTIF(H30,$JV$1))))) -> 1 | JW29: =COUNTIF(D30,$JW$1)+(COUNTIF(E30,$JW$1)+(COUNTIF(F30,$JW$1)+(COUNTIF(G30,$JW$1)+(COUNTIF(H30,$JW$1))))) -> 0 | JX29: =COUNTIF(D30,$JX$1)+(COUNTIF(E30,$JX$1)+(COUNTIF(F30,$JX$1)+(COUNTIF(G30,$JX$1)+(COUNTIF(H30,$JX$1))))) -> 0 | JY29: =COUNTIF(D30,$JY$1)+(COUNTIF(E30,$JY$1)+(COUNTIF(F30,$JY$1)+(COUNTIF(G30,$JY$1)+(COUNTIF(H30,$JY$1))))) -> 0 | JZ29: =COUNTIF(D30,$JZ$1)+(COUNTIF(E30,$JZ$1)+(COUNTIF(F30,$JZ$1)+(COUNTIF(G30,$JZ$1)+(COUNTIF(H30,$JZ$1))))) -> 0 | KA29: =COUNTIF(D30,$KA$1)+(COUNTIF(E30,$KA$1)+(COUNTIF(F30,$KA$1)+(COUNTIF(G30,$KA$1)+(COUNTIF(H30,$KA$1))))) -> 0 | KB29: =COUNTIF(D30,$KB$1)+(COUNTIF(E30,$KB$1)+(COUNTIF(F30,$KB$1)+(COUNTIF(G30,$KB$1)+(COUNTIF(H30,$KB$1))))) -> 0 | KC29: =COUNTIF(D30,$KC$1)+(COUNTIF(E30,$KC$1)+(COUNTIF(F30,$KC$1)+(COUNTIF(G30,$KC$1)+(COUNTIF(H30,$KC$1))))) -> 0 | KD29: =COUNTIF(D30,$KD$1)+(COUNTIF(E30,$KD$1)+(COUNTIF(F30,$KD$1)+(COUNTIF(G30,$KD$1)+(COUNTIF(H30,$KD$1))))) -> 0 | KE29: =COUNTIF(D30,$KE$1)+(COUNTIF(E30,$KE$1)+(COUNTIF(F30,$KE$1)+(COUNTIF(G30,$KE$1)+(COUNTIF(H30,$KE$1))))) -> 0 | KF29: =COUNTIF(D30,$KF$1)+(COUNTIF(E30,$KF$1)+(COUNTIF(F30,$KF$1)+(COUNTIF(G30,$KF$1)+(COUNTIF(H30,$KF$1))))) -> 0 | KG29: =COUNTIF(D30,$KG$1)+(COUNTIF(E30,$KG$1)+(COUNTIF(F30,$KG$1)+(COUNTIF(G30,$KG$1)+(COUNTIF(H30,$KG$1))))) -> 0 | KH29: =COUNTIF(D30,$KH$1)+(COUNTIF(E30,$KH$1)+(COUNTIF(F30,$KH$1)+(COUNTIF(G30,$KH$1)+(COUNTIF(H30,$KH$1))))) -> 1 | KI29: =COUNTIF(D30,$KI$1)+(COUNTIF(E30,$KI$1)+(COUNTIF(F30,$KI$1)+(COUNTIF(G30,$KI$1)+(COUNTIF(H30,$KI$1))))) -> 0 | KJ29: =COUNTIF(D30,$KJ$1)+(COUNTIF(E30,$KJ$1)+(COUNTIF(F30,$KJ$1)+(COUNTIF(G30,$KJ$1)+(COUNTIF(H30,$KJ$1))))) -> 0 | KK29: =COUNTIF(D30,$KK$1)+(COUNTIF(E30,$KK$1)+(COUNTIF(F30,$KK$1)+(COUNTIF(G30,$KK$1)+(COUNTIF(H30,$KK$1))))) -> 0 | KL29: =COUNTIF(D30,$KL$1)+(COUNTIF(E30,$KL$1)+(COUNTIF(F30,$KL$1)+(COUNTIF(G30,$KL$1)+(COUNTIF(H30,$KL$1))))) -> 0 | KM29: =COUNTIF(D30,$KM$1)+(COUNTIF(E30,$KM$1)+(COUNTIF(F30,$KM$1)+(COUNTIF(G30,$KM$1)+(COUNTIF(H30,$KM$1))))) -> 0 | KN29: =COUNTIF(D30,$KN$1)+(COUNTIF(E30,$KN$1)+(COUNTIF(F30,$KN$1)+(COUNTIF(G30,$KN$1)+(COUNTIF(H30,$KN$1))))) -> 0 | KO29: =COUNTIF(D30,$KO$1)+(COUNTIF(E30,$KO$1)+(COUNTIF(F30,$KO$1)+(COUNTIF(G30,$KO$1)+(COUNTIF(H30,$KO$1))))) -> 0 | KP29: =COUNTIF(D30,$KP$1)+(COUNTIF(E30,$KP$1)+(COUNTIF(F30,$KP$1)+(COUNTIF(G30,$KP$1)+(COUNTIF(H30,$KP$1))))) -> 1 | KQ29: =COUNTIF(D30,$KQ$1)+(COUNTIF(E30,$KQ$1)+(COUNTIF(F30,$KQ$1)+(COUNTIF(G30,$KQ$1)+(COUNTIF(H30,$KQ$1))))) -> 0 | KR29: =COUNTIF(D30,$KR$1)+(COUNTIF(E30,$KR$1)+(COUNTIF(F30,$KR$1)+(COUNTIF(G30,$KR$1)+(COUNTIF(H30,$KR$1))))) -> 0 | KS29: =COUNTIF(D30,$KS$1)+(COUNTIF(E30,$KS$1)+(COUNTIF(F30,$KS$1)+(COUNTIF(G30,$KS$1)+(COUNTIF(H30,$KS$1))))) -> 0 | KT29: =COUNTIF(D30,$KT$1)+(COUNTIF(E30,$KT$1)+(COUNTIF(F30,$KT$1)+(COUNTIF(G30,$KT$1)+(COUNTIF(H30,$KT$1))))) -> 0 | KU29: =COUNTIF(D30,$KU$1)+(COUNTIF(E30,$KU$1)+(COUNTIF(F30,$KU$1)+(COUNTIF(G30,$KU$1)+(COUNTIF(H30,$KU$1))))) -> 0 | KV29: =COUNTIF(D30,$KV$1)+(COUNTIF(E30,$KV$1)+(COUNTIF(F30,$KV$1)+(COUNTIF(G30,$KV$1)+(COUNTIF(H30,$KV$1))))) -> 1 | KW29: =COUNTIF(D30,$KW$1)+(COUNTIF(E30,$KW$1)+(COUNTIF(F30,$KW$1)+(COUNTIF(G30,$KW$1)+(COUNTIF(H30,$KW$1))))) -> 0
A30: 382 | B30: LUNDI | C30: 2022-08-15 | D30: 4 | E30: 22 | F30: 34 | G30: 42 | H30: 48 | I30: 3 | J30: 8 | K30: i | L30: =COUNTIF(M29:P29,">0") -> 4 | M30: =_xlfn.LET(_xlpm.comp,RIGHT(D31:H31,1),_xlfn._xlws.FILTER(D31:H31,_xlfn.XMATCH(_xlpm.comp,_xlpm.comp)<>_xlfn.XMATCH(_xlpm.comp,_xlpm.comp,,-1))) ->  | Q30: =COUNTIF(D30:H30,D31:H31) -> 0 | R30: 0 | S30: 0 | T30: 0 | U30: 0 | V30: =IF(AND(W30>69,W30<164,OR(X30={1;2;3;4})),1,0) -> 1 | W30: =D31+E31+F31+G31+H31 -> 81 | X30: =SUMPRODUCT(( MOD(D31:H31,2)>0)*1) -> 3 | Y30: 0 | Z30: 0 | AA30: 0 | AB30: 1 | AC30: 1 | AD30: 1 | AE30: 1 | AF30: 0 | AG30: 1 | AH30: 0 | AI30: =COUNTIF(($D31:$H31),AI$1) -> 0 | AJ30: =COUNTIF(($D31:$H31),AJ$1) -> 0 | AK30: =COUNTIF(($D31:$H31),AK$1) -> 0 | AL30: =COUNTIF(($D31:$H31),AL$1) -> 1 | AM30: =COUNTIF(($D31:$H31),AM$1) -> 0 | AN30: =COUNTIF(($D31:$H31),AN$1) -> 1 | AO30: =COUNTIF(($D31:$H31),AO$1) -> 1 | AP30: =COUNTIF(($D31:$H31),AP$1) -> 0 | AQ30: =COUNTIF(($D31:$H31),AQ$1) -> 0 | AR30: =COUNTIF(($D31:$H31),AR$1) -> 0 | AS30: =COUNTIF(($D31:$H31),AS$1) -> 0 | AT30: =COUNTIF(($D31:$H31),AT$1) -> 0 | AU30: =COUNTIF(($D31:$H31),AU$1) -> 0 | AV30: =COUNTIF(($D31:$H31),AV$1) -> 0 | AW30: =COUNTIF(($D31:$H31),AW$1) -> 0 | AX30: =COUNTIF(($D31:$H31),AX$1) -> 0 | AY30: =COUNTIF(($D31:$H31),AY$1) -> 0 | AZ30: =COUNTIF(($D31:$H31),AZ$1) -> 0 | BA30: =COUNTIF(($D31:$H31),BA$1) -> 1 | BB30: =COUNTIF(($D31:$H31),BB$1) -> 0 | BC30: =COUNTIF(($D31:$H31),BC$1) -> 0 | BD30: =COUNTIF(($D31:$H31),BD$1) -> 0 | BE30: =COUNTIF(($D31:$H31),BE$1) -> 0 | BF30: =COUNTIF(($D31:$H31),BF$1) -> 0 | BG30: =COUNTIF(($D31:$H31),BG$1) -> 0 | BH30: =COUNTIF(($D31:$H31),BH$1) -> 0 | BI30: =COUNTIF((D31:H31),BI$1) -> 0 | BJ30: =COUNTIF((D31:H31),BJ$1) -> 0 | BK30: =COUNTIF((D31:H31),BK$1) -> 0 | BL30: =COUNTIF((D31:H31),BL$1) -> 0 | BM30: =COUNTIF((D31:H31),BM$1) -> 0 | BN30: =COUNTIF((D31:H31),BN$1) -> 0 | BO30: =COUNTIF((D31:H31),BO$1) -> 0 | BP30: =COUNTIF((D31:H31),BP$1) -> 0 | BQ30: =COUNTIF((D31:H31),BQ$1) -> 0 | BR30: =COUNTIF((D31:H31),BR$1) -> 0 | BS30: =COUNTIF((D31:H31),BS$1) -> 0 | BT30: =COUNTIF((D31:H31),BT$1) -> 0 | BU30: =COUNTIF((D31:H31),BU$1) -> 0 | BV30: =COUNTIF(D31:H31,"<10") -> 1 | BW30: =(COUNTIF(D31:H31,"<20")-BV30) -> 3 | BX30: =((COUNTIF(D31:H31,"<30")))-(BV30+BW30) -> 1 | BY30: =((COUNTIF(D31:H31,"<40")))-(BW30+BX30+BV30) -> 0 | BZ30: =((COUNTIF(D31:H31,"<50")))-(BX30+BY30+BW30+BV30) -> 0 | CB30: 1 | CC30: 1 | CD30: 1 | CE30: 0 | CF30: 0 | CG30: 0 | CH30: 0 | CI30: 0 | CJ30: 0 | CK30: 0 | CL30: 0 | CM30: 0 | CN30: 0 | CO30: 0 | CP30: 0 | CQ30: 1 | CR30: 0 | CS30: 0 | CT30: 0 | CU30: 0 | CV30: 0 | CW30: 0 | CX30: 0 | CY30: 0 | CZ30: 0 | DA30: 0 | DB30: 0 | DC30: 0 | DD30: 0 | DE30: 0 | DF30: 0 | DG30: 0 | DH30: 0 | DJ30: 0 | DK30: 0 | DL30: =COUNTIF((I31),$DL$1) -> 0 | DM30: =COUNTIF((I31),$DM$1) -> 0 | DN30: =COUNTIF((I31),$DN$1) -> 1 | DO30: =COUNTIF((I31),$DO$1) -> 0 | DP30: =COUNTIF((I31),$DP$1) -> 0 | DQ30: =COUNTIF((I31),$DQ$1) -> 0 | DR30: =COUNTIF((I31),$DR$1) -> 0 | DS30: =COUNTIF((I31),$DS$1) -> 0 | DT30: =COUNTIF((I31),$DT$1) -> 0 | DU30: =COUNTIF((I31),$DU$1) -> 0 | DW30: 1 | DX30: 1 | DY30: 1 | DZ30: 1 | EA30: 1 | EB30: 1 | EC30: 1 | ED30: 1 | EE30: 1 | EF30: 1 | EI30: 1 | EJ30: 1 | EK30: 1 | EL30: 1 | EM30: 1 | EN30: 1 | EO30: 1 | EP30: 1 | EQ30: 1 | ER30: 1 | ES30: =COUNTIF(I30,I31) -> 1 | ET30: =SUMPRODUCT(( MOD(I31,2)>0)*1) -> 1 | EU30: =IF((E31=D31+1)+(F31=E31+1)+(G31=F31+1)+(H31=G31+1),("1")*1,("")) -> 1 | EW30: =H31-D31 -> 24 | EX30: =(MID(D31,1,2)*1) -> 5 | EY30: =(MID(E31,2,1)*1) -> 4 | EZ30: =(MID(F31,2,1)*1) -> 6 | FA30: =(MID(G31,2,1)*1) -> 7 | FB30: =(MID(H31,2,1)*1) -> 9 | FC30: 0 | FD30: 1 | FE30: =I31 -> 3 | FF30: 0 | FG30: 0 | FH30: 0 | FI30: 0 | FJ30: 0 | FK30: =IF(E31=D31+1,("1")*1,("")) ->  | FL30: =IF(F31=E31+1,("1")*1,("")) ->  | FM30: =IF(G31=F31+1,("1")*1,("")) -> 1 | FN30: =IF(H31=G31+1,("1")*1,("")) ->  | FW30: =SUMPRODUCT(( MOD(D31,2)>0)*1) -> 1 | FX30: =SUMPRODUCT(( MOD(E31,2)>0)*1) -> 0 | FY30: =SUMPRODUCT(( MOD(F31,2)>0)*1) -> 0 | FZ30: =SUMPRODUCT(( MOD(G31,2)>0)*1) -> 1 | GA30: =SUMPRODUCT(( MOD(H31,2)>0)*1) -> 1 | GE30: 0 | GF30: 0 | GG30: 0 | GH30: 1 | GL30: 0 | GM30: 0 | GN30: 0 | GR30: 1 | GS30: 0 | GW30: 1 | HA30: 0 | JA30: =COUNTIF(D31,$JA$1)+(COUNTIF(E31,$JA$1)+(COUNTIF(F31,$JA$1)+(COUNTIF(G31,$JA$1)+(COUNTIF(H31,$JA$1))))) -> 0 | JB30: =COUNTIF(D31,$JB$1)+(COUNTIF(E31,$JB$1)+(COUNTIF(F31,$JB$1)+(COUNTIF(G31,$JB$1)+(COUNTIF(H31,$JB$1))))) -> 0 | JC30: =COUNTIF(D31,$JC$1)+(COUNTIF(E31,$JC$1)+(COUNTIF(F31,$JC$1)+(COUNTIF(G31,$JC$1)+(COUNTIF(H31,$JC$1))))) -> 0 | JD30: =COUNTIF(D31,$JD$1)+(COUNTIF(E31,$JD$1)+(COUNTIF(F31,$JD$1)+(COUNTIF(G31,$JD$1)+(COUNTIF(H31,$JD$1))))) -> 0 | JE30: =COUNTIF(D31,$JE$1)+(COUNTIF(E31,$JE$1)+(COUNTIF(F31,$JE$1)+(COUNTIF(G31,$JE$1)+(COUNTIF(H31,$JE$1))))) -> 1 | JF30: =COUNTIF(D31,$JF$1)+(COUNTIF(E31,$JF$1)+(COUNTIF(F31,$JF$1)+(COUNTIF(G31,$JF$1)+(COUNTIF(H31,$JF$1))))) -> 0 | JG30: =COUNTIF(D31,$JG$1)+(COUNTIF(E31,$JG$1)+(COUNTIF(F31,$JG$1)+(COUNTIF(G31,$JG$1)+(COUNTIF(H31,$JG$1))))) -> 0 | JH30: =COUNTIF(D31,$JH$1)+(COUNTIF(E31,$JH$1)+(COUNTIF(F31,$JH$1)+(COUNTIF(G31,$JH$1)+(COUNTIF(H31,$JH$1))))) -> 0 | JI30: =COUNTIF(D31,$JI$1)+(COUNTIF(E31,$JI$1)+(COUNTIF(F31,$JI$1)+(COUNTIF(G31,$JI$1)+(COUNTIF(H31,$JI$1))))) -> 0 | JJ30: =COUNTIF(D31,$JJ$1)+(COUNTIF(E31,$JJ$1)+(COUNTIF(F31,$JJ$1)+(COUNTIF(G31,$JJ$1)+(COUNTIF(H31,$JJ$1))))) -> 0 | JK30: =COUNTIF(D31,$JK$1)+(COUNTIF(E31,$JK$1)+(COUNTIF(F31,$JK$1)+(COUNTIF(G31,$JK$1)+(COUNTIF(H31,$JK$1))))) -> 0 | JL30: =COUNTIF(D31,$JL$1)+(COUNTIF(E31,$JL$1)+(COUNTIF(F31,$JL$1)+(COUNTIF(G31,$JL$1)+(COUNTIF(H31,$JL$1))))) -> 0 | JM30: =COUNTIF(D31,$JM$1)+(COUNTIF(E31,$JM$1)+(COUNTIF(F31,$JM$1)+(COUNTIF(G31,$JM$1)+(COUNTIF(H31,$JM$1))))) -> 0 | JN30: =COUNTIF(D31,$JN$1)+(COUNTIF(E31,$JN$1)+(COUNTIF(F31,$JN$1)+(COUNTIF(G31,$JN$1)+(COUNTIF(H31,$JN$1))))) -> 1 | JO30: =COUNTIF(D31,$JO$1)+(COUNTIF(E31,$JO$1)+(COUNTIF(F31,$JO$1)+(COUNTIF(G31,$JO$1)+(COUNTIF(H31,$JO$1))))) -> 0 | JP30: =COUNTIF(D31,$JP$1)+(COUNTIF(E31,$JP$1)+(COUNTIF(F31,$JP$1)+(COUNTIF(G31,$JP$1)+(COUNTIF(H31,$JP$1))))) -> 1 | JQ30: =COUNTIF(D31,$JQ$1)+(COUNTIF(E31,$JQ$1)+(COUNTIF(F31,$JQ$1)+(COUNTIF(G31,$JQ$1)+(COUNTIF(H31,$JQ$1))))) -> 1 | JR30: =COUNTIF(D31,$JR$1)+(COUNTIF(E31,$JR$1)+(COUNTIF(F31,$JR$1)+(COUNTIF(G31,$JR$1)+(COUNTIF(H31,$JR$1))))) -> 0 | JS30: =COUNTIF(D31,$JS$1)+(COUNTIF(E31,$JS$1)+(COUNTIF(F31,$JS$1)+(COUNTIF(G31,$JS$1)+(COUNTIF(H31,$JS$1))))) -> 0 | JT30: =COUNTIF(D31,$JT$1)+(COUNTIF(E31,$JT$1)+(COUNTIF(F31,$JT$1)+(COUNTIF(G31,$JT$1)+(COUNTIF(H31,$JT$1))))) -> 0 | JU30: =COUNTIF(D31,$JU$1)+(COUNTIF(E31,$JU$1)+(COUNTIF(F31,$JU$1)+(COUNTIF(G31,$JU$1)+(COUNTIF(H31,$JU$1))))) -> 0 | JV30: =COUNTIF(D31,$JV$1)+(COUNTIF(E31,$JV$1)+(COUNTIF(F31,$JV$1)+(COUNTIF(G31,$JV$1)+(COUNTIF(H31,$JV$1))))) -> 0 | JW30: =COUNTIF(D31,$JW$1)+(COUNTIF(E31,$JW$1)+(COUNTIF(F31,$JW$1)+(COUNTIF(G31,$JW$1)+(COUNTIF(H31,$JW$1))))) -> 0 | JX30: =COUNTIF(D31,$JX$1)+(COUNTIF(E31,$JX$1)+(COUNTIF(F31,$JX$1)+(COUNTIF(G31,$JX$1)+(COUNTIF(H31,$JX$1))))) -> 0 | JY30: =COUNTIF(D31,$JY$1)+(COUNTIF(E31,$JY$1)+(COUNTIF(F31,$JY$1)+(COUNTIF(G31,$JY$1)+(COUNTIF(H31,$JY$1))))) -> 0 | JZ30: =COUNTIF(D31,$JZ$1)+(COUNTIF(E31,$JZ$1)+(COUNTIF(F31,$JZ$1)+(COUNTIF(G31,$JZ$1)+(COUNTIF(H31,$JZ$1))))) -> 0 | KA30: =COUNTIF(D31,$KA$1)+(COUNTIF(E31,$KA$1)+(COUNTIF(F31,$KA$1)+(COUNTIF(G31,$KA$1)+(COUNTIF(H31,$KA$1))))) -> 0 | KB30: =COUNTIF(D31,$KB$1)+(COUNTIF(E31,$KB$1)+(COUNTIF(F31,$KB$1)+(COUNTIF(G31,$KB$1)+(COUNTIF(H31,$KB$1))))) -> 0 | KC30: =COUNTIF(D31,$KC$1)+(COUNTIF(E31,$KC$1)+(COUNTIF(F31,$KC$1)+(COUNTIF(G31,$KC$1)+(COUNTIF(H31,$KC$1))))) -> 1 | KD30: =COUNTIF(D31,$KD$1)+(COUNTIF(E31,$KD$1)+(COUNTIF(F31,$KD$1)+(COUNTIF(G31,$KD$1)+(COUNTIF(H31,$KD$1))))) -> 0 | KE30: =COUNTIF(D31,$KE$1)+(COUNTIF(E31,$KE$1)+(COUNTIF(F31,$KE$1)+(COUNTIF(G31,$KE$1)+(COUNTIF(H31,$KE$1))))) -> 0 | KF30: =COUNTIF(D31,$KF$1)+(COUNTIF(E31,$KF$1)+(COUNTIF(F31,$KF$1)+(COUNTIF(G31,$KF$1)+(COUNTIF(H31,$KF$1))))) -> 0 | KG30: =COUNTIF(D31,$KG$1)+(COUNTIF(E31,$KG$1)+(COUNTIF(F31,$KG$1)+(COUNTIF(G31,$KG$1)+(COUNTIF(H31,$KG$1))))) -> 0 | KH30: =COUNTIF(D31,$KH$1)+(COUNTIF(E31,$KH$1)+(COUNTIF(F31,$KH$1)+(COUNTIF(G31,$KH$1)+(COUNTIF(H31,$KH$1))))) -> 0 | KI30: =COUNTIF(D31,$KI$1)+(COUNTIF(E31,$KI$1)+(COUNTIF(F31,$KI$1)+(COUNTIF(G31,$KI$1)+(COUNTIF(H31,$KI$1))))) -> 0 | KJ30: =COUNTIF(D31,$KJ$1)+(COUNTIF(E31,$KJ$1)+(COUNTIF(F31,$KJ$1)+(COUNTIF(G31,$KJ$1)+(COUNTIF(H31,$KJ$1))))) -> 0 | KK30: =COUNTIF(D31,$KK$1)+(COUNTIF(E31,$KK$1)+(COUNTIF(F31,$KK$1)+(COUNTIF(G31,$KK$1)+(COUNTIF(H31,$KK$1))))) -> 0 | KL30: =COUNTIF(D31,$KL$1)+(COUNTIF(E31,$KL$1)+(COUNTIF(F31,$KL$1)+(COUNTIF(G31,$KL$1)+(COUNTIF(H31,$KL$1))))) -> 0 | KM30: =COUNTIF(D31,$KM$1)+(COUNTIF(E31,$KM$1)+(COUNTIF(F31,$KM$1)+(COUNTIF(G31,$KM$1)+(COUNTIF(H31,$KM$1))))) -> 0 | KN30: =COUNTIF(D31,$KN$1)+(COUNTIF(E31,$KN$1)+(COUNTIF(F31,$KN$1)+(COUNTIF(G31,$KN$1)+(COUNTIF(H31,$KN$1))))) -> 0 | KO30: =COUNTIF(D31,$KO$1)+(COUNTIF(E31,$KO$1)+(COUNTIF(F31,$KO$1)+(COUNTIF(G31,$KO$1)+(COUNTIF(H31,$KO$1))))) -> 0 | KP30: =COUNTIF(D31,$KP$1)+(COUNTIF(E31,$KP$1)+(COUNTIF(F31,$KP$1)+(COUNTIF(G31,$KP$1)+(COUNTIF(H31,$KP$1))))) -> 0 | KQ30: =COUNTIF(D31,$KQ$1)+(COUNTIF(E31,$KQ$1)+(COUNTIF(F31,$KQ$1)+(COUNTIF(G31,$KQ$1)+(COUNTIF(H31,$KQ$1))))) -> 0 | KR30: =COUNTIF(D31,$KR$1)+(COUNTIF(E31,$KR$1)+(COUNTIF(F31,$KR$1)+(COUNTIF(G31,$KR$1)+(COUNTIF(H31,$KR$1))))) -> 0 | KS30: =COUNTIF(D31,$KS$1)+(COUNTIF(E31,$KS$1)+(COUNTIF(F31,$KS$1)+(COUNTIF(G31,$KS$1)+(COUNTIF(H31,$KS$1))))) -> 0 | KT30: =COUNTIF(D31,$KT$1)+(COUNTIF(E31,$KT$1)+(COUNTIF(F31,$KT$1)+(COUNTIF(G31,$KT$1)+(COUNTIF(H31,$KT$1))))) -> 0 | KU30: =COUNTIF(D31,$KU$1)+(COUNTIF(E31,$KU$1)+(COUNTIF(F31,$KU$1)+(COUNTIF(G31,$KU$1)+(COUNTIF(H31,$KU$1))))) -> 0 | KV30: =COUNTIF(D31,$KV$1)+(COUNTIF(E31,$KV$1)+(COUNTIF(F31,$KV$1)+(COUNTIF(G31,$KV$1)+(COUNTIF(H31,$KV$1))))) -> 0 | KW30: =COUNTIF(D31,$KW$1)+(COUNTIF(E31,$KW$1)+(COUNTIF(F31,$KW$1)+(COUNTIF(G31,$KW$1)+(COUNTIF(H31,$KW$1))))) -> 0
A31: 381 | B31: MERCREDI | C31: 2022-08-17 | D31: 5 | E31: 14 | F31: 16 | G31: 17 | H31: 29 | I31: 3 | J31: 9 | K31: j | L31: =COUNTIF(M30:P30,">0") -> 0 | M31: =_xlfn.LET(_xlpm.comp,RIGHT(D32:H32,1),_xlfn._xlws.FILTER(D32:H32,_xlfn.XMATCH(_xlpm.comp,_xlpm.comp)<>_xlfn.XMATCH(_xlpm.comp,_xlpm.comp,,-1))) -> 1 | N31: 21 | Q31: =COUNTIF(D31:H31,D32:H32) -> 0 | R31: 1 | S31: 0 | T31: 0 | U31: 0 | V31: =IF(AND(W31>69,W31<164,OR(X31={1;2;3;4})),1,0) -> 1 | W31: =D32+E32+F32+G32+H32 -> 123 | X31: =SUMPRODUCT(( MOD(D32:H32,2)>0)*1) -> 3 | Y31: 2 | Z31: 0 | AA31: 0 | AB31: 0 | AC31: 0 | AD31: 1 | AE31: 1 | AF31: 1 | AG31: 0 | AH31: 0 | AI31: =COUNTIF(($D32:$H32),AI$1) -> 0 | AJ31: =COUNTIF(($D32:$H32),AJ$1) -> 0 | AK31: =COUNTIF(($D32:$H32),AK$1) -> 0 | AL31: =COUNTIF(($D32:$H32),AL$1) -> 0 | AM31: =COUNTIF(($D32:$H32),AM$1) -> 0 | AN31: =COUNTIF(($D32:$H32),AN$1) -> 0 | AO31: =COUNTIF(($D32:$H32),AO$1) -> 1 | AP31: =COUNTIF(($D32:$H32),AP$1) -> 0 | AQ31: =COUNTIF(($D32:$H32),AQ$1) -> 0 | AR31: =COUNTIF(($D32:$H32),AR$1) -> 0 | AS31: =COUNTIF(($D32:$H32),AS$1) -> 1 | AT31: =COUNTIF(($D32:$H32),AT$1) -> 0 | AU31: =COUNTIF(($D32:$H32),AU$1) -> 0 | AV31: =COUNTIF(($D32:$H32),AV$1) -> 0 | AW31: =COUNTIF(($D32:$H32),AW$1) -> 0 | AX31: =COUNTIF(($D32:$H32),AX$1) -> 0 | AY31: =COUNTIF(($D32:$H32),AY$1) -> 0 | AZ31: =COUNTIF(($D32:$H32),AZ$1) -> 0 | BA31: =COUNTIF(($D32:$H32),BA$1) -> 0 | BB31: =COUNTIF(($D32:$H32),BB$1) -> 0 | BC31: =COUNTIF(($D32:$H32),BC$1) -> 0 | BD31: =COUNTIF(($D32:$H32),BD$1) -> 0 | BE31: =COUNTIF(($D32:$H32),BE$1) -> 0 | BF31: =COUNTIF(($D32:$H32),BF$1) -> 0 | BG31: =COUNTIF(($D32:$H32),BG$1) -> 0 | BH31: =COUNTIF(($D32:$H32),BH$1) -> 0 | BI31: =COUNTIF((D32:H32),BI$1) -> 0 | BJ31: =COUNTIF((D32:H32),BJ$1) -> 1 | BK31: =COUNTIF((D32:H32),BK$1) -> 0 | BL31: =COUNTIF((D32:H32),BL$1) -> 0 | BM31: =COUNTIF((D32:H32),BM$1) -> 0 | BN31: =COUNTIF((D32:H32),BN$1) -> 0 | BO31: =COUNTIF((D32:H32),BO$1) -> 0 | BP31: =COUNTIF((D32:H32),BP$1) -> 0 | BQ31: =COUNTIF((D32:H32),BQ$1) -> 0 | BR31: =COUNTIF((D32:H32),BR$1) -> 1 | BS31: =COUNTIF((D32:H32),BS$1) -> 0 | BT31: =COUNTIF((D32:H32),BT$1) -> 0 | BU31: =COUNTIF((D32:H32),BU$1) -> 0 | BV31: =COUNTIF(D32:H32,"<10") -> 1 | BW31: =(COUNTIF(D32:H32,"<20")-BV31) -> 1 | BX31: =((COUNTIF(D32:H32,"<30")))-(BV31+BW31) -> 1 | BY31: =((COUNTIF(D32:H32,"<40")))-(BW31+BX31+BV31) -> 1 | BZ31: =((COUNTIF(D32:H32,"<50")))-(BX31+BY31+BW31+BV31) -> 1 | CA31: 1 | CB31: 1 | CC31: 1 | CD31: 1 | CE31: 1 | CF31: 1 | CG31: 1 | CH31: 0 | CI31: 0 | CJ31: 0 | CK31: 0 | CL31: 0 | CM31: 0 | CN31: 0 | CO31: 0 | CP31: 0 | CQ31: 0 | CR31: 0 | CS31: 0 | CT31: 0 | CU31: 0 | CV31: 0 | CW31: 0 | CX31: 0 | CY31: 0 | CZ31: 0 | DA31: 0 | DB31: 0 | DC31: 0 | DD31: 0 | DE31: 0 | DF31: 0 | DG31: 0 | DH31: 0 | DJ31: 0 | DK31: 0 | DL31: =COUNTIF((I32),$DL$1) -> 0 | DM31: =COUNTIF((I32),$DM$1) -> 1 | DN31: =COUNTIF((I32),$DN$1) -> 0 | DO31: =COUNTIF((I32),$DO$1) -> 0 | DP31: =COUNTIF((I32),$DP$1) -> 0 | DQ31: =COUNTIF((I32),$DQ$1) -> 0 | DR31: =COUNTIF((I32),$DR$1) -> 0 | DS31: =COUNTIF((I32),$DS$1) -> 0 | DT31: =COUNTIF((I32),$DT$1) -> 0 | DU31: =COUNTIF((I32),$DU$1) -> 0 | DW31: 1 | DX31: 0 | DY31: 0 | DZ31: 1 | EA31: 1 | EB31: 1 | EC31: 1 | ED31: 1 | EE31: 1 | EF31: 1 | EI31: 1 | EJ31: 0 | EK31: 0 | EL31: 1 | EM31: 1 | EN31: 1 | EO31: 1 | EP31: 1 | EQ31: 1 | ER31: 1 | ES31: =COUNTIF(I31,I32) -> 0 | ET31: =SUMPRODUCT(( MOD(I32,2)>0)*1) -> 0 | EU31: =IF((E32=D32+1)+(F32=E32+1)+(G32=F32+1)+(H32=G32+1),("1")*1,("")) ->  | EV31: 1 | EW31: =H32-D32 -> 45 | EX31: =(MID(D32,1,2)*1) -> 1 | EY31: =(MID(E32,2,1)*1) -> 7 | EZ31: =(MID(F32,2,1)*1) -> 1 | FA31: =(MID(G32,2,1)*1) -> 8 | FB31: =(MID(H32,2,1)*1) -> 6 | FC31: 0 | FD31: 1 | FE31: =I32 -> 2 | FF31: 0 | FG31: 0 | FH31: 0 | FI31: 0 | FJ31: 0 | FK31: =IF(E32=D32+1,("1")*1,("")) ->  | FL31: =IF(F32=E32+1,("1")*1,("")) ->  | FM31: =IF(G32=F32+1,("1")*1,("")) ->  | FN31: =IF(H32=G32+1,("1")*1,("")) ->  | FW31: =SUMPRODUCT(( MOD(D32,2)>0)*1) -> 1 | FX31: =SUMPRODUCT(( MOD(E32,2)>0)*1) -> 1 | FY31: =SUMPRODUCT(( MOD(F32,2)>0)*1) -> 1 | FZ31: =SUMPRODUCT(( MOD(G32,2)>0)*1) -> 0 | GA31: =SUMPRODUCT(( MOD(H32,2)>0)*1) -> 0 | GE31: 1 | GF31: 1 | GG31: 0 | GH31: 0 | GL31: 1 | GM31: 0 | GN31: 0 | GR31: 0 | GS31: 0 | GW31: 0 | HA31: 0 | JA31: =COUNTIF(D32,$JA$1)+(COUNTIF(E32,$JA$1)+(COUNTIF(F32,$JA$1)+(COUNTIF(G32,$JA$1)+(COUNTIF(H32,$JA$1))))) -> 1 | JB31: =COUNTIF(D32,$JB$1)+(COUNTIF(E32,$JB$1)+(COUNTIF(F32,$JB$1)+(COUNTIF(G32,$JB$1)+(COUNTIF(H32,$JB$1))))) -> 0 | JC31: =COUNTIF(D32,$JC$1)+(COUNTIF(E32,$JC$1)+(COUNTIF(F32,$JC$1)+(COUNTIF(G32,$JC$1)+(COUNTIF(H32,$JC$1))))) -> 0 | JD31: =COUNTIF(D32,$JD$1)+(COUNTIF(E32,$JD$1)+(COUNTIF(F32,$JD$1)+(COUNTIF(G32,$JD$1)+(COUNTIF(H32,$JD$1))))) -> 0 | JE31: =COUNTIF(D32,$JE$1)+(COUNTIF(E32,$JE$1)+(COUNTIF(F32,$JE$1)+(COUNTIF(G32,$JE$1)+(COUNTIF(H32,$JE$1))))) -> 0 | JF31: =COUNTIF(D32,$JF$1)+(COUNTIF(E32,$JF$1)+(COUNTIF(F32,$JF$1)+(COUNTIF(G32,$JF$1)+(COUNTIF(H32,$JF$1))))) -> 0 | JG31: =COUNTIF(D32,$JG$1)+(COUNTIF(E32,$JG$1)+(COUNTIF(F32,$JG$1)+(COUNTIF(G32,$JG$1)+(COUNTIF(H32,$JG$1))))) -> 0 | JH31: =COUNTIF(D32,$JH$1)+(COUNTIF(E32,$JH$1)+(COUNTIF(F32,$JH$1)+(COUNTIF(G32,$JH$1)+(COUNTIF(H32,$JH$1))))) -> 0 | JI31: =COUNTIF(D32,$JI$1)+(COUNTIF(E32,$JI$1)+(COUNTIF(F32,$JI$1)+(COUNTIF(G32,$JI$1)+(COUNTIF(H32,$JI$1))))) -> 0 | JJ31: =COUNTIF(D32,$JJ$1)+(COUNTIF(E32,$JJ$1)+(COUNTIF(F32,$JJ$1)+(COUNTIF(G32,$JJ$1)+(COUNTIF(H32,$JJ$1))))) -> 0 | JK31: =COUNTIF(D32,$JK$1)+(COUNTIF(E32,$JK$1)+(COUNTIF(F32,$JK$1)+(COUNTIF(G32,$JK$1)+(COUNTIF(H32,$JK$1))))) -> 0 | JL31: =COUNTIF(D32,$JL$1)+(COUNTIF(E32,$JL$1)+(COUNTIF(F32,$JL$1)+(COUNTIF(G32,$JL$1)+(COUNTIF(H32,$JL$1))))) -> 0 | JM31: =COUNTIF(D32,$JM$1)+(COUNTIF(E32,$JM$1)+(COUNTIF(F32,$JM$1)+(COUNTIF(G32,$JM$1)+(COUNTIF(H32,$JM$1))))) -> 0 | JN31: =COUNTIF(D32,$JN$1)+(COUNTIF(E32,$JN$1)+(COUNTIF(F32,$JN$1)+(COUNTIF(G32,$JN$1)+(COUNTIF(H32,$JN$1))))) -> 0 | JO31: =COUNTIF(D32,$JO$1)+(COUNTIF(E32,$JO$1)+(COUNTIF(F32,$JO$1)+(COUNTIF(G32,$JO$1)+(COUNTIF(H32,$JO$1))))) -> 0 | JP31: =COUNTIF(D32,$JP$1)+(COUNTIF(E32,$JP$1)+(COUNTIF(F32,$JP$1)+(COUNTIF(G32,$JP$1)+(COUNTIF(H32,$JP$1))))) -> 0 | JQ31: =COUNTIF(D32,$JQ$1)+(COUNTIF(E32,$JQ$1)+(COUNTIF(F32,$JQ$1)+(COUNTIF(G32,$JQ$1)+(COUNTIF(H32,$JQ$1))))) -> 1 | JR31: =COUNTIF(D32,$JR$1)+(COUNTIF(E32,$JR$1)+(COUNTIF(F32,$JR$1)+(COUNTIF(G32,$JR$1)+(COUNTIF(H32,$JR$1))))) -> 0 | JS31: =COUNTIF(D32,$JS$1)+(COUNTIF(E32,$JS$1)+(COUNTIF(F32,$JS$1)+(COUNTIF(G32,$JS$1)+(COUNTIF(H32,$JS$1))))) -> 0 | JT31: =COUNTIF(D32,$JT$1)+(COUNTIF(E32,$JT$1)+(COUNTIF(F32,$JT$1)+(COUNTIF(G32,$JT$1)+(COUNTIF(H32,$JT$1))))) -> 0 | JU31: =COUNTIF(D32,$JU$1)+(COUNTIF(E32,$JU$1)+(COUNTIF(F32,$JU$1)+(COUNTIF(G32,$JU$1)+(COUNTIF(H32,$JU$1))))) -> 1 | JV31: =COUNTIF(D32,$JV$1)+(COUNTIF(E32,$JV$1)+(COUNTIF(F32,$JV$1)+(COUNTIF(G32,$JV$1)+(COUNTIF(H32,$JV$1))))) -> 0 | JW31: =COUNTIF(D32,$JW$1)+(COUNTIF(E32,$JW$1)+(COUNTIF(F32,$JW$1)+(COUNTIF(G32,$JW$1)+(COUNTIF(H32,$JW$1))))) -> 0 | JX31: =COUNTIF(D32,$JX$1)+(COUNTIF(E32,$JX$1)+(COUNTIF(F32,$JX$1)+(COUNTIF(G32,$JX$1)+(COUNTIF(H32,$JX$1))))) -> 0 | JY31: =COUNTIF(D32,$JY$1)+(COUNTIF(E32,$JY$1)+(COUNTIF(F32,$JY$1)+(COUNTIF(G32,$JY$1)+(COUNTIF(H32,$JY$1))))) -> 0 | JZ31: =COUNTIF(D32,$JZ$1)+(COUNTIF(E32,$JZ$1)+(COUNTIF(F32,$JZ$1)+(COUNTIF(G32,$JZ$1)+(COUNTIF(H32,$JZ$1))))) -> 0 | KA31: =COUNTIF(D32,$KA$1)+(COUNTIF(E32,$KA$1)+(COUNTIF(F32,$KA$1)+(COUNTIF(G32,$KA$1)+(COUNTIF(H32,$KA$1))))) -> 0 | KB31: =COUNTIF(D32,$KB$1)+(COUNTIF(E32,$KB$1)+(COUNTIF(F32,$KB$1)+(COUNTIF(G32,$KB$1)+(COUNTIF(H32,$KB$1))))) -> 0 | KC31: =COUNTIF(D32,$KC$1)+(COUNTIF(E32,$KC$1)+(COUNTIF(F32,$KC$1)+(COUNTIF(G32,$KC$1)+(COUNTIF(H32,$KC$1))))) -> 0 | KD31: =COUNTIF(D32,$KD$1)+(COUNTIF(E32,$KD$1)+(COUNTIF(F32,$KD$1)+(COUNTIF(G32,$KD$1)+(COUNTIF(H32,$KD$1))))) -> 0 | KE31: =COUNTIF(D32,$KE$1)+(COUNTIF(E32,$KE$1)+(COUNTIF(F32,$KE$1)+(COUNTIF(G32,$KE$1)+(COUNTIF(H32,$KE$1))))) -> 0 | KF31: =COUNTIF(D32,$KF$1)+(COUNTIF(E32,$KF$1)+(COUNTIF(F32,$KF$1)+(COUNTIF(G32,$KF$1)+(COUNTIF(H32,$KF$1))))) -> 0 | KG31: =COUNTIF(D32,$KG$1)+(COUNTIF(E32,$KG$1)+(COUNTIF(F32,$KG$1)+(COUNTIF(G32,$KG$1)+(COUNTIF(H32,$KG$1))))) -> 0 | KH31: =COUNTIF(D32,$KH$1)+(COUNTIF(E32,$KH$1)+(COUNTIF(F32,$KH$1)+(COUNTIF(G32,$KH$1)+(COUNTIF(H32,$KH$1))))) -> 0 | KI31: =COUNTIF(D32,$KI$1)+(COUNTIF(E32,$KI$1)+(COUNTIF(F32,$KI$1)+(COUNTIF(G32,$KI$1)+(COUNTIF(H32,$KI$1))))) -> 0 | KJ31: =COUNTIF(D32,$KJ$1)+(COUNTIF(E32,$KJ$1)+(COUNTIF(F32,$KJ$1)+(COUNTIF(G32,$KJ$1)+(COUNTIF(H32,$KJ$1))))) -> 0 | KK31: =COUNTIF(D32,$KK$1)+(COUNTIF(E32,$KK$1)+(COUNTIF(F32,$KK$1)+(COUNTIF(G32,$KK$1)+(COUNTIF(H32,$KK$1))))) -> 0 | KL31: =COUNTIF(D32,$KL$1)+(COUNTIF(E32,$KL$1)+(COUNTIF(F32,$KL$1)+(COUNTIF(G32,$KL$1)+(COUNTIF(H32,$KL$1))))) -> 1 | KM31: =COUNTIF(D32,$KM$1)+(COUNTIF(E32,$KM$1)+(COUNTIF(F32,$KM$1)+(COUNTIF(G32,$KM$1)+(COUNTIF(H32,$KM$1))))) -> 0 | KN31: =COUNTIF(D32,$KN$1)+(COUNTIF(E32,$KN$1)+(COUNTIF(F32,$KN$1)+(COUNTIF(G32,$KN$1)+(COUNTIF(H32,$KN$1))))) -> 0 | KO31: =COUNTIF(D32,$KO$1)+(COUNTIF(E32,$KO$1)+(COUNTIF(F32,$KO$1)+(COUNTIF(G32,$KO$1)+(COUNTIF(H32,$KO$1))))) -> 0 | KP31: =COUNTIF(D32,$KP$1)+(COUNTIF(E32,$KP$1)+(COUNTIF(F32,$KP$1)+(COUNTIF(G32,$KP$1)+(COUNTIF(H32,$KP$1))))) -> 0 | KQ31: =COUNTIF(D32,$KQ$1)+(COUNTIF(E32,$KQ$1)+(COUNTIF(F32,$KQ$1)+(COUNTIF(G32,$KQ$1)+(COUNTIF(H32,$KQ$1))))) -> 0 | KR31: =COUNTIF(D32,$KR$1)+(COUNTIF(E32,$KR$1)+(COUNTIF(F32,$KR$1)+(COUNTIF(G32,$KR$1)+(COUNTIF(H32,$KR$1))))) -> 0 | KS31: =COUNTIF(D32,$KS$1)+(COUNTIF(E32,$KS$1)+(COUNTIF(F32,$KS$1)+(COUNTIF(G32,$KS$1)+(COUNTIF(H32,$KS$1))))) -> 0 | KT31: =COUNTIF(D32,$KT$1)+(COUNTIF(E32,$KT$1)+(COUNTIF(F32,$KT$1)+(COUNTIF(G32,$KT$1)+(COUNTIF(H32,$KT$1))))) -> 1 | KU31: =COUNTIF(D32,$KU$1)+(COUNTIF(E32,$KU$1)+(COUNTIF(F32,$KU$1)+(COUNTIF(G32,$KU$1)+(COUNTIF(H32,$KU$1))))) -> 0 | KV31: =COUNTIF(D32,$KV$1)+(COUNTIF(E32,$KV$1)+(COUNTIF(F32,$KV$1)+(COUNTIF(G32,$KV$1)+(COUNTIF(H32,$KV$1))))) -> 0 | KW31: =COUNTIF(D32,$KW$1)+(COUNTIF(E32,$KW$1)+(COUNTIF(F32,$KW$1)+(COUNTIF(G32,$KW$1)+(COUNTIF(H32,$KW$1))))) -> 0
A32: 380 | B32: SAMEDI | C32: 2022-08-20 | D32: 1 | E32: 17 | F32: 21 | G32: 38 | H32: 46 | I32: 2 | J32: 6 | K32: g | L32: =COUNTIF(M31:P31,">0") -> 2 | M32: =_xlfn.LET(_xlpm.comp,RIGHT(D33:H33,1),_xlfn._xlws.FILTER(D33:H33,_xlfn.XMATCH(_xlpm.comp,_xlpm.comp)<>_xlfn.XMATCH(_xlpm.comp,_xlpm.comp,,-1))) -> 9 | N32: 39 | Q32: =COUNTIF(D32:H32,D33:H33) -> 0 | R32: 0 | S32: 0 | T32: 0 | U32: 1 | V32: =IF(AND(W32>69,W32<164,OR(X32={1;2;3;4})),1,0) -> 1 | W32: =D33+E33+F33+G33+H33 -> 140 | X32: =SUMPRODUCT(( MOD(D33:H33,2)>0)*1) -> 2 | Y32: 0 | Z32: 1 | AA32: 0 | AB32: 1 | AC32: 0 | AD32: 1 | AE32: 0 | AF32: 0 | AG32: 2 | AH32: 0 | AI32: =COUNTIF(($D33:$H33),AI$1) -> 0 | AJ32: =COUNTIF(($D33:$H33),AJ$1) -> 0 | AK32: =COUNTIF(($D33:$H33),AK$1) -> 0 | AL32: =COUNTIF(($D33:$H33),AL$1) -> 0 | AM32: =COUNTIF(($D33:$H33),AM$1) -> 0 | AN32: =COUNTIF(($D33:$H33),AN$1) -> 0 | AO32: =COUNTIF(($D33:$H33),AO$1) -> 0 | AP32: =COUNTIF(($D33:$H33),AP$1) -> 0 | AQ32: =COUNTIF(($D33:$H33),AQ$1) -> 0 | AR32: =COUNTIF(($D33:$H33),AR$1) -> 0 | AS32: =COUNTIF(($D33:$H33),AS$1) -> 0 | AT32: =COUNTIF(($D33:$H33),AT$1) -> 0 | AU32: =COUNTIF(($D33:$H33),AU$1) -> 0 | AV32: =COUNTIF(($D33:$H33),AV$1) -> 0 | AW32: =COUNTIF(($D33:$H33),AW$1) -> 0 | AX32: =COUNTIF(($D33:$H33),AX$1) -> 0 | AY32: =COUNTIF(($D33:$H33),AY$1) -> 0 | AZ32: =COUNTIF(($D33:$H33),AZ$1) -> 0 | BA32: =COUNTIF(($D33:$H33),BA$1) -> 0 | BB32: =COUNTIF(($D33:$H33),BB$1) -> 0 | BC32: =COUNTIF(($D33:$H33),BC$1) -> 0 | BD32: =COUNTIF(($D33:$H33),BD$1) -> 0 | BE32: =COUNTIF(($D33:$H33),BE$1) -> 0 | BF32: =COUNTIF(($D33:$H33),BF$1) -> 0 | BG32: =COUNTIF(($D33:$H33),BG$1) -> 0 | BH32: =COUNTIF(($D33:$H33),BH$1) -> 0 | BI32: =COUNTIF((D33:H33),BI$1) -> 0 | BJ32: =COUNTIF((D33:H33),BJ$1) -> 0 | BK32: =COUNTIF((D33:H33),BK$1) -> 1 | BL32: =COUNTIF((D33:H33),BL$1) -> 0 | BM32: =COUNTIF((D33:H33),BM$1) -> 0 | BN32: =COUNTIF((D33:H33),BN$1) -> 0 | BO32: =COUNTIF((D33:H33),BO$1) -> 0 | BP32: =COUNTIF((D33:H33),BP$1) -> 1 | BQ32: =COUNTIF((D33:H33),BQ$1) -> 0 | BR32: =COUNTIF((D33:H33),BR$1) -> 1 | BS32: =COUNTIF((D33:H33),BS$1) -> 0 | BT32: =COUNTIF((D33:H33),BT$1) -> 0 | BU32: =COUNTIF((D33:H33),BU$1) -> 0 | BV32: =COUNTIF(D33:H33,"<10") -> 2 | BW32: =(COUNTIF(D33:H33,"<20")-BV32) -> 0 | BX32: =((COUNTIF(D33:H33,"<30")))-(BV32+BW32) -> 0 | BY32: =((COUNTIF(D33:H33,"<40")))-(BW32+BX32+BV32) -> 1 | BZ32: =((COUNTIF(D33:H33,"<50")))-(BX32+BY32+BW32+BV32) -> 2 | CB32: 1 | CC32: 0 | CD32: 0 | CE32: 1 | CF32: 1 | CG32: 0 | CH32: 0 | CI32: 0 | CJ32: 0 | CK32: 0 | CL32: 0 | CM32: 0 | CN32: 0 | CO32: 0 | CP32: 1 | CQ32: 0 | CR32: 0 | CS32: 0 | CT32: 0 | CU32: 0 | CV32: 0 | CW32: 0 | CX32: 0 | CY32: 0 | CZ32: 0 | DA32: 0 | DB32: 0 | DC32: 0 | DD32: 0 | DE32: 0 | DF32: 0 | DG32: 0 | DH32: 0 | DJ32: 0 | DK32: 0 | DL32: =COUNTIF((I33),$DL$1) -> 0 | DM32: =COUNTIF((I33),$DM$1) -> 0 | DN32: =COUNTIF((I33),$DN$1) -> 0 | DO32: =COUNTIF((I33),$DO$1) -> 0 | DP32: =COUNTIF((I33),$DP$1) -> 0 | DQ32: =COUNTIF((I33),$DQ$1) -> 0 | DR32: =COUNTIF((I33),$DR$1) -> 0 | DS32: =COUNTIF((I33),$DS$1) -> 0 | DT32: =COUNTIF((I33),$DT$1) -> 1 | DU32: =COUNTIF((I33),$DU$1) -> 0 | DW32: 1 | DX32: 0 | DY32: 1 | DZ32: 1 | EA32: 1 | EB32: 1 | EC32: 1 | ED32: 1 | EE32: 0 | EF32: 1 | EI32: 1 | EJ32: 0 | EK32: 1 | EL32: 1 | EM32: 1 | EN32: 1 | EO32: 1 | EP32: 1 | EQ32: 0 | ER32: 1 | ES32: =COUNTIF(I32,I33) -> 0 | ET32: =SUMPRODUCT(( MOD(I33,2)>0)*1) -> 1 | EU32: =IF((E33=D33+1)+(F33=E33+1)+(G33=F33+1)+(H33=G33+1),("1")*1,("")) ->  | EV32: 1 | EW32: =H33-D33 -> 44 | EX32: =(MID(D33,1,2)*1) -> 2 | EY32: =(MID(E33,1,1)*1) -> 9 | EZ32: =(MID(F33,2,1)*1) -> 9 | FA32: =(MID(G33,2,1)*1) -> 4 | FB32: =(MID(H33,2,1)*1) -> 6 | FC32: 2 | FD32: 1 | FE32: =I33 -> 9 | FF32: 0 | FG32: 1 | FH32: 1 | FI32: 0 | FJ32: 0 | FK32: =IF(E33=D33+1,("1")*1,("")) ->  | FL32: =IF(F33=E33+1,("1")*1,("")) ->  | FM32: =IF(G33=F33+1,("1")*1,("")) ->  | FN32: =IF(H33=G33+1,("1")*1,("")) ->  | FW32: =SUMPRODUCT(( MOD(D33,2)>0)*1) -> 0 | FX32: =SUMPRODUCT(( MOD(E33,2)>0)*1) -> 1 | FY32: =SUMPRODUCT(( MOD(F33,2)>0)*1) -> 1 | FZ32: =SUMPRODUCT(( MOD(G33,2)>0)*1) -> 0 | GA32: =SUMPRODUCT(( MOD(H33,2)>0)*1) -> 0 | GE32: 0 | GF32: 1 | GG32: 0 | GH32: 0 | GL32: 0 | GM32: 0 | GN32: 0 | GR32: 0 | GS32: 0 | GW32: 0 | HA32: 0 | JA32: =COUNTIF(D33,$JA$1)+(COUNTIF(E33,$JA$1)+(COUNTIF(F33,$JA$1)+(COUNTIF(G33,$JA$1)+(COUNTIF(H33,$JA$1))))) -> 0 | JB32: =COUNTIF(D33,$JB$1)+(COUNTIF(E33,$JB$1)+(COUNTIF(F33,$JB$1)+(COUNTIF(G33,$JB$1)+(COUNTIF(H33,$JB$1))))) -> 1 | JC32: =COUNTIF(D33,$JC$1)+(COUNTIF(E33,$JC$1)+(COUNTIF(F33,$JC$1)+(COUNTIF(G33,$JC$1)+(COUNTIF(H33,$JC$1))))) -> 0 | JD32: =COUNTIF(D33,$JD$1)+(COUNTIF(E33,$JD$1)+(COUNTIF(F33,$JD$1)+(COUNTIF(G33,$JD$1)+(COUNTIF(H33,$JD$1))))) -> 0 | JE32: =COUNTIF(D33,$JE$1)+(COUNTIF(E33,$JE$1)+(COUNTIF(F33,$JE$1)+(COUNTIF(G33,$JE$1)+(COUNTIF(H33,$JE$1))))) -> 0 | JF32: =COUNTIF(D33,$JF$1)+(COUNTIF(E33,$JF$1)+(COUNTIF(F33,$JF$1)+(COUNTIF(G33,$JF$1)+(COUNTIF(H33,$JF$1))))) -> 0 | JG32: =COUNTIF(D33,$JG$1)+(COUNTIF(E33,$JG$1)+(COUNTIF(F33,$JG$1)+(COUNTIF(G33,$JG$1)+(COUNTIF(H33,$JG$1))))) -> 0 | JH32: =COUNTIF(D33,$JH$1)+(COUNTIF(E33,$JH$1)+(COUNTIF(F33,$JH$1)+(COUNTIF(G33,$JH$1)+(COUNTIF(H33,$JH$1))))) -> 0 | JI32: =COUNTIF(D33,$JI$1)+(COUNTIF(E33,$JI$1)+(COUNTIF(F33,$JI$1)+(COUNTIF(G33,$JI$1)+(COUNTIF(H33,$JI$1))))) -> 1 | JJ32: =COUNTIF(D33,$JJ$1)+(COUNTIF(E33,$JJ$1)+(COUNTIF(F33,$JJ$1)+(COUNTIF(G33,$JJ$1)+(COUNTIF(H33,$JJ$1))))) -> 0 | JK32: =COUNTIF(D33,$JK$1)+(COUNTIF(E33,$JK$1)+(COUNTIF(F33,$JK$1)+(COUNTIF(G33,$JK$1)+(COUNTIF(H33,$JK$1))))) -> 0 | JL32: =COUNTIF(D33,$JL$1)+(COUNTIF(E33,$JL$1)+(COUNTIF(F33,$JL$1)+(COUNTIF(G33,$JL$1)+(COUNTIF(H33,$JL$1))))) -> 0 | JM32: =COUNTIF(D33,$JM$1)+(COUNTIF(E33,$JM$1)+(COUNTIF(F33,$JM$1)+(COUNTIF(G33,$JM$1)+(COUNTIF(H33,$JM$1))))) -> 0 | JN32: =COUNTIF(D33,$JN$1)+(COUNTIF(E33,$JN$1)+(COUNTIF(F33,$JN$1)+(COUNTIF(G33,$JN$1)+(COUNTIF(H33,$JN$1))))) -> 0 | JO32: =COUNTIF(D33,$JO$1)+(COUNTIF(E33,$JO$1)+(COUNTIF(F33,$JO$1)+(COUNTIF(G33,$JO$1)+(COUNTIF(H33,$JO$1))))) -> 0 | JP32: =COUNTIF(D33,$JP$1)+(COUNTIF(E33,$JP$1)+(COUNTIF(F33,$JP$1)+(COUNTIF(G33,$JP$1)+(COUNTIF(H33,$JP$1))))) -> 0 | JQ32: =COUNTIF(D33,$JQ$1)+(COUNTIF(E33,$JQ$1)+(COUNTIF(F33,$JQ$1)+(COUNTIF(G33,$JQ$1)+(COUNTIF(H33,$JQ$1))))) -> 0 | JR32: =COUNTIF(D33,$JR$1)+(COUNTIF(E33,$JR$1)+(COUNTIF(F33,$JR$1)+(COUNTIF(G33,$JR$1)+(COUNTIF(H33,$JR$1))))) -> 0 | JS32: =COUNTIF(D33,$JS$1)+(COUNTIF(E33,$JS$1)+(COUNTIF(F33,$JS$1)+(COUNTIF(G33,$JS$1)+(COUNTIF(H33,$JS$1))))) -> 0 | JT32: =COUNTIF(D33,$JT$1)+(COUNTIF(E33,$JT$1)+(COUNTIF(F33,$JT$1)+(COUNTIF(G33,$JT$1)+(COUNTIF(H33,$JT$1))))) -> 0 | JU32: =COUNTIF(D33,$JU$1)+(COUNTIF(E33,$JU$1)+(COUNTIF(F33,$JU$1)+(COUNTIF(G33,$JU$1)+(COUNTIF(H33,$JU$1))))) -> 0 | JV32: =COUNTIF(D33,$JV$1)+(COUNTIF(E33,$JV$1)+(COUNTIF(F33,$JV$1)+(COUNTIF(G33,$JV$1)+(COUNTIF(H33,$JV$1))))) -> 0 | JW32: =COUNTIF(D33,$JW$1)+(COUNTIF(E33,$JW$1)+(COUNTIF(F33,$JW$1)+(COUNTIF(G33,$JW$1)+(COUNTIF(H33,$JW$1))))) -> 0 | JX32: =COUNTIF(D33,$JX$1)+(COUNTIF(E33,$JX$1)+(COUNTIF(F33,$JX$1)+(COUNTIF(G33,$JX$1)+(COUNTIF(H33,$JX$1))))) -> 0 | JY32: =COUNTIF(D33,$JY$1)+(COUNTIF(E33,$JY$1)+(COUNTIF(F33,$JY$1)+(COUNTIF(G33,$JY$1)+(COUNTIF(H33,$JY$1))))) -> 0 | JZ32: =COUNTIF(D33,$JZ$1)+(COUNTIF(E33,$JZ$1)+(COUNTIF(F33,$JZ$1)+(COUNTIF(G33,$JZ$1)+(COUNTIF(H33,$JZ$1))))) -> 0 | KA32: =COUNTIF(D33,$KA$1)+(COUNTIF(E33,$KA$1)+(COUNTIF(F33,$KA$1)+(COUNTIF(G33,$KA$1)+(COUNTIF(H33,$KA$1))))) -> 0 | KB32: =COUNTIF(D33,$KB$1)+(COUNTIF(E33,$KB$1)+(COUNTIF(F33,$KB$1)+(COUNTIF(G33,$KB$1)+(COUNTIF(H33,$KB$1))))) -> 0 | KC32: =COUNTIF(D33,$KC$1)+(COUNTIF(E33,$KC$1)+(COUNTIF(F33,$KC$1)+(COUNTIF(G33,$KC$1)+(COUNTIF(H33,$KC$1))))) -> 0 | KD32: =COUNTIF(D33,$KD$1)+(COUNTIF(E33,$KD$1)+(COUNTIF(F33,$KD$1)+(COUNTIF(G33,$KD$1)+(COUNTIF(H33,$KD$1))))) -> 0 | KE32: =COUNTIF(D33,$KE$1)+(COUNTIF(E33,$KE$1)+(COUNTIF(F33,$KE$1)+(COUNTIF(G33,$KE$1)+(COUNTIF(H33,$KE$1))))) -> 0 | KF32: =COUNTIF(D33,$KF$1)+(COUNTIF(E33,$KF$1)+(COUNTIF(F33,$KF$1)+(COUNTIF(G33,$KF$1)+(COUNTIF(H33,$KF$1))))) -> 0 | KG32: =COUNTIF(D33,$KG$1)+(COUNTIF(E33,$KG$1)+(COUNTIF(F33,$KG$1)+(COUNTIF(G33,$KG$1)+(COUNTIF(H33,$KG$1))))) -> 0 | KH32: =COUNTIF(D33,$KH$1)+(COUNTIF(E33,$KH$1)+(COUNTIF(F33,$KH$1)+(COUNTIF(G33,$KH$1)+(COUNTIF(H33,$KH$1))))) -> 0 | KI32: =COUNTIF(D33,$KI$1)+(COUNTIF(E33,$KI$1)+(COUNTIF(F33,$KI$1)+(COUNTIF(G33,$KI$1)+(COUNTIF(H33,$KI$1))))) -> 0 | KJ32: =COUNTIF(D33,$KJ$1)+(COUNTIF(E33,$KJ$1)+(COUNTIF(F33,$KJ$1)+(COUNTIF(G33,$KJ$1)+(COUNTIF(H33,$KJ$1))))) -> 0 | KK32: =COUNTIF(D33,$KK$1)+(COUNTIF(E33,$KK$1)+(COUNTIF(F33,$KK$1)+(COUNTIF(G33,$KK$1)+(COUNTIF(H33,$KK$1))))) -> 0 | KL32: =COUNTIF(D33,$KL$1)+(COUNTIF(E33,$KL$1)+(COUNTIF(F33,$KL$1)+(COUNTIF(G33,$KL$1)+(COUNTIF(H33,$KL$1))))) -> 0 | KM32: =COUNTIF(D33,$KM$1)+(COUNTIF(E33,$KM$1)+(COUNTIF(F33,$KM$1)+(COUNTIF(G33,$KM$1)+(COUNTIF(H33,$KM$1))))) -> 1 | KN32: =COUNTIF(D33,$KN$1)+(COUNTIF(E33,$KN$1)+(COUNTIF(F33,$KN$1)+(COUNTIF(G33,$KN$1)+(COUNTIF(H33,$KN$1))))) -> 0 | KO32: =COUNTIF(D33,$KO$1)+(COUNTIF(E33,$KO$1)+(COUNTIF(F33,$KO$1)+(COUNTIF(G33,$KO$1)+(COUNTIF(H33,$KO$1))))) -> 0 | KP32: =COUNTIF(D33,$KP$1)+(COUNTIF(E33,$KP$1)+(COUNTIF(F33,$KP$1)+(COUNTIF(G33,$KP$1)+(COUNTIF(H33,$KP$1))))) -> 0 | KQ32: =COUNTIF(D33,$KQ$1)+(COUNTIF(E33,$KQ$1)+(COUNTIF(F33,$KQ$1)+(COUNTIF(G33,$KQ$1)+(COUNTIF(H33,$KQ$1))))) -> 0 | KR32: =COUNTIF(D33,$KR$1)+(COUNTIF(E33,$KR$1)+(COUNTIF(F33,$KR$1)+(COUNTIF(G33,$KR$1)+(COUNTIF(H33,$KR$1))))) -> 1 | KS32: =COUNTIF(D33,$KS$1)+(COUNTIF(E33,$KS$1)+(COUNTIF(F33,$KS$1)+(COUNTIF(G33,$KS$1)+(COUNTIF(H33,$KS$1))))) -> 0 | KT32: =COUNTIF(D33,$KT$1)+(COUNTIF(E33,$KT$1)+(COUNTIF(F33,$KT$1)+(COUNTIF(G33,$KT$1)+(COUNTIF(H33,$KT$1))))) -> 1 | KU32: =COUNTIF(D33,$KU$1)+(COUNTIF(E33,$KU$1)+(COUNTIF(F33,$KU$1)+(COUNTIF(G33,$KU$1)+(COUNTIF(H33,$KU$1))))) -> 0 | KV32: =COUNTIF(D33,$KV$1)+(COUNTIF(E33,$KV$1)+(COUNTIF(F33,$KV$1)+(COUNTIF(G33,$KV$1)+(COUNTIF(H33,$KV$1))))) -> 0 | KW32: =COUNTIF(D33,$KW$1)+(COUNTIF(E33,$KW$1)+(COUNTIF(F33,$KW$1)+(COUNTIF(G33,$KW$1)+(COUNTIF(H33,$KW$1))))) -> 0
A33: 379 | B33: LUNDI | C33: 2022-08-22 | D33: 2 | E33: 9 | F33: 39 | G33: 44 | H33: 46 | I33: 9 | J33: 6 | K33: g | L33: =COUNTIF(M32:P32,">0") -> 2 | M33: =_xlfn.LET(_xlpm.comp,RIGHT(D34:H34,1),_xlfn._xlws.FILTER(D34:H34,_xlfn.XMATCH(_xlpm.comp,_xlpm.comp)<>_xlfn.XMATCH(_xlpm.comp,_xlpm.comp,,-1))) -> 22 | N33: 42 | Q33: =COUNTIF(D33:H33,D34:H34) -> 0 | R33: 0 | S33: 0 | T33: 1 | U33: 0 | V33: =IF(AND(W33>69,W33<164,OR(X33={1;2;3;4})),1,0) -> 0 | W33: =D34+E34+F34+G34+H34 -> 166 | X33: =SUMPRODUCT(( MOD(D34:H34,2)>0)*1) -> 2 | Y33: 0 | Z33: 2 | AA33: 0 | AB33: 0 | AC33: 0 | AD33: 1 | AE33: 1 | AF33: 0 | AG33: 1 | AH33: 0 | AI33: =COUNTIF(($D34:$H34),AI$1) -> 0 | AJ33: =COUNTIF(($D34:$H34),AJ$1) -> 0 | AK33: =COUNTIF(($D34:$H34),AK$1) -> 0 | AL33: =COUNTIF(($D34:$H34),AL$1) -> 0 | AM33: =COUNTIF(($D34:$H34),AM$1) -> 0 | AN33: =COUNTIF(($D34:$H34),AN$1) -> 0 | AO33: =COUNTIF(($D34:$H34),AO$1) -> 0 | AP33: =COUNTIF(($D34:$H34),AP$1) -> 0 | AQ33: =COUNTIF(($D34:$H34),AQ$1) -> 0 | AR33: =COUNTIF(($D34:$H34),AR$1) -> 0 | AS33: =COUNTIF(($D34:$H34),AS$1) -> 0 | AT33: =COUNTIF(($D34:$H34),AT$1) -> 1 | AU33: =COUNTIF(($D34:$H34),AU$1) -> 0 | AV33: =COUNTIF(($D34:$H34),AV$1) -> 0 | AW33: =COUNTIF(($D34:$H34),AW$1) -> 0 | AX33: =COUNTIF(($D34:$H34),AX$1) -> 0 | AY33: =COUNTIF(($D34:$H34),AY$1) -> 1 | AZ33: =COUNTIF(($D34:$H34),AZ$1) -> 0 | BA33: =COUNTIF(($D34:$H34),BA$1) -> 0 | BB33: =COUNTIF(($D34:$H34),BB$1) -> 0 | BC33: =COUNTIF(($D34:$H34),BC$1) -> 0 | BD33: =COUNTIF(($D34:$H34),BD$1) -> 0 | BE33: =COUNTIF(($D34:$H34),BE$1) -> 0 | BF33: =COUNTIF(($D34:$H34),BF$1) -> 0 | BG33: =COUNTIF(($D34:$H34),BG$1) -> 0 | BH33: =COUNTIF(($D34:$H34),BH$1) -> 1 | BI33: =COUNTIF((D34:H34),BI$1) -> 0 | BJ33: =COUNTIF((D34:H34),BJ$1) -> 0 | BK33: =COUNTIF((D34:H34),BK$1) -> 1 | BL33: =COUNTIF((D34:H34),BL$1) -> 0 | BM33: =COUNTIF((D34:H34),BM$1) -> 0 | BN33: =COUNTIF((D34:H34),BN$1) -> 1 | BO33: =COUNTIF((D34:H34),BO$1) -> 0 | BP33: =COUNTIF((D34:H34),BP$1) -> 0 | BQ33: =COUNTIF((D34:H34),BQ$1) -> 0 | BR33: =COUNTIF((D34:H34),BR$1) -> 0 | BS33: =COUNTIF((D34:H34),BS$1) -> 0 | BT33: =COUNTIF((D34:H34),BT$1) -> 0 | BU33: =COUNTIF((D34:H34),BU$1) -> 0 | BV33: =COUNTIF(D34:H34,"<10") -> 0 | BW33: =(COUNTIF(D34:H34,"<20")-BV33) -> 0 | BX33: =((COUNTIF(D34:H34,"<30")))-(BV33+BW33) -> 2 | BY33: =((COUNTIF(D34:H34,"<40")))-(BW33+BX33+BV33) -> 2 | BZ33: =((COUNTIF(D34:H34,"<50")))-(BX33+BY33+BW33+BV33) -> 1 | CB33: 0 | CC33: 0 | CD33: 1 | CE33: 1 | CF33: 1 | CG33: 0 | CH33: 0 | CI33: 0 | CJ33: 0 | CK33: 0 | CL33: 0 | CM33: 0 | CN33: 1 | CO33: 0 | CP33: 0 | CQ33: 0 | CR33: 0 | CS33: 0 | CT33: 0 | CU33: 0 | CV33: 0 | CW33: 0 | CX33: 0 | CY33: 0 | CZ33: 0 | DA33: 0 | DB33: 0 | DC33: 0 | DD33: 0 | DE33: 0 | DF33: 0 | DG33: 0 | DH33: 0 | DJ33: 0 | DK33: 0 | DL33: =COUNTIF((I34),$DL$1) -> 0 | DM33: =COUNTIF((I34),$DM$1) -> 0 | DN33: =COUNTIF((I34),$DN$1) -> 0 | DO33: =COUNTIF((I34),$DO$1) -> 0 | DP33: =COUNTIF((I34),$DP$1) -> 0 | DQ33: =COUNTIF((I34),$DQ$1) -> 0 | DR33: =COUNTIF((I34),$DR$1) -> 0 | DS33: =COUNTIF((I34),$DS$1) -> 0 | DT33: =COUNTIF((I34),$DT$1) -> 0 | DU33: =COUNTIF((I34),$DU$1) -> 1 | DW33: 1 | DX33: 1 | DY33: 1 | DZ33: 1 | EA33: 1 | EB33: 1 | EC33: 1 | ED33: 1 | EE33: 0 | EF33: 0 | EI33: 1 | EJ33: 1 | EK33: 1 | EL33: 1 | EM33: 1 | EN33: 1 | EO33: 1 | EP33: 1 | EQ33: 0 | ER33: 0 | ES33: =COUNTIF(I33,I34) -> 0 | ET33: =SUMPRODUCT(( MOD(I34,2)>0)*1) -> 0 | EU33: =IF((E34=D34+1)+(F34=E34+1)+(G34=F34+1)+(H34=G34+1),("1")*1,("")) ->  | EV33: 1 | EW33: =H34-D34 -> 20 | EX33: =(MID(D34,2,2)*1) -> 2 | EY33: =(MID(E34,2,1)*1) -> 7 | EZ33: =(MID(F34,2,1)*1) -> 6 | FA33: =(MID(G34,2,1)*1) -> 9 | FB33: =(MID(H34,2,1)*1) -> 2 | FC33: 0 | FD33: 1 | FE33: 0 | FF33: 0 | FG33: 0 | FH33: 0 | FI33: 0 | FJ33: =COUNTIF(FB33,FE33) -> 0 | FK33: =IF(E34=D34+1,("1")*1,("")) ->  | FL33: =IF(F34=E34+1,("1")*1,("")) ->  | FM33: =IF(G34=F34+1,("1")*1,("")) ->  | FN33: =IF(H34=G34+1,("1")*1,("")) ->  | FW33: =SUMPRODUCT(( MOD(D34,2)>0)*1) -> 0 | FX33: =SUMPRODUCT(( MOD(E34,2)>0)*1) -> 1 | FY33: =SUMPRODUCT(( MOD(F34,2)>0)*1) -> 0 | FZ33: =SUMPRODUCT(( MOD(G34,2)>0)*1) -> 1 | GA33: =SUMPRODUCT(( MOD(H34,2)>0)*1) -> 0 | GE33: 0 | GF33: 0 | GG33: 0 | GH33: 0 | GL33: 0 | GM33: 0 | GN33: 0 | GR33: 0 | GS33: 0 | GW33: 0 | HA33: 1 | JA33: =COUNTIF(D34,$JA$1)+(COUNTIF(E34,$JA$1)+(COUNTIF(F34,$JA$1)+(COUNTIF(G34,$JA$1)+(COUNTIF(H34,$JA$1))))) -> 0 | JB33: =COUNTIF(D34,$JB$1)+(COUNTIF(E34,$JB$1)+(COUNTIF(F34,$JB$1)+(COUNTIF(G34,$JB$1)+(COUNTIF(H34,$JB$1))))) -> 0 | JC33: =COUNTIF(D34,$JC$1)+(COUNTIF(E34,$JC$1)+(COUNTIF(F34,$JC$1)+(COUNTIF(G34,$JC$1)+(COUNTIF(H34,$JC$1))))) -> 0 | JD33: =COUNTIF(D34,$JD$1)+(COUNTIF(E34,$JD$1)+(COUNTIF(F34,$JD$1)+(COUNTIF(G34,$JD$1)+(COUNTIF(H34,$JD$1))))) -> 0 | JE33: =COUNTIF(D34,$JE$1)+(COUNTIF(E34,$JE$1)+(COUNTIF(F34,$JE$1)+(COUNTIF(G34,$JE$1)+(COUNTIF(H34,$JE$1))))) -> 0 | JF33: =COUNTIF(D34,$JF$1)+(COUNTIF(E34,$JF$1)+(COUNTIF(F34,$JF$1)+(COUNTIF(G34,$JF$1)+(COUNTIF(H34,$JF$1))))) -> 0 | JG33: =COUNTIF(D34,$JG$1)+(COUNTIF(E34,$JG$1)+(COUNTIF(F34,$JG$1)+(COUNTIF(G34,$JG$1)+(COUNTIF(H34,$JG$1))))) -> 0 | JH33: =COUNTIF(D34,$JH$1)+(COUNTIF(E34,$JH$1)+(COUNTIF(F34,$JH$1)+(COUNTIF(G34,$JH$1)+(COUNTIF(H34,$JH$1))))) -> 0 | JI33: =COUNTIF(D34,$JI$1)+(COUNTIF(E34,$JI$1)+(COUNTIF(F34,$JI$1)+(COUNTIF(G34,$JI$1)+(COUNTIF(H34,$JI$1))))) -> 0 | JJ33: =COUNTIF(D34,$JJ$1)+(COUNTIF(E34,$JJ$1)+(COUNTIF(F34,$JJ$1)+(COUNTIF(G34,$JJ$1)+(COUNTIF(H34,$JJ$1))))) -> 0 | JK33: =COUNTIF(D34,$JK$1)+(COUNTIF(E34,$JK$1)+(COUNTIF(F34,$JK$1)+(COUNTIF(G34,$JK$1)+(COUNTIF(H34,$JK$1))))) -> 0 | JL33: =COUNTIF(D34,$JL$1)+(COUNTIF(E34,$JL$1)+(COUNTIF(F34,$JL$1)+(COUNTIF(G34,$JL$1)+(COUNTIF(H34,$JL$1))))) -> 0 | JM33: =COUNTIF(D34,$JM$1)+(COUNTIF(E34,$JM$1)+(COUNTIF(F34,$JM$1)+(COUNTIF(G34,$JM$1)+(COUNTIF(H34,$JM$1))))) -> 0 | JN33: =COUNTIF(D34,$JN$1)+(COUNTIF(E34,$JN$1)+(COUNTIF(F34,$JN$1)+(COUNTIF(G34,$JN$1)+(COUNTIF(H34,$JN$1))))) -> 0 | JO33: =COUNTIF(D34,$JO$1)+(COUNTIF(E34,$JO$1)+(COUNTIF(F34,$JO$1)+(COUNTIF(G34,$JO$1)+(COUNTIF(H34,$JO$1))))) -> 0 | JP33: =COUNTIF(D34,$JP$1)+(COUNTIF(E34,$JP$1)+(COUNTIF(F34,$JP$1)+(COUNTIF(G34,$JP$1)+(COUNTIF(H34,$JP$1))))) -> 0 | JQ33: =COUNTIF(D34,$JQ$1)+(COUNTIF(E34,$JQ$1)+(COUNTIF(F34,$JQ$1)+(COUNTIF(G34,$JQ$1)+(COUNTIF(H34,$JQ$1))))) -> 0 | JR33: =COUNTIF(D34,$JR$1)+(COUNTIF(E34,$JR$1)+(COUNTIF(F34,$JR$1)+(COUNTIF(G34,$JR$1)+(COUNTIF(H34,$JR$1))))) -> 0 | JS33: =COUNTIF(D34,$JS$1)+(COUNTIF(E34,$JS$1)+(COUNTIF(F34,$JS$1)+(COUNTIF(G34,$JS$1)+(COUNTIF(H34,$JS$1))))) -> 0 | JT33: =COUNTIF(D34,$JT$1)+(COUNTIF(E34,$JT$1)+(COUNTIF(F34,$JT$1)+(COUNTIF(G34,$JT$1)+(COUNTIF(H34,$JT$1))))) -> 0 | JU33: =COUNTIF(D34,$JU$1)+(COUNTIF(E34,$JU$1)+(COUNTIF(F34,$JU$1)+(COUNTIF(G34,$JU$1)+(COUNTIF(H34,$JU$1))))) -> 0 | JV33: =COUNTIF(D34,$JV$1)+(COUNTIF(E34,$JV$1)+(COUNTIF(F34,$JV$1)+(COUNTIF(G34,$JV$1)+(COUNTIF(H34,$JV$1))))) -> 1 | JW33: =COUNTIF(D34,$JW$1)+(COUNTIF(E34,$JW$1)+(COUNTIF(F34,$JW$1)+(COUNTIF(G34,$JW$1)+(COUNTIF(H34,$JW$1))))) -> 0 | JX33: =COUNTIF(D34,$JX$1)+(COUNTIF(E34,$JX$1)+(COUNTIF(F34,$JX$1)+(COUNTIF(G34,$JX$1)+(COUNTIF(H34,$JX$1))))) -> 0 | JY33: =COUNTIF(D34,$JY$1)+(COUNTIF(E34,$JY$1)+(COUNTIF(F34,$JY$1)+(COUNTIF(G34,$JY$1)+(COUNTIF(H34,$JY$1))))) -> 0 | JZ33: =COUNTIF(D34,$JZ$1)+(COUNTIF(E34,$JZ$1)+(COUNTIF(F34,$JZ$1)+(COUNTIF(G34,$JZ$1)+(COUNTIF(H34,$JZ$1))))) -> 0 | KA33: =COUNTIF(D34,$KA$1)+(COUNTIF(E34,$KA$1)+(COUNTIF(F34,$KA$1)+(COUNTIF(G34,$KA$1)+(COUNTIF(H34,$KA$1))))) -> 1 | KB33: =COUNTIF(D34,$KB$1)+(COUNTIF(E34,$KB$1)+(COUNTIF(F34,$KB$1)+(COUNTIF(G34,$KB$1)+(COUNTIF(H34,$KB$1))))) -> 0 | KC33: =COUNTIF(D34,$KC$1)+(COUNTIF(E34,$KC$1)+(COUNTIF(F34,$KC$1)+(COUNTIF(G34,$KC$1)+(COUNTIF(H34,$KC$1))))) -> 0 | KD33: =COUNTIF(D34,$KD$1)+(COUNTIF(E34,$KD$1)+(COUNTIF(F34,$KD$1)+(COUNTIF(G34,$KD$1)+(COUNTIF(H34,$KD$1))))) -> 0 | KE33: =COUNTIF(D34,$KE$1)+(COUNTIF(E34,$KE$1)+(COUNTIF(F34,$KE$1)+(COUNTIF(G34,$KE$1)+(COUNTIF(H34,$KE$1))))) -> 0 | KF33: =COUNTIF(D34,$KF$1)+(COUNTIF(E34,$KF$1)+(COUNTIF(F34,$KF$1)+(COUNTIF(G34,$KF$1)+(COUNTIF(H34,$KF$1))))) -> 0 | KG33: =COUNTIF(D34,$KG$1)+(COUNTIF(E34,$KG$1)+(COUNTIF(F34,$KG$1)+(COUNTIF(G34,$KG$1)+(COUNTIF(H34,$KG$1))))) -> 0 | KH33: =COUNTIF(D34,$KH$1)+(COUNTIF(E34,$KH$1)+(COUNTIF(F34,$KH$1)+(COUNTIF(G34,$KH$1)+(COUNTIF(H34,$KH$1))))) -> 0 | KI33: =COUNTIF(D34,$KI$1)+(COUNTIF(E34,$KI$1)+(COUNTIF(F34,$KI$1)+(COUNTIF(G34,$KI$1)+(COUNTIF(H34,$KI$1))))) -> 0 | KJ33: =COUNTIF(D34,$KJ$1)+(COUNTIF(E34,$KJ$1)+(COUNTIF(F34,$KJ$1)+(COUNTIF(G34,$KJ$1)+(COUNTIF(H34,$KJ$1))))) -> 1 | KK33: =COUNTIF(D34,$KK$1)+(COUNTIF(E34,$KK$1)+(COUNTIF(F34,$KK$1)+(COUNTIF(G34,$KK$1)+(COUNTIF(H34,$KK$1))))) -> 0 | KL33: =COUNTIF(D34,$KL$1)+(COUNTIF(E34,$KL$1)+(COUNTIF(F34,$KL$1)+(COUNTIF(G34,$KL$1)+(COUNTIF(H34,$KL$1))))) -> 0 | KM33: =COUNTIF(D34,$KM$1)+(COUNTIF(E34,$KM$1)+(COUNTIF(F34,$KM$1)+(COUNTIF(G34,$KM$1)+(COUNTIF(H34,$KM$1))))) -> 1 | KN33: =COUNTIF(D34,$KN$1)+(COUNTIF(E34,$KN$1)+(COUNTIF(F34,$KN$1)+(COUNTIF(G34,$KN$1)+(COUNTIF(H34,$KN$1))))) -> 0 | KO33: =COUNTIF(D34,$KO$1)+(COUNTIF(E34,$KO$1)+(COUNTIF(F34,$KO$1)+(COUNTIF(G34,$KO$1)+(COUNTIF(H34,$KO$1))))) -> 0 | KP33: =COUNTIF(D34,$KP$1)+(COUNTIF(E34,$KP$1)+(COUNTIF(F34,$KP$1)+(COUNTIF(G34,$KP$1)+(COUNTIF(H34,$KP$1))))) -> 1 | KQ33: =COUNTIF(D34,$KQ$1)+(COUNTIF(E34,$KQ$1)+(COUNTIF(F34,$KQ$1)+(COUNTIF(G34,$KQ$1)+(COUNTIF(H34,$KQ$1))))) -> 0 | KR33: =COUNTIF(D34,$KR$1)+(COUNTIF(E34,$KR$1)+(COUNTIF(F34,$KR$1)+(COUNTIF(G34,$KR$1)+(COUNTIF(H34,$KR$1))))) -> 0 | KS33: =COUNTIF(D34,$KS$1)+(COUNTIF(E34,$KS$1)+(COUNTIF(F34,$KS$1)+(COUNTIF(G34,$KS$1)+(COUNTIF(H34,$KS$1))))) -> 0 | KT33: =COUNTIF(D34,$KT$1)+(COUNTIF(E34,$KT$1)+(COUNTIF(F34,$KT$1)+(COUNTIF(G34,$KT$1)+(COUNTIF(H34,$KT$1))))) -> 0 | KU33: =COUNTIF(D34,$KU$1)+(COUNTIF(E34,$KU$1)+(COUNTIF(F34,$KU$1)+(COUNTIF(G34,$KU$1)+(COUNTIF(H34,$KU$1))))) -> 0 | KV33: =COUNTIF(D34,$KV$1)+(COUNTIF(E34,$KV$1)+(COUNTIF(F34,$KV$1)+(COUNTIF(G34,$KV$1)+(COUNTIF(H34,$KV$1))))) -> 0 | KW33: =COUNTIF(D34,$KW$1)+(COUNTIF(E34,$KW$1)+(COUNTIF(F34,$KW$1)+(COUNTIF(G34,$KW$1)+(COUNTIF(H34,$KW$1))))) -> 0
